Workbook

Sheet CurTiPot
R1: CurTiPot main features and uses
R2: • pH calculation of aqueous solutions with activity coefficient and buffer capacity estimation (mixtures of up to seven hexaprotic systems)
R3: • Virtual Titration with indicator color transition simulation, manual titrant addition with a digital burette, species distribution and pH vs. volume plot
R4: • Simulation of simple and complex acid-base titration curves
R5: » automatic generation of curves with data equally spaced in pH or volume, in concentration ("pH") or activity (pH)
R6: » simulation of experimental random errors in pH and volume; overlay of multiple curves for comparison
R7: • Data analysis of real and simulated curves of acid-base titrations
R8: » Evaluation of curves with enhanced accuracy by interpolation, spline smoothing and automatic endpoint detection
R9: » Non-linear data Regression for the determination of concentrations and refinement of pKa values
R10: • Distribution diagrams of species, protonation of bases, isoelectric point and buffer capacity vs. pH and vs. volume of a titration
R11: • Database with equilibrium constants (pKa) of 250 acid-base systems including amino acids and some indicators (expandable by the user)
R13: No installation needed. Download the latest release of CurTiPot from www.iq.usp.br/gutz/Curtipot_.html and open the file with Microsoft Excel®
R14: Before using the program, make sure you agree with all the terms of the License reproduced at the end of this page (cells B50 to O100)
R15: If you agree with all terms of the License, enable macros and use CurTiPot freely for non-commercial purposes
R16: To enable the execution of macro-instructions in MS Excel follow instructions at the right -------> -------> -------> -------> -------> -------> | AM16: How to enable Excel files with macros and use CurTiPot
R17: The Solver supplement is required only by the Regression module. Follow activation instructions given in the cell I19 of the module | AM17: Excel and Office for Windows
AM18: 1. Download CurTiPot from the author's website to the folder of your preference
R19: The author reserves the right not to be responsible for the correctness, completeness, accuracy and bug-free operation of the freeware CurTiPot, provided "as is" without warranty of any kind | AM19: 2. Open the folder and right-click on the file curtipot_.xlsm
R20: Activity coefficient calculations, available in the pH_calc, Simulation, Distribution and Regression modules, are subject to the limitations of the Daniel equation at ionic strength >0.1 mol/L | AM20: 3. Select "Properties" in the pop-up window
R21: CurTiPot only considers protonation equilibria in water, ignoring other equilibria, interactions and reactions, for example, oxidtion/reduction between two or more acid-base systems present | AM21: 4. Check the "unlock" key (usually near the bottom right corner)
R22: Please report errors and incompatibilities of CurTiPot for MS Excel (PC and Mac) to the author; | AC22: Use the e-mail: | AD22: gutz@iq.usp.br | AM22: 5. Click OK
R23: Due to the wide range of screen resolutions in use nowadays, some resizing/replacement of figures and objects may be required | AM23: 6. Double click the curtipot_.xlsm file to open it
AM24: 7. Select "Enable content"
R25: Enable macros (see cell R16 above); click on a tab at the bottom left of this page or press Ctrl + PgDn switch modules; follow instructions in the yellow balloons | AM25: 8. Read the front page of CurTiPot
R26: Titration could be a nice start for beginners; pH_calc has too much stuff to grasp at once, but the pH is highlighted in the dark blue cell H23; | AM26: 9. Use the program
R27: Read local instructions in comment boxes by placing the mouse on cells with red marks (like in Q14 and Q34 at this page); | AM27: 10. Save your data, settings and results as Curtipot_anyname.xlsm
R28: Switch to the Simulation module and repeat the preloaded titration of phosphoric acid; start clicking on the buttons at the left of the figure; change some concentrations afterwards; | AM28: 11. All macros are fully removed when closing the file
R29: Find endpoints of your real or simulated curves with Evaluation and save them in +Eva. There are buttons to transfer data from Simulation do Evaluation and vice-versa;
R30: Play with the Distribution module and enjoy the Graphs before you try curve modeling with the less simple but more powerful Regression module to fit concentrations and pKas; | AM30: Older Office versions
R31: Save your data, settings and results in Curtipot_anyname.xlsm files to preserve the original software (optionally deleting unused spreadsheets, with exception of this first one). | AM31: 1. Open a new blank Excel spreadsheet
AM32: 2. Click on the File tab (or the Office button, in Windows XP)(top left corner)
R33: The software CurTiPot, version 1.0 for DOS (Borland Turbo Basic and Microsoft Disk Operating System), was created in 1991 and launched in 1992. | AM33: 3. Click on "Options" (bottom left)
D34: Dr. Ivano Gebhardt Rolf Gutz - Full Professor (since 1992) | R34: Read more about the name, origins and customers of CurTiPot in cells R54 to AD79 | AM34: 4. Click on "Trust Center" (bottom left)
D35: Instituto de Química - Universidade de São Paulo, São Paulo, SP, Brazil | R35: Version 2, improved and adapted for titrations with coulometric generation of reactants, was released in 1992. | AM35: 5. Click on "Trust Center Settings" (bottom right)
D36: Honored as a Commander of the National Order of Scientific Merit, Brazil, 2007 | R36: Version 3.0 for Excel, an evolution of the DOS version with added Regression module was released in 2006 (in Portuguese). | AM36: 6. Click on "Macro Settings"
D37: Elected Member of the Brazilian Academy of Sciences, 2008 | R37: Version 3.1 was the first release translated to English, launched on the internet in May 1st, 2006. | AM37: 7. Click on "Disable macros with notification"
D38: Elected Member Academy of Sciences of the State of São Paulo, 2007 | R38: Version 3.2, released in December 2006, includes a separate pH_calc module with activity coefficient estimation. | AM38: 8. Click OK; follow steps 1 to 8 only once on each computer
D39: Fellow of the International Union of Pure and Applied Chemistry, 2002 | R39: Version 3.3, January 2008, has a friendlier interface with the Database and includes logarithmic distribution diagram generation overlaid on the titration curve. | AM39: 9. Open the CurTiPot file
D40: Research interests, CV, publications, see: https://www.iq.usp.br/gutz and | R40: Version 3.4, October 2008, extends Ionic strength and activity coefficient calculations to the Regression module (formerly available only in pH_calc). | AM40: 10. When the "Security warning" shows up, click on it to enable content
D41: https://scholar.google.com.br/citations?user=qXFK1_YAAAAJ&hl=pt-BR | R41: Version 3.5, Jan/Feb 2010, calculates Buffer Capacity (BC) and medium charge (zm) (pH_calc module) and plots BC and zm and finds the isoelectric point (Distribution module). | AM41: 11. Follow the steps 8 to 11 above
R42: Version 3.6, March 2012 - Inflections (endpoints) of real and simulated titrations are located automatically by the improved Evaluation module, with smoothing and interpolation.
B43: In a survey of 21 free buffer calculators and Apps, the use of CurTiPot | R43: Version 4.0, January 2014 - Titration module for students introduced, embracing visual and instrumental end point detection; activity calculation extended to Simulation module.
B44: was encouraged over all other for rigorous pH calculation with confidence. | R44: Version 4.1, February 2014 - Titration module now imports Indicator colors from Database; Distribution, Evaluation and Analysis modules import data also from Titration.
B45: C. A. Lucy, J. Chem. Educ. 2023, 100, 2418−2422, https://doi.org/10.1021/acs.jchemed.2c01203 | R45: Versions 4.1.1 to 4.1.3, January 2015 minor corrections and improved comments on ionic strength calculations.
B46: People from 100+ countries, including 200+ universities and 100+ companies, | R46: Version 4.2.0, February 2015 - Extended data weighting options in Regression; ionic strength effect correction added to Distribution.
B47: downloaded over 200 thousand copies of CurTipot (as tracked by Google Analytics) | R47: Version 4.2.2, September 2015 - Cells to fill with concentrations of bases protoneted to neutrality are now underlined in green.
B48: CurTiPot was used and cited in 300+ papers and thesis | R48: Version 4.2.3. March 2016 - Indicator colors are loaded in Titration (function unavailable in v. 4.2.2).
B49: http://scholar.google.com/scholar?hl=en-USR&as_sdt=0,5&q=curtipot | R49: Version 4.3.0, January 2018 - Marker added for (reversible) rejection of outliers in Regression module; Real data loading added to Simulation for interactive curve fitting.
R50: Version 4.3.1, May 2021 - Modules for users' results saving added ( +pH, +Eva and +Reg); Regression/Simulation data exchange implemented; some instructions/notes were improved.
R51: Version 4.4.0, January/2024 - batch processing of pH calculations and other parameters introduced to deal with (long) lists of solutions of different composition

Sheet pH_calc
B1: pH Calculator with batch processor | H1: ↑ Hover over ↑ red marks for instructions . | K1: pKas of the acids and bases in the solution | N1: Click on K2 to Q2; select acids/bases; click on J2; read M1 | R1: Overall protonation constants = bp = SKp (calculated by the program) | Z1: pKas loaded from the Database
A2: Aqueous solution composition - reagents added, in mol/L | F2: Fill out concentrations; Enter; Click button B20. | K2: 8 | L2: 1 | M2: 6 | N2: 3 | O2: 7 | P2: 2 | Q2: 5 | R2: pKa(n) = -log Kd(HB-->B) = log Kp(1) | AB2: Click on J2 to use these pKas in the pH calculation
A3: Acid / Base Protonation | B3: =K3 -> Phosphoric acid | C3: =L3 -> Acetic acid | D3: HCl | E3: Carbonic acid | F3: Hydroxide ion | G3: Ammonia | H3: EDTA | J3: Acid / Base | K3: Phosphoric acid | L3: Acetic acid | M3: HCl | N3: Carbonic acid | O3: Hydroxide ion | P3: Ammonia | Q3: EDTA | R3: Acid / Base | S3: =K3 -> Phosphoric acid | T3: =L3 -> Acetic acid | U3: HCl | V3: Carbonic acid | W3: Hydroxide ion | X3: Ammonia | Y3: EDTA | Z3: Acid / Base | AA3: =IF(VLOOKUP(K$2,Database!$B$22:$N$301,2)="","",VLOOKUP(K$2,Database!$B$22:$N$301,2)) -> Phosphoric acid | AB3: =IF(VLOOKUP(L$2,Database!$B$22:$N$301,2)="","",VLOOKUP(L$2,Database!$B$22:$N$301,2)) -> Acetic acid | AC3: =IF(VLOOKUP(M$2,Database!$B$22:$N$301,2)="","",VLOOKUP(M$2,Database!$B$22:$N$301,2)) -> HCl | AD3: =IF(VLOOKUP(N$2,Database!$B$22:$N$301,2)="","",VLOOKUP(N$2,Database!$B$22:$N$301,2)) -> Carbonic acid | AE3: =IF(VLOOKUP(O$2,Database!$B$22:$N$301,2)="","",VLOOKUP(O$2,Database!$B$22:$N$301,2)) -> Hydroxide ion | AF3: =IF(VLOOKUP(P$2,Database!$B$22:$N$301,2)="","",VLOOKUP(P$2,Database!$B$22:$N$301,2)) -> Ammonia | AG3: =IF(VLOOKUP(Q$2,Database!$B$22:$N$301,2)="","",VLOOKUP(Q$2,Database!$B$22:$N$301,2)) -> EDTA
A4: [B] | J4: Charge of B | K4: -3 | L4: -1 | M4: -1 | N4: -2 | O4: -1 | P4: 0 | Q4: -4 | R4: Charge of B | S4: =IF(K4="","",K4) -> -3 | T4: =IF(L4="","",L4) -> -1 | U4: -1 | V4: -2 | W4: -1 | X4: 0 | Y4: -4 | Z4: Charge of B | AA4: =IF(VLOOKUP(K$2,Database!$B$22:$N$301,3)="","",VLOOKUP(K$2,Database!$B$22:$N$301,3)) -> -3 | AB4: =IF(VLOOKUP(L$2,Database!$B$22:$N$301,3)="","",VLOOKUP(L$2,Database!$B$22:$N$301,3)) -> -1 | AC4: =IF(VLOOKUP(M$2,Database!$B$22:$N$301,3)="","",VLOOKUP(M$2,Database!$B$22:$N$301,3)) -> -1 | AD4: =IF(VLOOKUP(N$2,Database!$B$22:$N$301,3)="","",VLOOKUP(N$2,Database!$B$22:$N$301,3)) -> -2 | AE4: =IF(VLOOKUP(O$2,Database!$B$22:$N$301,3)="","",VLOOKUP(O$2,Database!$B$22:$N$301,3)) -> -1 | AF4: =IF(VLOOKUP(P$2,Database!$B$22:$N$301,3)="","",VLOOKUP(P$2,Database!$B$22:$N$301,3)) -> 0 | AG4: =IF(VLOOKUP(Q$2,Database!$B$22:$N$301,3)="","",VLOOKUP(Q$2,Database!$B$22:$N$301,3)) -> -4
A5: [HB] | B5: 0.0265 | J5: pKa1 | K5: 2.148 | L5: 4.757 | M5: -7 | N5: 6.352 | O5: 15.745 | P5: 9.244 | Q5: -0.21 | R5: bp1 | S5: =IF(K5="","",IF(K6="",10^K5,(IF(K7="",10^K6,(IF(K8="",10^K7,(IF(K9="",10^K8,(IF(K10="",10^K9,10^K10)))))))))) -> 2.238721139e+12 | T5: 57147.86367 | U5: 1e-07 | V5: 2.133044913e+10 | W5: 5559042572704029 | X5: 1753880502 | Y5: 1.071519305e+11 | Z5: pKa1 = logKpn | AA5: =IF(VLOOKUP(K$2,Database!$B$22:$N$301,4)="","",VLOOKUP(K$2,Database!$B$22:$N$301,4)) -> 2.148 | AB5: =IF(VLOOKUP(L$2,Database!$B$22:$N$301,4)="","",VLOOKUP(L$2,Database!$B$22:$N$301,4)) -> 4.757 | AC5: =IF(VLOOKUP(M$2,Database!$B$22:$N$301,4)="","",VLOOKUP(M$2,Database!$B$22:$N$301,4)) -> -7 | AD5: =IF(VLOOKUP(N$2,Database!$B$22:$N$301,4)="","",VLOOKUP(N$2,Database!$B$22:$N$301,4)) -> 6.352 | AE5: =IF(VLOOKUP(O$2,Database!$B$22:$N$301,4)="","",VLOOKUP(O$2,Database!$B$22:$N$301,4)) -> 13.997 | AF5: =IF(VLOOKUP(P$2,Database!$B$22:$N$301,4)="","",VLOOKUP(P$2,Database!$B$22:$N$301,4)) -> 9.244 | AG5: =IF(VLOOKUP(Q$2,Database!$B$22:$N$301,4)="","",VLOOKUP(Q$2,Database!$B$22:$N$301,4)) -> -0.21
A6: [H2B] | B6: 0.02 | J6: pKa2 | K6: 7.199 | N6: 10.329 | Q6: 1.5 | R6: bp2 | S6: =IF(K6="","",IF(K7="",S5*10^K5,(IF(K8="",S5*10^K6,(IF(K9="",S5*10^K7,(IF(K10="",S5*10^K8,S5*10^K9)))))))) -> 3.539973411e+19 | V6: 4.797334486e+16 | Y6: 6.025595861e+17 | Z6: pKa2 = logKpn-1 | AA6: =IF(VLOOKUP(K$2,Database!$B$22:$N$301,5)="","",VLOOKUP(K$2,Database!$B$22:$N$301,5)) -> 7.199 | AB6: =IF(VLOOKUP(L$2,Database!$B$22:$N$301,5)="","",VLOOKUP(L$2,Database!$B$22:$N$301,5)) ->  | AC6: =IF(VLOOKUP(M$2,Database!$B$22:$N$301,5)="","",VLOOKUP(M$2,Database!$B$22:$N$301,5)) ->  | AD6: =IF(VLOOKUP(N$2,Database!$B$22:$N$301,5)="","",VLOOKUP(N$2,Database!$B$22:$N$301,5)) -> 10.329 | AE6: =IF(VLOOKUP(O$2,Database!$B$22:$N$301,5)="","",VLOOKUP(O$2,Database!$B$22:$N$301,5)) ->  | AF6: =IF(VLOOKUP(P$2,Database!$B$22:$N$301,5)="","",VLOOKUP(P$2,Database!$B$22:$N$301,5)) ->  | AG6: =IF(VLOOKUP(Q$2,Database!$B$22:$N$301,5)="","",VLOOKUP(Q$2,Database!$B$22:$N$301,5)) -> 1.5
A7: [H3B] | J7: pKa3 | K7: 12.35 | Q7: 2.21 | R7: bp3 | S7: =IF(K7="","",IF(K8="",S6*10^K5,(IF(K9="",S6*10^K6,(IF(K10="",S6*10^K7,S6*10^K8)))))) -> 4.97737085e+21 | Y7: 7.762471166e+20 | Z7: pKa3 = logKpn-2 | AA7: =IF(VLOOKUP(K$2,Database!$B$22:$N$301,6)="","",VLOOKUP(K$2,Database!$B$22:$N$301,6)) -> 12.35 | AB7: =IF(VLOOKUP(L$2,Database!$B$22:$N$301,6)="","",VLOOKUP(L$2,Database!$B$22:$N$301,6)) ->  | AC7: =IF(VLOOKUP(M$2,Database!$B$22:$N$301,6)="","",VLOOKUP(M$2,Database!$B$22:$N$301,6)) ->  | AD7: =IF(VLOOKUP(N$2,Database!$B$22:$N$301,6)="","",VLOOKUP(N$2,Database!$B$22:$N$301,6)) ->  | AE7: =IF(VLOOKUP(O$2,Database!$B$22:$N$301,6)="","",VLOOKUP(O$2,Database!$B$22:$N$301,6)) ->  | AF7: =IF(VLOOKUP(P$2,Database!$B$22:$N$301,6)="","",VLOOKUP(P$2,Database!$B$22:$N$301,6)) ->  | AG7: =IF(VLOOKUP(Q$2,Database!$B$22:$N$301,6)="","",VLOOKUP(Q$2,Database!$B$22:$N$301,6)) -> 2.21
A8: [H4B] | J8: pKa4 | Q8: 3.11 | R8: bp4 | S8: =IF(K8="","",IF(K9="",S7*10^K5,(IF(K10="",S7*10^K6,S7*10^K7)))) ->  | Y8: 1.258925412e+23 | Z8: pKa4 = logKpn-3 | AA8: =IF(VLOOKUP(K$2,Database!$B$22:$N$301,7)="","",VLOOKUP(K$2,Database!$B$22:$N$301,7)) ->  | AB8: =IF(VLOOKUP(L$2,Database!$B$22:$N$301,7)="","",VLOOKUP(L$2,Database!$B$22:$N$301,7)) ->  | AC8: =IF(VLOOKUP(M$2,Database!$B$22:$N$301,7)="","",VLOOKUP(M$2,Database!$B$22:$N$301,7)) ->  | AD8: =IF(VLOOKUP(N$2,Database!$B$22:$N$301,7)="","",VLOOKUP(N$2,Database!$B$22:$N$301,7)) ->  | AE8: =IF(VLOOKUP(O$2,Database!$B$22:$N$301,7)="","",VLOOKUP(O$2,Database!$B$22:$N$301,7)) ->  | AF8: =IF(VLOOKUP(P$2,Database!$B$22:$N$301,7)="","",VLOOKUP(P$2,Database!$B$22:$N$301,7)) ->  | AG8: =IF(VLOOKUP(Q$2,Database!$B$22:$N$301,7)="","",VLOOKUP(Q$2,Database!$B$22:$N$301,7)) -> 3.11
A9: [H5B] | I9: Total | J9: pKa5 | Q9: 6.75 | R9: bp5 | S9: =IF(K9="","",IF(K10="",S8*10^K5,S8*10^K6)) ->  | Y9: 3.981071706e+24 | Z9: pKa5 = logKpn-4 | AA9: =IF(VLOOKUP(K$2,Database!$B$22:$N$301,8)="","",VLOOKUP(K$2,Database!$B$22:$N$301,8)) ->  | AB9: =IF(VLOOKUP(L$2,Database!$B$22:$N$301,8)="","",VLOOKUP(L$2,Database!$B$22:$N$301,8)) ->  | AC9: =IF(VLOOKUP(M$2,Database!$B$22:$N$301,8)="","",VLOOKUP(M$2,Database!$B$22:$N$301,8)) ->  | AD9: =IF(VLOOKUP(N$2,Database!$B$22:$N$301,8)="","",VLOOKUP(N$2,Database!$B$22:$N$301,8)) ->  | AE9: =IF(VLOOKUP(O$2,Database!$B$22:$N$301,8)="","",VLOOKUP(O$2,Database!$B$22:$N$301,8)) ->  | AF9: =IF(VLOOKUP(P$2,Database!$B$22:$N$301,8)="","",VLOOKUP(P$2,Database!$B$22:$N$301,8)) ->  | AG9: =IF(VLOOKUP(Q$2,Database!$B$22:$N$301,8)="","",VLOOKUP(Q$2,Database!$B$22:$N$301,8)) -> 6.75
A10: [H6B] | I10: SS | J10: pKa6 | Q10: 11.03 | R10: bp6 | S10: =IF(K10="","",S9*10^K5) ->  | Y10: 2.454708916e+24 | Z10: pKa6 = logKpn-5 | AA10: =IF(VLOOKUP(K$2,Database!$B$22:$N$301,9)="","",VLOOKUP(K$2,Database!$B$22:$N$301,9)) ->  | AB10: =IF(VLOOKUP(L$2,Database!$B$22:$N$301,9)="","",VLOOKUP(L$2,Database!$B$22:$N$301,9)) ->  | AC10: =IF(VLOOKUP(M$2,Database!$B$22:$N$301,9)="","",VLOOKUP(M$2,Database!$B$22:$N$301,9)) ->  | AD10: =IF(VLOOKUP(N$2,Database!$B$22:$N$301,9)="","",VLOOKUP(N$2,Database!$B$22:$N$301,9)) ->  | AE10: =IF(VLOOKUP(O$2,Database!$B$22:$N$301,9)="","",VLOOKUP(O$2,Database!$B$22:$N$301,9)) ->  | AF10: =IF(VLOOKUP(P$2,Database!$B$22:$N$301,9)="","",VLOOKUP(P$2,Database!$B$22:$N$301,9)) ->  | AG10: =IF(VLOOKUP(Q$2,Database!$B$22:$N$301,9)="","",VLOOKUP(Q$2,Database!$B$22:$N$301,9)) -> 11.03
A11: S[HiB] | B11: =SUM(B4:B10) -> 0.0465 | C11: =SUM(C4:C10) -> 0 | D11: 0 | E11: 0 | F11: 0 | G11: 0 | H11: 0 | I11: =SUM(B11:H11) -> 0.0465 | J11: Electrolyte | K11: Na+ | L11: K+ | M11: Ca++ | N11: Cl- | O11: NO3- | P11: SO4= | Q11: ClO4- | R11: Kw | S11: =10^-K13 -> 1.006931669e-14 | Z11: Temperature | AA11: =IF(VLOOKUP(K$2,Database!$B$22:$N$301,10)="","unknown",VLOOKUP(K$2,Database!$B$22:$N$301,10)) -> 25 | AB11: =IF(VLOOKUP(L$2,Database!$B$22:$N$301,10)="","unknown",VLOOKUP(L$2,Database!$B$22:$N$301,10)) -> 25 | AC11: =IF(VLOOKUP(M$2,Database!$B$22:$N$301,10)="","unknown",VLOOKUP(M$2,Database!$B$22:$N$301,10)) -> 25 | AD11: =IF(VLOOKUP(N$2,Database!$B$22:$N$301,10)="","unknown",VLOOKUP(N$2,Database!$B$22:$N$301,10)) -> 25 | AE11: =IF(VLOOKUP(O$2,Database!$B$22:$N$301,10)="","unknown",VLOOKUP(O$2,Database!$B$22:$N$301,10)) -> 25 | AF11: =IF(VLOOKUP(P$2,Database!$B$22:$N$301,10)="","unknown",VLOOKUP(P$2,Database!$B$22:$N$301,10)) -> 25 | AG11: =IF(VLOOKUP(Q$2,Database!$B$22:$N$301,10)="","unknown",VLOOKUP(Q$2,Database!$B$22:$N$301,10)) -> 25
A12: S[H] | B12: =B5+2*B6+3*B7+4*B8+5*B9+6*B10 -> 0.0665 | C12: =C5+2*C6+3*C7+4*C8+5*C9+6*C10 -> 0 | D12: =D5+2*D6+3*D7+4*D8+5*D9+6*D10 -> 0 | E12: 0 | F12: =F5+2*F6+3*F7+4*F8+5*F9+6*F10 -> 0 | G12: 0 | H12: 0 | I12: =SUM(B12:H12) -> 0.0665 | J12: Ion charge | K12: 1 | L12: 1 | M12: 2 | N12: -1 | O12: -1 | P12: -2 | Q12: -1 | Z12: Ionic strength | AA12: =IF(VLOOKUP(K$2,Database!$B$22:$N$301,11)="","unknown",VLOOKUP(K$2,Database!$B$22:$N$301,11)) -> 0 | AB12: =IF(VLOOKUP(L$2,Database!$B$22:$N$301,11)="","unknown",VLOOKUP(L$2,Database!$B$22:$N$301,11)) -> 0 | AC12: =IF(VLOOKUP(M$2,Database!$B$22:$N$301,11)="","unknown",VLOOKUP(M$2,Database!$B$22:$N$301,11)) -> 0 | AD12: =IF(VLOOKUP(N$2,Database!$B$22:$N$301,11)="","unknown",VLOOKUP(N$2,Database!$B$22:$N$301,11)) -> 0 | AE12: =IF(VLOOKUP(O$2,Database!$B$22:$N$301,11)="","unknown",VLOOKUP(O$2,Database!$B$22:$N$301,11)) -> 0 | AF12: =IF(VLOOKUP(P$2,Database!$B$22:$N$301,11)="","unknown",VLOOKUP(P$2,Database!$B$22:$N$301,11)) -> 0 | AG12: =IF(VLOOKUP(Q$2,Database!$B$22:$N$301,11)="","unknown",VLOOKUP(Q$2,Database!$B$22:$N$301,11)) -> 0
A13: SziCi | B13: =K4*B4+(K4+1)*B5+(K4+2)*B6+(K4+3)*B7+(K4+4)*B8+(K4+5)*B9+(K4+6)*B10 -> -0.073 | C13: 0 | D13: =M4*D4+(M4+1)*D5+(M4+2)*D6+(M4+3)*D7+(M4+4)*D8+(M4+5)*D9+(M4+6)*D10 -> 0 | E13: 0 | F13: =O4*F4+(O4+1)*F5+(O4+2)*F6+(O4+3)*F7+(O4+4)*F8+(O4+5)*F9+(O4+6)*F10 -> 0 | G13: 0 | H13: 0 | I13: =SUM(B13:H13) -> -0.073 | J13: pKw | K13: 13.997
A14: Electrolyte | B14: =K11 -> Na+ | C14: =L11 -> K+ | D14: Ca++ | E14: Cl- | F14: NO3- | G14: SO4= | H14: ClO4- | J14: Davies equation parameters | N14: Color coding
A15: Ci (mol/L) | B15: 0.073 | E15: 0 | J15: for activity coefficient estimation | N15: D o n o t c h a n g e
A16: ziCi | B16: =B15*K12 -> 0.073 | C16: 0 | D16: 0 | E16: 0 | F16: 0 | G16: 0 | H16: 0 | I16: =SUM(B16:H16) -> 0.073 | J16: A | K16: 0.509 | N16: C h a n g e c r i t e r i o u s l y
A17: Charge Balance | B17: =IF(I17=0,"OK", "WARNING") -> OK | C17: =IF(I17<0,"Add cations/Remove anions", "") ->  | E17: =IF(I17>0,"Add anions/Remove cations", "") ->  | H17: =IF(I17=0,"","Unbalance") ->  | I17: =I13+I16 -> 0 | J17: b | K17: 0.3 | N17: Fill out, change or leave blank
A22: Results at chemical equilibrium | J22: Stepwise apparent constants recalculated for I | M22: =E26 -> 0.09950075163 | R22: Overall apparent protonation constants recalculated for I | W22: =$E$26 -> 0.09950075163 | AA22: How to enable Excel files with macros and use CurTiPot
A23: pH | B23: 7.000618768 | C23: a H+ | D23: 9.985762575e-08 | E23: a OH- | F23: 1.008366022e-07 | G23: pOH | H23: 6.996381797 | J23: Acid / Base | K23: =K3 -> Phosphoric acid | L23: =L3 -> Acetic acid | M23: HCl | N23: Carbonic acid | O23: Hydroxide ion | P23: Ammonia | Q23: EDTA | R23: Acid / Base | S23: =K3 -> Phosphoric acid | T23: =L3 -> Acetic acid | U23: HCl | V23: Carbonic acid | W23: Hydroxide ion | X23: Ammonia | Y23: EDTA | AA23: Office for Windows
A24: p[H] | B24: 6.893756066 | C24: [H+] | D24: 1.277155957e-07 | E24: [OH-] | F24: 1.289676853e-07 | G24: p[OH] | H24: 6.889519095 | J24: Charge of B | K24: =K4 -> -3 | L24: -1 | M24: -1 | N24: -2 | O24: -1 | P24: 0 | Q24: -4 | R24: Charge of B | S24: =K4 -> -3 | T24: -1 | U24: -1 | V24: -2 | W24: -1 | X24: 0 | Y24: -4 | AA24: 1. Download CurTiPot from the author's website to the folder of your preference
A25: "pH" | B25: 7.321204169 | C25: "[H+]" | D25: 4.773048323e-08 | E25: "[OH-]" | F25: 2.109616937e-07 | G25: "pOH" | H25: 6.675796397 | J25: pK'an = logK'p1 | K25: 11.70882429 | L25: 4.543274788 | M25: -7.213725687 | N25: 9.901549609 | O25: 15.53127523 | P25: 9.244000373 | Q25: 10.17509883 | R25: b'p1 | S25: 5.114742971e+11 | T25: 34936.1147 | U25: 6.113284462e-08 | V25: 7971668116 | W25: 3.398400858e+15 | X25: 1753880502 | Y25: 1.496574768e+10 | AA25: 2. Open the folder and right-click on the file curtipot_.xlsm
A26: g H+ | B26: 0.7818749556 | C26: Ionic strength (mol/L) | E26: 0.09950075163 | G26: g OH- | H26: 0.7818749556 | J26: pK'an-1 = logK'p2 | K26: 6.771549483 | N26: 6.138274853 | Q26: 6.108824061 | R26: b'p2 | S26: 3.022546728e+18 | V26: 1.096033464e+16 | Y26: 1.922747402e+16 | AA26: 3. Select "Properties" in the pop-up window
A27: Buffer Capacity (Buffer Index, DC/DpH) | D27: mol.L-1.pH-1 | E27: 0.02624798791 | F27: Buffer Strength | H27: 0.01139935677 | J27: pK'an-2 = logK'p3 | K27: 1.934274683 | Q27: 2.682549318 | R27: b'p3 | S27: 2.598050739e+20 | Y27: 9.257025127e+18 | AA27: 4. Check the "unlock" key (usually near the bottom right corner)
A28: Mean charge (zm) and mean protonation (hm) of the equilibrium HiB species at pH | G28: =B23 -> 7.000618768 | J28: pK'an-3 = logK'p4 | Q28: 1.996274685 | R28: b'p4 | Y28: 9.177957606e+20 | AA28: 5. Click OK
A29: Acid / Base | B29: =K3 -> Phosphoric acid | C29: Acetic acid | D29: HCl | E29: Carbonic acid | F29: Hydroxide ion | G29: Ammonia | H29: EDTA | J29: pK'an-4 = logK'p5 | Q29: 1.500000061 | R29: b'p5 | Y29: 2.90232503e+22 | AA29: 6. Double click the curtipot_.xlsm file to open it
A30: zm | B30: -1.569892445 | C30: -0.9955579333 | D30: -1 | E30: -0.8515907131 | F30: -2.303994662e-09 | G30: 0.9955555139 | H30: -2.859540567 | J30: pK'an-5 = logK'p6 | Q30: 0.003725395421 | R30: b'p6 | Y30: 2.927328376e+22 | AA30: 7. Select "Enable content"
A31: hm | B31: 1.430107555 | C31: 0.004442066703 | D31: 7.80761767e-15 | E31: 1.148409287 | F31: 0.9999999977 | G31: 0.9955555139 | H31: 1.140459433 | J31: pK'w | K31: 13.78327516 | R31: K'w | S31: 1.647120587e-14 | AA31: 8. Read the front page of CurTiPot
A32: Equilibrium concentration of species, in mol/L | J32: Activity coefficient (g) of species | N32: for pH | O32: =B23 -> 7.000618768 | P32: and I | Q32: =E26 -> 0.09950075163 | AA32: 9. Use the program
A33: Acid / Base protonation | B33: =K3 -> Phosphoric acid | C33: Acetic acid | D33: HCl | E33: Carbonic acid | F33: Hydroxide ion | G33: Ammonia | H33: EDTA | I33: [H+] | J33: Acid / Base protonation | K33: =K3 -> Phosphoric acid | L33: Acetic acid | M33: HCl | N33: Carbonic acid | O33: Hydroxide ion | P33: Ammonia | Q33: EDTA | AA33: 10. Save your data, settings and results as Curtipot_anyname.xlsm
A34: [B] | B34: 4.056658103e-07 | I34: =D24 -> 1.277155957e-07 | J34: g B | K34: 0.1092032896 | L34: 0.7818749556 | M34: 0.7818749556 | N34: 0.3737224691 | O34: 0.7818749556 | P34: 1 | Q34: 0.0195072854 | AA34: 11. All macros are fully removed when closing the file
A35: [HB] | B35: 0.02649940693 | J35: g HB | K35: 0.3737224691 | L35: 1 | M35: 1 | N35: 0.7818749556 | O35: 1 | P35: 0.7818749556 | Q35: 0.1092032896
A36: [H2B] | B36: 0.01999996784 | I36: [OH-] | J36: g H2B | K36: 0.7818749556 | N36: 1 | Q36: 0.3737224691 | AA36: Former Office and Excel version
A37: [H3B] | B37: 2.195572769e-07 | I37: =F24 -> 1.289676853e-07 | J37: g H3B | K37: 1 | Q37: 0.7818749556 | AA37: 1. Open a new blank Excel spreadsheet
A38: [H4B] | J38: g H4B | Q38: 1 | AA38: 2. Click on the File tab (or the Office button, in Windows XP)(top left corner)
A39: [H5B] | J39: g H5B | Q39: 0.7818749556 | AA39: 3. Click on "Options" (bottom left)
A40: [H6B] | I40: SS | J40: g H6B | Q40: 0.3737224691 | AA40: 4. Click on "Trust Center" (bottom left)
A41: S[HiB] | B41: =B34+B35+B36+B37+B38+B39+B40 -> 0.0465 | C41: =C34+C35+C36+C37+C38+C39+C40 -> 0 | D41: 0 | E41: 0 | F41: 0 | G41: 0 | H41: 0 | I41: =SUM(B41:H41) -> 0.0465 | AA41: 5. Click on "Trust Center Settings" (bottom right)
A42: Species distribution (fractional composition, in %) | E42: for pH | F42: =B23 -> 7.000618768 | G42: or p[H]= | H42: =$B$24 -> 6.893756066 | J42: Electrolyte | K42: =K11 -> Na+ | L42: K+ | M42: Ca++ | N42: Cl- | O42: NO3- | P42: SO4= | Q42: ClO4- | AA42: 6. Click on "Macro Settings"
A43: Acid / Base protonation | B43: =K3 -> Phosphoric acid | C43: Acetic acid | D43: HCl | E43: Carbonic acid | F43: Hydroxide ion | G43: Ammonia | H43: EDTA | J43: gi | K43: 0.7818749556 | L43: 0.7818749556 | M43: 0.3737224691 | N43: 0.7818749556 | O43: 0.7818749556 | P43: 0.3737224691 | Q43: 0.7818749556 | AA43: 7. Click on "Disable macros with notification"
A44: % B | B44: 0.0008723995919 | C44: 99.55579333 | D44: 100 | E44: 0.08348058213 | F44: 2.30399462e-07 | G44: 0.4444486061 | H44: 0.04492356422 | AA44: 8. Click OK; follow steps 1 to 8 only once on each computer
A45: % HB | B45: 56.9879719 | C45: 0.4442066703 | D45: 7.80761767e-13 | E45: 84.99211015 | F45: 99.99999977 | G45: 99.55555139 | H45: 85.8650759 | AA45: 9. Open the CurTiPot file
A46: % H2B | B46: 43.01068353 | E46: 14.92440927 | H46: 14.0891342 | AA46: 10. When the "Security warning" shows up, click on it to enable content
A47: % H3B | B47: 0.0004721661868 | H47: 0.000866318221 | AA47: 11. Follow the steps 8 to 11 above
A48: % H4B | H48: 1.096973123e-08
A49: % H5B | H49: 4.430369215e-14 | AA49: Old versions of Office and Excel:
A50: % H6B | H50: 5.707018094e-21 | AA50: 1. Open a new blank Excel spreadsheet
A51: % S[HiB] | B51: =B44+B45+B46+B47+B48+B49+B50 -> 100 | C51: =C44+C45+C46+C47+C48+C49+C50 -> 100 | D51: 100 | E51: 100 | F51: 100 | G51: 100 | H51: 100 | AA51: 2. Click on the "Tools" tab
AA52: 3. Select "Macro"
AA53: 4. Select "Security"
AA54: 5. Select "Security level"
AA55: 6. Select "Medium"
AA56: 7. Open the CurTiPot file and enable the content
B57: Batch pH Calculator
A58: Sample ID | B58: Species added to the solution, in mol/L | H58: Calculated pH and other parameters
A59: Cell ID . | B59: B5 | C59: B6 | D59: D5 | E59: G4 | F59: E6 | H59: B23 | I59: E26 | J59: K35 | K59: K36 | L59: B45 | M59: E27
A60: Species . | B60: HPO4= | C60: H2PO4- | D60: HCl | E60: NH4OH | F60: CO2 | G60: log HB/H2B | H60: pH | I60: I | J60: g HPO4= | K60: g H2PO4- | L60: % HPO4= | M60: buff. cap.
A61: mix. ratio 1 | B61: 0.01 | C61: 0.04 | G61: =LOG10(B61/C61) -> -0.6020599913 | H61: 6.293606142 | I61: 0.08300355308 | J61: 0.3938374898 | K61: 0.7921898318 | L61: 20.00565314 | M61: 0.01843363258
A62: 2 | B62: =B61+0.001 -> 0.011 | C62: =C61-0.001 -> 0.039 | G62: -0.5496719219 | H62: 6.344829653 | I62: 0.0840031108 | J62: 0.3924715157 | K62: 0.7915020347 | L62: 22.00486938 | M62: 0.01976745449
A63: 3 | B63: =B62+0.001 -> 0.012 | C63: =C62-0.001 -> 0.038 | G63: -0.5006023506 | H63: 6.392755913 | I63: 0.08500274537 | J63: 0.3911265661 | K63: 0.7908230675 | L63: 24.00421009 | M63: 0.02100947471
A64: 4 | B64: 0.013 | C64: 0.037 | G64: -0.4542583718 | H64: 6.437975314 | I64: 0.08600243939 | J64: 0.3898021763 | K64: 0.7901527663 | L64: 26.00364532 | M64: 0.02215962547
A65: 5 | B65: 0.014 | C65: 0.036 | G65: -0.4101744651 | H65: 6.480951642 | I65: 0.0870021804 | J65: 0.3884978904 | K65: 0.7894909685 | L65: 28.0031535 | M65: 0.0232178585
A66: 6 | B66: 0.015 | C66: 0.035 | G66: -0.3679767853 | H66: 6.522057492 | I66: 0.0880019593 | J66: 0.3872132625 | K66: 0.7888375144 | L66: 30.00271862 | M66: 0.02418413852
A67: 7 | B67: 0.016 | C67: 0.034 | G67: -0.3273589344 | H67: 6.56159832 | I67: 0.08900176929 | J67: 0.3859478584 | K67: 0.7881922474 | L67: 32.00232854 | M67: 0.0250584393
A68: 8 | B68: 0.017 | C68: 0.033 | G68: -0.2880650185 | H68: 6.599829285 | I68: 0.09000160521 | J68: 0.3847012554 | K68: 0.7875550142 | L68: 34.0019738 | M68: 0.02584074099
A69: 9 | B69: 0.018 | C69: 0.032 | G69: -0.2498774732 | H69: 6.636967356 | I69: 0.0910014631 | J69: 0.3834730429 | K69: 0.7869256653 | L69: 36.00164688 | M69: 0.02653102839
A70: 10 | B70: 0.019 | C70: 0.031 | G70: -0.2126080929 | H70: 6.673200244 | I70: 0.09200133992 | J70: 0.3822628219 | K70: 0.7863040551 | L70: 38.0013417 | M70: 0.02712928975
A71: 11 | B71: 0.02 | C71: 0.03 | G71: -0.1760912591 | H71: 6.708693132 | I71: 0.093001233 | J71: 0.3810702057 | K71: 0.7856900416 | L71: 40.00105273 | M71: 0.02763551585
A72: 12 | B72: 0.021 | C72: 0.029 | G72: -0.1401787032 | H72: 6.743593922 | I72: 0.09400114061 | J72: 0.3798948181 | K72: 0.7850834864 | L72: 42.00077584 | M72: 0.02804969973
A73: 13 | B73: 0.022 | C73: 0.028 | G73: -0.1047353505 | H73: 6.77803735 | I73: 0.0950010613 | J73: 0.3787362943 | K73: 0.7844842548 | L73: 44.00050716 | M73: 0.02837183594
A74: 14 | B74: 0.023 | C74: 0.027 | G74: -0.06963592814 | H74: 6.812148378 | I74: 0.09600099371 | J74: 0.3775942804 | K74: 0.7838922158 | L74: 46.00024291 | M74: 0.02860192038
A75: 15 | B75: 0.024 | C75: 0.026 | G75: -0.03476210626 | H75: 6.845083233 | I75: 0.0980009392 | J75: 0.3753583641 | K75: 0.7827291798 | L75: 47.99998088 | M75: 0.02873995563
A76: 16 | B76: 0.025 | C76: 0.025 | G76: 3.857309866e-16 | H76: 6.877949136 | I76: 0.1000008948 | J76: 0.3731845252 | K76: 0.7815934418 | L76: 49.99971614 | M76: 0.02878593357
A77: 17 | B77: 0.026 | C77: 0.024 | G77: 0.03476210626 | H77: 6.910856341 | I77: 0.1020008595 | J77: 0.3710702777 | K77: 0.7804840681 | L77: 51.9994449 | M77: 0.02873985339
A78: 18 | B78: 0.027 | C78: 0.023 | G78: 0.06963592814 | H78: 6.94391519 | I78: 0.1040008338 | J78: 0.3690132761 | K78: 0.7794001729 | L78: 53.99916439 | M78: 0.02860171518
A79: 19 | B79: 0.028 | C79: 0.022 | G79: 0.1047353505 | H79: 6.977238248 | I79: 0.1060008173 | J79: 0.3670113064 | K79: 0.7783409156 | L79: 55.99887096 | M79: 0.02837151984
A80: 20 | B80: 0.029 | C80: 0.021 | G80: 0.1401787032 | H80: 7.010942567 | I80: 0.10800081 | J80: 0.3650622763 | K80: 0.7773054977 | L80: 57.99856025 | M80: 0.02804926928
A81: 21 | B81: 0.03 | C81: 0.02 | G81: 0.1760912591 | H81: 7.045152205 | I81: 0.1100008124 | J81: 0.3631642057 | K81: 0.7762931594 | L81: 59.99822828 | M81: 0.0276349663
A82: 22 | B82: 0.031 | C82: 0.019 | G82: 0.2126080929 | H82: 7.080001043 | I82: 0.112000825 | J82: 0.3613152202 | K82: 0.7753031779 | L82: 61.99786973 | M82: 0.02712861499
A83: 23 | B83: 0.032 | C83: 0.018 | G83: 0.2498774732 | H83: 7.11563618 | I83: 0.1140008484 | J83: 0.3595135431 | K83: 0.7743348644 | L83: 63.99747851 | M83: 0.02653022081
A84: 24 | B84: 0.033 | C84: 0.017 | G84: 0.2880650185 | H84: 7.152222078 | I84: 0.1160008839 | J84: 0.3577574886 | K84: 0.7733875621 | L84: 65.9970474 | M84: 0.02583979095
A85: 25 | B85: 0.034 | C85: 0.016 | G85: 0.3273589344 | H85: 7.189945773 | I85: 0.1180009327 | J85: 0.3560454564 | K85: 0.7724606442 | L85: 67.99656744 | M85: 0.02505733486
A86: 26 | B86: 0.035 | C86: 0.015 | G86: 0.3679767853 | H86: 7.229023626 | I86: 0.1200009967 | J86: 0.3543759254 | K86: 0.7715535122 | L86: 69.99602757 | M86: 0.02418286484
A87: 27 | B87: 0.036 | C87: 0.014 | G87: 0.4101744651 | H87: 7.269710252 | I87: 0.1220010785 | J87: 0.3527474488 | K87: 0.7706655937 | L87: 71.9954136 | M87: 0.02321639708
A88: 28 | B88: 0.037 | C88: 0.013 | G88: 0.4542583718 | H88: 7.312310649 | I88: 0.1240011816 | J88: 0.3511586494 | K88: 0.769796341 | L88: 73.99470734 | M88: 0.02215795302
A89: 29 | B89: 0.038 | C89: 0.012 | G89: 0.5006023506 | H89: 7.357197029 | I89: 0.1260013103 | J89: 0.3496082148 | K89: 0.7689452299 | L89: 75.99388401 | M89: 0.02100756187
A90: 30 | B90: 0.039 | C90: 0.011 | G90: 0.5496719219 | H90: 7.404832938 | I90: 0.1280014711 | J90: 0.3480948929 | K90: 0.7681117574 | L90: 77.99291105 | M90: 0.01976526319
A91: 31 | B91: 0.04 | C91: 0.01 | G91: 0.6020599913 | H91: 7.455808683 | I91: 0.1300016729 | J91: 0.346617488 | K91: 0.7672954407 | L91: 79.99174227 | M91: 0.01843111297
A92: pH7 reference | B92: 0.0265 | C92: 0.02 | D92: 0 | H92: 7.000618768 | I92: 0.09950075163 | J92: 0.3737224691 | K92: 0.7818749556 | L92: 56.9879719 | M92: 0.02624798791
A93: HCl add. 1 | B93: 0.0265 | C93: 0.02 | D93: =D92+0.001 -> 0.001 | H93: 6.963674598 | I93: 0.09850076796 | J93: 0.3748093585 | K93: 0.7824428144 | L93: 54.83775769 | M93: 0.02652025572
A94: 2 | B94: 0.0265 | C94: 0.02 | D94: =D93+0.001 -> 0.002 | H94: 6.927058242 | I94: 0.09750079042 | J94: 0.3759116022 | K94: 0.7830174353 | L94: 52.68752209 | M94: 0.02669353891
A95: 3 | B95: 0.0265 | C95: 0.02 | D95: 0.003 | H95: 6.89062685 | I95: 0.09650083069 | J95: 0.3770295071 | K95: 0.7835989314 | L95: 50.5372858 | M95: 0.0267678353
A96: 4 | B96: 0.0265 | C96: 0.02 | D96: 0.004 | H96: 6.854240956 | I96: 0.09550087739 | J96: 0.3781634152 | K96: 0.7841874323 | L96: 48.38703692 | M96: 0.02674314567
A97: 5 | B97: 0.0265 | C97: 0.02 | D97: 0.005 | H97: 6.817762242 | I97: 0.09450093514 | J97: 0.3793136609 | K97: 0.7847830618 | L97: 46.23678516 | M97: 0.02661947068
A98: 6 | B98: 0.0265 | C98: 0.02 | D98: 0.006 | H98: 6.78104997 | I98: 0.09350100468 | J98: 0.3804805934 | K98: 0.7853859496 | L98: 44.08653454 | M98: 0.02639681245
A99: 7 | B99: 0.0265 | C99: 0.02 | D99: 0.007 | H99: 6.743957842 | I99: 0.09250108686 | J99: 0.3816645728 | K99: 0.7859962288 | L99: 41.93628895 | M99: 0.0260751743
A100: 8 | B100: 0.0265 | C100: 0.02 | D100: 0.008 | H100: 6.706330453 | I100: 0.09150118334 | J100: 0.3828659693 | K100: 0.7866140361 | L100: 39.78605319 | M100: 0.02565456105
A101: 9 | B101: 0.0265 | C101: 0.02 | D101: 0.009 | H101: 6.667999173 | I101: 0.0905012959 | J101: 0.3840851651 | K101: 0.7872395118 | L101: 37.63583217 | M101: 0.02513497918
A102: 10 | B102: 0.0265 | C102: 0.02 | D102: 0.01 | H102: 6.628777216 | I102: 0.0895014267 | J102: 0.3853225539 | K102: 0.7878728001 | L102: 35.48563132 | M102: 0.02451643724
A103: 11 | B103: 0.0265 | C103: 0.02 | D103: 0.011 | H103: 6.588453494 | I103: 0.08850157933 | J103: 0.3865785404 | K103: 0.7885140488 | L103: 33.33545812 | M103: 0.02379894678
A104: 12 | B104: 0.0265 | C104: 0.02 | D104: 0.012 | H104: 6.546784633 | I104: 0.08750175725 | J104: 0.3878535428 | K104: 0.7891634099 | L104: 31.18532014 | M104: 0.02298252248
A105: 13 | B105: 0.0265 | C105: 0.02 | D105: 0.013 | H105: 6.503484478 | I105: 0.08650196581 | J105: 0.3891479905 | K105: 0.7898210388 | L105: 29.03522793 | M105: 0.0220671841
A106: 14 | B106: 0.0265 | C106: 0.02 | D106: 0.014 | H106: 6.458209684 | I106: 0.08550221188 | J106: 0.3904623253 | K106: 0.7904870946 | L106: 26.88519471 | M106: 0.02105295799
A107: 15 | B107: 0.0265 | C107: 0.02 | D107: 0.015 | H107: 6.410539539 | I107: 0.08450250483 | J107: 0.3917970002 | K107: 0.7911617394 | L107: 24.73523815 | M107: 0.01993987999
A108: 16 | B108: 0.0265 | C108: 0.02 | D108: 0.016 | H108: 6.359946766 | I108: 0.08350285763 | J108: 0.3931524786 | K108: 0.7918451381 | L108: 22.58538229 | M108: 0.01872799995
A109: 17 | B109: 0.0265 | C109: 0.02 | D109: 0.017 | H109: 6.305753887 | I109: 0.08250328886 | J109: 0.3945292317 | K109: 0.7925374563 | L109: 20.4356612 | M109: 0.01741738904
A110: 18 | B110: 0.0265 | C110: 0.02 | D110: 0.018 | H110: 6.247065469 | I110: 0.08150382555 | J110: 0.3959277344 | K110: 0.793238859 | L110: 18.28612418 | M110: 0.01600815188
A111: 19 | B111: 0.0265 | C111: 0.02 | D111: 0.019 | H111: 6.18265816 | I111: 0.08050450946 | J111: 0.3973484564 | K111: 0.7939495055 | L111: 16.13684696 | M111: 0.0145004493
A112: 20 | B112: 0.0265 | C112: 0.02 | D112: 0.02 | H112: 6.110792251 | I112: 0.07950540789 | J112: 0.3987918453 | K112: 0.7946695411 | L112: 13.9879513 | M112: 0.01289454097
A113: 21 | B113: 0.0265 | C113: 0.02 | D113: 0.021 | H113: 6.028866214 | I113: 0.07850663692 | J113: 0.4002582897 | K113: 0.7953990791 | L113: 11.83964682 | M113: 0.01119087485
A114: 22 | B114: 0.0265 | C114: 0.02 | D114: 0.022 | H114: 5.932725591 | I114: 0.0775084152 | J114: 0.4017480328 | K114: 0.7961381581 | L114: 9.692327984 | M114: 0.009390294792
A115: 23 | B115: 0.0265 | C115: 0.02 | D115: 0.023 | H115: 5.815107209 | I115: 0.07651120873 | J115: 0.4032609389 | K115: 0.7968866279 | L115: 7.546835066 | M115: 0.007494599604
A116: 24 | B116: 0.0265 | C116: 0.02 | D116: 0.024 | H116: 5.661488507 | I116: 0.07551621574 | J116: 0.4047957062 | K116: 0.7976437641 | L116: 5.405328062 | M116: 0.005508414604
A117: 25 | B117: 0.0265 | C117: 0.02 | D117: 0.025 | H117: 5.435590046 | I117: 0.07452769666 | J117: 0.4063460846 | K117: 0.7984064189 | L117: 3.275486013 | M117: 0.003448186864
A118: 26 | B118: 0.0265 | C118: 0.02 | D118: 0.026 | H118: 4.996911483 | I118: 0.0735771287 | J118: 0.4078616295 | K118: 0.799149832 | L118: 1.214034127 | M118: 0.001435440573
A119: pH7 reference | B119: 0.0265 | C119: 0.02 | E119: 0 | H119: 7.000618768 | I119: 0.09950075163 | J119: 0.3737224691 | K119: 0.7818749556 | L119: 56.9879719 | M119: 0.02624798791
A120: ammonia add. 1 | B120: 0.0265 | C120: 0.02 | E120: =E119+0.001 -> 0.001 | H120: 7.036938464 | I120: 0.1014911007 | J120: 0.3716036377 | K120: 0.7807643754 | L120: 59.12779309 | M120: 0.025889823
A121: 2 | B121: 0.0265 | C121: 0.02 | E121: =E120+0.001 -> 0.002 | H121: 7.073889317 | I121: 0.1034797842 | J121: 0.3695437936 | K121: 0.7796801511 | L121: 61.26578467 | M121: 0.02543597616
A122: 3 | B122: 0.0265 | C122: 0.02 | E122: 0.003 | H122: 7.111636945 | I122: 0.105466523 | J122: 0.3675408637 | K122: 0.7786215291 | L122: 63.40163932 | M122: 0.02488710338
A123: 4 | B123: 0.0265 | C123: 0.02 | E123: 0.004 | H123: 7.15036459 | I123: 0.1074509699 | J123: 0.3655929437 | K123: 0.7775878235 | L123: 65.53497439 | M123: 0.02424401794
A124: 5 | B124: 0.0265 | C124: 0.02 | E124: 0.005 | H124: 7.190278642 | I124: 0.109432688 | J124: 0.3636983033 | K124: 0.7765784214 | L124: 67.66530853 | M124: 0.02350773996
A125: 6 | B125: 0.0265 | C125: 0.02 | E125: 0.006 | H125: 7.231615603 | I125: 0.1114111224 | J125: 0.3618553956 | K125: 0.77559279 | L125: 69.7920309 | M125: 0.02267956484
A126: 7 | B126: 0.0265 | C126: 0.02 | E126: 0.007 | H126: 7.274650937 | I126: 0.1133855569 | J126: 0.3600628785 | K126: 0.7746304903 | L126: 71.91435266 | M126: 0.02176116209
A127: 8 | B127: 0.0265 | C127: 0.02 | E127: 0.008 | H127: 7.319710678 | I127: 0.1153550516 | J127: 0.3583196476 | K127: 0.7736911971 | L127: 74.03123913 | M127: 0.02075471791
A128: 9 | B128: 0.0265 | C128: 0.02 | E128: 0.009 | H128: 7.367186844 | I128: 0.117318353 | J128: 0.3566248877 | K128: 0.7727747299 | L128: 76.1413101 | M128: 0.01966314609
A129: 10 | B129: 0.0265 | C129: 0.02 | E129: 0.01 | H129: 7.417558089 | I129: 0.1192737534 | J129: 0.3549781574 | K129: 0.7718811011 | L129: 78.24268558 | M129: 0.01849040907
A130: 11 | B130: 0.0265 | C130: 0.02 | E130: 0.011 | H130: 7.471417672 | I130: 0.1212188746 | J130: 0.3533795224 | K130: 0.7710105929 | L130: 80.33274741 | M130: 0.01724201688
A131: 12 | B131: 0.0265 | C131: 0.02 | E131: 0.012 | H131: 7.529511225 | I131: 0.1231503202 | J131: 0.3518297727 | K131: 0.7701638803 | L131: 82.40775664 | M131: 0.01592582499
A132: 13 | B132: 0.0265 | C132: 0.02 | E132: 0.013 | H132: 7.592786775 | I132: 0.1250631029 | J132: 0.3503307835 | K132: 0.7693422355 | L132: 84.46222296 | M132: 0.01455334495
A133: 14 | B133: 0.0265 | C133: 0.02 | E133: 0.014 | H133: 7.662456969 | I133: 0.1269496766 | J133: 0.3488861251 | K133: 0.7685478723 | L133: 86.48783932 | M133: 0.01314195122
A134: 15 | B134: 0.0265 | C134: 0.02 | E134: 0.015 | H134: 7.740062647 | I134: 0.128798271 | J134: 0.347502111 | K134: 0.7677845379 | L134: 88.4716486 | M134: 0.01171865769
A135: 16 | B135: 0.0265 | C135: 0.02 | E135: 0.016 | H135: 7.827490882 | I135: 0.1305900429 | J135: 0.3461895773 | K135: 0.7670585181 | L135: 90.39290799 | M135: 0.01032652706
A136: 17 | B136: 0.0265 | C136: 0.02 | E136: 0.017 | H136: 7.926797319 | I136: 0.1322945155 | J136: 0.3449666892 | K136: 0.7663802252 | L136: 92.21806826 | M136: 0.009034786429
A137: 18 | B137: 0.0265 | C137: 0.02 | E137: 0.018 | H137: 8.039456241 | I137: 0.1338639501 | J137: 0.3438622577 | K137: 0.7657660843 | L137: 93.89457895 | M137: 0.0079508596
A138: 19 | B138: 0.0265 | C138: 0.02 | E138: 0.019 | H138: 8.164497379 | I138: 0.1352327165 | J138: 0.3429155208 | K138: 0.7652384539 | L138: 95.35019656 | M138: 0.007220020173
A139: 20 | B139: 0.0265 | C139: 0.02 | E139: 0.02 | H139: 8.296114723 | I139: 0.1363370753 | J139: 0.3421626291 | K139: 0.7648180758 | L139: 96.51476341 | M139: 0.006978104813
A140: 21 | B140: 0.0265 | C140: 0.02 | E140: 0.021 | H140: 8.424418059 | I140: 0.1371574136 | J140: 0.3416095985 | K140: 0.7645088483 | L140: 97.36670157 | M140: 0.007256463802
A141: 22 | B141: 0.0265 | C141: 0.02 | E141: 0.022 | H141: 8.54099161 | I141: 0.1377354386 | J141: 0.3412230729 | K141: 0.7642924992 | L141: 97.95193648 | M141: 0.007949818873
A142: 23 | B142: 0.0265 | C142: 0.02 | E142: 0.023 | H142: 8.642683221 | I142: 0.1381399039 | J142: 0.3409541413 | K142: 0.7641418623 | L142: 98.34616339 | M142: 0.008900065082
A143: 24 | B143: 0.0265 | C143: 0.02 | E143: 0.024 | H143: 8.73026888 | I143: 0.1384302771 | J143: 0.3407618443 | K143: 0.7640340961 | L143: 98.61485162 | M143: 0.009977951351
A144: 25 | B144: 0.0265 | C144: 0.02 | E144: 0.025 | H144: 8.805930333 | I144: 0.1386469686 | J144: 0.340618762 | K144: 0.763953881 | L144: 98.80248878 | M144: 0.01110147289
A145: 26 | B145: 0.0265 | C145: 0.02 | E145: 0.026 | H145: 8.871905212 | I145: 0.138815261 | J145: 0.3405078845 | K145: 0.7638917033 | L145: 98.93690795 | M145: 0.01222409992
A146: pH7 reference | B146: 0.0265 | C146: 0.02 | F146: 0 | H146: 7.000618768 | I146: 0.09950075163 | J146: 0.3737224691 | K146: 0.7818749556 | L146: 56.9879719 | M146: 0.02624798791
A147: CO2 absorp. 1 | B147: 0.0265 | C147: 0.02 | F147: =F146+0.001 -> 0.001 | H147: 6.969481858 | I147: 0.09865943343 | J147: 0.3746358867 | K147: 0.7823522648 | L147: 55.17728121 | M147: 0.02679354944
A148: from air 2 | B148: 0.0265 | C148: 0.02 | F148: =F147+0.001 -> 0.002 | H148: 6.939299839 | I148: 0.09783730546 | J148: 0.3755389378 | K148: 0.7828232997 | L148: 53.40808982 | M148: 0.02729533051
A149: 3 | B149: 0.0265 | C149: 0.02 | F149: 0.003 | H149: 6.909994968 | I149: 0.09703484418 | J149: 0.3764305359 | K149: 0.783287528 | L149: 51.68138834 | M149: 0.02775748911
A150: 4 | B150: 0.0265 | C150: 0.02 | F150: 0.004 | H150: 6.881501554 | I150: 0.0962524889 | J150: 0.3773096096 | K150: 0.7837444286 | L150: 49.99809286 | M150: 0.02818406924
A151: 5 | B151: 0.0265 | C151: 0.02 | F151: 0.005 | H151: 6.853763979 | I151: 0.09549063504 | J151: 0.3781751136 | K151: 0.7841934969 | L151: 48.35902973 | M151: 0.02857897789
A152: 6 | B152: 0.0265 | C152: 0.02 | F152: 0.006 | H152: 6.826735101 | I152: 0.09474962849 | J152: 0.3790260394 | K152: 0.7846342505 | L152: 46.76492236 | M152: 0.02894596206
A153: 7 | B153: 0.0265 | C153: 0.02 | F153: 0.007 | H153: 6.800374924 | I153: 0.09402976004 | J153: 0.3798614262 | K153: 0.7850662341 | L153: 45.21637874 | M153: 0.02928858679
A154: 8 | B154: 0.0265 | C154: 0.02 | F154: 0.008 | H154: 6.774649483 | I154: 0.09333126083 | J154: 0.3806803707 | K154: 0.7854890241 | L154: 43.71388084 | M154: 0.02961021501
A155: 9 | B155: 0.0265 | C155: 0.02 | F155: 0.009 | H155: 6.749529884 | I155: 0.09265429768 | J155: 0.3814820378 | K155: 0.7859022343 | L155: 42.25777468 | M155: 0.02991398973
A156: 10 | B156: 0.0265 | C156: 0.02 | F156: 0.01 | H156: 6.724991498 | I156: 0.09199897061 | J156: 0.3822656687 | K156: 0.786305519 | L156: 40.84826412 | M156: 0.03020281942
A157: 11 | B157: 0.0265 | C157: 0.02 | F157: 0.011 | H157: 6.701013248 | I157: 0.09136531038 | J157: 0.3830305889 | K157: 0.7866985769 | L157: 39.48540564 | M157: 0.03047936693
A158: 12 | B158: 0.0265 | C158: 0.02 | F158: 0.012 | H158: 6.677576995 | I158: 0.09075327761 | J158: 0.3837762145 | K158: 0.787081154 | L158: 38.16910616 | M158: 0.0307460423
A159: 13 | B159: 0.0265 | C159: 0.02 | F159: 0.013 | H159: 6.654667001 | I159: 0.09016276304 | J159: 0.3845020569 | K159: 0.7874530452 | L159: 36.89912334 | M159: 0.03100499965
A160: 14 | B160: 0.0265 | C160: 0.02 | F160: 0.014 | H160: 6.632269466 | I160: 0.08959358884 | J160: 0.3852077256 | K160: 0.787814096 | L160: 35.67506839 | M160: 0.03125813821
A161: pH7 reference | B161: 0.0265 | C161: 0.02 | H161: 7.000618768 | I161: 0.09950075163 | J161: 0.3737224691 | K161: 0.7818749556 | L161: 56.9879719 | M161: 0.02624798791

Sheet +pH
C1: Compilation of data and results obtained with the pH_calc module
B4: Identify the results and add observations (use any gray cell)

Sheet Titration
C1: Manual Virtual Titrator with visual indicator | H1: <--- read instructions | K1: pKas of the acids and bases in the solution | N1: Click on K2 to Q2; select acids/bases; click on J2; read M1 | U1: Overall protonation constants = bp = PKp (calculated by the program) | AB1: pKa(n) = -log Kd(HB-->B) = log Kp(1) | AF1: pKas loaded from the Database
A2: Sample and titrant (standard) composition (concentrations in mol/L) | K2: 6 | L2: 3 | M2: 1 | N2: 260 | O2: 2 | P2: 7 | Q2: 103 | S2: Titrant | V2: Titrand | AC2: Titrant | AG2: Titrand | AH2: Click on J2 to use these pKas in the Simulation
A3: SAMPLE Species | B3: =K3 -> HCl | C3: Carbonic acid | D3: Acetic acid | E3: Phenol Red (pKa 7.7) | F3: Ammonia | G3: Hydroxide ion | H3: Glycine | J3: Acid / Base | K3: HCl | L3: Carbonic acid | M3: Acetic acid | N3: Phenol Red (pKa 7.7) | O3: Ammonia | P3: Hydroxide ion | Q3: Glycine | R3: Strong ACID | S3: Strong BASE | T3: Carbonic ac. | U3: Acid / Base | V3: =IF(K3="","",K3) -> HCl | W3: Carbonic acid | X3: Acetic acid | Y3: Phenol Red (pKa 7.7) | Z3: Ammonia | AA3: Hydroxide ion | AB3: Glycine | AC3: =R3 -> Strong ACID | AD3: =S3 -> Strong BASE | AE3: =T3 -> Carbonic ac. | AF3: Acid / Base | AG3: =IF(VLOOKUP(K$2,Database!$B$22:$N$301,2)="","",VLOOKUP(K$2,Database!$B$22:$N$301,2)) -> HCl | AH3: =IF(VLOOKUP(L$2,Database!$B$22:$N$301,2)="","",VLOOKUP(L$2,Database!$B$22:$N$301,2)) -> Carbonic acid | AI3: =IF(VLOOKUP(M$2,Database!$B$22:$N$301,2)="","",VLOOKUP(M$2,Database!$B$22:$N$301,2)) -> Acetic acid | AJ3: =IF(VLOOKUP(N$2,Database!$B$22:$N$301,2)="","",VLOOKUP(N$2,Database!$B$22:$N$301,2)) -> Methyl Orange (pKa 3.5) | AK3: =IF(VLOOKUP(O$2,Database!$B$22:$N$301,2)="","",VLOOKUP(O$2,Database!$B$22:$N$301,2)) -> Ammonia | AL3: =IF(VLOOKUP(P$2,Database!$B$22:$N$301,2)="","",VLOOKUP(P$2,Database!$B$22:$N$301,2)) -> Hydroxide ion | AM3: =IF(VLOOKUP(Q$2,Database!$B$22:$N$301,2)="","",VLOOKUP(Q$2,Database!$B$22:$N$301,2)) -> Glycine
A4: [B] | J4: Charge of B | K4: -1 | L4: -2 | M4: -1 | N4: -2 | O4: 0 | P4: -1 | Q4: -1 | R4: -1 | S4: -1 | T4: -2 | U4: Charge of B | V4: -1 | W4: -2 | X4: -1 | Y4: -2 | Z4: 0 | AA4: -1 | AB4: -1 | AC4: =IF(R4="","",R4) -> -1 | AD4: =IF(S4="","",S4) -> -1 | AE4: =IF(T4="","",T4) -> -2 | AF4: Charge of B | AG4: =IF(VLOOKUP(K$2,Database!$B$22:$N$301,3)="","",VLOOKUP(K$2,Database!$B$22:$N$301,3)) -> -1 | AH4: =IF(VLOOKUP(L$2,Database!$B$22:$N$301,3)="","",VLOOKUP(L$2,Database!$B$22:$N$301,3)) -> -2 | AI4: =IF(VLOOKUP(M$2,Database!$B$22:$N$301,3)="","",VLOOKUP(M$2,Database!$B$22:$N$301,3)) -> -1 | AJ4: =IF(VLOOKUP(N$2,Database!$B$22:$N$301,3)="","",VLOOKUP(N$2,Database!$B$22:$N$301,3)) -> -2 | AK4: =IF(VLOOKUP(O$2,Database!$B$22:$N$301,3)="","",VLOOKUP(O$2,Database!$B$22:$N$301,3)) -> 0 | AL4: =IF(VLOOKUP(P$2,Database!$B$22:$N$301,3)="","",VLOOKUP(P$2,Database!$B$22:$N$301,3)) -> -1 | AM4: =IF(VLOOKUP(Q$2,Database!$B$22:$N$301,3)="","",VLOOKUP(Q$2,Database!$B$22:$N$301,3)) -> -1
A5: [HB] | D5: 0.1 | J5: pKa1 | K5: -7 | L5: 6.352 | M5: 4.757 | N5: 1.2 | O5: 9.244 | P5: 15.745 | Q5: 2.35 | R5: -6 | S5: 15.745 | T5: 6.352 | U5: bp1 | V5: =IF(K5="","",IF(K6="",10^K5,(IF(K7="",10^K6,(IF(K8="",10^K7,(IF(K9="",10^K8,(IF(K10="",10^K9,10^K10)))))))))) -> 1e-07 | W5: 2.133044913e+10 | X5: 57147.86367 | Y5: 50118723.36 | Z5: 1753880502 | AA5: 5559042572704029 | AB5: 5997910763 | AC5: =IF(R5="","",IF(R6="",10^R5,10^R6)) -> 1e-06 | AD5: =IF(S5="","",IF(S6="",10^S5,10^S6)) -> 5559042572704029 | AE5: =IF(T5="","",IF(T6="",10^T5,10^T6)) -> 2.133044913e+10 | AF5: pKa1 = logKpn | AG5: =IF(VLOOKUP(K$2,Database!$B$22:$N$301,4)="","",VLOOKUP(K$2,Database!$B$22:$N$301,4)) -> -7 | AH5: =IF(VLOOKUP(L$2,Database!$B$22:$N$301,4)="","",VLOOKUP(L$2,Database!$B$22:$N$301,4)) -> 6.352 | AI5: =IF(VLOOKUP(M$2,Database!$B$22:$N$301,4)="","",VLOOKUP(M$2,Database!$B$22:$N$301,4)) -> 4.757 | AJ5: =IF(VLOOKUP(N$2,Database!$B$22:$N$301,4)="","",VLOOKUP(N$2,Database!$B$22:$N$301,4)) -> -1 | AK5: =IF(VLOOKUP(O$2,Database!$B$22:$N$301,4)="","",VLOOKUP(O$2,Database!$B$22:$N$301,4)) -> 9.244 | AL5: =IF(VLOOKUP(P$2,Database!$B$22:$N$301,4)="","",VLOOKUP(P$2,Database!$B$22:$N$301,4)) -> 13.997 | AM5: =IF(VLOOKUP(Q$2,Database!$B$22:$N$301,4)="","",VLOOKUP(Q$2,Database!$B$22:$N$301,4)) -> 2.35
A6: [H2B] | E6: 5e-05 | J6: pKa2 | L6: 10.329 | N6: 7.7 | Q6: 9.778 | T6: 10.329 | U6: bp2 | V6: =IF(K6="","",IF(K7="",V5*10^K5,(IF(K8="",V5*10^K6,(IF(K9="",V5*10^K7,(IF(K10="",V5*10^K8,V5*10^K9)))))))) ->  | W6: 4.797334486e+16 | Y6: 794328234.7 | AB6: 1.342764961e+12 | AC6: =IF(R6="","",AC5*10^R5) ->  | AD6: =IF(S6="","",AD5*10^S5) ->  | AE6: =IF(T6="","",AE5*10^T5) -> 4.797334486e+16 | AF6: pKa2 = logKpn-1 | AG6: =IF(VLOOKUP(K$2,Database!$B$22:$N$301,5)="","",VLOOKUP(K$2,Database!$B$22:$N$301,5)) ->  | AH6: =IF(VLOOKUP(L$2,Database!$B$22:$N$301,5)="","",VLOOKUP(L$2,Database!$B$22:$N$301,5)) -> 10.329 | AI6: =IF(VLOOKUP(M$2,Database!$B$22:$N$301,5)="","",VLOOKUP(M$2,Database!$B$22:$N$301,5)) ->  | AJ6: =IF(VLOOKUP(N$2,Database!$B$22:$N$301,5)="","",VLOOKUP(N$2,Database!$B$22:$N$301,5)) -> 3.47 | AK6: =IF(VLOOKUP(O$2,Database!$B$22:$N$301,5)="","",VLOOKUP(O$2,Database!$B$22:$N$301,5)) ->  | AL6: =IF(VLOOKUP(P$2,Database!$B$22:$N$301,5)="","",VLOOKUP(P$2,Database!$B$22:$N$301,5)) ->  | AM6: =IF(VLOOKUP(Q$2,Database!$B$22:$N$301,5)="","",VLOOKUP(Q$2,Database!$B$22:$N$301,5)) -> 9.778
A7: [H3B] | J7: pKa3 | U7: bp3 | V7: =IF(K7="","",IF(K8="",V6*10^K5,(IF(K9="",V6*10^K6,(IF(K10="",V6*10^K7,V6*10^K8)))))) ->  | AF7: pKa3 = logKpn-2 | AG7: =IF(VLOOKUP(K$2,Database!$B$22:$N$301,6)="","",VLOOKUP(K$2,Database!$B$22:$N$301,6)) ->  | AH7: =IF(VLOOKUP(L$2,Database!$B$22:$N$301,6)="","",VLOOKUP(L$2,Database!$B$22:$N$301,6)) ->  | AI7: =IF(VLOOKUP(M$2,Database!$B$22:$N$301,6)="","",VLOOKUP(M$2,Database!$B$22:$N$301,6)) ->  | AJ7: =IF(VLOOKUP(N$2,Database!$B$22:$N$301,6)="","",VLOOKUP(N$2,Database!$B$22:$N$301,6)) ->  | AK7: =IF(VLOOKUP(O$2,Database!$B$22:$N$301,6)="","",VLOOKUP(O$2,Database!$B$22:$N$301,6)) ->  | AL7: =IF(VLOOKUP(P$2,Database!$B$22:$N$301,6)="","",VLOOKUP(P$2,Database!$B$22:$N$301,6)) ->  | AM7: =IF(VLOOKUP(Q$2,Database!$B$22:$N$301,6)="","",VLOOKUP(Q$2,Database!$B$22:$N$301,6)) -> 
A8: [H4B] | I8: Total | J8: pKa4 | U8: bp4 | V8: =IF(K8="","",IF(K9="",V7*10^K5,(IF(K10="",V7*10^K6,V7*10^K7)))) ->  | AF8: pKa4 = logKpn-3 | AG8: =IF(VLOOKUP(K$2,Database!$B$22:$N$301,7)="","",VLOOKUP(K$2,Database!$B$22:$N$301,7)) ->  | AH8: =IF(VLOOKUP(L$2,Database!$B$22:$N$301,7)="","",VLOOKUP(L$2,Database!$B$22:$N$301,7)) ->  | AI8: =IF(VLOOKUP(M$2,Database!$B$22:$N$301,7)="","",VLOOKUP(M$2,Database!$B$22:$N$301,7)) ->  | AJ8: =IF(VLOOKUP(N$2,Database!$B$22:$N$301,7)="","",VLOOKUP(N$2,Database!$B$22:$N$301,7)) ->  | AK8: =IF(VLOOKUP(O$2,Database!$B$22:$N$301,7)="","",VLOOKUP(O$2,Database!$B$22:$N$301,7)) ->  | AL8: =IF(VLOOKUP(P$2,Database!$B$22:$N$301,7)="","",VLOOKUP(P$2,Database!$B$22:$N$301,7)) ->  | AM8: =IF(VLOOKUP(Q$2,Database!$B$22:$N$301,7)="","",VLOOKUP(Q$2,Database!$B$22:$N$301,7)) -> 
A9: [H5B] | I9: Sample | J9: pKa5 | U9: bp5 | V9: =IF(K9="","",IF(K10="",V8*10^K5,V8*10^K6)) ->  | AF9: pKa5 = logKpn-4 | AG9: =IF(VLOOKUP(K$2,Database!$B$22:$N$301,8)="","",VLOOKUP(K$2,Database!$B$22:$N$301,8)) ->  | AH9: =IF(VLOOKUP(L$2,Database!$B$22:$N$301,8)="","",VLOOKUP(L$2,Database!$B$22:$N$301,8)) ->  | AI9: =IF(VLOOKUP(M$2,Database!$B$22:$N$301,8)="","",VLOOKUP(M$2,Database!$B$22:$N$301,8)) ->  | AJ9: =IF(VLOOKUP(N$2,Database!$B$22:$N$301,8)="","",VLOOKUP(N$2,Database!$B$22:$N$301,8)) ->  | AK9: =IF(VLOOKUP(O$2,Database!$B$22:$N$301,8)="","",VLOOKUP(O$2,Database!$B$22:$N$301,8)) ->  | AL9: =IF(VLOOKUP(P$2,Database!$B$22:$N$301,8)="","",VLOOKUP(P$2,Database!$B$22:$N$301,8)) ->  | AM9: =IF(VLOOKUP(Q$2,Database!$B$22:$N$301,8)="","",VLOOKUP(Q$2,Database!$B$22:$N$301,8)) -> 
A10: [H6B] | I10: SS | J10: pKa6 | U10: bp6 | V10: =IF(K10="","",V9*10^K5) ->  | AF10: pKa6 = logKpn-5 | AG10: =IF(VLOOKUP(K$2,Database!$B$22:$N$301,9)="","",VLOOKUP(K$2,Database!$B$22:$N$301,9)) ->  | AH10: =IF(VLOOKUP(L$2,Database!$B$22:$N$301,9)="","",VLOOKUP(L$2,Database!$B$22:$N$301,9)) ->  | AI10: =IF(VLOOKUP(M$2,Database!$B$22:$N$301,9)="","",VLOOKUP(M$2,Database!$B$22:$N$301,9)) ->  | AJ10: =IF(VLOOKUP(N$2,Database!$B$22:$N$301,9)="","",VLOOKUP(N$2,Database!$B$22:$N$301,9)) ->  | AK10: =IF(VLOOKUP(O$2,Database!$B$22:$N$301,9)="","",VLOOKUP(O$2,Database!$B$22:$N$301,9)) ->  | AL10: =IF(VLOOKUP(P$2,Database!$B$22:$N$301,9)="","",VLOOKUP(P$2,Database!$B$22:$N$301,9)) ->  | AM10: =IF(VLOOKUP(Q$2,Database!$B$22:$N$301,9)="","",VLOOKUP(Q$2,Database!$B$22:$N$301,9)) -> 
A11: S[HiB] | B11: =SUM(B4:B10) -> 0 | C11: =SUM(C4:C10) -> 0 | D11: 0.1 | E11: 5e-05 | F11: 0 | G11: 0 | H11: 0 | I11: =SUM(B11:H11) -> 0.10005 | J11: pKw | K11: 13.997 | L11: Remark: this virtual titrator calculates "pH" values disregarding ion-ion interactions (pH calculations are available in the Simulation or pH_calc modules). | U11: Kw | V11: =10^-K11 -> 1.006931669e-14 | AF11: Indicator: pKa1 or 2 | AG11: =IF(VLOOKUP(K$2,Database!$B$22:$R$301,14)="","",VLOOKUP(K$2,Database!$B$22:$R$301,14)) ->  | AH11: =IF(VLOOKUP(L$2,Database!$B$22:$R$301,14)="","",VLOOKUP(L$2,Database!$B$22:$R$301,14)) ->  | AI11: =IF(VLOOKUP(M$2,Database!$B$22:$R$301,14)="","",VLOOKUP(M$2,Database!$B$22:$R$301,14)) ->  | AJ11: =IF(VLOOKUP(N$2,Database!$B$22:$R$301,14)="","",VLOOKUP(N$2,Database!$B$22:$R$301,14)) -> 3.47 | AK11: =IF(VLOOKUP(O$2,Database!$B$22:$R$301,14)="","",VLOOKUP(O$2,Database!$B$22:$R$301,14)) ->  | AL11: =IF(VLOOKUP(P$2,Database!$B$22:$R$301,14)="","",VLOOKUP(P$2,Database!$B$22:$R$301,14)) ->  | AM11: =IF(VLOOKUP(Q$2,Database!$B$22:$R$301,14)="","",VLOOKUP(Q$2,Database!$B$22:$R$301,14)) -> 
A12: S[H] | B12: =B5+2*B6+3*B7+4*B8+5*B9+6*B10 -> 0 | C12: =C5+2*C6+3*C7+4*C8+5*C9+6*C10 -> 0 | D12: 0.1 | E12: 0.0001 | F12: 0 | G12: 0 | H12: 0 | I12: =SUM(B12:H12) -> 0.1001 | N12: Color coding | AF12: color #, pH < pKa indic | AG12: =IF(VLOOKUP(K$2,Database!$B$22:$R$301,15)="","",VLOOKUP(K$2,Database!$B$22:$R$301,15)) ->  | AH12: =IF(VLOOKUP(L$2,Database!$B$22:$R$301,15)="","",VLOOKUP(L$2,Database!$B$22:$R$301,15)) ->  | AI12: =IF(VLOOKUP(M$2,Database!$B$22:$R$301,15)="","",VLOOKUP(M$2,Database!$B$22:$R$301,15)) ->  | AJ12: =IF(VLOOKUP(N$2,Database!$B$22:$R$301,15)="","",VLOOKUP(N$2,Database!$B$22:$R$301,15)) -> 5263615 | AK12: =IF(VLOOKUP(O$2,Database!$B$22:$R$301,15)="","",VLOOKUP(O$2,Database!$B$22:$R$301,15)) ->  | AL12: =IF(VLOOKUP(P$2,Database!$B$22:$R$301,15)="","",VLOOKUP(P$2,Database!$B$22:$R$301,15)) ->  | AM12: =IF(VLOOKUP(Q$2,Database!$B$22:$R$301,15)="","",VLOOKUP(Q$2,Database!$B$22:$R$301,15)) -> 
A13: TITRANT | B13: =R3 -> Strong ACID | C13: =S3 -> Strong BASE | D13: =T3 -> Carbonic ac. | E13: Total | F13: Volume of titrand in beaker (mL) | N13: D o n o t c h a n g e | AF13: color #, pH = pKa indic | AG13: =IF(VLOOKUP(K$2,Database!$B$22:$R$301,16)="","",VLOOKUP(K$2,Database!$B$22:$R$301,16)) ->  | AH13: =IF(VLOOKUP(L$2,Database!$B$22:$R$301,16)="","",VLOOKUP(L$2,Database!$B$22:$R$301,16)) ->  | AI13: =IF(VLOOKUP(M$2,Database!$B$22:$R$301,16)="","",VLOOKUP(M$2,Database!$B$22:$R$301,16)) ->  | AJ13: =IF(VLOOKUP(N$2,Database!$B$22:$R$301,16)="","",VLOOKUP(N$2,Database!$B$22:$R$301,16)) -> 4961023 | AK13: =IF(VLOOKUP(O$2,Database!$B$22:$R$301,16)="","",VLOOKUP(O$2,Database!$B$22:$R$301,16)) ->  | AL13: =IF(VLOOKUP(P$2,Database!$B$22:$R$301,16)="","",VLOOKUP(P$2,Database!$B$22:$R$301,16)) ->  | AM13: =IF(VLOOKUP(Q$2,Database!$B$22:$R$301,16)="","",VLOOKUP(Q$2,Database!$B$22:$R$301,16)) -> 
A14: [B] | C14: 0.1 | E14: Titrants | F14: SAMPLE | G14: Water | H14: Sum | J14: Titrant reservoir | N14: C h a n g e c r i t e r i o u s l y | AF14: color #, pH > pKa indic | AG14: =IF(VLOOKUP(K$2,Database!$B$22:$R$301,17)="","",VLOOKUP(K$2,Database!$B$22:$R$301,17)) ->  | AH14: =IF(VLOOKUP(L$2,Database!$B$22:$R$301,17)="","",VLOOKUP(L$2,Database!$B$22:$R$301,17)) ->  | AI14: =IF(VLOOKUP(M$2,Database!$B$22:$R$301,17)="","",VLOOKUP(M$2,Database!$B$22:$R$301,17)) ->  | AJ14: =IF(VLOOKUP(N$2,Database!$B$22:$R$301,17)="","",VLOOKUP(N$2,Database!$B$22:$R$301,17)) -> 4907000 | AK14: =IF(VLOOKUP(O$2,Database!$B$22:$R$301,17)="","",VLOOKUP(O$2,Database!$B$22:$R$301,17)) ->  | AL14: =IF(VLOOKUP(P$2,Database!$B$22:$R$301,17)="","",VLOOKUP(P$2,Database!$B$22:$R$301,17)) ->  | AM14: =IF(VLOOKUP(Q$2,Database!$B$22:$R$301,17)="","",VLOOKUP(Q$2,Database!$B$22:$R$301,17)) -> 
A15: [HB] | F15: Dispensed | G15: added | H15: (initial vol.) | J15: Composition: cells B13 to D16 | N15: Fill out, change or leave blank
A16: [H2B] | E16: SS | F16: 20 | G16: 0 | H16: =F16+G16 -> 20
A17: S[HiB] | B17: =SUM(B14:B16) -> 0 | C17: =SUM(C14:C16) -> 0.1 | D17: =SUM(D14:D16) -> 0 | E17: =SUM(B17:D17) -> 0.1 | F17: Buret (syringe) capacity
A18: S[H] | B18: =B15+2*B16 -> 0 | C18: =C15+2*C16 -> 0 | D18: =D15+2*D16 -> 0 | E18: =SUM(B18:D18) -> 0 | F18: 50 | H18: mL of titrant .
A19: Unknown sample
A20: Digital BURET | B20: motor | C20: =B21 -> 27.91 | G20: pH-meter
A21: Volume, mL | B21: 27.91 | C21: Syringe with titrant | F21: "pH" | G21: 12.21319928
B22: Titrant addition (mL)
G24: Display (or hide)
F25: TRUE | G25: pH and titration curve
F26: TRUE | G26: Titrand equilibrium
A28: Model INDICATOR | G28: TITRAND equilibrium
A29: pKa, indicator | B29: 7.7 | G29: Molar fraction | H29: Acetic acid
A30: Region | B30: Color | G30: % B | H30: 99.9999965
A31: pH > pK+1 | B31: =B29+1 -> 8.7 | D31: 12.21319928 | E31: =$D$31 -> 12.21319928 | G31: % HB | H31: 3.497846185e-06
A32: pH = pK | B32: =B29 -> 7.7 | D32: =$D$31 -> 12.21319928 | E32: =$D$31 -> 12.21319928 | G32: % H2B
A33: pH < pK-1 | B33: =B29-1 -> 6.7 | D33: =$D$31 -> 12.21319928 | E33: =$D$31 -> 12.21319928 | G33: % H3B
A34: INDICATOR equilibrium | D34: =$D$31 -> 12.21319928 | E34: =$D$31 -> 12.21319928 | G34: % H4B | R34: Data ID on curves
A35: Molar fraction | B35: Indicator | D35: =$D$31 -> 12.21319928 | E35: =$D$31 -> 12.21319928 | G35: % H5B | R35: Copying curves
A36: % Ind | B36: 99.99693248 | D36: Magnetic stirrer | G36: % H6B | R36: Resizing axis
A37: % Hind | B37: 0.003067519985 | R37: Other graphics
R38: Data analysis
A39: Vadd | B39: "pH" | C39: Vadd | D39: "pH" | E39: [H] | F39: CHtot = | G39: Dil. factor | H39: Dil. Factor | I39: h1 | J39: h2 | K39: h3 | L39: h4 | M39: h5 | N39: h6 | O39: h7 | P39: h1 titrant | Q39: h2 titrant | R39: h3 titrant
A40: (mL) | B40: simulated | C40: on graphic | D40: on graphic | F40: CHcalc | G40: Titrand (sample) | H40: Titrant (buret) | I40: =K3 -> HCl | J40: Carbonic acid | K40: Acetic acid | L40: Phenol Red (pKa 7.7) | M40: Ammonia | N40: Hydroxide ion | O40: Glycine | P40: Strong ACID | Q40: Strong BASE | R40: Carbonic ac.
A41: 0 | B41: 2.873230236 | C41: 0 | D41: 2.873230236 | E41: 0.001338966662 | F41: 0.1001 | G41: 1 | H41: 0 | K41: 0.9870999508 | L41: 1.020765316 | Q41: 1
A42: 2 | B42: 3.808567535 | C42: 2 | D42: 3.808567535 | E42: 0.0001553933629 | F42: 0.09100000001 | G42: 0.9090909091 | H42: 0.09090909091 | K42: 0.8987895096 | L42: 1.002328385 | Q42: 1
A43: 4 | B43: 4.155858394 | C43: 4 | D43: 4.155858394 | E43: 6.984601064e-05 | F43: 0.08341666666 | G43: 0.8333333333 | H43: 0.1666666667 | K43: 0.7996614394 | L43: 1.000820177 | Q43: 1
A44: 6 | B44: 4.389086878 | C44: 6 | D44: 4.389086878 | E44: 4.082377123e-05 | F44: 0.07699999997 | G44: 0.7692307692 | H44: 0.2307692308 | K44: 0.6999692148 | L44: 1.000158084 | Q44: 1
A45: 8 | B45: 4.58066895 | C45: 8 | D45: 4.58066895 | E45: 2.626219671e-05 | F45: 0.07150000001 | G45: 0.7142857143 | H45: 0.2857142857 | K45: 0.6001325063 | L45: 0.9996568843 | Q45: 1
A46: 10 | B46: 4.756587051 | C46: 10 | D46: 4.756587051 | E46: 1.751511321e-05 | F46: 0.06673333333 | G46: 0.6666666667 | H46: 0.3333333333 | K46: 0.5002377121 | L46: 0.9991396487 | Q46: 1
A47: 12 | B47: 4.93252335 | C47: 12 | D47: 4.93252335 | E47: 1.168090926e-05 | F47: 0.06256249998 | G47: 0.625 | H47: 0.375 | K47: 0.400313879 | L47: 0.9984798684 | Q47: 1
A48: 13 | B48: 5.0251863 | C48: 13 | D48: 5.0251863 | E48: 9.436559882e-06 | F48: 0.06066666667 | G48: 0.6060606061 | H48: 0.3939393939 | K48: 0.3503452946 | L48: 0.9980396018 | Q48: 1
A49: 14 | B49: 5.124204487 | C49: 14 | D49: 5.124204487 | E49: 7.512690765e-06 | F49: 0.05888235293 | G49: 0.5882352941 | H49: 0.4117647059 | K49: 0.3003735718 | L49: 0.9974702323 | Q49: 1
A50: 15 | B50: 5.233196659 | C50: 15 | D50: 5.233196659 | E50: 5.845253377e-06 | F50: 0.0572 | G50: 0.5714285714 | H50: 0.4285714286 | K50: 0.2503993929 | L50: 0.9966907691 | Q50: 1
A51: 16 | B51: 5.357911869 | C51: 16 | D51: 5.357911869 | E51: 4.38619697e-06 | F51: 0.05561111112 | G51: 0.5555555556 | H51: 0.4444444444 | K51: 0.2004233194 | L51: 0.9955411522 | Q51: 1
A52: 16.5 | B52: 5.429109433 | C52: 16.5 | D52: 5.429109433 | E52: 3.722978831e-06 | F52: 0.05484931508 | G52: 0.5479452055 | H52: 0.4520547945 | K52: 0.1754347411 | L52: 0.9947282524 | Q52: 1
A53: 17 | B53: 5.508810659 | C53: 17 | D53: 5.508810659 | E53: 3.098769984e-06 | F53: 0.05410810811 | G53: 0.5405405405 | H53: 0.4594594595 | K53: 0.1504459072 | L53: 0.9936514169 | Q53: 0.9999999999
A54: 17.5 | B54: 5.600286541 | C54: 17.5 | D54: 5.600286541 | E54: 2.510229673e-06 | F54: 0.05338666667 | G54: 0.5333333333 | H54: 0.4666666667 | K54: 0.1254569316 | L54: 0.9921539363 | Q54: 0.9999999999
A55: 18 | B55: 5.70898885 | C55: 18 | D55: 5.70898885 | E55: 1.95438963e-06 | F55: 0.05268421053 | G55: 0.5263157895 | H55: 0.4736842105 | K55: 0.1004680022 | L55: 0.9899250112 | Q55: 0.9999999999
A56: 18.5 | B56: 5.845087464 | C56: 18.5 | D56: 5.845087464 | E56: 1.428606219e-06 | F56: 0.05199999999 | G56: 0.5194805195 | H56: 0.4805194805 | K56: 0.07547951075 | L56: 0.9862485172 | Q56: 0.9999999999
A57: 19 | B57: 6.031271031 | C57: 19 | D57: 6.031271031 | E57: 9.305269792e-07 | F57: 0.05133333333 | G57: 0.5128205128 | H57: 0.4871794872 | K57: 0.05049255466 | L57: 0.9790225777 | Q57: 0.9999999998
A58: 19.5 | B58: 6.339027601 | C58: 19.5 | D58: 6.339027601 | E58: 4.581127712e-07 | F58: 0.0506835443 | G58: 0.5063291139 | H58: 0.4936708861 | K58: 0.02551225119 | L58: 0.9582710683 | Q58: 0.9999999996
A59: 19.7 | B59: 6.559060841 | C59: 19.7 | D59: 6.559060841 | E59: 2.760191147e-07 | F59: 0.05042821159 | G59: 0.5037783375 | H59: 0.4962216625 | K59: 0.0155289506 | L59: 0.9325904074 | Q59: 0.9999999993
A60: 19.8 | B60: 6.729320949 | C60: 19.8 | D60: 6.729320949 | E60: 1.865000921e-07 | F60: 0.05030150754 | G60: 0.5025125628 | H60: 0.4974874372 | K60: 0.01054568505 | L60: 0.9033579258 | Q60: 0.999999999
A61: 19.9 | B61: 7.007585801 | C61: 19.9 | D61: 7.007585801 | E61: 9.826847112e-08 | F61: 0.0501754386 | G61: 0.5012531328 | H61: 0.4987468672 | K61: 0.005584471735 | L61: 0.8312277147 | Q61: 0.9999999982
A62: 19.95 | B62: 7.259317195 | C62: 19.95 | D62: 7.259317195 | E62: 5.504055512e-08 | F62: 0.0501126408 | G62: 0.5006257822 | H62: 0.4993742178 | K62: 0.00313558731 | L62: 0.7339416357 | Q62: 0.9999999967
A63: 19.97 | B63: 7.418359358 | C63: 19.97 | D63: 7.418359358 | E63: 3.816283606e-08 | F63: 0.05008756567 | G63: 0.5003752815 | H63: 0.4996247185 | K63: 0.002176178469 | L63: 0.6566732427 | Q63: 0.9999999953
A64: 19.98 | B64: 7.524222098 | C64: 19.98 | D64: 7.524222098 | E64: 2.990734786e-08 | F64: 0.05007503752 | G64: 0.5002501251 | H64: 0.4997498749 | K64: 0.001706224861 | L64: 0.5998272185 | Q64: 0.999999994
A65: 19.99 | B65: 7.660449476 | C65: 19.99 | D65: 7.660449476 | E65: 2.185498559e-08 | F65: 0.05006251563 | G65: 0.5001250313 | H65: 0.4998749687 | K65: 0.001247407766 | L65: 0.5227516574 | Q65: 0.9999999918
A66: 20 | B66: 7.849929627 | C66: 20 | D66: 7.849929627 | E66: 1.412766452e-08 | F66: 0.05005 | G66: 0.5 | H66: 0.5 | K66: 0.000806714533 | L66: 0.414540795 | Q66: 0.9999999873
A67: 20.01 | B67: 8.155788376 | C67: 20.01 | D67: 8.155788376 | E67: 6.985727225e-09 | F67: 0.05003749063 | G67: 0.4998750312 | H67: 0.5001249688 | K67: 0.000399060075 | L67: 0.2593228048 | Q67: 0.9999999742
A68: 20.02 | B68: 8.800253792 | C68: 20.02 | D68: 8.800253792 | E68: 1.583967286e-09 | F68: 0.05002498751 | G68: 0.4997501249 | H68: 0.5002498751 | K68: 9.051215323e-05 | L68: 0.07354773105 | Q68: 0.9999998864
A69: 20.03 | B69: 9.420395975 | C69: 20.03 | D69: 9.420395975 | E69: 3.798429109e-10 | F69: 0.05001249063 | G69: 0.499625281 | H69: 0.500374719 | K69: 2.170673967e-05 | L69: 0.01868159592 | Q69: 0.9999995264
A70: 20.04 | B70: 9.70215944 | C70: 20.04 | D70: 9.70215944 | E70: 1.985365909e-10 | F70: 0.05 | G70: 0.4995004995 | H70: 0.5004995005 | K70: 1.134581331e-05 | L70: 0.009852365568 | Q70: 0.9999990939
A71: 20.06 | B71: 9.997749093 | C71: 20.06 | D71: 9.997749093 | E71: 1.005196358e-10 | F71: 0.04997503744 | G71: 0.4992511233 | H71: 0.5007488767 | K71: 5.744449452e-06 | L71: 0.005012662471 | Q71: 0.9999982104
A72: 20.11 | B72: 10.34795679 | C72: 20.11 | D72: 10.34795679 | E72: 4.487900437e-11 | F72: 0.04991273997 | G72: 0.4986287709 | H72: 0.5013712291 | K72: 2.564732642e-06 | L72: 0.002244230506 | Q72: 0.9999959917
A73: 20.21 | B73: 10.67110988 | C73: 20.21 | D73: 10.67110988 | E73: 2.132505318e-11 | F73: 0.0497886098 | G73: 0.4973887093 | H73: 0.5026112907 | K73: 1.218679748e-06 | L73: 0.001067643362 | Q73: 0.9999915646
A74: 20.41 | B74: 10.98120319 | C74: 20.41 | D74: 10.98120319 | E74: 1.04423154e-11 | F74: 0.04954219253 | G74: 0.4949269983 | H74: 0.5050730017 | K74: 5.967556603e-07 | L74: 0.0005230817589 | Q74: 0.9999827736
A75: 20.91 | B75: 11.33416788 | C75: 20.91 | D75: 11.33416788 | E75: 4.632678047e-12 | F75: 0.0489366903 | G75: 0.4888780249 | H75: 0.5111219751 | K75: 2.647475837e-07 | L75: 0.0002321300129 | Q75: 0.9999611715
A76: 21.41 | B76: 11.52251018 | C76: 21.41 | D76: 11.52251018 | E76: 3.002547028e-12 | F76: 0.0483458102 | G76: 0.4829751268 | H76: 0.5170248732 | K76: 1.71589119e-07 | L76: 0.0001504611821 | Q76: 0.9999400921
A77: 21.91 | B77: 11.6507396 | C77: 21.91 | D77: 11.6507396 | E77: 2.234911862e-12 | F77: 0.04776902887 | G77: 0.4772130756 | H77: 0.5227869244 | K77: 1.277204219e-07 | L77: 0.0001119983842 | Q77: 0.9999195169
A78: 22.91 | B78: 11.82492571 | C78: 22.91 | D78: 11.82492571 | E78: 1.496491636e-12 | F78: 0.04665579118 | G78: 0.4660918201 | H78: 0.5339081799 | K78: 8.552129256e-08 | L78: 7.49966253e-05 | Q78: 0.9998798086
A79: 23.91 | B79: 11.94396417 | C79: 23.91 | D79: 11.94396417 | E79: 1.137721144e-12 | F79: 0.04559325893 | G79: 0.4554771123 | H79: 0.5445228877 | K79: 6.501832852e-08 | L79: 5.701787999e-05 | Q79: 0.9998419132
A80: 25.91 | B80: 12.10477055 | C80: 25.91 | D80: 12.10477055 | E80: 7.856506079e-13 | F80: 0.04360705726 | G80: 0.4356349379 | H80: 0.5643650621 | K80: 4.489825177e-08 | L80: 3.937425504e-05 | Q80: 0.9997710866
A81: 27.91 | B81: 12.21319928 | C81: 27.91 | D81: 12.21319928 | E81: 6.120694779e-13 | F81: 0.04178668334 | G81: 0.4174493843 | H81: 0.5825506157 | K81: 3.497846182e-08 | L81: 3.067519981e-05 | Q81: 0.9997061866

Sheet Simulation
C1: Virtual Titrator – Simulation of curves | H1: <--- read instructions | K1: pKas of the acids and bases in the solution | N1: Click on K2 to Q2; select acids/bases; click on J2; read M1 | U1: Overall protonation constants = bp = PKp (calculated by the program) | AB1: pKa(n) = -log Kd(HB-->B) = log Kp(1) | AF1: pKas loaded from the Database
A2: Titrand (sample) and titrant (standard) composition (concentrations in mol/L) | K2: 5 | L2: 8 | M2: 98 | N2: 1 | O2: 2 | P2: 6 | Q2: 3 | S2: Titrant | V2: Titrand | AC2: Titrant | AG2: Titrand | AH2: Click on J2 to use these pKas in the Simulation
A3: SAMPLE Species | B3: =K3 -> EDTA | C3: =L3 -> Phosphoric acid | D3: L-Glutamic acid | E3: Acetic acid | F3: Ammonia | G3: HCl | H3: Carbonic acid | J3: Acid / Base | K3: EDTA | L3: Phosphoric acid | M3: L-Glutamic acid | N3: Acetic acid | O3: Ammonia | P3: HCl | Q3: Carbonic acid | R3: Strong ACID | S3: Strong BASE | T3: Carbonic ac. | U3: Acid / Base | V3: =IF(K3="","",K3) -> EDTA | W3: Phosphoric acid | X3: L-Glutamic acid | Y3: Acetic acid | Z3: Ammonia | AA3: HCl | AB3: Carbonic acid | AC3: =R3 -> Strong ACID | AD3: =S3 -> Strong BASE | AE3: =T3 -> Carbonic ac. | AF3: Acid / Base | AG3: =IF(VLOOKUP(K$2,Database!$B$22:$N$301,2)="","",VLOOKUP(K$2,Database!$B$22:$N$301,2)) -> EDTA | AH3: =IF(VLOOKUP(L$2,Database!$B$22:$N$301,2)="","",VLOOKUP(L$2,Database!$B$22:$N$301,2)) -> Phosphoric acid | AI3: =IF(VLOOKUP(M$2,Database!$B$22:$N$301,2)="","",VLOOKUP(M$2,Database!$B$22:$N$301,2)) -> L-Glutamic acid | AJ3: =IF(VLOOKUP(N$2,Database!$B$22:$N$301,2)="","",VLOOKUP(N$2,Database!$B$22:$N$301,2)) -> Acetic acid | AK3: =IF(VLOOKUP(O$2,Database!$B$22:$N$301,2)="","",VLOOKUP(O$2,Database!$B$22:$N$301,2)) -> Ammonia | AL3: =IF(VLOOKUP(P$2,Database!$B$22:$N$301,2)="","",VLOOKUP(P$2,Database!$B$22:$N$301,2)) -> HCl | AM3: =IF(VLOOKUP(Q$2,Database!$B$22:$N$301,2)="","",VLOOKUP(Q$2,Database!$B$22:$N$301,2)) -> Carbonic acid
A4: [B] | J4: Charge of B | K4: -4 | L4: -3 | M4: -2 | N4: -1 | O4: 0 | P4: -1 | Q4: -2 | R4: -1 | S4: -1 | T4: -2 | U4: Charge of B | V4: -4 | W4: =IF(L4="","",L4) -> -3 | X4: -2 | Y4: -1 | Z4: 0 | AA4: -1 | AB4: -2 | AC4: =IF(R4="","",R4) -> -1 | AD4: =IF(S4="","",S4) -> -1 | AE4: =IF(T4="","",T4) -> -2 | AF4: Charge of B | AG4: =IF(VLOOKUP(K$2,Database!$B$22:$N$301,3)="","",VLOOKUP(K$2,Database!$B$22:$N$301,3)) -> -4 | AH4: =IF(VLOOKUP(L$2,Database!$B$22:$N$301,3)="","",VLOOKUP(L$2,Database!$B$22:$N$301,3)) -> -3 | AI4: =IF(VLOOKUP(M$2,Database!$B$22:$N$301,3)="","",VLOOKUP(M$2,Database!$B$22:$N$301,3)) -> -2 | AJ4: =IF(VLOOKUP(N$2,Database!$B$22:$N$301,3)="","",VLOOKUP(N$2,Database!$B$22:$N$301,3)) -> -1 | AK4: =IF(VLOOKUP(O$2,Database!$B$22:$N$301,3)="","",VLOOKUP(O$2,Database!$B$22:$N$301,3)) -> 0 | AL4: =IF(VLOOKUP(P$2,Database!$B$22:$N$301,3)="","",VLOOKUP(P$2,Database!$B$22:$N$301,3)) -> -1 | AM4: =IF(VLOOKUP(Q$2,Database!$B$22:$N$301,3)="","",VLOOKUP(Q$2,Database!$B$22:$N$301,3)) -> -2
A5: [HB] | J5: pKa1 | K5: -0.21 | L5: 2.148 | M5: 2.23 | N5: 4.757 | O5: 9.244 | P5: -7 | Q5: 6.352 | R5: -6 | S5: 15.745 | T5: 6.352 | U5: bp1 | V5: =IF(K5="","",IF(K6="",10^K5,(IF(K7="",10^K6,(IF(K8="",10^K7,(IF(K9="",10^K8,(IF(K10="",10^K9,10^K10)))))))))) -> 1.071519305e+11 | W5: 2.238721139e+12 | X5: 8912509381 | Y5: 57147.86367 | Z5: 1753880502 | AA5: 1e-07 | AB5: 2.133044913e+10 | AC5: =IF(R5="","",IF(R6="",10^R5,10^R6)) -> 1e-06 | AD5: =IF(S5="","",IF(S6="",10^S5,10^S6)) -> 5559042572704029 | AE5: =IF(T5="","",IF(T6="",10^T5,10^T6)) -> 2.133044913e+10 | AF5: pKa1 = logKpn | AG5: =IF(VLOOKUP(K$2,Database!$B$22:$N$301,4)="","",VLOOKUP(K$2,Database!$B$22:$N$301,4)) -> -0.21 | AH5: =IF(VLOOKUP(L$2,Database!$B$22:$N$301,4)="","",VLOOKUP(L$2,Database!$B$22:$N$301,4)) -> 2.148 | AI5: =IF(VLOOKUP(M$2,Database!$B$22:$N$301,4)="","",VLOOKUP(M$2,Database!$B$22:$N$301,4)) -> 2.23 | AJ5: =IF(VLOOKUP(N$2,Database!$B$22:$N$301,4)="","",VLOOKUP(N$2,Database!$B$22:$N$301,4)) -> 4.757 | AK5: =IF(VLOOKUP(O$2,Database!$B$22:$N$301,4)="","",VLOOKUP(O$2,Database!$B$22:$N$301,4)) -> 9.244 | AL5: =IF(VLOOKUP(P$2,Database!$B$22:$N$301,4)="","",VLOOKUP(P$2,Database!$B$22:$N$301,4)) -> -7 | AM5: =IF(VLOOKUP(Q$2,Database!$B$22:$N$301,4)="","",VLOOKUP(Q$2,Database!$B$22:$N$301,4)) -> 6.352
A6: [H2B] | J6: pKa2 | K6: 1.5 | L6: 7.199 | M6: 4.42 | Q6: 10.329 | T6: 10.329 | U6: bp2 | V6: =IF(K6="","",IF(K7="",V5*10^K5,(IF(K8="",V5*10^K6,(IF(K9="",V5*10^K7,(IF(K10="",V5*10^K8,V5*10^K9)))))))) -> 6.025595861e+17 | W6: 3.539973411e+19 | X6: 2.344228815e+14 | AB6: 4.797334486e+16 | AC6: =IF(R6="","",AC5*10^R5) ->  | AD6: =IF(S6="","",AD5*10^S5) ->  | AE6: =IF(T6="","",AE5*10^T5) -> 4.797334486e+16 | AF6: pKa2 = logKpn-1 | AG6: =IF(VLOOKUP(K$2,Database!$B$22:$N$301,5)="","",VLOOKUP(K$2,Database!$B$22:$N$301,5)) -> 1.5 | AH6: =IF(VLOOKUP(L$2,Database!$B$22:$N$301,5)="","",VLOOKUP(L$2,Database!$B$22:$N$301,5)) -> 7.199 | AI6: =IF(VLOOKUP(M$2,Database!$B$22:$N$301,5)="","",VLOOKUP(M$2,Database!$B$22:$N$301,5)) -> 4.42 | AJ6: =IF(VLOOKUP(N$2,Database!$B$22:$N$301,5)="","",VLOOKUP(N$2,Database!$B$22:$N$301,5)) ->  | AK6: =IF(VLOOKUP(O$2,Database!$B$22:$N$301,5)="","",VLOOKUP(O$2,Database!$B$22:$N$301,5)) ->  | AL6: =IF(VLOOKUP(P$2,Database!$B$22:$N$301,5)="","",VLOOKUP(P$2,Database!$B$22:$N$301,5)) ->  | AM6: =IF(VLOOKUP(Q$2,Database!$B$22:$N$301,5)="","",VLOOKUP(Q$2,Database!$B$22:$N$301,5)) -> 10.329
A7: [H3B] | C7: 0.05 | J7: pKa3 | K7: 2.21 | L7: 12.35 | M7: 9.95 | U7: bp3 | V7: =IF(K7="","",IF(K8="",V6*10^K5,(IF(K9="",V6*10^K6,(IF(K10="",V6*10^K7,V6*10^K8)))))) -> 7.762471166e+20 | W7: 4.97737085e+21 | X7: 3.981071706e+16 | AF7: pKa3 = logKpn-2 | AG7: =IF(VLOOKUP(K$2,Database!$B$22:$N$301,6)="","",VLOOKUP(K$2,Database!$B$22:$N$301,6)) -> 2.21 | AH7: =IF(VLOOKUP(L$2,Database!$B$22:$N$301,6)="","",VLOOKUP(L$2,Database!$B$22:$N$301,6)) -> 12.35 | AI7: =IF(VLOOKUP(M$2,Database!$B$22:$N$301,6)="","",VLOOKUP(M$2,Database!$B$22:$N$301,6)) -> 9.95 | AJ7: =IF(VLOOKUP(N$2,Database!$B$22:$N$301,6)="","",VLOOKUP(N$2,Database!$B$22:$N$301,6)) ->  | AK7: =IF(VLOOKUP(O$2,Database!$B$22:$N$301,6)="","",VLOOKUP(O$2,Database!$B$22:$N$301,6)) ->  | AL7: =IF(VLOOKUP(P$2,Database!$B$22:$N$301,6)="","",VLOOKUP(P$2,Database!$B$22:$N$301,6)) ->  | AM7: =IF(VLOOKUP(Q$2,Database!$B$22:$N$301,6)="","",VLOOKUP(Q$2,Database!$B$22:$N$301,6)) -> 
A8: [H4B] | J8: pKa4 | K8: 3.11 | U8: bp4 | V8: =IF(K8="","",IF(K9="",V7*10^K5,(IF(K10="",V7*10^K6,V7*10^K7)))) -> 1.258925412e+23 | AF8: pKa4 = logKpn-3 | AG8: =IF(VLOOKUP(K$2,Database!$B$22:$N$301,7)="","",VLOOKUP(K$2,Database!$B$22:$N$301,7)) -> 3.11 | AH8: =IF(VLOOKUP(L$2,Database!$B$22:$N$301,7)="","",VLOOKUP(L$2,Database!$B$22:$N$301,7)) ->  | AI8: =IF(VLOOKUP(M$2,Database!$B$22:$N$301,7)="","",VLOOKUP(M$2,Database!$B$22:$N$301,7)) ->  | AJ8: =IF(VLOOKUP(N$2,Database!$B$22:$N$301,7)="","",VLOOKUP(N$2,Database!$B$22:$N$301,7)) ->  | AK8: =IF(VLOOKUP(O$2,Database!$B$22:$N$301,7)="","",VLOOKUP(O$2,Database!$B$22:$N$301,7)) ->  | AL8: =IF(VLOOKUP(P$2,Database!$B$22:$N$301,7)="","",VLOOKUP(P$2,Database!$B$22:$N$301,7)) ->  | AM8: =IF(VLOOKUP(Q$2,Database!$B$22:$N$301,7)="","",VLOOKUP(Q$2,Database!$B$22:$N$301,7)) -> 
A9: [H5B] | I9: Total | J9: pKa5 | K9: 6.75 | U9: bp5 | V9: =IF(K9="","",IF(K10="",V8*10^K5,V8*10^K6)) -> 3.981071706e+24 | AF9: pKa5 = logKpn-4 | AG9: =IF(VLOOKUP(K$2,Database!$B$22:$N$301,8)="","",VLOOKUP(K$2,Database!$B$22:$N$301,8)) -> 6.75 | AH9: =IF(VLOOKUP(L$2,Database!$B$22:$N$301,8)="","",VLOOKUP(L$2,Database!$B$22:$N$301,8)) ->  | AI9: =IF(VLOOKUP(M$2,Database!$B$22:$N$301,8)="","",VLOOKUP(M$2,Database!$B$22:$N$301,8)) ->  | AJ9: =IF(VLOOKUP(N$2,Database!$B$22:$N$301,8)="","",VLOOKUP(N$2,Database!$B$22:$N$301,8)) ->  | AK9: =IF(VLOOKUP(O$2,Database!$B$22:$N$301,8)="","",VLOOKUP(O$2,Database!$B$22:$N$301,8)) ->  | AL9: =IF(VLOOKUP(P$2,Database!$B$22:$N$301,8)="","",VLOOKUP(P$2,Database!$B$22:$N$301,8)) ->  | AM9: =IF(VLOOKUP(Q$2,Database!$B$22:$N$301,8)="","",VLOOKUP(Q$2,Database!$B$22:$N$301,8)) -> 
A10: [H6B] | I10: SS | J10: pKa6 | K10: 11.03 | U10: bp6 | V10: =IF(K10="","",V9*10^K5) -> 2.454708916e+24 | AF10: pKa6 = logKpn-5 | AG10: =IF(VLOOKUP(K$2,Database!$B$22:$N$301,9)="","",VLOOKUP(K$2,Database!$B$22:$N$301,9)) -> 11.03 | AH10: =IF(VLOOKUP(L$2,Database!$B$22:$N$301,9)="","",VLOOKUP(L$2,Database!$B$22:$N$301,9)) ->  | AI10: =IF(VLOOKUP(M$2,Database!$B$22:$N$301,9)="","",VLOOKUP(M$2,Database!$B$22:$N$301,9)) ->  | AJ10: =IF(VLOOKUP(N$2,Database!$B$22:$N$301,9)="","",VLOOKUP(N$2,Database!$B$22:$N$301,9)) ->  | AK10: =IF(VLOOKUP(O$2,Database!$B$22:$N$301,9)="","",VLOOKUP(O$2,Database!$B$22:$N$301,9)) ->  | AL10: =IF(VLOOKUP(P$2,Database!$B$22:$N$301,9)="","",VLOOKUP(P$2,Database!$B$22:$N$301,9)) ->  | AM10: =IF(VLOOKUP(Q$2,Database!$B$22:$N$301,9)="","",VLOOKUP(Q$2,Database!$B$22:$N$301,9)) -> 
A11: S[HiB] | B11: =SUM(B4:B10) -> 0 | C11: =SUM(C4:C10) -> 0.05 | D11: 0 | E11: 0 | F11: 0 | G11: 0 | H11: 0 | I11: =SUM(B11:H11) -> 0.05 | J11: pKw | K11: 13.997 | U11: Kw | V11: =10^-K11 -> 1.006931669e-14
A12: S[H] | B12: =B5+2*B6+3*B7+4*B8+5*B9+6*B10 -> 0 | C12: =C5+2*C6+3*C7+4*C8+5*C9+6*C10 -> 0.15 | D12: 0 | E12: 0 | F12: 0 | G12: 0 | H12: 0 | I12: =SUM(B12:H12) -> 0.15
A13: SziCi | B13: =K4*B4+(K4+1)*B5+(K4+2)*B6+(K4+3)*B7+(K4+4)*B8+(K4+5)*B9+(K4+6)*B10 -> 0 | C13: =L4*C4+(L4+1)*C5+(L4+2)*C6+(L4+3)*C7+(L4+4)*C8+(L4+5)*C9+(L4+6)*C10 -> 0 | D13: 0 | E13: 0 | F13: 0 | G13: 0 | H13: 0 | I13: =SUM(B13:H13) -> 0
A14: TITRANT | B14: =R3 -> Strong ACID | C14: =S3 -> Strong BASE | D14: =T3 -> Carbonic ac. | E14: Total | G14: Volume of titrand (in mL) | I14: Counterions and other ions | K14: =IF(K17<>K16, "error: K16><K17","") ->  | L14: =IF(K20<>K19, "error: K19><K20","") ->  | M14: Simulation of errors | O14: Davies equation parameters
A15: [B] | C15: 0.1 | E15: Titrant(s) | F15: SAMPLE | G15: Water | H15: Titrand | I15: Sample (Titrand) | J15: Minimum (mol/L) | K15: Extra in sample | L15: Sum (mol/L) | M15: (data dispersion) | O15: for activity coefficient estimation
A16: [HB] | F16: Dispensed | G16: Added | H16: Initial volume | I16: Cations (monov.) | J16: =IF(I13<0,-I13,0) -> 0 | K16: 0 | L16: =J16+K16 -> 0 | M16: S pH= | N16: 0 | O16: A | P16: 0.509
A17: [H2B] | E17: SS | F17: 20 | G17: 0 | H17: =F17+G17 -> 20 | I17: Anions (monov.) | J17: =IF(I13>0,I13,0) -> 0 | K17: 0 | L17: =J17+K17 -> 0 | M17: S Vol= | N17: 0 | O17: b | P17: 0.3
A18: S[HiB] | B18: =SUM(B15:B17) -> 0 | C18: =SUM(C15:C17) -> 0.1 | D18: =SUM(D15:D17) -> 0 | E18: =SUM(B18:D18) -> 0.1 | G18: Maximum titrant volume & additions | I18: Titrant | J18: Minimum (mol/L) | K18: Extra (mol/L) | L18: Sum (mol/L)
A19: S[H] | B19: =B16+2*B17 -> 0 | C19: =C16+2*C17 -> 0 | D19: =D16+2*D17 -> 0 | E19: =SUM(B19:D19) -> 0 | F19: Titrant Vol. | G19: Number of additions | I19: Cations (monov.) | J19: =IF(E20<0,-E20,0) -> 0.1 | K19: 0 | L19: =J19+K19 -> 0.1 | N19: I > 0.1 mol/L; the accuracy of pH calculation decreases with increasing I. Refer to comment in P15.
A20: SziCi | B20: =R4*B15+(R4+1)*B16+(R4+2)*B17 -> 0 | C20: =S4*C15+(S4+1)*C16+(S4+2)*C17 -> -0.1 | D20: =T4*D15+(T4+1)*D16+(T4+2)*D17 -> 0 | E20: =SUM(B20:D20) -> -0.1 | F20: 50 | G20: 50 | H20: Upper limits | I20: Anions (monov.) | J20: =IF(E20>0,E20,0) -> 0 | K20: 0 | L20: =J20+K20 -> 0
A21: 2
O22: Color coding
O23: D o n o t c h a n g e
O24: C h a n g e c r i t e r i o u s l y
O25: Fill out, change or leave blank
N26: Data ID on curves
N27: Copying curves
N28: Resizing axis
N29: Other graphics
N30: Data analysis
AW37: Curve copied | AY37: Curve copied
AW38: from Evaluation | AY38: from Regression | BA38: Retained formed curves
A39: Vadd | B39: =IF(A21=2,"pH", "'pH'") -> pH | C39: Vadd | D39: =IF(A21=2,"pH", "'pH'") -> pH | E39: [H] | F39: CHtot = | G39: Dil. factor | H39: Dil. Factor | I39: h1 | J39: h2 | K39: h3 | L39: h4 | M39: h5 | N39: h6 | O39: h7 | P39: h1 titrant | Q39: h2 titrant | R39: h3 titrant | S39: Parameters calculated only for the 'Activities, plot pH' option | AW39: Vol | AX39: pH | AY39: Vol | AZ39: pH | BA39: Vol | BB39: pH | BC39: Vol | BD39: pH | BE39: Vol | BF39: pH | BG39: Vol | BH39: pH | BI39: Vol | BJ39: pH | BK39: Vol | BL39: pH | BM39: Vol | BN39: pH | BO39: Vol | BP39: pH | BQ39: Vol | BR39: pH | BS39: Vol | BT39: pH | BU39: Vol | BV39: pH | BW39: Vol | BX39: pH | BY39: Vol | BZ39: pH
A40: (mL) | B40: simulated | C40: with "error" (do not use) | D40: simulated with "error" | F40: CHcalc | G40: Titrand (sample) | H40: Titrant (buret) | I40: =K3 -> EDTA | J40: Phosphoric acid | K40: L-Glutamic acid | L40: Acetic acid | M40: Ammonia | N40: HCl | O40: Carbonic acid | P40: Strong ACID | Q40: Strong BASE | R40: Carbonic ac. | S40: Ionic strength, I | T40: I of counter- and extra ions | U40: gH+ | V40: pH | BA40: 1 | BB40: 1 | BC40: 2 | BD40: 2 | BE40: 3 | BF40: 3 | BG40: 4 | BH40: 4 | BI40: 5 | BJ40: 5 | BK40: 6 | BL40: 6 | BM40: 7 | BN40: 7 | BO40: 8 | BP40: 8 | BQ40: 9 | BR40: 9 | BS40: 10 | BT40: 10 | BU40: 11 | BV40: 11 | BW40: 12 | BX40: 12 | BY40: 13 | BZ40: 13
A41: 0 | B41: 1.81710722 | E41: 0.01735785675 | F41: 0.1500000039 | G41: 1 | H41: 0 | J41: 2.652842943 | Q41: 1 | S41: 0.01735796129 | T41: 0 | U41: 0.8778022344 | V41: 1.7605039 | BA41: 0 | BB41: 3.353082641 | BC41: 0 | BD41: 1.386411696
A42: 2.30044427 | B42: 2.032047787 | E42: 0.0106950686 | F42: 0.1345264679 | G42: 0.8968431192 | H42: 0.1031568808 | J42: 2.531450792 | Q42: 1 | S42: 0.02101097504 | T42: 0.005157844042 | U42: 0.8684976364 | V42: 1.970816425 | BA42: 0.6894471691 | BB42: 3.540827492 | BC42: 3.117809592 | BD42: 1.607250963
A43: 4.325429381 | B43: 2.246139561 | E43: 0.006589782024 | F43: 0.1233277305 | G43: 0.8221848703 | H43: 0.1778151297 | J43: 2.407157785 | Q43: 1 | S43: 0.02437172063 | T43: 0.008890756486 | U43: 0.8609727233 | V43: 2.181128951 | BA43: 1.458208715 | BB43: 3.72895565 | BC43: 5.483084255 | BD43: 1.829576772
A44: 5.998288551 | B44: 2.459283684 | E44: 0.004060303748 | F44: 0.115392211 | G44: 0.7692814071 | H44: 0.2307185929 | J44: 2.294610195 | Q44: 1 | S44: 0.02713295242 | T44: 0.01153592964 | U44: 0.8553774454 | V44: 2.391441476 | BA44: 2.354237575 | BB44: 3.917140366 | BC44: 7.136162159 | BD44: 2.052947459
A45: 7.285792401 | B45: 2.671584041 | E45: 0.00250176204 | F45: 0.1099473292 | G45: 0.7329821947 | H45: 0.2670178053 | J45: 2.2031582 | Q45: 1 | S45: 0.0292049469 | T45: 0.01335089027 | U45: 0.8514712001 | V45: 2.601754001 | BA45: 3.385618357 | BB45: 4.104981039 | BC45: 8.226362318 | BD45: 2.277009381
A46: 8.21507308 | B46: 2.883229922 | E46: 0.001541464308 | F46: 0.1063261467 | G46: 0.7088409781 | H46: 0.2911590219 | J46: 2.135000164 | Q46: 1 | S46: 0.03065978856 | T46: 0.01455795109 | U46: 0.8488610529 | V46: 2.812066527 | BA46: 4.508503924 | BB46: 4.292116589 | BC46: 8.918093691 | BD46: 2.501510735
A47: 8.852646742 | B47: 3.094410589 | E47: 0.0009497754682 | F47: 0.1039765962 | G47: 0.6931773081 | H47: 0.3068226919 | J47: 2.08733179 | Q47: 1 | S47: 0.03163613275 | T47: 0.0153411346 | U47: 0.8471658997 | V47: 3.022379052 | BA47: 5.6376073 | BB47: 4.47833262 | BC47: 9.346292847 | BD47: 2.726284443
A48: 9.274525116 | B48: 3.305278628 | E48: 0.0005852055316 | F48: 0.1024781781 | G48: 0.6831878541 | H48: 0.3168121459 | J48: 2.055415875 | Q48: 1 | S48: 0.03227322165 | T48: 0.01584060729 | U48: 0.8460829683 | V48: 3.232691577 | BA48: 6.67908755 | BB48: 4.663594178 | BC48: 9.607319733 | BD48: 2.951224303
A49: 9.547219268 | B49: 3.515944479 | E49: 0.0003605752367 | F49: 0.1015323971 | G49: 0.6768826473 | H49: 0.3231173527 | J49: 2.034624079 | Q49: 1 | S49: 0.03268352158 | T49: 0.01615586763 | U49: 0.8453949068 | V49: 3.443004103 | BA49: 7.564980905 | BB49: 4.848001382 | BC49: 9.76495275 | BD49: 3.17626455
A50: 9.721389788 | B50: 3.726483748 | E50: 0.0002221689548 | F50: 0.1009374064 | G50: 0.6729160427 | H50: 0.3270839573 | J50: 2.021257853 | Q50: 1 | S50: 0.03294893428 | T50: 0.01635419786 | U50: 0.8449536435 | V50: 3.653316628 | BA50: 8.268340318 | BB50: 5.031717382 | BC50: 9.859607455 | BD50: 3.401365094
A51: 9.832768223 | B51: 3.936947183 | E51: 0.0001368897236 | F51: 0.1005605641 | G51: 0.6704037604 | H51: 0.3295962396 | J51: 2.012639381 | Q51: 1 | S51: 0.03312649812 | T51: 0.01647981198 | U51: 0.8446600884 | V51: 3.863629153 | BA51: 8.797147083 | BB51: 5.214911459 | BC51: 9.916251492 | BD51: 3.626501728
A52: 9.905640735 | B52: 4.147369504 | E52: 8.434480165e-05 | F52: 0.1003155233 | G52: 0.6687701553 | H52: 0.3312298447 | J52: 2.006913546 | Q52: 1 | S52: 0.03325615043 | T52: 0.01656149223 | U52: 0.8444465726 | V52: 4.073941679 | BA52: 9.178828941 | BB52: 5.397729422 | BC52: 9.950079636 | BD52: 3.851659918
A53: 9.956512624 | B53: 4.35777638 | E53: 5.196917182e-05 | F53: 0.1001451684 | G53: 0.6676344557 | H53: 0.3323655443 | J53: 2.002791931 | Q53: 1 | S53: 0.03336787635 | T53: 0.01661827722 | U53: 0.8442631368 | V53: 4.284254204 | BA53: 9.446391159 | BB53: 5.580284758 | BC53: 9.97025734 | BD53: 4.076830965
A54: 9.997179986 | B54: 4.568189978 | E54: 3.202088056e-05 | F54: 0.1000094009 | G54: 0.6667293395 | H54: 0.3332706605 | J54: 1.999321478 | Q54: 1 | S54: 0.0334878844 | T54: 0.01666353303 | U54: 0.8440666754 | V54: 4.494566729 | BA54: 9.630238129 | BB54: 5.762660643 | BC54: 9.98228411 | BD54: 4.302009677
A55: 10.03719047 | B55: 4.778633876 | E55: 1.972971198e-05 | F55: 0.09987618525 | G55: 0.665841235 | H55: 0.334158765 | J55: 1.995688349 | Q55: 1 | S55: 0.03364436736 | T55: 0.01670793825 | U55: 0.8438113868 | V55: 4.704879255 | BA55: 9.754962799 | BB55: 5.944915856 | BC55: 9.989449488 | BD55: 4.527192956
A56: 10.0859496 | B56: 4.989138111 | E56: 1.215649064e-05 | F56: 0.09971431978 | G56: 0.6647621318 | H56: 0.3352378682 | J56: 1.991039335 | Q56: 1 | S56: 0.03387373543 | T56: 0.01676189341 | U56: 0.8434389877 | V56: 4.91519178 | BA56: 9.839040846 | BB56: 6.127091086 | BC56: 9.993717445 | BD56: 4.752378954
A57: 10.15480394 | B57: 5.199745019 | E57: 7.49023933e-06 | F57: 0.09948663589 | G57: 0.6632442393 | H57: 0.3367557607 | J57: 1.984293796 | Q57: 1 | S57: 0.03422830443 | T57: 0.01683778804 | U57: 0.8428674644 | V57: 5.125504305 | BA57: 9.895767509 | BB57: 6.309214285 | BC57: 9.996259261 | BD57: 4.977566572
A58: 10.25942789 | B58: 5.410516025 | E58: 4.615121822e-06 | F58: 0.09914265433 | G58: 0.6609510289 | H58: 0.3390489711 | J58: 1.973917653 | Q58: 0.9999999999 | S58: 0.03478626286 | T58: 0.01695244856 | U58: 0.8419781256 | V58: 5.335816831 | BA58: 9.93450237 | BB58: 6.491304794 | BC58: 9.997773012 | BD58: 5.202755155
A59: 10.42273878 | B59: 5.621538168 | E59: 2.843614001e-06 | F59: 0.09861045127 | G59: 0.6574030085 | H59: 0.3425969915 | J59: 1.957639764 | Q59: 0.9999999999 | S59: 0.03566381887 | T59: 0.01712984958 | U59: 0.8406034947 | V59: 5.546129356 | BA59: 9.961818154 | BB59: 6.67337642 | BC59: 9.998674628 | BD59: 5.427944313
A60: 10.67815728 | B60: 5.832925773 | E60: 1.752096889e-06 | F60: 0.09778944584 | G60: 0.6519296389 | H60: 0.3480703611 | J60: 1.932130772 | Q60: 0.9999999999 | S60: 0.03702634914 | T60: 0.01740351805 | U60: 0.8385251851 | V60: 5.756441881 | BA60: 9.982437371 | BB60: 6.855439717 | BC60: 9.999211897 | BD60: 5.653133813
A61: 11.07177496 | B61: 6.044806479 | E61: 1.079557038e-06 | F61: 0.09655064774 | G61: 0.6436709852 | H61: 0.3563290148 | J61: 1.892789375 | Q61: 0.9999999998 | S61: 0.03908744762 | T61: 0.01781645074 | U61: 0.8355028411 | V61: 5.966754407 | BA61: 9.999968707 | BB61: 7.03750379 | BC61: 9.999532504 | BD61: 5.878323517
A62: 11.65903515 | B62: 6.257274825 | E62: 6.651706343e-07 | F62: 0.09475967873 | G62: 0.6317311915 | H62: 0.3682688085 | J62: 1.83407612 | Q62: 0.9999999996 | S62: 0.04207022402 | T62: 0.01841344042 | U62: 0.8313657143 | V62: 6.177066932 | BA62: 10.0175018 | BB62: 7.219577849 | BC62: 9.999724584 | BD62: 6.103513345
A63: 12.48750713 | B63: 6.470307287 | E63: 4.098458506e-07 | F63: 0.09234318864 | G63: 0.6156212578 | H63: 0.3843787422 | J63: 1.751237142 | Q63: 0.9999999994 | S63: 0.046096405 | T63: 0.01921893711 | U63: 0.8261752379 | V63: 6.387379457 | BA63: 10.03813214 | BB63: 7.401672774 | BC63: 9.999840941 | BD63: 6.328703246
A64: 13.56029233 | B64: 6.683685211 | E64: 2.52527115e-07 | F64: 0.08939135483 | G64: 0.5959423655 | H64: 0.4040576345 | J64: 1.643964282 | Q64: 0.9999999989 | S64: 0.05101537444 | T64: 0.02020288172 | U64: 0.8203643431 | V64: 6.597691983 | BA64: 10.06549076 | BB64: 7.583802879 | BC64: 9.999913569 | BD64: 6.553893195
A65: 14.79919416 | B65: 6.897030427 | E65: 1.55594948e-07 | F65: 0.08620889283 | G65: 0.5747259522 | H65: 0.4252740478 | J65: 1.520078565 | Q65: 0.9999999983 | S65: 0.05631907798 | T65: 0.02126370239 | U65: 0.8146556699 | V65: 6.808004508 | BA65: 10.10435681 | BB65: 7.765988103 | BC65: 9.999962432 | BD65: 6.779083176
A66: 16.05457604 | B66: 7.109980438 | E66: 9.587005279e-08 | F66: 0.08320719115 | G66: 0.5547146076 | H66: 0.4452853924 | J66: 1.39454472 | Q66: 0.9999999971 | S66: 0.06132175381 | T66: 0.02226426962 | U66: 0.8097232302 | V66: 7.018317033 | BA66: 10.16143545 | BB66: 7.948256733 | BC66: 10.00000097 | BD66: 7.004273183
A67: 17.17392239 | B67: 7.322349069 | E67: 5.907047202e-08 | F67: 0.0807017341 | G67: 0.5380115607 | H67: 0.4619884393 | J67: 1.28261533 | Q67: 0.9999999953 | S67: 0.06549753895 | T67: 0.02309942197 | U67: 0.8058987718 | V67: 7.228629559 | BA67: 10.24638257 | BB67: 8.130648616 | BC67: 10.00003977 | BD67: 7.229463218
A68: 18.06846896 | B68: 7.534138653 | E68: 3.639635697e-08 | F68: 0.07880537574 | G68: 0.5253691716 | H68: 0.4746308284 | J68: 1.193168059 | Q68: 0.9999999923 | S68: 0.06865833635 | T68: 0.02373154142 | U68: 0.8031625231 | V68: 7.438942084 | BA68: 10.3731254 | BB68: 8.313218267 | BC68: 10.00008951 | BD68: 7.454653289
A69: 18.72548398 | B69: 7.74545465 | E69: 2.242566811e-08 | F69: 0.07746836684 | G69: 0.5164557791 | H69: 0.4835442209 | J69: 1.127477836 | Q69: 0.9999999875 | S69: 0.07088710189 | T69: 0.02417721104 | U69: 0.8013088937 | V69: 7.649254609 | BA69: 10.56140253 | BB69: 8.49603619 | BC69: 10.00016386 | BD69: 7.679843417
A70: 19.17987481 | B70: 7.956424921 | E70: 1.381760792e-08 | F70: 0.07656992307 | G70: 0.5104661537 | H70: 0.4895338463 | J70: 1.082056618 | Q70: 0.9999999797 | S70: 0.07238523886 | T70: 0.02447669232 | U70: 0.800096219 | V70: 7.859567135 | BA70: 10.83808912 | BB70: 8.679184718 | BC70: 10.00028326 | BD70: 7.905033634
A71: 19.48181737 | B71: 8.167159455 | E71: 8.51373915e-09 | F71: 0.07598434417 | G71: 0.5065622945 | H71: 0.4934377055 | J71: 1.051891077 | Q71: 0.9999999669 | S71: 0.07336242051 | T71: 0.02467188528 | U71: 0.7993191344 | V71: 8.06987966 | BA71: 11.23705525 | BB71: 8.862742306 | BC71: 10.00048054 | BD71: 8.130224001
A72: 19.67773416 | B72: 8.377740037 | E72: 5.24575272e-09 | F72: 0.07560915619 | G72: 0.5040610412 | H72: 0.4959389588 | J72: 1.032345834 | Q72: 0.9999999463 | S72: 0.07398972654 | T72: 0.02479694794 | U72: 0.7988259277 | V72: 8.280192185 | BA72: 11.79492671 | BB72: 9.046750393 | BC72: 10.00080996 | BD72: 8.355414618
A73: 19.80371251 | B73: 8.588223221 | E73: 3.232178143e-09 | F73: 0.07536985399 | G73: 0.5024656933 | H73: 0.4975343067 | J73: 1.019823269 | Q73: 0.9999999127 | S73: 0.07439180704 | T73: 0.02487671534 | U73: 0.7985120864 | V73: 8.490504711 | BA73: 12.53917969 | BB73: 9.231166912 | BC73: 10.00136208 | BD73: 8.580605654
A74: 19.88554011 | B74: 8.798646879 | E74: 1.991511249e-09 | F74: 0.07521522813 | G74: 0.5014348545 | H74: 0.4985651455 | J74: 1.01176263 | Q74: 0.9999998583 | S74: 0.074654783 | T74: 0.02492825728 | U74: 0.7983077789 | V74: 8.700817236 | BA74: 13.46812335 | BB74: 9.415834211 | BC74: 10.00228877 | BD74: 8.805797393
A75: 19.94107382 | B75: 9.009036446 | E75: 1.227072543e-09 | F75: 0.07511064959 | G75: 0.5007376639 | H75: 0.4992623361 | J75: 1.006407501 | Q75: 0.9999997699 | S75: 0.07483761927 | T75: 0.0249631168 | U75: 0.7981661753 | V75: 8.911129762 | BA75: 14.53299353 | BB75: 9.60050444 | BC75: 10.00384493 | BD75: 9.030990312
A76: 19.98292472 | B76: 9.219409882 | E76: 7.560625264e-10 | F76: 0.07503202983 | G76: 0.5002135322 | H76: 0.4997864678 | J76: 1.002544333 | Q76: 0.9999996264 | S76: 0.07498248039 | T76: 0.02498932339 | U76: 0.7980542397 | V76: 9.121442287 | BA76: 15.64163694 | BB76: 9.784928554 | BC76: 10.00645878 | BD76: 9.256185214
A77: 20.02083246 | B77: 9.429781504 | E77: 4.658490217e-10 | F77: 0.07496095947 | G77: 0.4997397298 | H77: 0.5002602702 | J77: 0.9992765577 | Q77: 0.9999993935 | S77: 0.07512329007 | T77: 0.02501301351 | U77: 0.7979456515 | V77: 9.331754812 | BA77: 16.69047923 | BB77: 9.968946649 | BC77: 10.01084999 | BD77: 9.481383444
A78: 20.06373115 | B78: 9.640165166 | E78: 2.870335501e-10 | F78: 0.07488069418 | G78: 0.4992046278 | H78: 0.5007953722 | J78: 0.9958369266 | Q78: 0.9999990154 | S78: 0.0752931305 | T78: 0.02503976861 | U78: 0.7978149592 | V78: 9.542067338 | BA78: 17.60333176 | BB78: 10.15251546 | BC78: 10.01822874 | BD78: 9.706587263
A79: 20.12175506 | B79: 9.850577294 | E79: 1.76856138e-10 | F79: 0.07477240205 | G79: 0.4984826803 | H79: 0.5015173197 | J79: 0.9914182018 | Q79: 0.9999984013 | S79: 0.07553156172 | T79: 0.02507586598 | U79: 0.7976320072 | V79: 9.752379863 | BA79: 18.35030156 | BB79: 10.33567696 | BC79: 10.03063189 | BD79: 9.931800462
A80: 20.20853606 | B80: 10.06104023 | E80: 1.089701658e-10 | F80: 0.07461102279 | G80: 0.4974068186 | H80: 0.5025931814 | J80: 0.9849955849 | Q80: 0.9999974035 | S80: 0.07589302738 | T80: 0.02512965907 | U80: 0.7973558025 | V80: 9.962692388 | BA80: 18.94261266 | BB80: 10.51851148 | BC80: 10.0514925 | BD80: 10.1570294
A81: 20.34421443 | B81: 10.27158618 | E81: 6.714212565e-11 | F81: 0.07436010448 | G81: 0.4957340299 | H81: 0.5042659701 | J81: 0.975113973 | Q81: 0.9999957814 | S81: 0.07645732485 | T81: 0.02521329851 | U81: 0.7969273643 | V81: 10.17300491 | BA81: 19.4169797 | BB81: 10.70110428 | BC81: 10.08661091 | BD81: 10.38228474
A82: 20.55962796 | B82: 10.48226135 | E82: 4.136971806e-11 | F82: 0.07396517546 | G82: 0.4931011699 | H82: 0.5068988301 | J82: 0.9596216812 | Q82: 0.9999931419 | S82: 0.07734221967 | T82: 0.0253449415 | U82: 0.796262189 | V82: 10.38331744 | BA82: 19.82249548 | BB82: 10.88353008 | BC82: 10.1458266 | BD82: 10.60758431
A83: 20.90204919 | B83: 10.6931286 | E83: 2.549001176e-11 | F83: 0.07334595843 | G83: 0.4889730562 | H83: 0.5110269438 | J83: 0.9353673087 | Q83: 0.9999888411 | S83: 0.07871539697 | T83: 0.02555134719 | U83: 0.7952457779 | V83: 10.59362996 | BA83: 20.21505539 | BB83: 11.06584948 | BC83: 10.24594355 | BD83: 10.83295783
A84: 21.44228569 | B84: 10.90426337 | E84: 1.57057077e-11 | F84: 0.07238982961 | G84: 0.482598864 | H84: 0.517401136 | J84: 0.8979827729 | Q84: 0.9999818207 | S84: 0.08079553217 | T84: 0.0258700568 | U84: 0.7937415736 | V84: 10.80394249 | BA84: 20.65937522 | BB84: 11.24811132 | BC84: 10.41598412 | BD84: 11.05845469
A85: 22.28144263 | B85: 11.11573345 | E85: 9.677094567e-12 | F85: 0.07095311352 | G85: 0.473020757 | H85: 0.526979243 | J85: 0.8421257953 | Q85: 0.9999703381 | S85: 0.08381793652 | T85: 0.02634896215 | U85: 0.7916287777 | V85: 11.01425501 | BA85: 21.23817571 | BB85: 11.4303574 | BC85: 10.70701791 | BD85: 11.28415622
A86: 23.55372357 | B86: 11.32755315 | E86: 5.962555847e-12 | F86: 0.06888044819 | G86: 0.4592029879 | H86: 0.5407970121 | J86: 0.7629272782 | Q86: 0.999951525 | S86: 0.08792694044 | T86: 0.0270398506 | U86: 0.7888862599 | V86: 11.22456754 | BA86: 22.07067786 | BB86: 11.61262788 | BC86: 11.2117296 | BD86: 11.51019469
A87: 25.42594728 | B87: 11.53962405 | E87: 3.673837429e-12 | F87: 0.06604155016 | G87: 0.4402770046 | H87: 0.5597229954 | J87: 0.6592911713 | Q87: 0.999920689 | S87: 0.09298709759 | T87: 0.02798614977 | U87: 0.7856986695 | V87: 11.43488007 | BA87: 23.34858722 | BB87: 11.79496739 | BC87: 12.10709623 | BD87: 11.73678051
A88: 28.12249199 | B88: 11.75171817 | E88: 2.263640258e-12 | F88: 0.0623409112 | G88: 0.4156060747 | H88: 0.5843939253 | J88: 0.5377321988 | Q88: 0.9998702261 | S88: 0.09843197684 | T88: 0.02921969627 | U88: 0.782482126 | V88: 11.64519259 | BA88: 25.41308428 | BB88: 11.9774318 | BC88: 13.76041579 | BD88: 11.96423606
A89: 32.06528089 | B89: 11.96355436 | E89: 1.394745227e-12 | F89: 0.05761997143 | G89: 0.3841331432 | H89: 0.6158668568 | J89: 0.4123844461 | Q89: 0.9997879143 | S89: 0.1033656684 | T89: 0.03079334284 | U89: 0.7797416942 | V89: 11.85550512 | BA89: 28.94504279 | BB89: 12.16009642 | BC89: 17.04709647 | BD89: 12.1930247
A90: 38.31748264 | B90: 12.1749088 | E90: 8.593742934e-13 | F90: 0.05144254966 | G90: 0.3429503315 | H90: 0.6570496685 | J90: 0.2988492179 | Q90: 0.9996541803 | S90: 0.1068984983 | T90: 0.03285248343 | U90: 0.7778732733 | V90: 12.06581764 | BA90: 35.53627921 | BB90: 12.34306554 | BC90: 24.62739218 | BD90: 12.42373891
A91: 50 | B91: 12.38564465 | E91: 5.295047167e-13 | F91: 0.04285551121 | G91: 0.2857310835 | H91: 0.7142689165 | J91: 0.2070335694 | Q91: 0.9994377689 | S91: 0.1083729367 | T91: 0.03571344582 | U91: 0.7771154129 | V91: 12.27613017 | BA91: 49.99999999 | BB91: 12.52648266 | BC91: 50 | BD91: 12.6569694

Sheet Distribution
B1: Distribution Diagrams, Buffer Capacity and Protonation Curves | H1: <--- read comment | Z1: Do not change or delete
D2: Acid/base system | F2: Overall protonation constants bp | H2: Corrected for I | I2: Species | J2: Curve color | N2: Color coding | Z2: Options of the K12 slider
E3: 8 | F3: Ionic strength, I | G3: 0 | H3: =IF(C7<0,0,IF(C7>3,3,C7)) -> 0.1 | I3: a B | N3: D o n o t c h a n g e | Z3: Titration curve from Titration
D4: pKa1 = logKpn | E4: =IF(VLOOKUP(E$3,Database!$B$22:$N$301,4)="","",VLOOKUP(E$3,Database!$B$22:$N$301,4)) -> 2.148 | F4: bp1 | G4: =IF(E4="","",IF(E5="",10^E4,(IF(E6="",10^E5,(IF(E7="",10^E6,(IF(E8="",10^E7,(IF(E9="",10^E8,10^E9)))))))))) -> 2.238721139e+12 | H4: =IF(G4="","",(G4*$H$10^(-2*$E$10))) -> 5.103723218e+11 | I4: a HB | N4: C h a n g e c r i t e r i o u s l y | Z4: Titration curve from Simulation
B5: of | D5: pKa2 = logKpn-1 | E5: =IF(VLOOKUP(E$3,Database!$B$22:$N$301,5)="","",VLOOKUP(E$3,Database!$B$22:$N$301,5)) -> 7.199 | F5: bp2 | G5: =IF(E5="","",IF(E6="",G4*10^E4,(IF(E7="",G4*10^E5,(IF(E8="",G4*10^E6,(IF(E9="",G4*10^E7,G4*10^E8)))))))) -> 3.539973411e+19 | H5: =IF(G5="","",(G5*$H$10^(-4*$E$10-2))) -> 3.011701024e+18 | I5: a H2B | N5: Fill out, change or leave blank | Z5: Titration curve from Evaluation
B6: =IF(VLOOKUP(E$3,Database!$B$22:$N$301,2)="","",VLOOKUP(E$3,Database!$B$22:$N$301,2)) -> Phosphoric acid | D6: pKa3 = logKpn-2 | E6: =IF(VLOOKUP(E$3,Database!$B$22:$N$301,6)="","",VLOOKUP(E$3,Database!$B$22:$N$301,6)) -> 12.35 | F6: bp3 | G6: =IF(E6="","",IF(E7="",G5*10^E4,(IF(E8="",G5*10^E5,(IF(E9="",G5*10^E6,G5*10^E7)))))) -> 4.97737085e+21 | H6: =IF(G6="","",(G6*$H$10^(-6*$E$10-6))) -> 2.586867758e+20 | I6: a H3B | Z6: Titration curve from Regression
B7: at ionic strength I (mol/L) | C7: 0.1 | D7: pKa4 = logKpn-3 | E7: =IF(VLOOKUP(E$3,Database!$B$22:$N$301,7)="","",VLOOKUP(E$3,Database!$B$22:$N$301,7)) ->  | F7: bp4 | G7: =IF(E7="","",IF(E8="",G6*10^E4,(IF(E9="",G6*10^E5,G6*10^E6)))) ->  | H7: =IF(G7="","",(G7*$H$10^(-8*$E$10-12))) ->  | I7: a H4B | M7: Data ID on curves | Z7: No titration curve
B8: and plot Buffer Capacity | D8: pKa5 = logKpn-4 | E8: =IF(VLOOKUP(E$3,Database!$B$22:$N$301,8)="","",VLOOKUP(E$3,Database!$B$22:$N$301,8)) ->  | F8: bp5 | G8: =IF(E8="","",IF(E9="",G7*10^E4,G7*10^E5)) ->  | H8: =IF(G8="","",(G8*$H$10^(-10*$E$10-20))) ->  | I8: a H5B | M8: Copying curves
B9: at S[HiB] (mol/L) | C9: 0.05 | D9: pKa6 = logKpn-5 | E9: =IF(VLOOKUP(E$3,Database!$B$22:$N$301,9)="","",VLOOKUP(E$3,Database!$B$22:$N$301,9)) ->  | F9: bp6 | G9: =IF(E9="","",G8*10^E4) ->  | H9: =IF(G9="","",(G9*$H$10^(-12*$E$10-30))) ->  | I9: a H6B | M9: Resizing axis | P9: Molar fraction of each species as a function of pH | Z9: Molar fraction of each species during titration | AM9: logarithm of molar fraction of each species as a function of pH | AX9: logarithm of molar fraction of each species during titration | BI9: Mean charge of species HiB
B10: =IF(C9>C7,"Generally C9 < C7","") ->  | D10: Charge of B | E10: =IF(VLOOKUP(E$3,Database!$B$22:$N$301,3)="","",VLOOKUP(E$3,Database!$B$22:$N$301,3)) -> -3 | F10: gH+ | G10: 1 | H10: =10^(-0.509*(H3^0.5/(1+H3^0.5)-0.3*H3)) -> 0.7815939439 | Q10: alpha 0 | R10: alpha 1 | S10: alpha 2 | T10: alpha 3 | U10: alpha 4 | V10: alpha 5 | W10: alpha 6 | X10: Buffer | AB10: alpha 0 | AC10: alpha 1 | AD10: alpha 2 | AE10: alpha 3 | AF10: alpha 4 | AG10: alpha 5 | AH10: alpha 6 | AI10: scaling | AJ10: scaling | AK10: scaling | AL10: Buffer | AN10: log alpha 0 | AO10: log alpha 1 | AP10: log alpha 2 | AQ10: log alpha 3 | AR10: log alpha 4 | AS10: log alpha 5 | AT10: log alpha 6 | AU10: Buffer | AV10: same | AW10: same | AX10: log alpha 0 | AY10: log alpha 1 | AZ10: log alpha 2 | BA10: log alpha 3 | BB10: log alpha 4 | BC10: log alpha 5 | BD10: log alpha 6 | BE10: scaling | BF10: scaling | BG10: Buffer | BH10: vs | BJ10: vs | BL10: scale
B11: =IF(C7>0.1, "Best accuracy for I < 0.1 mol/L","") ->  | D11: Protonations, n | E11: =IF(E4="","",IF(E5="",1,(IF(E6="",2,(IF(E7="",3,(IF(E8="",4,(IF(E9="",5,6)))))))))) -> 3 | F11: pKw | G11: 13.997 | H11: =G11+LOG10(H10^2) -> 13.78296237 | O11: pH | P11: h | Q11: B | R11: HB | S11: H2B | T11: H3B | U11: H4B | V11: H5B | W11: H6B | X11: Capacity | Y11: Vol | Z11: pH | AA11: h | AB11: B | AC11: HB | AD11: H2B | AE11: H3B | AF11: H4B | AG11: H5B | AH11: H6B | AI11: pH/14 | AJ11: n*pH/8 | AK11: n*pH/6 | AL11: Capacity | AM11: pH | AN11: B | AO11: HB | AP11: H2B | AQ11: H3B | AR11: H4B | AS11: H5B | AT11: H6B | AU11: Capacity | AV11: Vol | AW11: pH | AX11: B | AY11: HB | AZ11: H2B | BA11: H3B | BB11: H4B | BC11: H5B | BD11: H6B | BE11: pH (-8 a 0) | BF11: pH (-6 a 0) | BG11: Capacity | BH11: pH | BI11: zm | BJ11: Vol | BK11: zm | BL11: z+N.pH/14
C12: No Isoelectrc Point in the pH range of | D12: 0 to 14 | E12: for | G12: =IF(VLOOKUP(E$3,Database!$B$22:$N$301,2)="","",VLOOKUP(E$3,Database!$B$22:$N$301,2)) -> Phosphoric acid | J12: Plot all curves overlaid on | K12: 2 | O12: 0 | P12: 2.990982525 | Q12: 1.829091055e-21 | R12: 1.194376512e-09 | S12: 0.009017472182 | T12: 0.9909825266 | X12: 2.947059835 | Y12: 0 | Z12: 1.81710728 | AA12: 2.626086989 | AB12: 3.266841788e-16 | AC12: 3.250324717e-06 | AD12: 0.3739065107 | AE12: 0.626090239 | AI12: 0.1297933771 | AJ12: 0.3893801314 | AK12: 0.06489668857 | AL12: 0.07184089704 | AM12: 0 | AO12: -8.922800979 | AP12: -2.04490195 | AQ12: -0.003933977622 | AU12: 0.4693859148 | AV12: 0 | AW12: 0 | AX12: -15.48577164 | AY12: -5.48803772 | AZ12: -0.4272342067 | BA12: -0.2033617504 | BE12: -6.961652983 | BF12: -3.480826491 | BG12: -1.14362085 | BH12: 0 | BI12: -0.009017474571 | BJ12: 1.81710728 | BK12: -0.3739130113 | BL12: -2.610619869
O13: 0.2 | P13: 2.985783247 | Q13: 7.243538343e-21 | R13: 2.984397666e-09 | S13: 0.01421674745 | T13: 0.9857832496 | X13: 1.860433412 | Y13: 2.300444881 | Z13: 2.032047847 | AA13: 2.505131641 | AB13: 1.163385136e-15 | AC13: 7.056374009e-06 | AD13: 0.4948542465 | AE13: 0.5051386972 | AI13: 0.1451462748 | AJ13: 0.4354388244 | AK13: 0.0725731374 | AL13: 0.05614571588 | AM13: 0.2 | AO13: -8.525088117 | AP13: -1.847187793 | AQ13: -0.006218525396 | AU13: 0.269612385 | AV13: 2.300444881 | AW13: 0.2 | AX13: -14.93417981 | AY13: -5.151385058 | AZ13: -0.3055207207 | BA13: -0.2965874401 | BE13: -6.838829802 | BF13: -3.419414901 | BG13: -1.250675279 | BH13: 0.2 | BI13: -0.01421675342 | BJ13: 2.032047847 | BK13: -0.4948683592 | BL13: -2.564561176
O14: 0.4 | P14: 2.977653774 | Q14: 2.859923481e-20 | R14: 7.434646809e-09 | S14: 0.02234621118 | T14: 0.9776537814 | X14: 1.175351304 | Y14: 4.325429893 | Z14: 2.246139619 | AA14: 2.384029693 | AB14: 3.881228876e-15 | AC14: 1.437922776e-05 | AD14: 0.6159415482 | AE14: 0.3840440726 | AI14: 0.1604385442 | AJ14: 0.4813156327 | AK14: 0.08021927212 | AL14: 0.04395208041 | AM14: 0.4 | AN14: -19.54351906 | AO14: -8.128687033 | AP14: -1.650785414 | AQ14: -0.009814852075 | AU14: 0.07016723917 | AV14: 4.325429893 | AW14: 0.4 | AX14: -14.41093745 | AY14: -4.842233088 | AZ14: -0.2104591372 | BA14: -0.4156162428 | BE14: -6.716491646 | BF14: -3.358245823 | BG14: -1.357011778 | BH14: 0.4 | BI14: -0.02234622605 | BJ14: 2.246139619 | BK14: -0.6159703066 | BL14: -2.518684367
O15: 0.6 | P15: 2.96504053 | Q15: 1.123866927e-19 | R15: 1.843405246e-08 | S15: 0.03495943267 | T15: 0.9650405489 | X15: 0.7438937135 | Y15: 5.99828897 | Z15: 2.459283742 | AA15: 2.276207286 | AB15: 1.217023827e-14 | AC15: 2.760077442e-05 | AD15: 0.723737512 | AE15: 0.2762348873 | AI15: 0.1756631244 | AJ15: 0.5269893732 | AK15: 0.0878315622 | AL15: 0.03325461507 | AM15: 0.6 | AN15: -18.94916243 | AO15: -7.734329109 | AP15: -1.456426195 | AQ15: -0.01545433811 | AU15: -0.1284882796 | AV15: 5.99828897 | AW15: 0.6 | AX15: -13.91461084 | AY15: -4.559049217 | AZ15: -0.1404180079 | BA15: -0.5587178556 | BE15: -6.594695005 | BF15: -3.297347502 | BG15: -1.478138505 | BH15: 0.6 | BI15: -0.03495946954 | BJ15: 2.459283742 | BK15: -0.7237927135 | BL15: -2.473010627
O16: 0.8 | P16: 2.945703178 | Q16: 4.384541635e-19 | R16: 4.537640932e-08 | S16: 0.05429673107 | T16: 0.9457032236 | X16: 0.4728262337 | Y16: 7.285792693 | Z16: 2.671584097 | AA16: 2.189631425 | AB16: 3.621990409e-14 | AC16: 5.03812719e-05 | AD16: 0.8102678128 | AE16: 0.189681806 | AI16: 0.1908274355 | AJ16: 0.5724823065 | AK16: 0.09541371775 | AL16: 0.02397935361 | AM16: 0.8 | AN16: -18.35795695 | AO16: -7.343122334 | AP16: -1.265218125 | AQ16: -0.02424497365 | AU16: -0.3252963297 | AV16: 7.285792693 | AW16: 0.8 | AX16: -13.44096569 | AY16: -4.297703049 | AZ16: -0.09137082121 | BA16: -0.72196965 | BE16: -6.473380516 | BF16: -3.236690258 | BG16: -1.620152039 | BH16: 0.8 | BI16: -0.05429682182 | BJ16: 2.671584097 | BK16: -0.8103685753 | BL16: -2.427517694
O17: 1 | P17: 2.916594047 | Q17: 1.691789844e-18 | R17: 1.104720319e-07 | S17: 0.08340573214 | T17: 0.9165941574 | X17: 0.3034047464 | Y17: 8.215073279 | Z17: 2.883229976 | AA17: 2.125619721 | AB17: 1.035673603e-13 | AC17: 8.849095036e-05 | AD17: 0.874203297 | AE17: 0.1257082121 | AI17: 0.2059449983 | AJ17: 0.6178349949 | AK17: 0.1029724992 | AL17: 0.01652103556 | AM17: 1 | AN17: -17.77153853 | AO17: -6.95670262 | AP17: -1.078797117 | AQ17: -0.03782267052 | AU17: -0.5179742762 | AV17: 8.215073279 | AW17: 1 | AX17: -12.98469303 | AY17: -4.053074901 | AZ17: -0.05838718194 | BA17: -0.9006305198 | BE17: -6.352440014 | BF17: -3.176220007 | BG17: -1.781951197 | BH17: 1 | BI17: -0.08340595308 | BJ17: 2.883229976 | BK17: -0.8743802789 | BL17: -2.382165005
O18: 1.2 | P18: 2.873959003 | Q18: 6.421855381e-18 | R18: 2.645857494e-07 | S18: 0.1260404678 | T18: 0.8739592676 | X18: 0.198564158 | Y18: 8.852646874 | Z18: 3.094410642 | AA18: 2.081076962 | AB18: 2.87811392e-13 | AC18: 0.0001512179221 | AD18: 0.9186206017 | AE18: 0.08122818038 | AI18: 0.2210293316 | AJ18: 0.6630879947 | AK18: 0.1105146658 | AL18: 0.0109828336 | AM18: 1.2 | AN18: -17.19222818 | AO18: -6.577390968 | AP18: -0.8994841703 | AQ18: -0.05850842916 | AU18: -0.7020945961 | AV18: 8.852646874 | AW18: 1.2 | AX18: -12.54081083 | AY18: -3.820372001 | AZ18: -0.03686358033 | BA18: -1.090286217 | BE18: -6.231765347 | BF18: -3.115882674 | BG18: -1.959272912 | BH18: 1.2 | BI18: -0.126040997 | BJ18: 3.094410642 | BK18: -0.9189230375 | BL18: -2.336912005
O19: 1.4 | P19: 2.813953456 | Q19: 2.381053924e-17 | R19: 6.189779229e-07 | S19: 0.1860453057 | T19: 0.8139540754 | X19: 0.1347182572 | Y19: 9.2745252 | Z19: 3.30527868 | AA19: 2.051338271 | AB19: 7.844891891e-13 | AC19: 0.0002536379368 | AD19: 0.9481544534 | AE19: 0.05159190869 | AI19: 0.2360913343 | AJ19: 0.7082740028 | AK19: 0.1180456671 | AL19: 0.007124214459 | AM19: 1.4 | AN19: -16.62312315 | AO19: -6.208284648 | AP19: -0.7303765552 | AQ19: -0.08939951926 | AU19: -0.8705679082 | AV19: 9.2745252 | AW19: 1.4 | AX19: -12.10533467 | AY19: -3.595762509 | AZ19: -0.0231207611 | BA19: -1.28741007 | BE19: -6.111269326 | BF19: -3.055634663 | BG19: -2.147249114 | BH19: 1.4 | BI19: -0.1860465436 | BJ19: 3.30527868 | BK19: -0.9486617292 | BL19: -2.291725997
O20: 1.6 | P20: 2.734072532 | Q20: 8.548878259e-17 | R20: 1.40221646e-06 | S20: 0.2659246632 | T20: 0.7340739346 | X20: 0.09647580922 | Y20: 9.547219322 | Z20: 3.515944529 | AA20: 2.031979666 | AB20: 2.111284726e-12 | AC20: 0.0004202504671 | AD20: 0.9671798332 | AE20: 0.03239991633 | AI20: 0.251138895 | AJ20: 0.7534166849 | AK20: 0.1255694475 | AL20: 0.004558876574 | AM20: 1.6 | AN20: -16.06798684 | AO20: -5.853147046 | AP20: -0.5752376581 | AQ20: -0.1342593273 | AU20: -1.015574995 | AV20: 9.547219322 | AW20: 1.6 | AX20: -11.67537761 | AY20: -3.376469936 | AZ20: -0.01449267376 | BA20: -1.489446469 | BE20: -5.99088884 | BF20: -2.99544442 | BG20: -2.341127009 | BH20: 1.6 | BI20: -0.2659274676 | BJ20: 3.515944529 | BK20: -0.9680203341 | BL20: -2.246583315
O21: 1.8 | P21: 2.635261988 | Q21: 2.945264361e-16 | R21: 3.048107016e-06 | S21: 0.3647319156 | T21: 0.6352650363 | X21: 0.07336825078 | Y21: 9.721389825 | Z21: 3.726483798 | AA21: 2.019508127 | AB21: 5.635723656e-12 | AC21: 0.0006908310043 | AD21: 0.9791102109 | AE21: 0.02019895808 | AI21: 0.2661774141 | AJ21: 0.7985322423 | AK21: 0.1330887071 | AL21: 0.002914263042 | AM21: 1.8 | AN21: -15.53077517 | AO21: -5.515934079 | AP21: -0.4380233966 | AQ21: -0.197043771 | AU21: -1.13448449 | AV21: 9.721389825 | AW21: 1.8 | AX21: -11.24897748 | AY21: -3.160607718 | AZ21: -0.009168360897 | BA21: -1.694660061 | BE21: -5.870580687 | BF21: -2.935290344 | BG21: -2.535454837 | BH21: 1.8 | BI21: -0.3647380118 | BJ21: 3.726483798 | BK21: -0.9804918729 | BL21: -2.201467758
O22: 2 | P22: 2.523563563 | Q22: 9.663711991e-16 | R22: 6.310298544e-06 | S22: 0.4764238161 | T22: 0.5235698736 | X22: 0.05818033821 | Y22: 9.832768243 | Z22: 3.936947231 | AA22: 2.011403251 | AB22: 1.49647789e-11 | AC22: 0.001129871364 | AD22: 0.9863370062 | AE22: 0.01253312243 | AI22: 0.2812105165 | AJ22: 0.8436315495 | AK22: 0.1406052583 | AL22: 0.001898685548 | AM22: 2 | AN22: -15.01475882 | AO22: -5.199916429 | AP22: -0.3220044519 | AQ22: -0.2810235315 | AU22: -1.235215762 | AV22: 9.832768243 | AW22: 2 | AX22: -10.82485961 | AY22: -2.94695192 | AZ22: -0.005974633679 | BA22: -1.901928405 | BE22: -5.750315868 | BF22: -2.875157934 | BG22: -2.721529336 | BH22: 2 | BI22: -0.4764364367 | BJ22: 3.936947231 | BK22: -0.988596749 | BL22: -2.15636845
O23: 2.2 | P23: 2.409453119 | Q23: 3.008753866e-15 | R23: 1.239631461e-05 | S23: 0.590522088 | T23: 0.4094655157 | X23: 0.04642963278 | Y23: 9.90564075 | Z23: 4.147369551 | AA23: 2.005910412 | AB23: 3.960070219e-11 | AC23: 0.001841786408 | AD23: 0.9904060147 | AE23: 0.007752198835 | AI23: 0.2962406822 | AJ23: 0.8887220467 | AK23: 0.1481203411 | AL23: 0.001310364211 | AM23: 2.2 | AN23: -14.52151933 | AO23: -4.906675644 | AP23: -0.2287623723 | AQ23: -0.3877801572 | AU23: -1.33319612 | AV23: 9.90564075 | AW23: 2.2 | AX23: -10.40222977 | AY23: -2.734743032 | AZ23: -0.004186703749 | BA23: -2.110561433 | BE23: -5.630074542 | BF23: -2.815037271 | BG23: -2.882589315 | BH23: 2.2 | BI23: -0.5905468806 | BJ23: 4.147369551 | BK23: -0.9940895877 | BL23: -2.111277953
O24: 2.4 | P24: 2.304319163 | Q24: 8.902903332e-15 | R24: 2.314395553e-05 | S24: 0.6956345487 | T24: 0.3043423073 | X24: 0.03610774819 | Y24: 9.956512634 | Z24: 4.357776426 | AA24: 2.001788935 | AB24: 1.045469922e-10 | AC24: 0.002995304955 | AD24: 0.9922204552 | AE24: 0.004784239757 | AI24: 0.3112697447 | AJ24: 0.9338092341 | AK24: 0.1556348724 | AL24: 0.001024550287 | AM24: 2.4 | AN24: -14.05037738 | AO24: -4.635532403 | AP24: -0.1576178364 | AQ24: -0.5166343265 | AU24: -1.442390257 | AV24: 9.956512634 | AW24: 2.4 | AX24: -9.980623842 | AY24: -2.523542618 | AZ24: -0.003391802024 | BA24: -2.320172043 | BE24: -5.509842042 | BF24: -2.754921021 | BG24: -2.989447367 | BH24: 2.4 | BI24: -0.6956808367 | BJ24: 4.357776426 | BK24: -0.9982110654 | BL24: -2.066190766
O25: 2.6 | P25: 2.216278825 | Q25: 2.519221171e-14 | R25: 4.132113343e-05 | S25: 0.7836385324 | T25: 0.2163201464 | X25: 0.02692440918 | Y25: 9.997179995 | Z25: 4.568190023 | AA25: 1.998084743 | AB25: 2.755025956e-10 | AC25: 0.004862298313 | AD25: 0.9921906596 | AE25: 0.002947041809 | AI25: 0.3262992874 | AJ25: 0.9788978621 | AK25: 0.1631496437 | AL25: 0.0009782928368 | AM25: 2.6 | AN25: -13.59864566 | AO25: -4.383799394 | AP25: -0.1058835319 | AQ25: -0.6648987271 | AU25: -1.569843655 | AV25: 9.997179995 | AW25: 2.6 | AX25: -9.559812415 | AY25: -2.313143424 | AZ25: -0.003404843648 | BA25: -2.53059732 | BE25: -5.389605701 | BF25: -2.694802851 | BG25: -3.009511643 | BH25: 2.6 | BI25: -0.7837211747 | BJ25: 4.568190023 | BK25: -1.001915257 | BL25: -2.021102138
O26: 2.8 | P26: 2.148255121 | Q26: 6.876816931e-14 | R26: 7.116941425e-05 | S26: 0.8516025406 | T26: 0.14832629 | X26: 0.01922363489 | Y26: 10.03719048 | Z26: 4.77863392 | AA26: 1.99393301 | AB26: 7.247516809e-10 | AC26: 0.007878821112 | AD26: 0.9903093453 | AE26: 0.001811832908 | AI26: 0.3413309943 | AJ26: 1.023992983 | AK26: 0.1706654971 | AL26: 0.001160495344 | AM26: 2.8 | AN26: -13.16252732 | AO26: -4.147679756 | AP26: -0.06976259995 | AQ26: -0.8287765004 | AU26: -1.71615338 | AV26: 10.03719048 | AW26: 2.8 | AX26: -9.139751598 | AY26: -2.103525142 | AZ26: -0.004229095244 | BA26: -2.741864106 | BE26: -5.269352046 | BF26: -2.634676023 | BG26: -2.935337594 | BH26: 2.8 | BI26: -0.8517448794 | BJ26: 4.77863392 | BK26: -1.00606699 | BL26: -1.976007017
O27: 3 | P27: 2.098883402 | Q27: 1.827327851e-13 | R27: 0.0001193225159 | S27: 0.9008779534 | T27: 0.09900272409 | X27: 0.01323221952 | Y27: 10.08594962 | Z27: 4.989138153 | AA27: 1.988372118 | AB27: 1.902697252e-09 | AC27: 0.01273906243 | AD27: 0.9861497519 | AE27: 0.001111183803 | AI27: 0.3563670109 | AJ27: 1.069101033 | AK27: 0.1781835055 | AL27: 0.001609222575 | AM27: 3 | AN27: -12.73810106 | AO27: -3.923252199 | AP27: -0.04533374767 | AQ27: -1.004346353 | AU27: -1.878355142 | AV27: 10.08594962 | AW27: 3 | AX27: -8.720573852 | AY27: -1.894850267 | AZ27: -0.006057091007 | BA27: -2.954194972 | BE27: -5.149063912 | BF27: -2.574531956 | BG27: -2.793365799 | BH27: 3 | BI27: -0.9011165984 | BJ27: 4.989138153 | BK27: -1.011627882 | BL27: -1.930898967
O28: 3.2 | P28: 2.064634368 | Q28: 4.763757291e-13 | R28: 0.0001962707377 | S28: 0.934973091 | T28: 0.06483063829 | X28: 0.008864400733 | Y28: 10.15480396 | Z28: 5.19974506 | AA28: 1.980144329 | AB28: 4.981136649e-09 | AC28: 0.0205347455 | AD28: 0.9787861648 | AE28: 0.0006790847033 | AI28: 0.3714103614 | AJ28: 1.114231084 | AK28: 0.1857051807 | AL28: 0.002415564644 | AM28: 3.2 | AN28: -12.3219706 | AO28: -3.707120445 | AP28: -0.02920069913 | AQ28: -1.18821201 | AU28: -2.052337332 | AV28: 10.15480396 | AW28: 3.2 | AX28: -8.302617793 | AY28: -1.68749975 | AZ28: -0.009312117759 | BA28: -3.168055542 | BE28: -5.028717109 | BF28: -2.514358554 | BG28: -2.616964393 | BH28: 3.2 | BI28: -0.9353656324 | BJ28: 5.19974506 | BK28: -1.019855671 | BL28: -1.885768916
O29: 3.4 | P29: 2.041584445 | Q29: 1.225788331e-12 | R29: 0.0003186554943 | S29: 0.9577782445 | T29: 0.04190310003 | X29: 0.005834736463 | Y29: 10.25942792 | Z29: 5.410516065 | AA29: 1.967464188 | AB29: 1.298514452e-08 | AC29: 0.0329485761 | AD29: 0.9666386208 | AE29: 0.0004127900909 | AI29: 0.3864654332 | AJ29: 1.1593963 | AK29: 0.1932327166 | AL29: 0.003730481275 | AM29: 3.4 | AN29: -11.9115074 | AO29: -3.496655952 | AP29: -0.01873491071 | AQ29: -1.377744927 | AU29: -2.233964292 | AV29: 10.25942792 | AW29: 3.4 | AX29: -7.886502155 | AY29: -1.482153754 | AZ29: -0.01473576176 | BA29: -3.384248827 | BE29: -4.908276534 | BF29: -2.454138267 | BG29: -2.428219415 | BH29: 3.4 | BI29: -0.9584155555 | BJ29: 5.410516065 | BK29: -1.032535812 | BL29: -1.8406037
O30: 3.6 | P30: 2.026336392 | Q30: 3.126811413e-12 | R30: 0.0005128703787 | S30: 0.9726378672 | T30: 0.02684926241 | X30: 0.003810357194 | Y30: 10.42273882 | Z30: 5.621538207 | AA30: 1.947760167 | AB30: 3.362770943e-08 | AC30: 0.05248860222 | AD30: 0.9472625281 | AE30: 0.0002488360717 | AI30: 0.4015384433 | AJ30: 1.20461533 | AK30: 0.2007692217 | AL30: 0.005764541425 | AM30: 3.6 | AN30: -11.50482383 | AO30: -3.289971084 | AP30: -0.01204874827 | AQ30: -1.57105747 | AU30: -2.41901865 | AV30: 10.42273882 | AW30: 3.6 | AX30: -7.473254332 | AY30: -1.279926706 | AZ30: -0.0235294899 | BA30: -3.604063331 | BE30: -4.787692453 | BF30: -2.393846227 | BG30: -2.239220739 | BH30: 3.6 | BI30: -0.973663608 | BJ30: 5.621538207 | BK30: -1.052239833 | BL30: -1.79538467
O31: 3.8 | P31: 2.016284364 | Q31: 7.930394745e-12 | R31: 0.0008207308038 | S31: 0.9820741747 | T31: 0.01710509444 | X31: 0.002500184671 | Y31: 10.67815734 | Z31: 5.832925811 | AA31: 1.917462235 | AB31: 8.61886658e-08 | AC31: 0.0826856748 | AD31: 0.9171661566 | AE31: 0.0001480823833 | AI31: 0.4166375579 | AJ31: 1.249912674 | AK31: 0.208318779 | AL31: 0.008756717466 | AM31: 3.8 | AN31: -11.10063333 | AO31: -3.085779289 | AP31: -0.007855658436 | AQ31: -1.766863085 | AU31: -2.602011066 | AV31: 10.67815734 | AW31: 3.8 | AX31: -7.064504106 | AY31: -1.082562716 | AZ31: -0.03755173598 | BA31: -3.829471812 | BE31: -4.666899536 | BF31: -2.333449768 | BG31: -2.057645341 | BH31: 3.8 | BI31: -0.9837156364 | BJ31: 5.832925811 | BK31: -1.082537765 | BL31: -1.750087326
O32: 4 | P32: 2.0095475 | Q32: 2.003711683e-11 | R32: 0.001308401878 | S32: 0.9878356964 | T32: 0.01085590168 | X32: 0.00168458503 | Y32: 11.07177505 | Z32: 6.044806516 | AA32: 1.872053521 | AB32: 2.173805609e-07 | AC32: 0.1280324682 | AD32: 0.8718808909 | AE32: 8.642349581e-05 | AI32: 0.431771894 | AJ32: 1.295315682 | AK32: 0.215885947 | AL32: 0.01286840541 | AM32: 4 | AN32: -10.69809551 | AO32: -2.883240175 | AP32: -0.005315249819 | AQ32: -1.964321381 | AU32: -2.773489107 | AV32: 11.07177505 | AW32: 4 | AX32: -6.66273616 | AY32: -0.8926741029 | AZ32: -0.05954245521 | BA32: -4.063341864 | BE32: -4.545824848 | BF32: -2.272912424 | BG32: -1.890463026 | BH32: 4 | BI32: -0.9904525002 | BJ32: 6.044806516 | BK32: -1.127946479 | BL32: -1.704684318
O33: 4.2 | P33: 2.004791463 | Q33: 5.049461572e-11 | R33: 0.002080419902 | S33: 0.9910476973 | T33: 0.006871882775 | X33: 0.001213917923 | Y33: 11.65903527 | Z33: 6.257274861 | AA33: 1.806825204 | AB33: 5.350904469e-07 | AC33: 0.1932227528 | AD33: 0.8067276853 | AE33: 4.90267705e-05 | AI33: 0.4469482043 | AJ33: 1.340844613 | AK33: 0.2234741022 | AL33: 0.01795706034 | AM33: 4.2 | AN33: -10.29668827 | AO33: -2.681831638 | AP33: -0.003905417947 | AQ33: -2.162910255 | AU33: -2.915791799 | AV33: 11.65903527 | AW33: 4.2 | AX33: -6.2715322 | AY33: -0.7139371129 | AZ33: -0.0932724348 | BA33: -4.309538814 | BE33: -4.424414365 | BF33: -2.212207183 | BG33: -1.745753456 | BH33: 4.2 | BI33: -0.9952085372 | BJ33: 6.257274861 | BK33: -1.193174796 | BL33: -1.659155387
O34: 4.4 | P34: 2.001039993 | Q34: 1.270042834e-10 | R34: 0.003301598791 | S34: 0.9923568088 | T34: 0.004341592312 | X34: 0.0009971204794 | Y34: 12.48750729 | Z34: 6.470307321 | AA34: 1.71885232 | AB34: 1.271666655e-06 | AC34: 0.281171884 | AD34: 0.7188000969 | AE34: 2.674742581e-05 | AI34: 0.4621648086 | AJ34: 1.386494426 | AK34: 0.2310824043 | AL34: 0.02327573143 | AM34: 4.4 | AN34: -9.896117564 | AO34: -2.481259639 | AP34: -0.003332124602 | AQ34: -2.362335667 | AU34: -3.001232934 | AV34: 12.48750729 | AW34: 4.4 | AX34: -5.895588548 | AY34: -0.5510245417 | AZ34: -0.1433909447 | BA34: -4.572688405 | BE34: -4.302681531 | BF34: -2.151340765 | BG34: -1.63308609 | BH34: 4.4 | BI34: -0.9989600067 | BJ34: 6.470307321 | BK34: -1.28114768 | BL34: -1.613505574
O35: 4.6 | P35: 1.997507497 | Q35: 3.189154609e-10 | R35: 0.005230961246 | S35: 0.9920305794 | T35: 0.002738459013 | X35: 0.0009908063824 | Y35: 13.56029251 | Z35: 6.683685244 | AA35: 1.610010874 | AB35: 2.882974874e-06 | AC35: 0.3899972474 | AD35: 0.6099859824 | AE35: 1.388723538e-05 | AI35: 0.4774060888 | AJ35: 1.432218267 | AK35: 0.2387030444 | AL35: 0.02739376658 | AM35: 4.6 | AN35: -9.496262947 | AO35: -2.281403728 | AP35: -0.003474917981 | AQ35: -2.562477165 | AU35: -3.003991757 | AV35: 13.56029251 | AW35: 4.6 | AX35: -5.540123276 | AY35: -0.4089358107 | AZ35: -0.2146787552 | BA35: -4.857352757 | BE35: -4.180751289 | BF35: -2.090375645 | BG35: -1.562338135 | BH35: 4.6 | BI35: -1.002492503 | BJ35: 6.683685244 | BK35: -1.389989126 | BL35: -1.567781733
O36: 4.8 | P36: 1.993450753 | Q36: 7.994414069e-10 | R36: 0.008273562786 | S36: 0.9900021186 | T36: 0.001724317793 | X36: 0.001192811447 | Y36: 14.79919435 | Z36: 6.897030459 | AA36: 1.489015564 | AB36: 6.173443794e-06 | AC36: 0.5109789006 | AD36: 0.4890081141 | AE36: 6.811876912e-06 | AI36: 0.4926450328 | AJ36: 1.477935098 | AK36: 0.2463225164 | AL36: 0.02877220612 | AM36: 4.8 | AN36: -9.097154466 | AO36: -2.082293952 | AP36: -0.004363847752 | AQ36: -2.7633648 | AU36: -2.923409275 | AV36: 14.79919435 | AW36: 4.8 | AX36: -5.209438775 | AY36: -0.2915951446 | AZ36: -0.3106819233 | BA36: -5.166699759 | BE36: -4.058839738 | BF36: -2.029419869 | BG36: -1.541016861 | BH36: 4.8 | BI36: -1.006549247 | BJ36: 6.897030459 | BK36: -1.510984436 | BL36: -1.522064902
O37: 5 | P37: 1.98802558 | Q37: 1.999701667e-09 | R37: 0.01305783381 | S37: 0.9858587466 | T37: 0.001083417583 | X37: 0.001641038355 | Y37: 16.05457621 | Z37: 7.109980469 | AA37: 1.369506204 | AB37: 1.24377091e-05 | AC37: 0.6304720734 | AD37: 0.3695123366 | AE37: 3.152315368e-06 | AI37: 0.5078557478 | AJ37: 1.523567243 | AK37: 0.2539278739 | AL37: 0.02682619431 | AM37: 5 | AN37: -8.698978474 | AO37: -1.884116665 | AP37: -0.006185266073 | AQ37: -2.965184924 | AU37: -2.784863239 | AV37: 16.05457621 | AW37: 5 | AX37: -4.905227848 | AY37: -0.2003328487 | AZ37: -0.4323682584 | BA37: -5.501334725 | BE37: -3.937154018 | BF37: -1.968577009 | BG37: -1.57143076 | BH37: 5 | BI37: -1.01197442 | BJ37: 7.109980469 | BK37: -1.630493796 | BL37: -1.476432757
O38: 5.2 | P38: 1.980132104 | Q38: 4.98693001e-09 | R38: 0.02054656382 | S38: 0.9787747529 | T38: 0.0006786782699 | X38: 0.002416811677 | Y38: 17.17392253 | Z38: 7.322349098 | AA38: 1.264361163 | AB38: 2.366359338e-05 | AC38: 0.7355928926 | AD38: 0.2643820607 | AE38: 1.383133406e-06 | AI38: 0.5230249356 | AJ38: 1.569074807 | AK38: 0.2615124678 | AL38: 0.02239636126 | AM38: 5.2 | AN38: -8.302112979 | AO38: -1.687249875 | AP38: -0.009317181296 | AQ38: -3.168315544 | AU38: -2.616740249 | AV38: 17.17392253 | AW38: 5.2 | AX38: -4.625889358 | AY38: -0.1333616122 | AZ38: -0.5777642763 | BA38: -5.859097997 | BE38: -3.815800515 | BF38: -1.907900258 | BG38: -1.649811855 | BH38: 5.2 | BI38: -1.019867896 | BJ38: 7.322349098 | BK38: -1.735638837 | BL38: -1.430925193
O39: 5.4 | P39: 1.968237831 | Q39: 1.238091447e-08 | R39: 0.0321853808 | S39: 0.96739137 | T39: 0.000423236773 | X39: 0.003649824439 | Y39: 18.06846906 | Z39: 7.534138681 | AA39: 1.180749153 | AB39: 4.291453962e-05 | AC39: 0.8191655984 | AD39: 0.1807909062 | AE39: 5.80789942e-07 | AI39: 0.5381527629 | AJ39: 1.614458289 | AK39: 0.2690763815 | AL39: 0.01705943954 | AM39: 5.4 | AN39: -7.907196085 | AO39: -1.492331687 | AP39: -0.01439769799 | AQ39: -3.373394766 | AU39: -2.437712243 | AV39: 18.06846906 | AW39: 5.4 | AX39: -4.367367268 | AY39: -0.08662773373 | AZ39: -0.7428186092 | BA39: -6.235940542 | BE39: -3.694777897 | BF39: -1.847388948 | BG39: -1.768023795 | BH39: 5.4 | BI39: -1.031762169 | BJ39: 7.534138681 | BK39: -1.819250847 | BL39: -1.385541711
O40: 5.6 | P40: 1.95018655 | Q40: 3.052950082e-08 | R40: 0.05007553888 | S40: 0.9496622803 | T40: 0.0002621503092 | X40: 0.005517122868 | Y40: 18.72548406 | Z40: 7.745454677 | AA40: 1.119380189 | AB40: 7.503489871e-05 | AC40: 0.8804699771 | AD40: 0.1194547521 | AE40: 2.359010858e-07 | AI40: 0.5532467627 | AJ40: 1.659740288 | AK40: 0.2766233813 | AL40: 0.01212248664 | AM40: 5.6 | AN40: -7.515231643 | AO40: -1.30036595 | AP40: -0.02243066622 | AQ40: -3.58142644 | AU40: -2.258272724 | AV40: 18.72548406 | AW40: 5.6 | AX40: -4.124709996 | AY40: -0.05528509042 | AZ40: -0.9227905944 | BA40: -6.627227155 | BE40: -3.574025899 | BF40: -1.787012949 | BG40: -1.916395879 | BH40: 5.6 | BI40: -1.04981345 | BJ40: 7.745454677 | BK40: -1.880619811 | BL40: -1.340259712
O41: 5.8 | P41: 1.923047286 | Q41: 7.45114888e-08 | R41: 0.07711327879 | S41: 0.9227259326 | T41: 0.0001607140746 | X41: 0.008219509333 | Y41: 19.17987486 | Z41: 7.956424946 | AA41: 1.076900077 | AB41: 0.0001278343226 | AC41: 0.9228443478 | AD41: 0.07702772431 | AE41: 9.358436692e-08 | AI41: 0.5683160676 | AJ41: 1.704948203 | AK41: 0.2841580338 | AL41: 0.008204843104 | AM41: 5.8 | AN41: -7.127730614 | AO41: -1.112863626 | AP41: -0.03492704753 | AQ41: -3.793921526 | AU41: -2.085140608 | AV41: 19.17987486 | AW41: 5.8 | AX41: -3.89332732 | AY41: -0.03487131764 | AZ41: -1.113345725 | BA41: -7.028751189 | BE41: -3.453471459 | BF41: -1.72673573 | BG41: -2.085916215 | BH41: 5.8 | BI41: -1.076952714 | BJ41: 7.956424946 | BK41: -1.923099923 | BL41: -1.295051797
O42: 6 | P42: 1.883148173 | Q42: 1.790971743e-07 | R42: 0.1169485017 | S42: 0.8829542862 | T42: 9.703298793e-05 | X42: 0.01190648533 | Y42: 19.4818174 | Z42: 8.167159479 | AA42: 1.048643653 | AB42: 0.0002139938868 | AC42: 0.9509283961 | AD42: 0.04885757351 | AE42: 3.653874283e-08 | AI42: 0.5833685342 | AJ42: 1.750105603 | AK42: 0.2916842671 | AL42: 0.005381584354 | AM42: 6 | AN42: -6.746867587 | AO42: -0.9319993041 | AP42: -0.05406143086 | AQ42: -4.013054615 | AU42: -1.924203961 | AV42: 19.4818174 | AW42: 6 | AX42: -3.669574876 | AY42: -0.02185204229 | AZ42: -1.311059618 | BA42: -7.437198251 | BE42: -3.333051726 | BF42: -1.666525863 | BG42: -2.269075158 | BH42: 6 | BI42: -1.116851827 | BJ42: 8.167159479 | BK42: -1.951356347 | BL42: -1.249894397
O43: 6.2 | P43: 1.826566538 | Q43: 4.210836049e-07 | R43: 0.1734899255 | S43: 0.8264523475 | T43: 5.730585589e-05 | X43: 0.01651957816 | Y43: 19.67773418 | Z43: 8.37774006 | AA43: 1.030302402 | AB43: 0.0003541221919 | AC43: 0.9689893681 | AD43: 0.03065649563 | AE43: 1.411768977e-08 | AI43: 0.5984100043 | AJ43: 1.795230013 | AK43: 0.2992050021 | AL43: 0.003471633907 | AM43: 6.2 | AN43: -6.375590392 | AO43: -0.7607208144 | AP43: -0.08278164646 | AQ43: -4.241773535 | AU43: -1.78198951 | AV43: 19.67773418 | AW43: 6.2 | AX43: -3.450824516 | AY43: -0.01368089951 | AZ43: -1.513467693 | BA43: -7.850185543 | BE43: -3.212719966 | BF43: -1.606359983 | BG43: -2.459450156 | BH43: 6.2 | BI43: -1.173433462 | BJ43: 8.37774006 | BK43: -1.969697598 | BL43: -1.204769987
O44: 6.4 | P44: 1.75039419 | Q44: 9.602902818e-07 | R44: 0.2496367168 | S44: 0.7503294958 | T44: 3.28271519e-05 | X44: 0.02157319282 | Y44: 19.80371252 | Z44: 8.588223243 | AA44: 1.018520664 | AB44: 0.0005816790172 | AC44: 0.9803159832 | AD44: 0.01910233239 | AE44: 5.41806662e-09 | AI44: 0.6134445173 | AJ44: 1.840333552 | AK44: 0.3067222587 | AL44: 0.002238232734 | AM44: 6.4 | AN44: -6.017558508 | AO44: -0.6026876361 | AP44: -0.1247471733 | AQ44: -4.483737767 | AU44: -1.666074789 | AV44: 19.80371252 | AW44: 6.4 | AX44: -3.235295657 | AY44: -0.008633860627 | AZ44: -1.718902474 | BA44: -8.266102144 | BE44: -3.092443861 | BF44: -1.546221931 | BG44: -2.6500776 | BH44: 6.4 | BI44: -1.24960581 | BJ44: 8.588223243 | BK44: -1.981479336 | BL44: -1.159666448
O45: 6.6 | P45: 1.654771735 | Q45: 2.104834037e-06 | R45: 0.3452421292 | S45: 0.6547376922 | T45: 1.807376075e-05 | X45: 0.02603014703 | Y45: 19.88554013 | Z45: 8.7986469 | AA45: 1.010898623 | AB45: 0.0009509242259 | AC45: 0.9871995308 | AD45: 0.0118495429 | AE45: 2.070312401e-09 | AI45: 0.6284747786 | AJ45: 1.885424336 | AK45: 0.3142373893 | AL45: 0.0014787071 | AM45: 6.6 | AN45: -5.676745391 | AO45: -0.4618732235 | AP45: -0.1839314659 | AQ45: -4.742920765 | AU45: -1.584513121 | AV45: 19.88554013 | AW45: 6.6 | AX45: -3.021834525 | AY45: -0.005595023499 | AZ45: -1.926285932 | BA45: -8.683907897 | BE45: -2.972201772 | BF45: -1.486100886 | BG45: -2.83009952 | BH45: 6.6 | BI45: -1.345228265 | BJ45: 8.7986469 | BK45: -1.989101377 | BL45: -1.114575664
O46: 6.8 | P46: 1.544754884 | Q46: 4.398858841e-06 | R46: 0.4552458065 | S46: 0.5447403067 | T46: 9.487913064e-06 | X46: 0.02855574631 | Y46: 19.94107383 | Z46: 9.009036466 | AA46: 1.005779085 | AB46: 0.001549734891 | AC46: 0.9911214458 | AD46: 0.007328818472 | AE46: 7.888214011e-10 | AI46: 0.6435026047 | AJ46: 1.930507814 | AK46: 0.3217513023 | AL46: 0.001048634228 | AM46: 6.8 | AN46: -5.356625295 | AO46: -0.3417518335 | AP46: -0.2638087811 | AQ46: -5.022796786 | AU46: -1.544296487 | AV46: 19.94107383 | AW46: 6.8 | AX46: -2.809724399 | AY46: -0.003873101439 | AZ46: -2.134952214 | BA46: -9.102962382 | BE46: -2.851979162 | BF46: -1.425989581 | BG46: -2.979356682 | BH46: 6.8 | BI46: -1.455245116 | BJ46: 9.009036466 | BK46: -1.994220915 | BL46: -1.069492186
O47: 7 | P47: 1.430192456 | Q47: 8.725946951e-06 | R47: 0.5697948199 | S47: 0.4301917265 | T47: 4.727627382e-06 | X47: 0.02822514984 | Y47: 19.98292472 | Z47: 9.2194099 | AA47: 1.002003194 | AB47: 0.002520195074 | AC47: 0.9929564166 | AD47: 0.004523388021 | AE47: 2.999405125e-10 | AI47: 0.6585292786 | AJ47: 1.975587836 | AK47: 0.3292646393 | AL47: 0.0008596316461 | AM47: 7 | AN47: -5.059154678 | AO47: -0.2442799218 | AP47: -0.3663355746 | AQ47: -5.325322284 | AU47: -1.549353713 | AV47: 19.98292472 | AW47: 7 | AX47: -2.598549019 | AY47: -0.003069793507 | AZ47: -2.344520978 | BA47: -9.522903219 | BE47: -2.731765771 | BF47: -1.365882886 | BG47: -3.065667758 | BH47: 7 | BI47: -1.569807544 | BJ47: 9.2194099 | BK47: -1.997996806 | BL47: -1.024412164
O48: 7.2 | P48: 1.322644601 | Q48: 1.64395915e-05 | R48: 0.6773247573 | S48: 0.3226565658 | T48: 2.237286967e-06 | X48: 0.0251660496 | Y48: 20.02083247 | Z48: 9.429781521 | AA48: 0.9986957197 | AB48: 0.004091456318 | AC48: 0.9931213678 | AD48: 0.002787175798 | AE48: 1.138581248e-10 | AI48: 0.6735558229 | AJ48: 2.020667469 | AK48: 0.3367779115 | AL48: 0.0008715451397 | AM48: 7.2 | AN48: -4.784078006 | AO48: -0.1692019545 | AP48: -0.4912563125 | AQ48: -5.650241727 | AU48: -1.599174599 | AV48: 20.02083247 | AW48: 7.2 | AX48: -2.388106621 | AY48: -0.002997654422 | AZ48: -2.554819098 | BA48: -9.943571598 | BE48: -2.611553417 | BF48: -1.305776708 | BG48: -3.059690306 | BH48: 7.2 | BI48: -1.677355399 | BJ48: 9.429781521 | BK48: -2.00130428 | BL48: -0.9793325312
O49: 7.4 | P49: 1.231070889 | Q49: 2.957655144e-05 | R49: 0.768870969 | S49: 0.2310984434 | T49: 1.011062973e-06 | X49: 0.02046387387 | Y49: 20.06373116 | Z49: 9.640165182 | AA49: 0.9950828881 | AB49: 0.006631615981 | AC49: 0.99165388 | AD49: 0.001714503951 | AE49: 4.314738636e-11 | AI49: 0.6885832273 | AJ49: 2.065749682 | AK49: 0.3442916137 | AL49: 0.001087645454 | AM49: 7.4 | AN49: -4.529023144 | AO49: -0.1141457979 | AP49: -0.6361988611 | AQ49: -5.995182981 | AU49: -1.689001215 | AV49: 20.06373116 | AW49: 7.4 | AX49: -2.178366528 | AY49: -0.00363986096 | AZ49: -2.765843604 | BA49: -10.3649784 | BE49: -2.491334182 | BF49: -1.245667091 | BG49: -2.963493465 | BH49: 7.4 | BI49: -1.768929111 | BJ49: 9.640165182 | BK49: -2.004917112 | BL49: -0.9342503181
O50: 7.6 | P50: 1.159355164 | Q50: 5.124528308e-05 | R50: 0.8405427853 | S50: 0.1594055293 | T50: 4.400323111e-07 | X50: 0.01543609699 | Y50: 20.12175506 | Z50: 9.850577309 | AA50: 0.9903243464 | AB50: 0.01072814754 | AC50: 0.9882193585 | AD50: 0.001052493944 | AE50: 1.631636765e-11 | AI50: 0.7036126649 | AJ50: 2.110837995 | AK50: 0.3518063325 | AL50: 0.00155581547 | AM50: 7.6 | AN50: -4.290318328 | AO50: -0.07543968679 | AP50: -0.7974914552 | AQ50: -6.356474281 | AU50: -1.811450774 | AV50: 20.12175506 | AW50: 7.6 | AX50: -1.969462512 | AY50: -0.00514660953 | AZ50: -2.977761116 | BA50: -10.78730668 | BE50: -2.371098681 | BF50: -1.18554934 | BG50: -2.808023735 | BH50: 7.6 | BI50: -1.840644836 | BJ50: 9.850577309 | BK50: -2.009675654 | BL50: -0.8891620053
O51: 7.8 | P51: 1.106775371 | Q51: 8.629207879e-05 | R51: 0.8930522308 | S51: 0.106861291 | T51: 1.861236678e-07 | X51: 0.01100228454 | Y51: 20.20853606 | Z51: 10.06104025 | AA51: 0.9833354369 | AB51: 0.0173087852 | AC51: 0.9820469927 | AD51: 0.0006442220423 | AE51: 6.151436131e-12 | AI51: 0.7186457319 | AJ51: 2.155937196 | AK51: 0.359322866 | AL51: 0.00237636854 | AM51: 7.8 | AN51: -4.064002758 | AO51: -0.04912282233 | AP51: -0.971173296 | AQ51: -6.730154826 | AU51: -1.958504448 | AV51: 20.20853606 | AW51: 7.8 | AX51: -1.761722006 | AY51: -0.007867678994 | AZ51: -3.190943761 | BA51: -11.2109509 | BE51: -2.250834145 | BF51: -1.125417072 | BG51: -2.624069217 | BH51: 7.8 | BI51: -1.893224629 | BJ51: 10.06104025 | BK51: -2.016664563 | BL51: -0.8440628043
O52: 8 | P52: 1.07004718 | Q52: 0.0001423711609 | R52: 0.9296681547 | S52: 0.07018939704 | T52: 7.713521552e-08 | X52: 0.007535430192 | Y52: 20.34421444 | Z52: 10.27158619 | AA52: 0.9725791581 | AB52: 0.02781342498 | AC52: 0.9717939919 | AD52: 0.0003925830786 | AE52: 2.308482421e-12 | AI52: 0.7336847279 | AJ52: 2.201054184 | AK52: 0.3668423639 | AL52: 0.003715191685 | AM52: 8 | AN52: -3.846553071 | AO52: -0.03167184029 | AP52: -1.153721019 | AQ52: -7.112701255 | AU52: -2.122878205 | AV52: 20.34421444 | AW52: 8 | AX52: -1.555735456 | AY52: -0.01242570982 | AZ52: -3.406046373 | BA52: -11.63659809 | BE52: -2.130522177 | BF52: -1.065261088 | BG52: -2.430003042 | BH52: 8 | BI52: -1.92995282 | BJ52: 10.27158619 | BK52: -2.027420842 | BL52: -0.7989458164
O53: 8.2 | P53: 1.045228724 | Q53: 0.0002316235234 | R53: 0.9543080605 | S53: 0.04546028447 | T53: 3.152196879e-08 | X53: 0.00502972974 | Y53: 20.55962799 | Z53: 10.48226136 | AA53: 0.9558238601 | AB53: 0.04441373861 | AC53: 0.9553486627 | AD53: 0.0002375987198 | AE53: 8.601296554e-13 | AI53: 0.7487329543 | AJ53: 2.246198863 | AK53: 0.3743664772 | AL53: 0.005816559778 | AM53: 8.2 | AN53: -3.635193802 | AO53: -0.02031127643 | AP53: -1.34235916 | AQ53: -7.501338101 | AU53: -2.29844047 | AV53: 20.55962799 | AW53: 8.2 | AX53: -1.352473912 | AY53: -0.01983797157 | AZ53: -3.624132441 | BA53: -12.06535797 | BE53: -2.010136365 | BF53: -1.005068183 | BG53: -2.235319333 | BH53: 8.2 | BI53: -1.954771276 | BJ53: 10.48226136 | BK53: -2.04417614 | BL53: -0.753801137
O54: 8.4 | P54: 1.028795624 | Q54: 0.0003733109352 | R54: 0.9704577665 | S54: 0.02916890977 | T54: 1.276148995e-08 | X54: 0.003313200453 | Y54: 20.90204921 | Z54: 10.69312861 | AA54: 0.9299109084 | AB54: 0.07023136488 | AC54: 0.9296263618 | AD54: 0.0001422732923 | AE54: 3.169392026e-13 | AI54: 0.7637949004 | AJ54: 2.291384701 | AK54: 0.3818974502 | AL54: 0.008999952784 | AM54: 8.4 | AN54: -3.427907096 | AO54: -0.01302327566 | AP54: -1.535069865 | AQ54: -7.894047511 | AU54: -2.479736234 | AV54: 20.90204921 | AW54: 8.4 | AX54: -1.153461424 | AY54: -0.03169136413 | AZ54: -3.846851714 | BA54: -12.49894312 | BE54: -1.889640796 | BF54: -0.9448203982 | BG54: -2.045746525 | BH54: 8.4 | BI54: -1.971204376 | BJ54: 10.69312861 | BK54: -2.070089092 | BL54: -0.7086152987
O55: 8.6 | P55: 1.018002549 | Q55: 0.0005979642298 | R55: 0.9808015276 | S55: 0.01860050308 | T55: 5.134591248e-09 | X55: 0.002184826278 | Y55: 21.44228573 | Z55: 10.90426337 | AA55: 0.8906878667 | AB55: 0.1093959487 | AC55: 0.8905202359 | AD55: 8.381542954e-05 | AE55: 1.148264098e-13 | AI55: 0.7788759553 | AJ55: 2.336627866 | AK55: 0.3894379777 | AL55: 0.01360828259 | AM55: 8.6 | AN55: -3.223303927 | AO55: -0.008418811927 | AP55: -1.730464106 | AQ55: -8.289440458 | AU55: -2.660565865 | AV55: 21.44228573 | AW55: 8.6 | AX55: -0.9609925396 | AY55: -0.05035588133 | AZ55: -4.076649633 | BA55: -12.93987444 | BE55: -1.768992357 | BF55: -0.8844961787 | BG55: -1.866184599 | BH55: 8.6 | BI55: -1.981997451 | BJ55: 10.90426337 | BK55: -2.109312133 | BL55: -0.663372134
O56: 8.8 | P56: 1.010859162 | Q56: 0.000953923905 | R56: 0.9872329921 | S56: 0.01181308197 | T56: 2.0575216e-09 | X56: 0.001475011758 | Y56: 22.28144268 | Z56: 11.11573345 | AA56: 0.8334543037 | AB56: 0.1665938957 | AC56: 0.8333579049 | AD56: 4.819940346e-05 | AE56: 4.057788396e-14 | AI56: 0.7939809609 | AJ56: 2.381942883 | AK56: 0.3969904805 | AL56: 0.01986440543 | AM56: 8.8 | AN56: -3.020466713 | AO56: -0.005580303373 | AP56: -1.927624303 | AQ56: -8.68659936 | AU56: -2.831186188 | AV56: 22.28144268 | AW56: 8.8 | AX56: -0.778335877 | AY56: -0.07916792815 | AZ56: -4.316930389 | BA56: -13.39162391 | BE56: -1.648152313 | BF56: -0.8240761563 | BG56: -1.701913411 | BH56: 8.8 | BI56: -1.989140838 | BJ56: 11.11573345 | BK56: -2.166545696 | BL56: -0.6180571172
O57: 9 | P57: 1.005964359 | Q57: 0.001517636935 | R57: 0.9910003679 | S57: 0.007481994295 | T57: 8.222399206e-10 | X57: 0.001061699801 | Y57: 23.55372362 | Z57: 11.32755316 | AA57: 0.7544246038 | AB57: 0.2456021864 | AC57: 0.7543710234 | AD57: 2.679016548e-05 | AE57: 1.384852193e-14 | AI57: 0.8091109399 | AJ57: 2.42733282 | AK57: 0.40455547 | AL57: 0.0276426176 | AM57: 9 | AN57: -2.818813863 | AO57: -0.003926158848 | AP57: -2.125968864 | AQ57: -9.084942625 | AU57: -2.97397901 | AV57: 23.55372362 | AW57: 9 | AX57: -0.6097638237 | AY57: -0.1224142094 | AZ57: -4.571995004 | BA57: -13.85850686 | BE57: -1.527112481 | BF57: -0.7635562403 | BG57: -1.558410745 | BH57: 9 | BI57: -1.994035641 | BJ57: 11.32755316 | BK57: -2.245575396 | BL57: -0.5726671802
O58: 9.2 | P58: 1.002319874 | Q58: 0.002409807269 | R58: 0.992860512 | S58: 0.004729680403 | T58: 3.279540368e-10 | X58: 0.0008683667118 | Y58: 25.42594758 | Z58: 11.53962406 | AA58: 0.6533833485 | AB58: 0.3466308901 | AC58: 0.6533548713 | AD58: 1.423864405e-05 | AE58: 4.516746967e-15 | AI58: 0.8242588612 | AJ58: 2.472776584 | AK58: 0.4121294306 | AL58: 0.03635406027 | AM58: 9.2 | AN58: -2.618000741 | AO58: -0.003111741554 | AP58: -2.325153152 | AQ58: -9.484125619 | AU58: -3.061277014 | AV58: 25.42594758 | AW58: 9.2 | AX58: -0.4601297587 | AY58: -0.1848496698 | AZ58: -4.84649999 | BA58: -14.34508137 | BE58: -1.40592911 | BF58: -0.7029645551 | BG58: -1.439437758 | BH58: 9.2 | BI58: -1.997680126 | BJ58: 11.53962406 | BK58: -2.346616651 | BL58: -0.5272234163
O59: 9.4 | P59: 0.9991646591 | Q59: 0.003820570748 | R59: 0.9931941996 | S59: 0.002985229547 | T59: 1.306047335e-10 | X59: 0.0008579865873 | Y59: 28.12249205 | Z59: 11.75171817 | AA59: 0.5363202628 | AB59: 0.4636869092 | AC59: 0.5363059189 | AD59: 7.171961899e-06 | AE59: 1.396050042e-15 | AI59: 0.839408441 | AJ59: 2.518225323 | AK59: 0.4197042205 | AL59: 0.04537998851 | AM59: 9.4 | AN59: -2.417856101 | AO59: -0.002965806264 | AP59: -2.525005922 | AQ59: -9.883977094 | AU59: -3.066499649 | AV59: 28.12249205 | AW59: 9.4 | AX59: -0.3337730041 | AY59: -0.2705856582 | AZ59: -5.144328722 | BA59: -14.85500284 | BE59: -1.284732472 | BF59: -0.6423662362 | BG59: -1.343126923 | BH59: 9.4 | BI59: -2.000835341 | BJ59: 11.75171817 | BK59: -2.463679737 | BL59: -0.4817746771
O60: 9.6 | P60: 0.995833077 | Q60: 0.006048344106 | R60: 0.9920702349 | S60: 0.001881420954 | T60: 5.193584025e-11 | X60: 0.001029052163 | Y60: 32.06528099 | Z60: 11.96355437 | AA60: 0.4152621974 | AB60: 0.5847412122 | AC60: 0.4152553782 | AD60: 3.409608044e-06 | AE60: 4.075034374e-16 | AI60: 0.8545395976 | AJ60: 2.563618793 | AK60: 0.4272697988 | AL60: 0.05523328549 | AM60: 9.6 | AN60: -2.218349147 | AO60: -0.003457557937 | AP60: -2.725496378 | AQ60: -10.28446626 | AU60: -2.987543269 | AV60: 32.06528099 | AW60: 9.6 | AX60: -0.2330347876 | AY60: -0.381682263 | AZ60: -5.467260148 | BA60: -15.38976909 | BE60: -1.163683219 | BF60: -0.5818416097 | BG60: -1.25779098 | BH60: 9.6 | BI60: -2.004166923 | BJ60: 11.96355437 | BK60: -2.584737803 | BL60: -0.4363812073
O61: 9.8 | P61: 0.9916249299 | Q61: 0.00955880076 | R61: 0.9892574686 | S61: 0.001183730655 | T61: 2.061740872e-11 | X61: 0.001415883156 | Y61: 38.31748274 | Z61: 12.1749088 | AA61: 0.3038724333 | AB61: 0.6961291004 | AC61: 0.303869366 | AD61: 1.533633827e-06 | AE61: 1.126663091e-16 | AI61: 0.8696363427 | AJ61: 2.608909028 | AK61: 0.4348181713 | AL61: 0.06873005146 | AM61: 9.8 | AN61: -2.019583516 | AO61: -0.004690631903 | AP61: -2.926728158 | AQ61: -10.68569674 | AU61: -2.848954141 | AV61: 38.31748274 | AW61: 9.8 | AX61: -0.1573091926 | AY61: -0.5173097312 | AZ61: -5.814240679 | BA61: -15.94810268 | BE61: -1.042909259 | BF61: -0.5214546293 | BG61: -1.162845803 | BH61: 9.8 | BI61: -2.00837507 | BJ61: 12.1749088 | BK61: -2.696127567 | BL61: -0.3910909719
O62: 10 | P62: 0.9856710571 | Q62: 0.01507199672 | R62: 0.9841849494 | S62: 0.0007430538288 | T62: 8.165851203e-12 | X62: 0.00209379393 | Y62: 50 | Z62: 12.38564394 | AA62: 0.2117905934 | AB62: 0.7882100646 | AC62: 0.2117892775 | AD62: 6.579662087e-07 | AE62: 2.975369043e-17 | AI62: 0.8846888525 | AJ62: 2.654066558 | AK62: 0.4423444263 | AL62: 0.09131045024 | AM62: 10 | AN62: -1.821817414 | AO62: -0.006923235839 | AP62: -3.128959467 | AQ62: -11.08792675 | AU62: -2.679048719 | AV62: 50 | AW62: 10 | AX62: -0.1033573548 | AY62: -0.6740916672 | AZ62: -6.181756389 | BA62: -16.52635217 | BE62: -0.9224891796 | BF62: -0.4612445898 | BG62: -1.039472786 | BH62: 10 | BI62: -2.014328943 | BJ62: 12.38564394 | BK62: -2.788209407 | BL62: -0.3459334424
O63: 10.2 | P63: 0.9767796619 | Q63: 0.02368520282 | R63: 0.9758499324 | S63: 0.0004648647263 | T63: 3.223352331e-12 | X63: 0.003188472145 | AM63: 10.2 | AN63: -1.625512368 | AO63: -0.01061689487 | AP63: -3.332651831 | AQ63: -11.49161782 | AU63: -2.496401211 | AW63: 10.2 | BH63: 10.2 | BI63: -2.023220338
O64: 10.4 | P64: 0.9632574952 | Q64: 0.03703185579 | R64: 0.9626787932 | S64: 0.0002893509828 | T64: 1.265919669e-12 | X64: 0.004886502846 | AM64: 10.4 | AN64: -1.431415256 | AO64: -0.01651848818 | AP64: -3.538552129 | AQ64: -11.89751683 | AU64: -2.310986883 | AW64: 10.4 | BH64: 10.4 | BI64: -2.036742505
O65: 10.6 | P65: 0.9427254642 | Q65: 0.0574532521 | R65: 0.9423680316 | S65: 0.0001787162742 | T65: 4.933388165e-13 | X65: 0.007438465095 | AM65: 10.6 | AN65: -1.240677351 | AO65: -0.02577928818 | AP65: -3.747811635 | AQ65: -12.30677504 | AU65: -2.128502891 | AW65: 10.6 | BH65: 10.6 | BI65: -2.057274536
O66: 10.8 | P66: 0.9120066216 | Q66: 0.08810248163 | R66: 0.9117884151 | S66: 0.0001091032347 | T66: 1.900285316e-13 | X66: 0.01113607189 | AM66: 10.8 | AN66: -1.055005028 | AO66: -0.04010567045 | AP66: -3.962136722 | AQ66: -12.72109883 | AU66: -1.953255329 | AW66: 10.8 | BH66: 10.8 | BI66: -2.087993378
O67: 11 | P67: 0.8672701148 | Q67: 0.1327953537 | R67: 0.8671391778 | S67: 6.546849619e-05 | T67: 7.194714268e-14 | X67: 0.0162344476 | AM67: 11 | AN67: -0.8768114435 | AO67: -0.06191079087 | AP67: -4.183940548 | AQ67: -13.14290136 | AU67: -1.789550899 | AW67: 11 | BH67: 11 | BI67: -2.132729885
O68: 11.2 | P68: 0.8047364708 | Q68: 0.1953018607 | R68: 0.8046598078 | S68: 3.833150456e-05 | T68: 2.657890298e-14 | X68: 0.02280136692 | AM68: 11.2 | AN68: -0.7092890272 | AO68: -0.09438707975 | AP68: -4.416415542 | AQ68: -13.57537506 | AU68: -1.642028486 | AW68: 11.2 | BH68: 11.2 | BI68: -2.195263529
O69: 11.4 | P69: 0.722218814 | Q69: 0.2778028924 | R69: 0.7221754013 | S69: 2.170632236e-05 | T69: 9.496584438e-15 | X69: 0.03055363075 | AM69: 11.4 | AN69: -0.5562596356 | AO69: -0.1413563934 | AP69: -4.663383561 | AQ69: -14.02234178 | AU69: -1.514927367 | AW69: 11.4 | BH69: 11.4 | BI69: -2.277781186
O70: 11.6 | P70: 0.6212620005 | Q70: 0.378749781 | R70: 0.6212384375 | S70: 1.178153494e-05 | T70: 3.252243552e-15 | X70: 0.0389019447 | AM70: 11.6 | AN70: -0.4216448799 | AO70: -0.2067403429 | AP70: -4.928766215 | AQ70: -14.48772314 | AU70: -1.410019559 | AW70: 11.6 | BH70: 11.6 | BI70: -2.378737999
O71: 11.8 | P71: 0.508588776 | Q71: 0.4914173096 | R71: 0.5085766049 | S71: 6.085551404e-06 | T71: 1.059939607e-15 | X71: 0.04749245476 | AM71: 11.8 | AN71: -0.3085475525 | AO71: -0.2936417207 | AP71: -5.215666298 | AQ71: -14.97462193 | AU71: -1.323366815 | AW71: 11.8 | BH71: 11.8 | BI71: -2.491411224
O72: 12 | P72: 0.3950401181 | Q72: 0.6049628644 | R72: 0.3950341531 | S72: 2.982484543e-06 | T72: 3.277625934e-16 | X72: 0.05717936753 | AM72: 12 | AN72: -0.2182698706 | AO72: -0.403362744 | AP72: -5.525386027 | AQ72: -15.48434037 | AU72: -1.242752607 | AW72: 12 | BH72: 12 | BI72: -2.604959882
O73: 12.2 | P73: 0.2917912225 | Q73: 0.7082101675 | R73: 0.2917884425 | S73: 1.389989894e-06 | T73: 9.63813108e-17 | X73: 0.07080692615 | AM73: 12.2 | AN73: -0.1498368725 | AO73: -0.534928451 | AP73: -5.856950439 | AQ73: -16.01590348 | AU73: -1.149916814 | AW73: 12.2 | BH73: 12.2 | BI73: -2.708208778
O74: 12.4 | P74: 0.2063248964 | Q74: 0.7936757237 | R74: 0.2063236561 | S74: 6.201440511e-07 | T74: 2.713149767e-17 | X74: 0.09336715173 | AM74: 12.4 | AN74: -0.1003562536 | AO74: -0.6854465374 | AP74: -6.207467231 | AQ74: -16.56641898 | AU74: -1.029799223 | AW74: 12.4 | BH74: 12.4 | BI74: -2.793675104
O75: 12.6 | P75: 0.1409112709 | Q75: 0.8590889963 | R75: 0.1409107365 | S75: 2.672314952e-07 | T75: 7.3768139e-18 | X75: 0.1320337348 | AM75: 12.6 | AN75: -0.06596141658 | AO75: -0.8510504056 | AP75: -6.573069804 | AQ75: -17.13202026 | AU75: -0.8793093993 | AW75: 12.6 | BH75: 12.6 | BI75: -2.859088729
O76: 12.8 | P76: 0.09378595601 | Q76: 0.9062141562 | R76: 0.09378573157 | S76: 1.122226003e-07 | T76: 1.954616286e-18 | X76: 0.1969554049 | AM76: 12.8 | AN76: -0.04276888099 | AO76: -1.027856575 | AP76: -6.949874679 | AQ76: -17.70882384 | AU76: -0.7056275285 | AW76: 12.8 | BH76: 12.8 | BI76: -2.906214044
O77: 13 | P77: 0.06129641593 | Q77: 0.9387036304 | R77: 0.06129632337 | S77: 4.627836241e-08 | T77: 5.085798723e-19 | X77: 0.3032696874 | AM77: 13 | AN77: -0.02747132469 | AO77: -1.212557724 | AP77: -7.334574533 | AQ77: -18.2935224 | AU77: -0.5181676418 | AW77: 13 | BH77: 13 | BI77: -2.938703584
O78: 13.2 | P78: 0.03957052659 | Q78: 0.9604294923 | R78: 0.03957048889 | S78: 1.885015705e-08 | T78: 1.30706191e-19 | X78: 0.4745264318 | AM78: 13.2 | AN78: -0.01753439885 | AO78: -1.402619503 | AP78: -7.724635018 | AQ78: -18.88358159 | AU78: -0.3237374958 | AW78: 13.2 | BH78: 13.2 | BI78: -2.960429473
O79: 13.4 | P79: 0.02533731167 | Q79: 0.9746626959 | R79: 0.02533729644 | S79: 7.615594816e-09 | T79: 3.331846732e-20 | X79: 0.7479822097 | AM79: 13.4 | AN79: -0.01114558357 | AO79: -1.596229393 | AP79: -8.118243613 | AQ79: -19.47718889 | AU79: -0.126107915 | AW79: 13.4 | BH79: 13.4 | BI79: -2.974662688
O80: 13.6 | P80: 0.01613765526 | Q80: 0.9838623478 | R80: 0.01613764914 | S80: 3.060439692e-09 | T80: 8.448216046e-21 | X80: 1.182793729 | AM80: 13.6 | AN80: -0.007065613724 | AO80: -1.792148129 | AP80: -8.514161053 | AU80: 0.07290854141 | AW80: 13.6 | BH80: 13.6 | BI80: -2.983862345
O81: 13.8 | P81: 0.01024317373 | Q81: 0.9897568275 | R81: 0.01024317128 | S81: 1.225682517e-09 | T81: 2.134809748e-21 | X81: 1.872871847 | AM81: 13.8 | AN81: -0.004471464785 | AO81: -1.989552685 | AP81: -8.911564315 | AU81: 0.2725062972 | AW81: 13.8 | BH81: 13.8 | BI81: -2.989756826
O82: 14 | P82: 0.006487529072 | Q82: 0.9935124714 | R82: 0.006487528092 | S82: 4.898045424e-10 | T82: 5.382747329e-22 | X82: 2.96719399 | AM82: 14 | AN82: -0.002826658584 | AO82: -2.187906584 | AP82: -9.309916919 | AU82: 0.4723428827 | AW82: 14 | BH82: 14 | BI82: -2.993512471

Sheet Evaluation
C1: Evaluation of Real and Simulated Titration Data by Derivatives with Interpolation | U1: Color coding
A2: Interpolation and smoothing by cubic splines | H2: Degree of smoothing | J2: Fitting range (zoom) | M2: Fit quality of the splines to pH | Q2: Inflection auto-finder - derivative-based | U2: D o n o t c h a n g e
H3: (0 to 100%) | I3: 85 | J3: Initial volume | K3: 0 | M3: Fitted pH std. dev. | N3: 0.08539642067 | P3: Detector threshold |dpH/dV| > | Q3: 1 | R3: guess value | S3: 0.3869594691 | T3: F i l l o u t | U3: o r | V3: c h a n g e
H4: Interpolated points | I4: 300 | J4: Final volume | K4: 50 | M4: Correlation coefficient | N4: 0.9995684402 | Q4: Detected inflection points | T4: Interpolated spline smoothed data
A5: Volume | B5: pH | C5: Fitted pH | D5: dpH/dV | O5: step | P5: Volume | Q5: pH | R5: dpH/dV | S5: d2pH/dV2 | T5: Interp. Vol. | U5: Fitted pH | V5: dpH/dV | W5: d2pH/dV2
A6: 0 | B6: 2.248236162 | C6: 2.24779123 | D6: 0.04439407991 | O6: 1 | P6: 10.04783336 | Q6: 4.606986091 | R6: 1.821642099 | S6: 0.001222861812 | T6: 0 | U6: 2.24779123 | V6: 0.04438840153 | W6: 0
A7: 2.144118842 | B7: 2.364792201 | C7: 2.365354309 | D7: 0.07644367659 | O7: 2 | P7: 30.0125 | Q7: 9.339215029 | R7: 1.886930924 | S7: -0.003471654964 | T7: 0.1666666667 | U7: 2.255199813 | V7: 0.04457787235 | W7: 0.001135691541
A8: 4.004995925 | B8: 2.550649992 | C8: 2.55298878 | D8: 0.1244084829 | O8: 3 | T8: 0.3333333333 | U8: 2.262671489 | V8: 0.04514590627 | W8: 0.002271383082
A9: 5.537641699 | B9: 2.735061717 | C9: 2.72418427 | D9: 0.06785983666 | O9: 4 | T9: 0.5 | U9: 2.270269353 | V9: 0.04609250326 | W9: 0.003407074623
A10: 6.745316282 | B10: 2.800158914 | C10: 2.816892109 | D10: 0.1515255601 | O10: 5 | T10: 0.6666666666 | U10: 2.278056499 | V10: 0.04741766335 | W10: 0.00454275817
A11: 7.663840234 | B11: 3.021008977 | C11: 3.010548991 | D11: 0.2393589575 | O11: 6 | T11: 0.8333333333 | U11: 2.28609602 | V11: 0.04912138652 | W11: 0.005678457704
A12: 8.343835549 | B12: 3.205916236 | C12: 3.173511772 | D12: 0.2458507706 | O12: 7 | T12: 1 | U12: 2.29445101 | V12: 0.05120367278 | W12: 0.006814133258
A13: 8.837465245 | B13: 3.322417464 | C13: 3.319118546 | D13: 0.4025422876 | O13: 8 | T13: 1.166666667 | U13: 2.303184564 | V13: 0.05366452212 | W13: 0.007949832793
A14: 9.191113659 | B14: 3.557732853 | C14: 3.499496391 | D14: 0.6812867497 | O14: 9 | T14: 1.333333333 | U14: 2.312359774 | V14: 0.05650393455 | W14: 0.00908551634
A15: 9.442684516 | B15: 3.6543098 | C15: 3.702783939 | D15: 1.034353835 | O15: 10 | T15: 1.5 | U15: 2.322039735 | V15: 0.05972191007 | W15: 0.01022119189
A16: 9.621614414 | B16: 3.790270381 | C16: 3.908782775 | D16: 1.36734665 | O16: 11 | T16: 1.666666667 | U16: 2.332287541 | V16: 0.06331844867 | W16: 0.01135689143
A17: 9.750126088 | B17: 3.969519892 | C17: 4.093756388 | D17: 1.593183552 | O17: 12 | T17: 1.833333333 | U17: 2.343166285 | V17: 0.06729355036 | W17: 0.01249257498
A18: 9.844849129 | B18: 4.296344553 | C18: 4.247624685 | D18: 1.71239013 | O18: 13 | T18: 2 | U18: 2.354739061 | V18: 0.07164721514 | W18: 0.01362825852
A19: 9.918394931 | B19: 4.423468832 | C19: 4.374372116 | D19: 1.774885149 | O19: 14 | T19: 2.166666667 | U19: 2.367068931 | V19: 0.07637503386 | W19: 0.01456984133
A20: 9.980747061 | B20: 4.316168836 | C20: 4.485300613 | D20: 1.811445513 | O20: 15 | T20: 2.333333333 | U20: 2.380199648 | V20: 0.08118175219 | W20: 0.01427076057
A21: 10.04046945 | B21: 4.354954839 | C21: 4.59357274 | D21: 1.817646279 | Q21: Titrand concentration calculator | T21: 2.5 | U21: 2.394123184 | V21: 0.08588877177 | W21: 0.01397164784
A22: 10.10579878 | B22: 4.858052011 | C22: 4.712078221 | D22: 1.768752101 | Q22: (optional and modifiable) | T22: 2.666666667 | U22: 2.408822923 | V22: 0.0904960926 | W22: 0.01367255909
A23: 10.18571341 | B23: 5.135799195 | C23: 4.85178763 | D23: 1.643715212 | T23: 2.833333333 | U23: 2.424282249 | V23: 0.0950037147 | W23: 0.01337346234
A24: 10.29107799 | B24: 5.132900852 | C24: 5.019453845 | D24: 1.439369492 | Q24: Volume of titrand (sample pipetted into cell) | R24: 20 | S24: mL | T24: 3 | U24: 2.440484546 | V24: 0.09941163805 | W24: 0.01307437358
A25: 10.4359553 | B25: 5.24238336 | C25: 5.214649277 | D25: 1.164120413 | Q25: Concentration of titrant (in the buret) | R25: 0.1 | S25: mol/L | T25: 3.166666667 | U25: 2.457413197 | V25: 0.1037198627 | W25: 0.01277527684
A26: 10.6391407 | B26: 5.434436474 | C26: 5.425103306 | D26: 0.841118769 | Q26: Number of mols of titrant | S26: Result (mol/L) | T26: 3.333333333 | U26: 2.475051585 | V26: 0.1079283885 | W26: 0.01247618009
A27: 10.92587135 | B27: 5.585926502 | C27: 5.626370019 | D27: 0.5406243959 | O27: step | P27: Vol. Inflection | Q27: total | R27: stepwise | S27: [species] | T27: 3.5 | U27: 2.493383095 | V27: 0.1120372156 | W27: 0.01217707535
A28: 11.32941198 | B28: 5.781785381 | C28: 5.800969958 | D28: 0.3266260185 | O28: 1 | P28: 10.04783336 | Q28: =IF(P28<>"",P28*0.001*$R$25,"") -> 0.001004783336 | R28: =IF(P28<>"",Q28,"") -> 0.001004783336 | S28: =IF(P28<>"",R28/$R$24/0.001,"") -> 0.05023916681 | T28: 3.666666667 | U28: 2.512391108 | V28: 0.116046344 | W28: 0.0118779866
A29: 11.89169546 | B29: 5.933377568 | C29: 5.949850535 | D29: 0.2184231049 | O29: 2 | P29: 30.0125 | Q29: =IF(P29<>"",P29*0.001*$R$25,"") -> 0.00300125 | R29: =IF(P29<>"",(Q29-Q28),"") -> 0.001996466664 | S29: =IF(P29<>"",R29/$R$24/0.001,"") -> 0.0998233332 | T29: 3.833333333 | U29: 2.532059011 | V29: 0.1199557737 | W29: 0.01157888985
A30: 12.66130396 | B30: 6.101524616 | C30: 6.097549755 | D30: 0.1596176759 | O30: 3 | R30: =IF(P30<>"",(Q30-Q29),"") ->  | T30: 4 | U30: 2.552370184 | V30: 0.1237655045 | W30: 0.0112797931
A31: 13.68609246 | B31: 6.234370658 | C31: 6.237358506 | D31: 0.1294047151 | O31: 4 | T31: 4.166666667 | U31: 2.573257561 | V31: 0.1265383652 | W31: 0.005189872532
A32: 14.99801696 | B32: 6.423708726 | C32: 6.427256757 | D32: 0.1641581425 | O32: 5 | T32: 4.333333333 | U32: 2.594433263 | V32: 0.1272224696 | W32: -0.001078992895
A33: 16.59174004 | B33: 6.669278283 | C33: 6.662366432 | D33: 0.08669502372 | O33: 6 | T33: 4.5 | U33: 2.615549021 | V33: 0.1258169532 | W33: -0.007347858322
A34: 18.40685482 | B34: 6.726594871 | C34: 6.731730346 | D34: 0.05054550164 | O34: 7 | T34: 4.666666667 | U34: 2.636256565 | V34: 0.122321816 | W34: -0.01361671576
A35: 20.32898345 | B35: 6.919625802 | C35: 6.919493749 | D35: 0.1192055633 | O35: 8 | T35: 4.833333333 | U35: 2.656207626 | V35: 0.116737058 | W35: -0.01988558118
A36: 22.2166203 | B36: 7.095325615 | C36: 7.088791869 | D36: 0.03396232194 | O36: 9 | T36: 5 | U36: 2.675053933 | V36: 0.1090626792 | W36: -0.02615443862
A37: 23.9413856 | B37: 7.151250074 | C37: 7.164741442 | D37: 0.1359781735 | O37: 10 | T37: 5.166666667 | U37: 2.692447215 | V37: 0.09929867959 | W37: -0.03242328806
A38: 25.41912176 | B38: 7.451478729 | C38: 7.432958076 | D38: 0.135033808 | O38: Results of the Example: | T38: 5.333333333 | U38: 2.708039204 | V38: 0.08744505921 | W38: -0.03869216148
A39: 26.61856255 | B39: 7.54015933 | C39: 7.559629984 | D39: 0.1517249831 | O39: [H3PO4] = 0,0501 mol/L in the 20 mL of sample | T39: 5.5 | U39: 2.721481628 | V39: 0.07350181804 | W39: -0.04496101891
A40: 27.55093508 | B40: 7.756377495 | C40: 7.742981368 | D40: 0.203681425 | O40: [NaH2PO4] = [H2PO4- titrated] - [H3PO4] = 0,1000 - 0,0501 = 0,0499 mol/L | T40: 5.666666667 | U40: 2.732545492 | V40: 0.06024581108 | W40: -0.02973582181
A41: 28.2521101 | B41: 7.91345105 | C41: 7.877298484 | D41: 0.1892415237 | O41: For this sample, half of the determined H2PO4- came from the H3PO4 | T41: 5.833333333 | U41: 2.741960327 | V41: 0.05392010045 | W41: -0.008239944727
A42: 28.76675076 | B42: 7.996399676 | C42: 8.004907616 | D42: 0.3790135236 | T42: 6 | U42: 2.750917388 | V42: 0.05475968129 | W42: 0.01325592436
A43: 29.13815985 | B43: 8.226381967 | C43: 8.192992908 | D43: 0.6992869795 | P43: How to change the axis of a curve | T43: 6.166666666 | U43: 2.760610889 | V43: 0.0627645536 | W43: 0.03475179344
A44: 29.4034608 | B44: 8.423861095 | C44: 8.413575912 | D44: 1.052958419 | P44: How to copy/paste a curve | T44: 6.333333333 | U44: 2.772235046 | V44: 0.07793471739 | W44: 0.05624768651
A45: 29.59231275 | B45: 8.470453896 | C45: 8.635133523 | D45: 1.395268787 | P45: Data ID on curves | T45: 6.5 | U45: 2.786984075 | V45: 0.1002701727 | W45: 0.0777435556
A46: 29.72746901 | B46: 8.806433189 | C46: 8.834161165 | D46: 1.628912291 | T46: 6.666666666 | U46: 2.806052189 | V46: 0.1297709194 | W46: 0.09923942468
A47: 29.82606555 | B47: 9.047059465 | C47: 8.998210361 | D47: 1.762532447 | T47: 6.833333333 | U47: 2.830575358 | V47: 0.1644478768 | W47: 0.09817923275
A48: 29.90105196 | B48: 8.921427354 | C48: 9.131477118 | D48: 1.844704394 | T48: 7 | U48: 2.86051137 | V48: 0.1936348033 | W48: 0.07696354754
A49: 29.96252097 | B49: 9.140905601 | C49: 9.245147386 | D49: 1.882144184 | T49: 7.166666666 | U49: 2.894723134 | V49: 0.2157498346 | W49: 0.05574785434
A50: 30.01888163 | B50: 9.319851046 | C50: 9.351256144 | D50: 1.879434572 | T50: 7.333333333 | U50: 2.932032002 | V50: 0.2307929706 | W50: 0.03453216113
A51: 30.07791356 | B51: 9.642681077 | C51: 9.462059157 | D51: 1.836336149 | T51: 7.5 | U51: 2.971259323 | V51: 0.2387642113 | W51: 0.01331647592
A52: 30.14778159 | B52: 9.663021254 | C52: 9.589588735 | D52: 1.749632299 | T52: 7.666666666 | U52: 3.011226451 | V52: 0.2396649135 | W52: -0.007446419481
A53: 30.23810956 | B53: 9.805419916 | C53: 9.744798785 | D53: 1.599687387 | T53: 7.833333333 | U53: 3.051014738 | V53: 0.2380976012 | W53: -0.001962941809
A54: 30.36122269 | B54: 10.10095367 | C54: 9.932999517 | D54: 1.35191909 | T54: 8 | U54: 3.090693973 | V54: 0.2383581154 | W54: 0.003520543857
A55: 30.53367048 | B55: 10.11329578 | C55: 10.14518277 | D55: 1.022774275 | T55: 8.166666666 | U55: 3.130568793 | V55: 0.240446456 | W55: 0.009004013535
A56: 30.77812718 | B56: 10.44072599 | C56: 10.35560873 | D56: 0.630178306 | T56: 8.333333333 | U56: 3.170943837 | V56: 0.2443626232 | W56: 0.0144874992
A57: 31.12570439 | B57: 10.39414388 | C57: 10.52268414 | D57: 0.3654452583 | T57: 8.5 | U57: 3.212753753 | V57: 0.2622223711 | W57: 0.09747154284
A58: 31.61854673 | B58: 10.69318509 | C58: 10.67700815 | D58: 0.2403996066 | T58: 8.666666666 | U58: 3.259978946 | V58: 0.3094269232 | W58: 0.1856675693
A59: 32.31223389 | B59: 10.78884261 | C59: 10.79375331 | D59: 0.110545903 | T59: 8.833333333 | U59: 3.317519004 | V59: 0.3860301529 | W59: 0.2738636038
A60: 33.27693826 | B60: 10.87786486 | C60: 10.88216704 | D60: 0.0946977233 | T60: 9 | U60: 3.390346018 | V60: 0.4933681238 | W60: 0.3702713896
A61: 34.59572309 | B61: 11.05129968 | C61: 11.05581129 | D61: 0.1762346878 | T61: 9.166666666 | U61: 3.483743667 | V61: 0.632910779 | W61: 0.4668879363
A62: 36.35888075 | B62: 11.37029214 | C62: 11.36329662 | D62: 0.107294392 | T62: 9.333333333 | U62: 3.603934739 | V62: 0.8227199149 | W62: 0.6903492178
A63: 38.65704334 | B63: 11.41929523 | C63: 11.4234527 | D63: 0.02398411461 | T63: 9.5 | U63: 3.762436296 | V63: 1.091308888 | W63: 0.8930645743
A64: 41.58461729 | B64: 11.62894638 | C64: 11.62735428 | D64: 0.06531778311 | T64: 9.666666666 | U64: 3.970173651 | V64: 1.405575552 | W64: 0.9328287263
A65: 45.27560185 | B65: 11.73037028 | C65: 11.73088507 | D65: 0.02023900686 | T65: 9.833333333 | U65: 4.22828124 | V65: 1.673127327 | W65: 0.5935429428
A66: 50 | B66: 11.91376558 | C66: 11.91368331 | D66: 0.04806632837 | T66: 10 | U66: 4.520053675 | V66: 1.809907598 | W66: 0.222715558
T67: 10.16666667 | U67: 4.81930778 | V67: 1.720709029 | W67: -0.7825039817
T68: 10.33333333 | U68: 5.08059899 | V68: 1.40496409 | W68: -0.983583135
T69: 10.5 | U69: 5.288409146 | V69: 1.095186975 | W69: -0.8584550511
T70: 10.66666667 | U70: 5.448681364 | V70: 0.8372918038 | W70: -0.6858039577
T71: 10.83333333 | U71: 5.57098171 | V71: 0.6408125022 | W71: -0.4932643894
T72: 11 | U72: 5.665794377 | V72: 0.5051017893 | W72: -0.346639661
T73: 11.16666667 | U73: 5.741185677 | V73: 0.4044546653 | W73: -0.2573323954
T74: 11.33333333 | U74: 5.802280726 | V74: 0.3335719212 | W74: -0.1691772642
T75: 11.5 | U75: 5.853554883 | V75: 0.2839093193 | W75: -0.1288386997
T76: 11.66666667 | U76: 5.897671333 | V76: 0.2476929008 | W76: -0.08850013523
T77: 11.83333333 | U77: 5.936871109 | V77: 0.2249226658 | W77: -0.04816160271
T78: 12 | U78: 5.973288407 | V78: 0.2126347989 | W78: -0.03514652569
T79: 12.16666667 | U79: 6.007736401 | V79: 0.2006342014 | W79: -0.0368553188
T80: 12.33333333 | U80: 6.040136877 | V80: 0.1880640111 | W80: -0.03856411191
T81: 12.5 | U81: 6.070394903 | V81: 0.174924228 | W81: -0.04027290501
T82: 12.66666667 | U82: 6.09841555 | V82: 0.1612166576 | W82: -0.0416551913
T83: 12.83333333 | U83: 6.124207182 | V83: 0.1487391737 | W83: -0.03321813225
T84: 13 | U84: 6.148153362 | V84: 0.1390740483 | W84: -0.02478107319
T85: 13.16666667 | U85: 6.170722816 | V85: 0.1322212814 | W85: -0.01634398217
T86: 13.33333333 | U86: 6.192384272 | V86: 0.1281808729 | W86: -0.00790690713
T87: 13.5 | U87: 6.213606455 | V87: 0.1269528229 | W87: 0.0005301679096
T88: 13.66666667 | U88: 6.234858092 | V88: 0.1285371314 | W88: 0.008967242949
T89: 13.83333333 | U89: 6.256559219 | V89: 0.131940626 | W89: 0.0106667315
T90: 14 | U90: 6.278852831 | V90: 0.1356314333 | W90: 0.01147729911
T91: 14.16666667 | U91: 6.30178407 | V91: 0.1395924336 | W91: 0.01228788271
T92: 14.33333333 | U92: 6.32539797 | V92: 0.1438236267 | W92: 0.01309846631
T93: 14.5 | U93: 6.349739562 | V93: 0.1483250126 | W93: 0.01390903393
T94: 14.66666667 | U94: 6.374853879 | V94: 0.1530965915 | W94: 0.01471961753
T95: 14.83333333 | U95: 6.400785952 | V95: 0.1581383632 | W95: 0.01553018514
T96: 15 | U96: 6.427580814 | V96: 0.1634500957 | W96: 0.01623303092
T97: 15.16666667 | U97: 6.455196614 | V97: 0.1674854312 | W97: 0.00798722688
T98: 15.33333333 | U98: 6.483256148 | V98: 0.1687721708 | W98: -0.0002585611725
T99: 15.5 | U99: 6.511301319 | V99: 0.1673103146 | W99: -0.008504349225
T100: 15.66666667 | U100: 6.538874026 | V100: 0.1630998626 | W100: -0.01675012129
T101: 15.83333333 | U101: 6.56551617 | V101: 0.1561408147 | W101: -0.02499590934
T102: 16 | U102: 6.590769653 | V102: 0.1464331709 | W102: -0.03324171338
T103: 16.16666667 | U103: 6.614176375 | V103: 0.1339769312 | W103: -0.04148748545
T104: 16.33333333 | U104: 6.635278235 | V104: 0.1187720958 | W104: -0.04973325752
T105: 16.5 | U105: 6.653617136 | V105: 0.1008186644 | W105: -0.05797904557
T106: 16.66666667 | U106: 6.668749821 | V106: 0.08071223103 | W106: -0.05829349803
T107: 16.83333333 | U107: 6.680671222 | V107: 0.06284876102 | W107: -0.04889671068
T108: 17 | U108: 6.689876138 | V108: 0.04811753889 | W108: -0.03949998728
T109: 17.16666667 | U109: 6.696886609 | V109: 0.03651856463 | W109: -0.03010323191
T110: 17.33333333 | U110: 6.702224679 | V110: 0.02805183826 | W110: -0.02070649252
T111: 17.5 | U111: 6.706412386 | V111: 0.02271735975 | W111: -0.01130976912
T112: 17.66666667 | U112: 6.709971774 | V112: 0.02051512913 | W112: -0.001913013748
T113: 17.83333333 | U113: 6.713424882 | V113: 0.02144514638 | W113: 0.00748372564
T114: 18 | U114: 6.717293754 | V114: 0.02550741152 | W114: 0.01688048101
T115: 18.16666667 | U115: 6.722100429 | V115: 0.03270192452 | W115: 0.02627720441
T116: 18.33333333 | U116: 6.728366949 | V116: 0.04302868542 | W116: 0.03567395979
T117: 18.5 | U117: 6.736594169 | V117: 0.05580410353 | W117: 0.03774481528
T118: 18.66666667 | U118: 6.746907906 | V118: 0.06776650002 | W118: 0.03403325622
T119: 18.83333333 | U119: 6.759112379 | V119: 0.07849170278 | W119: 0.03032166518
T120: 19 | U120: 6.773001389 | V120: 0.08797971181 | W120: 0.02661007415
T121: 19.16666667 | U121: 6.788368738 | V121: 0.09623052713 | W121: 0.0228984991
T122: 19.33333333 | U122: 6.805008227 | V122: 0.1032441487 | W122: 0.01918692405
T123: 19.5 | U123: 6.822713656 | V123: 0.1090205766 | W123: 0.015475349
T124: 19.66666667 | U124: 6.841278826 | V124: 0.1135598107 | W124: 0.01176378994
T125: 19.83333333 | U125: 6.860497539 | V125: 0.1168618512 | W125: 0.008052182921
T126: 20 | U126: 6.880163596 | V126: 0.1189266979 | W126: 0.004340623861
T127: 20.16666667 | U127: 6.900070798 | V127: 0.1197543508 | W127: 0.0006290168386
T128: 20.33333333 | U128: 6.920012945 | V128: 0.1193448499 | W128: -0.00307378123
T129: 20.5 | U129: 6.939787211 | V129: 0.1177572816 | W129: -0.006448281909
T130: 20.66666667 | U130: 6.95920324 | V130: 0.1150448751 | W130: -0.009822782588
T131: 20.83333333 | U131: 6.978073558 | V131: 0.1112076301 | W131: -0.01319731524
T132: 21 | U132: 6.996210692 | V132: 0.1062455468 | W132: -0.01657181592
T133: 21.16666667 | U133: 7.01342717 | V133: 0.1001586252 | W133: -0.01994634857
T134: 21.33333333 | U134: 7.029535518 | V134: 0.09294686512 | W134: -0.02332084925
T135: 21.5 | U135: 7.044348263 | V135: 0.08461026672 | W135: -0.02669536592
T136: 21.66666667 | U136: 7.057677932 | V136: 0.07514882996 | W136: -0.03006988259
T137: 21.83333333 | U137: 7.069337052 | V137: 0.06456255483 | W137: -0.03344439925
T138: 22 | U138: 7.079138151 | V138: 0.05285144134 | W138: -0.03681891592
T139: 22.16666667 | U139: 7.086893754 | V139: 0.04001548948 | W139: -0.0401934166
T140: 22.33333333 | U140: 7.092469419 | V140: 0.02741971865 | W140: -0.03188909936
T141: 22.5 | U141: 7.096277624 | V141: 0.01900938351 | W141: -0.01858618859
T142: 22.66666667 | U142: 7.099053262 | V142: 0.01503334939 | W142: -0.00528330979
T143: 22.83333333 | U143: 7.101535384 | V143: 0.0154916163 | W143: 0.008019584997
T144: 23 | U144: 7.104463039 | V144: 0.02038418425 | W144: 0.02132251176
T145: 23.16666667 | U145: 7.108575277 | V145: 0.02971105321 | W145: 0.03462542253
T146: 23.33333333 | U146: 7.114611149 | V146: 0.04347222319 | W146: 0.04792831732
T147: 23.5 | U147: 7.123309705 | V147: 0.0616676942 | W147: 0.0612312121
T148: 23.66666667 | U148: 7.135409995 | V148: 0.08429746624 | W148: 0.07453412288
T149: 23.83333333 | U149: 7.15165107 | V149: 0.1113615393 | W149: 0.08783701766
T150: 24 | U150: 7.172758109 | V150: 0.1421480171 | W150: 0.0890289762
T151: 24.16666667 | U151: 7.198724315 | V151: 0.1682985061 | W151: 0.06789511354
T152: 24.33333333 | U152: 7.228462471 | V152: 0.1874043683 | W152: 0.04676120291
T153: 24.5 | U153: 7.260798472 | V153: 0.1994656036 | W153: 0.02562732426
T154: 24.66666667 | U154: 7.294558214 | V154: 0.204482212 | W154: 0.004493445616
T155: 24.83333333 | U155: 7.328567592 | V155: 0.2024541936 | W155: -0.01664043303
T156: 25 | U156: 7.361652502 | V156: 0.1933815483 | W156: -0.03777429569
T157: 25.16666667 | U157: 7.392638839 | V157: 0.1772642761 | W157: -0.05890819033
T158: 25.33333333 | U158: 7.420352499 | V158: 0.1541023771 | W158: -0.08004206898
T159: 25.5 | U159: 7.443669398 | V159: 0.125755077 | W159: -0.07823530624
T160: 25.66666667 | U160: 7.462699586 | V160: 0.1040376979 | W160: -0.0520951442
T161: 25.83333333 | U161: 7.478835601 | V161: 0.09103371132 | W161: -0.02595495019
T162: 26 | U162: 7.493529675 | V162: 0.0867431172 | W162: 0.0001852278331
T163: 26.16666667 | U163: 7.50823404 | V163: 0.09116591555 | W163: 0.02632540586
T164: 26.33333333 | U164: 7.524400928 | V164: 0.1043021064 | W164: 0.05246558388
T165: 26.5 | U165: 7.543482571 | V165: 0.1261516897 | W165: 0.0786057619
T166: 26.66666667 | U166: 7.566920137 | V166: 0.15602225 | W166: 0.09040159022
T167: 26.83333333 | U167: 7.595214353 | V167: 0.1822257314 | W167: 0.06684285126
T168: 27 | U168: 7.627222061 | V168: 0.2005762926 | W168: 0.04328408032
T169: 27.16666667 | U169: 7.66163444 | V169: 0.2110739334 | W169: 0.01972530939
T170: 27.33333333 | U170: 7.69714267 | V170: 0.213718654 | W170: -0.003833429574
T171: 27.5 | U171: 7.732437931 | V171: 0.2085104543 | W171: -0.02739218452
T172: 27.66666667 | U172: 7.76631741 | V172: 0.1982011934 | W172: -0.02720722847
T173: 27.83333333 | U173: 7.798694413 | V173: 0.1909063763 | W173: -0.01657231152
T174: 28 | U174: 7.830150732 | V174: 0.1871565321 | W174: -0.005937362602
T175: 28.16666667 | U175: 7.861277196 | V175: 0.1869516608 | W175: 0.004697522371
T176: 28.33333333 | U176: 7.89276353 | V176: 0.1939519922 | W176: 0.06030392186
T177: 28.5 | U177: 7.927715207 | V177: 0.2312228756 | W177: 0.1632184468
T178: 28.66666667 | U178: 7.971734576 | V178: 0.3027985992 | W178: 0.2661329717
T179: 28.83333333 | U179: 8.030526291 | V179: 0.4081000678 | W179: 0.3603717964
T180: 29 | U180: 8.109295119 | V180: 0.5417705378 | W180: 0.4415697888
T181: 29.16666667 | U181: 8.212599551 | V181: 0.7029249762 | W181: 0.5373448886
T182: 29.33333333 | U182: 8.346205992 | V182: 0.9098049445 | W182: 0.7037685315
T183: 29.5 | U183: 8.518957926 | V183: 1.173630053 | W183: 0.8853989222
T184: 29.66666667 | U184: 8.740571216 | V184: 1.48693334 | W184: 0.8905495222
T185: 29.83333333 | U185: 9.010830299 | V185: 1.741074154 | W185: 0.62336213
T186: 30 | U186: 9.315631927 | V186: 1.886071531 | W186: 0.0714632833
T187: 30.16666667 | U187: 9.623053064 | V187: 1.758784373 | W187: -0.708854703
T188: 30.33333333 | U188: 9.89300553 | V188: 1.462919027 | W188: -1.028121844
T189: 30.5 | U189: 10.10824459 | V189: 1.127611491 | W189: -0.9240942412
T190: 30.66666667 | U190: 10.27178074 | V190: 0.8402548256 | W190: -0.8132777012
T191: 30.83333333 | U191: 10.39020169 | V191: 0.5888918451 | W191: -0.6469388865
T192: 31 | U192: 10.47328329 | V192: 0.4252367792 | W192: -0.3353031133
T193: 31.16666667 | U193: 10.53769184 | V193: 0.3621437122 | W193: -0.1043056201
T194: 31.33333333 | U194: 10.5950022 | V194: 0.3246284352 | W194: -0.1207695384
T195: 31.5 | U195: 10.64560314 | V195: 0.2816251863 | W195: -0.1372334566
T196: 31.66666667 | U196: 10.6885892 | V196: 0.2337096278 | W196: -0.1417756153
T197: 31.83333333 | U197: 10.72383642 | V197: 0.1905931822 | W197: -0.1169478594
T198: 32 | U198: 10.75258653 | V198: 0.1557526739 | W198: -0.09212007158
T199: 32.16666667 | U199: 10.77621887 | V199: 0.1291881027 | W199: -0.06729218783
T200: 32.33333333 | U200: 10.79611251 | V200: 0.1108657221 | W200: -0.04405125864
... 106 more rows

Sheet +Eva
C1: Compilation of titration data and essential results obtained with the Evaluation module
B4: Identify the results and add observations (use any gray cell)

Sheet Regression
B1: Titration Data Analysis - Multiple Regression | G1: <--- read important remarks and instructions | K1: pKas of the acids and bases in the solution | N1: Click on K2 to Q2; select acids/bases; click on J2; other options, read M1 | U1: Overall protonation constants = bp = PKp (calculated by the program) | AF1: pKas loaded from the Database | AP1: Besides enabled macros, the Regression module also requires the Solver,
A2: Composition of the sample (regression fit, in blue, and equilibrium at initial pH) and of the titrant; all concentrations in mol/L | K2: 62 | L2: 103 | M2: 31 | N2: 1 | O2: 2 | P2: 3 | Q2: 6 | S2: Titrant | V2: Titrand | AC2: Titrant | AG2: Titrand | AH2: Click on J2 to use these pKas in the Regression | AP2: an Add-In supplement provided by Microsoft with the Office package
A3: SAMPLE Species | B3: =K3 -> Citric acid | C3: =L3 -> Glycine | D3: Ascorbic acid | E3: Acetic acid | F3: Ammonia | G3: Carbonic acid | H3: HCl | J3: Acid / Base | K3: Citric acid | L3: Glycine | M3: Ascorbic acid | N3: Acetic acid | O3: Ammonia | P3: Carbonic acid | Q3: HCl | R3: Strong ACID | S3: Strong BASE | T3: Carbonic ac. | U3: Acid / Base | V3: =K3 -> Citric acid | W3: Glycine | X3: Ascorbic acid | Y3: Acetic acid | Z3: Ammonia | AA3: Carbonic acid | AB3: HCl | AC3: Strong ACID | AD3: Strong BASE | AE3: Carbonic ac. | AF3: Acid / Base | AG3: =IF(VLOOKUP(K$2,Database!$B$22:$N$301,2)="","",VLOOKUP(K$2,Database!$B$22:$N$301,2)) -> Citric acid | AH3: =IF(VLOOKUP(L$2,Database!$B$22:$N$301,2)="","",VLOOKUP(L$2,Database!$B$22:$N$301,2)) -> Glycine | AI3: =IF(VLOOKUP(M$2,Database!$B$22:$N$301,2)="","",VLOOKUP(M$2,Database!$B$22:$N$301,2)) -> Ascorbic acid | AJ3: =IF(VLOOKUP(N$2,Database!$B$22:$N$301,2)="","",VLOOKUP(N$2,Database!$B$22:$N$301,2)) -> Acetic acid | AK3: =IF(VLOOKUP(O$2,Database!$B$22:$N$301,2)="","",VLOOKUP(O$2,Database!$B$22:$N$301,2)) -> Ammonia | AL3: =IF(VLOOKUP(P$2,Database!$B$22:$N$301,2)="","",VLOOKUP(P$2,Database!$B$22:$N$301,2)) -> Carbonic acid | AM3: =IF(VLOOKUP(Q$2,Database!$B$22:$N$301,2)="","",VLOOKUP(Q$2,Database!$B$22:$N$301,2)) -> HCl | AP3: If not already installed, follow the instructions (may change a bit, for different Excel versions)
A4: [B] | B4: =IF(K5="",0,(B$11)/M$41) -> 1.209934036e-07 | C4: =IF(L5="",0,(C$11)/N$41) -> 4.27751854e-09 | D4: =IF(M5="",0,(D$11)/O$41) -> 0 | E4: =IF(N5="",0,(E$11)/P$41) -> 0 | F4: =IF(O5="",0,(F$11)/Q$41) -> 0 | G4: =IF(P5="",0,(G$11)/R$41) -> 0 | H4: =IF(Q5="",0,(H$11)/S$41) -> 0 | J4: Charge of B | K4: -3 | L4: -1 | M4: -2 | N4: -1 | O4: 0 | P4: -2 | Q4: -1 | R4: -1 | S4: -1 | T4: -2 | U4: Charge of B | V4: =IF(K4="","",K4) -> -3 | W4: =IF(L4="","",L4) -> -1 | X4: -2 | Y4: -1 | Z4: 0 | AA4: -2 | AB4: -1 | AC4: -1 | AD4: -1 | AE4: -2 | AF4: Charge of B | AG4: =IF(VLOOKUP(K$2,Database!$B$22:$N$301,3)="","",VLOOKUP(K$2,Database!$B$22:$N$301,3)) -> -3 | AH4: =IF(VLOOKUP(L$2,Database!$B$22:$N$301,3)="","",VLOOKUP(L$2,Database!$B$22:$N$301,3)) -> -1 | AI4: =IF(VLOOKUP(M$2,Database!$B$22:$N$301,3)="","",VLOOKUP(M$2,Database!$B$22:$N$301,3)) -> -2 | AJ4: =IF(VLOOKUP(N$2,Database!$B$22:$N$301,3)="","",VLOOKUP(N$2,Database!$B$22:$N$301,3)) -> -1 | AK4: =IF(VLOOKUP(O$2,Database!$B$22:$N$301,3)="","",VLOOKUP(O$2,Database!$B$22:$N$301,3)) -> 0 | AL4: =IF(VLOOKUP(P$2,Database!$B$22:$N$301,3)="","",VLOOKUP(P$2,Database!$B$22:$N$301,3)) -> -2 | AM4: =IF(VLOOKUP(Q$2,Database!$B$22:$N$301,3)="","",VLOOKUP(Q$2,Database!$B$22:$N$301,3)) -> -1 | AP4: 1. Open a new blank Excel spreadsheet
A5: [HB] | B5: =IF(K5="",0,(B$11*(V$5*$AU41^(-2*V$4))*$D41)/M$41) -> 0.0002077813256 | C5: =IF(L5="",0,(C$11*(W$5*$AU41^(-2*W$4))*$D41)/N$41) -> 0.02713746387 | D5: 0 | E5: 0 | F5: 0 | G5: 0 | H5: 0 | J5: pKa1 | K5: 3.128 | L5: 2.35 | M5: 4.1 | N5: 4.757 | O5: 9.244 | P5: 6.352 | Q5: -7 | R5: -7 | S5: 15.745 | T5: 6.352 | U5: bp1 | V5: =IF(K5="","1E-10",IF(K6="",10^K5,(IF(K7="",10^K6,(IF(K8="",10^K7,(IF(K9="",10^K8,(IF(K10="",10^K9,10^K10)))))))))) -> 2488857.318 | W5: 5997910763 | X5: 6.165950019e+11 | Y5: 57147.86367 | Z5: 1753880502 | AA5: 2.133044913e+10 | AB5: 1e-07 | AC5: =IF(R5="","1E-10",IF(R6="",10^R5,(IF(R7="",10^R6)))) -> 1e-07 | AD5: =IF(S5="","1E-10",IF(S6="",10^S5,(IF(S7="",10^S6)))) -> 5559042572704029 | AE5: =IF(T5="","1E-10",IF(T6="",10^T5,(IF(T7="",10^T6)))) -> 2.133044913e+10 | AF5: pKa1 = logKpn | AG5: =IF(VLOOKUP(K$2,Database!$B$22:$N$301,4)="","",VLOOKUP(K$2,Database!$B$22:$N$301,4)) -> 3.128 | AH5: =IF(VLOOKUP(L$2,Database!$B$22:$N$301,4)="","",VLOOKUP(L$2,Database!$B$22:$N$301,4)) -> 2.35 | AI5: =IF(VLOOKUP(M$2,Database!$B$22:$N$301,4)="","",VLOOKUP(M$2,Database!$B$22:$N$301,4)) -> 4.1 | AJ5: =IF(VLOOKUP(N$2,Database!$B$22:$N$301,4)="","",VLOOKUP(N$2,Database!$B$22:$N$301,4)) -> 4.757 | AK5: =IF(VLOOKUP(O$2,Database!$B$22:$N$301,4)="","",VLOOKUP(O$2,Database!$B$22:$N$301,4)) -> 9.244 | AL5: =IF(VLOOKUP(P$2,Database!$B$22:$N$301,4)="","",VLOOKUP(P$2,Database!$B$22:$N$301,4)) -> 6.352 | AM5: =IF(VLOOKUP(Q$2,Database!$B$22:$N$301,4)="","",VLOOKUP(Q$2,Database!$B$22:$N$301,4)) -> -7
A6: [H2B] | B6: =IF(K6="",0,(B$11*(V$6*$AU41^(-4*V$4-2))*$D41^2)/M$41) -> 0.01023805836 | C6: =IF(L6="",0,(C$11*(W$6*$AU41^(-4*W$4-2))*$D41^2)/N$41) -> 0.007956331786 | D6: 0 | E6: 0 | F6: 0 | G6: 0 | H6: 0 | J6: pKa2 | K6: 4.761 | L6: 9.778 | M6: 11.79 | P6: 10.329 | T6: 10.329 | U6: bp2 | V6: =IF(K6="","10E-10",IF(K7="",V5*10^K5,(IF(K8="",V5*10^K6,(IF(K9="",V5*10^K7,(IF(K10="",V5*10^K8,V5*10^K9)))))))) -> 1.435489433e+11 | W6: =IF(L6="","1E-10",IF(L7="",W5*10^L5,(IF(L8="",W5*10^L6,(IF(L9="",W5*10^L7,(IF(L10="",W5*10^L8,W5*10^L9)))))))) -> 1.342764961e+12 | X6: 7762471166286925 | Y6: 1E-10 | Z6: 1E-10 | AA6: 4.797334486e+16 | AB6: 1E-10 | AC6: =IF(R6="","1E-10",IF(R7="",AC5*10^R5)) -> 1E-10 | AD6: =IF(S6="","1E-10",IF(S7="",AD5*10^S5)) -> 1E-10 | AE6: =IF(T6="","1E-10",IF(T7="",AE5*10^T5)) -> 4.797334486e+16 | AF6: pKa2 = logKpn-1 | AG6: =IF(VLOOKUP(K$2,Database!$B$22:$N$301,5)="","",VLOOKUP(K$2,Database!$B$22:$N$301,5)) -> 4.761 | AH6: =IF(VLOOKUP(L$2,Database!$B$22:$N$301,5)="","",VLOOKUP(L$2,Database!$B$22:$N$301,5)) -> 9.778 | AI6: =IF(VLOOKUP(M$2,Database!$B$22:$N$301,5)="","",VLOOKUP(M$2,Database!$B$22:$N$301,5)) -> 11.79 | AJ6: =IF(VLOOKUP(N$2,Database!$B$22:$N$301,5)="","",VLOOKUP(N$2,Database!$B$22:$N$301,5)) ->  | AK6: =IF(VLOOKUP(O$2,Database!$B$22:$N$301,5)="","",VLOOKUP(O$2,Database!$B$22:$N$301,5)) ->  | AL6: =IF(VLOOKUP(P$2,Database!$B$22:$N$301,5)="","",VLOOKUP(P$2,Database!$B$22:$N$301,5)) -> 10.329 | AM6: =IF(VLOOKUP(Q$2,Database!$B$22:$N$301,5)="","",VLOOKUP(Q$2,Database!$B$22:$N$301,5)) ->  | AP6: 2. Click on the File tab (or the Office button, in Windows XP)(top left corner)
A7: [H3B] | B7: =IF(K7="",0,(B$11*(V$7*$AU41^(-6*V$4-6))*$D41^3)/M$41) -> 0.0145410229 | C7: =IF(L7="",0,(C$11*(W$7*$AU41^(-6*W$4-6))*$D41^3)/N$41) -> 0 | D7: 0 | E7: 0 | F7: 0 | G7: 0 | H7: 0 | J7: pKa3 | K7: 6.396 | U7: bp3 | V7: =IF(K7="","1E-10",IF(K8="",V6*10^K5,(IF(K9="",V6*10^K6,(IF(K10="",V6*10^K7,V6*10^K8)))))) -> 1.927524913e+14 | W7: 1E-10 | X7: 1E-10 | Y7: 1E-10 | Z7: 1E-10 | AA7: 1E-10 | AB7: 1E-10 | AF7: pKa3 = logKpn-2 | AG7: =IF(VLOOKUP(K$2,Database!$B$22:$N$301,6)="","",VLOOKUP(K$2,Database!$B$22:$N$301,6)) -> 6.396 | AH7: =IF(VLOOKUP(L$2,Database!$B$22:$N$301,6)="","",VLOOKUP(L$2,Database!$B$22:$N$301,6)) ->  | AI7: =IF(VLOOKUP(M$2,Database!$B$22:$N$301,6)="","",VLOOKUP(M$2,Database!$B$22:$N$301,6)) ->  | AJ7: =IF(VLOOKUP(N$2,Database!$B$22:$N$301,6)="","",VLOOKUP(N$2,Database!$B$22:$N$301,6)) ->  | AK7: =IF(VLOOKUP(O$2,Database!$B$22:$N$301,6)="","",VLOOKUP(O$2,Database!$B$22:$N$301,6)) ->  | AL7: =IF(VLOOKUP(P$2,Database!$B$22:$N$301,6)="","",VLOOKUP(P$2,Database!$B$22:$N$301,6)) ->  | AM7: =IF(VLOOKUP(Q$2,Database!$B$22:$N$301,6)="","",VLOOKUP(Q$2,Database!$B$22:$N$301,6)) -> 
A8: [H4B] | B8: =IF(K8="",0,(B$11*(V$8*$AU41^(-8*V$4-12))*$D41^4)/M$41) -> 0 | C8: =IF(L8="",0,(C$11*(W$8*$AU41^(-8*W$4-12))*$D41^4)/N$41) -> 0 | D8: 0 | E8: 0 | F8: 0 | G8: 0 | H8: 0 | J8: pKa4 | R8: pKw | U8: bp4 | V8: =IF(K8="","1E-10",IF(K9="",V7*10^K5,(IF(K10="",V7*10^K6,V7*10^K7)))) -> 1E-10 | W8: 1E-10 | X8: 1E-10 | Y8: 1E-10 | Z8: 1E-10 | AA8: 1E-10 | AB8: 1E-10 | AC8: Kw | AF8: pKa4 = logKpn-3 | AG8: =IF(VLOOKUP(K$2,Database!$B$22:$N$301,7)="","",VLOOKUP(K$2,Database!$B$22:$N$301,7)) ->  | AH8: =IF(VLOOKUP(L$2,Database!$B$22:$N$301,7)="","",VLOOKUP(L$2,Database!$B$22:$N$301,7)) ->  | AI8: =IF(VLOOKUP(M$2,Database!$B$22:$N$301,7)="","",VLOOKUP(M$2,Database!$B$22:$N$301,7)) ->  | AJ8: =IF(VLOOKUP(N$2,Database!$B$22:$N$301,7)="","",VLOOKUP(N$2,Database!$B$22:$N$301,7)) ->  | AK8: =IF(VLOOKUP(O$2,Database!$B$22:$N$301,7)="","",VLOOKUP(O$2,Database!$B$22:$N$301,7)) ->  | AL8: =IF(VLOOKUP(P$2,Database!$B$22:$N$301,7)="","",VLOOKUP(P$2,Database!$B$22:$N$301,7)) ->  | AM8: =IF(VLOOKUP(Q$2,Database!$B$22:$N$301,7)="","",VLOOKUP(Q$2,Database!$B$22:$N$301,7)) ->  | AP8: 3. Click on "Options" (bottom left) | AT8: Window for Mac: skip step 2, click "Tools"
A9: [H5B] | B9: =IF(K9="",0,(B$11*(V$9*$AU41^(-10*V$4-20))*$D41^5)/M$41) -> 0 | C9: =IF(L9="",0,(C$11*(W$9*$AU41^(-10*W$4-20))*$D41^5)/N$41) -> 0 | D9: 0 | E9: 0 | F9: 0 | G9: 0 | H9: 0 | I9: Total | J9: pKa5 | R9: 13.997 | U9: bp5 | V9: =IF(K9="","1E-10",IF(K10="",V8*10^K5,V8*10^K6)) -> 1E-10 | W9: 1E-10 | X9: 1E-10 | Y9: 1E-10 | Z9: 1E-10 | AA9: 1E-10 | AB9: 1E-10 | AC9: =10^-R9 -> 1.006931669e-14 | AF9: pKa5 = logKpn-4 | AG9: =IF(VLOOKUP(K$2,Database!$B$22:$N$301,8)="","",VLOOKUP(K$2,Database!$B$22:$N$301,8)) ->  | AH9: =IF(VLOOKUP(L$2,Database!$B$22:$N$301,8)="","",VLOOKUP(L$2,Database!$B$22:$N$301,8)) ->  | AI9: =IF(VLOOKUP(M$2,Database!$B$22:$N$301,8)="","",VLOOKUP(M$2,Database!$B$22:$N$301,8)) ->  | AJ9: =IF(VLOOKUP(N$2,Database!$B$22:$N$301,8)="","",VLOOKUP(N$2,Database!$B$22:$N$301,8)) ->  | AK9: =IF(VLOOKUP(O$2,Database!$B$22:$N$301,8)="","",VLOOKUP(O$2,Database!$B$22:$N$301,8)) ->  | AL9: =IF(VLOOKUP(P$2,Database!$B$22:$N$301,8)="","",VLOOKUP(P$2,Database!$B$22:$N$301,8)) ->  | AM9: =IF(VLOOKUP(Q$2,Database!$B$22:$N$301,8)="","",VLOOKUP(Q$2,Database!$B$22:$N$301,8)) -> 
A10: [H6B] | B10: =IF(K10="",0,(B$11*(V$10*$AU41^(-12*V$4-30))*$D41^6)/M$41) -> 0 | C10: =IF(L10="",0,(C$11*(W$10*$AU41^(-12*W$4-30))*$D41^6)/N$41) -> 0 | D10: 0 | E10: 0 | F10: 0 | G10: 0 | H10: 0 | I10: SS | J10: pKa6 | U10: bp6 | V10: =IF(K10="","1E-10",V9*10^K5) -> 1E-10 | W10: 1E-10 | X10: 1E-10 | Y10: 1E-10 | Z10: 1E-10 | AA10: 1E-10 | AB10: 1E-10 | AF10: pKa6 = logKpn-5 | AG10: =IF(VLOOKUP(K$2,Database!$B$22:$N$301,9)="","",VLOOKUP(K$2,Database!$B$22:$N$301,9)) ->  | AH10: =IF(VLOOKUP(L$2,Database!$B$22:$N$301,9)="","",VLOOKUP(L$2,Database!$B$22:$N$301,9)) ->  | AI10: =IF(VLOOKUP(M$2,Database!$B$22:$N$301,9)="","",VLOOKUP(M$2,Database!$B$22:$N$301,9)) ->  | AJ10: =IF(VLOOKUP(N$2,Database!$B$22:$N$301,9)="","",VLOOKUP(N$2,Database!$B$22:$N$301,9)) ->  | AK10: =IF(VLOOKUP(O$2,Database!$B$22:$N$301,9)="","",VLOOKUP(O$2,Database!$B$22:$N$301,9)) ->  | AL10: =IF(VLOOKUP(P$2,Database!$B$22:$N$301,9)="","",VLOOKUP(P$2,Database!$B$22:$N$301,9)) ->  | AM10: =IF(VLOOKUP(Q$2,Database!$B$22:$N$301,9)="","",VLOOKUP(Q$2,Database!$B$22:$N$301,9)) ->  | AP10: 4. Click on "Add-ins" (bottom left)
A11: S[HiB] | B11: 0.02498698358 | C11: 0.03509379993 | D11: 0 | E11: 0 | F11: 0 | G11: 0 | H11: 0 | I11: =SUM(B11:H11) -> 0.06008078351 | J11: SS[bases] | N11: Correction of the pH sensor calibration | Q11: Ionic Strength, I (initial) | S11: Sample ions | T11: Titrant ions | Y11: Overall apparent constants recalculated for applied initial I = | Z11: =AT41 -> 0.01086213258 | AA11: and g H+= | AB11: =S23 -> 0.8987043944 | AC11: recalc. for | AD11: g H+= | AE11: 0.7815939819
A12: S[H] bound | B12: =B5+2*B6+3*B7+4*B8+5*B9+6*B10 -> 0.06430696676 | C12: 0.04305012744 | D12: 0 | E12: 0 | F12: 0 | G12: 0 | H12: 0 | I12: =SUM(B12:H12) -> 0.1073570942 | J12: SS[H] bound | N12: Intersection pH (may be fitted) | P12: 7 | Q12: Other ions | R12: SCk(z=1) | S12: 0 | T12: 0 | U12: bp1 | V12: =IF(K5="","",(V5*$AB$11^(-2*V$4))) -> 1311297.375 | W12: 4844330118 | X12: 4.022235189e+11 | Y12: 46156.59154 | Z12: 1753880502 | AA12: 1.391449539e+10 | AB12: 8.076695886e-08 | AC12: 6.108891525e-08 | AD12: 3395958805837007 | AE12: 7960215532 | AP12: 5. Click on "Solver" in the Add-Ins list | AT12: Window for Mac: check the Solver box; skip 6 na 7
A13: max. free H | B13: =IF(K4="","0",(-K4*B11)-B12) -> 0.01065398399 | C13: =IF(L4="","0",(-L4*C11)-C12) -> -0.007956327508 | D13: 0 | E13: 0 | F13: 0 | G13: 0 | H13: 0 | I13: =SUM(B13:H13) -> 0.002697656484 | J13: SS[H] max. free H+ | K13: (negative results are possible) | N13: Slope (may be fitted, read comment) | P13: 1 | Q13: mol/L | R13: SCk(z=2) | S13: 0 | T13: 0 | U13: bp2 | V13: =IF(K6="","",(V6*$AB$11^(-4*V$4-2))) -> 4.93365359e+10 | W13: =IF(L6="","",(W6*$AB$11^(-4*W$4-2))) -> 1.084510424e+12 | X13: 4089791723460359 | AA13: 2.527558358e+16 | AE13: 1.09367237e+16
A14: TITRANT | B14: =R3 -> Strong ACID | C14: =S3 -> Strong BASE | D14: =T3 -> Carbonic ac. | F14: Volume of Titrand (mL) | H14: Sample | I14: =I18-(I12+I13) -> 1.436343957e-05 | J14: Partial charge balance <--> counterions (opposite signal) | M14: =S15 -> 0.001388041534 | O14: Davies equation parameters | Q14: (z = ion charge) | R14: 1/2.SCkzk2 = Ik | S14: =0.5*(S12+S13*4) -> 0 | T14: =0.5*(T12+T13*4) -> 0 | U14: bp3 | V14: =IF(K7="","",(V7*$AB$11^(-6*V$4-6))) -> 5.350598746e+13 | W14: =IF(L7="","",(W7*$AB$11^(-6*W$4-6))) ->  | AP14: 6. Click on "Go" near the bottom of the page
A15: [B] | C15: 0.1 | E15: SAMPLE | F15: Water | G15: Total | H15: Titrand [H]=10-p[H] | I15: =D41 -> 0.001309614959 | J15: =IF(C41="",B41,C41) -> 2.886163235 | K15: initial p[H] | O15: for activity coefficient estimation | Q15: Minimum | R15: SzjCj | S15: =-(S18/S17) - (G16/E16)*(S24- $AC$9/AU41^2/S24) -> 0.001388041534 | T15: =-T18/T17 - (T24- $AC$9/AE11^2/T24) -> 0.09999998952 | U15: bp4 | V15: =IF(K8="","",(V8*$AB$11^(-8*V$4-12))) ->  | W15: =IF(L8="","",(W8*$AB$11^(-8*W$4-12))) -> 
A16: [HB] | E16: 20 | F16: 0 | G16: =E16+F16 -> 20 | H16: Titrand [OH]=Kw/[H] | I16: =AB21/I15 -> 9.519686408e-12 | J16: =-LOG(AB21)-J15 -> 11.0180705 | K16: initial p[OH] for ionic strength, I | M16: =AT41 -> 0.01086213258 | O16: A | P16: 0.509 | Q16: of counterions | R16: 1/2.SCjzj2 = Ij | S16: =0.5*S17^2*ABS(S15) -> 0.0006940207672 | T16: =0.5*T17^2*ABS(T15) -> 0.04999999476 | U16: bp5 | V16: =IF(K9="","",(V9*$AB$11^(-10*V$4-20))) ->  | W16: =IF(L9="","",(W9*$AB$11^(-10*W$4-20))) ->  | AP16: 7. Check Solver add-in in the pop-on box
A17: [H2B] | E17: SS | H17: Sample CHcalc | I17: =I12+ (G16/E16)*(I15-I16) -> 0.1086667091 | O17: b | P17: 0.3 | Q17: for acids/bases | R17: Counterion charge | S17: 1 | T17: 1 | U17: bp6 | V17: =IF(K10="","",(V10*$AB$11^(-12*V$4-30))) ->  | W17: =IF(L10="","",(W10*$AB$11^(-12*W$4-30))) -> 
A18: S[HiB] | B18: =B15+B16+B17 -> 0 | C18: =C15+C16+C17 -> 0.1 | D18: =D15+D16+D17 -> 0 | E18: =SUM(B18:D18) -> 0.1 | F18: SS[HiB] | H18: Sample CHreg | I18: 0.1100691141 | J18: <--- Find CHReg, concentrations (line 11, in blue) and pKas with Solver | Q18: Acid/base ions | R18: SziCi | S18: =SUM(V18:AB18) -> -0.002697656484 | T18: =SUM(AC18:AE18) -> -0.0001780131665 | U18: SziCi | V18: =K4*B4+(K4+1)*B5+(K4+2)*B6+(K4+3)*B7+(K4+4)*B8+(K4+5)*B9+(K4+6)*B10 -> -0.01065398399 | W18: 0.007956327508 | X18: 0 | Y18: 0 | Z18: 0 | AA18: 0 | AB18: 0 | AC18: 0 | AD18: -0.0001780131665 | AE18: 0 | AP18: 8. Click OK; follow steps 1 to 8 only once on each computer
A19: S[H] | B19: =B16+2*B17 -> 0 | C19: =C16+2*C17 -> 0 | D19: =D16+2*D17 -> 0 | E19: =SUM(B19:D19) -> 0 | F19: SS [H] pH | G19: 12.88920737 | H19: S(|RCH|a×|dpH|b×|RpH|c) | I19: =SUM($G$41:$G$201) -> 1.007039844e-05 | J19: <--- Minimize S of weighted residuals product with Solver | Q19: at given pH | R19: 1/2.SCizi2 = Ii | S19: =0.5*SUM(V19:AB19) -> 0.009513304333 | T19: =0.5*(SUM(AC19:AE19)) -> 8.900658325e-05 | U19: Szi2Ci | V19: =V4^2*B4+(V4+1)^2*B5+(V4+2)^2*B6+(V4+3)^2*B7+(V4+4)^2*B8+(V4+5)^2*B9+(V4+6)^2*B10 -> 0.0110702726 | W19: 0.007956336063 | X19: 0 | Y19: 0 | Z19: 0 | AA19: 0 | AB19: 0 | AC19: 0 | AD19: 0.0001780131665 | AE19: 0
H20: Weights: exponent a | I20: 2 | J20: exponent b | K20: 0 | L20: exponent c | M20: 0 | Q20: Total I | R20: I = Ii+Ij+Ik+IH+IOH | S20: =S19+S16+S14+0.5*S24/L41+0.5*S25/L41 -> 0.01086213258 | T20: =T19+T16+T14+0.5*T24+0.5*T25 -> 0.09999998952 | AB20: Kw | AC20: Kw | AP20: 9. Open the CurTiPot file and click on the Regression lower tab
Q21: Action | R21: Parameter | S21: Titrand | T21: Titrant | AB21: =AC9/S23^2 -> 1.246712372e-14 | AC21: =AC9/T23^2 -> 1.64830504e-14
R22: I | S22: =AT41 -> 0.01086213258 | T22: 0.09999993245 | AP22: 10. Click on the upper Data tab and click on Solver in the Analysis group (at the right)
N23: CHreg - CHcalc residuals | R23: g H+ | S23: =AU41 -> 0.8987043944 | T23: 0.7815939819
N24: Mean | O24: =AVERAGE(H41:H201) -> -1.24970946e-06 | R24: [H+] | S24: =D41 -> 0.001309614959 | T24: 1.651244646e-13 | AP24: To learn from the authors' of Excel Solver about the design, uses and limitations
N25: Median | O25: =MEDIAN(H41:H201) -> -1.111004202e-05 | R25: [OH-] | S25: =AB21/D41 -> 9.519686408e-12 | T25: 0.09982197635 | AP25: of the generalized reduced gradient method of nonlinear optimization, visit
N26: Std. Deviation | O26: =STDEV(H42:H201) -> 0.0003420292111 | R26: pH | S26: =IF(C41="",B41,C41) -> 2.886163235 | T26: 12.88920737 | AP26: https://www.solver.com/excel-solver-online-help
N27: RSD, % | O27: =100*O26/I17 -> 0.3147506847 | AP27: https://faculty.insead.edu/delquie/msp/Download%20Solutions/Design%20and%20Use%20of%20Solver.pdf
R29: Color coding
R30: D o n o t c h a n g e
N31: pHreg - pH residuals | R31: C h a n g e c r i t e r i o u s l y
N32: Mean | O32: =AVERAGE(F41:F201) -> -0.003180953904 | R32: Fill out, change or leave blank
N33: Median | O33: =MEDIAN(F41:F201) -> 0.001276832607
N34: Std. Deviation | O34: =STDEV(F41:F201) -> 0.02343029269
A38: Spreadsheet for 160 data pairs; it can be expanded or shortened (to gain speed). | G38: To modify the axis of a plot or copy a figure, see instructions in cells R43, 44 and 45 of Evaluation
A39: Vol. added | B39: simulated or | C39: calculated pH | D39: [H] | E39: dpH/dV | F39: pHreg-pH | G39: Weighting | H39: CHReg-CHcalc | I39: CHReg | J39: CHcalc | K39: Dill. Titrant | L39: Dil Titrand | M39: den1 | N39: den2 | O39: den3 | P39: den4 | Q39: den5 | R39: den6 | S39: den7 | T39: den1 titrant | U39: den2 titrant | V39: den3 titrant | W39: h1 | X39: h2 | Y39: h3 | Z39: h4 | AA39: h5 | AB39: h6 | AC39: h7 | AD39: h1 titrant | AE39: h2 titrant | AF39: h3 titrant | AG39: I1 | AH39: I2 | AI39: I3 | AJ39: I4 | AK39: I5 | AL39: I6 | AM39: I7 | AN39: I1 titrant | AO39: I2 titrant | AP39: I3 titrant | AQ39: Ipartial | AR39: Itotal | AS39: Click C22 | AT39: I total | AU39: g H+ | AW39: pHReg- pH | AX39: Reject
A40: (mL) | B40: measured pH | C40: from regression | D40: mol/L | E40: for data weighting | F40: for data weighting | G40: factors | H40: mol/L | I40: mol/L | J40: mol/L | M40: =K3 -> Citric acid | N40: Glycine | O40: Ascorbic acid | P40: Acetic acid | Q40: Ammonia | R40: Carbonic acid | S40: HCl | T40: Strong ACID | U40: Strong BASE | V40: Carbonic ac. | W40: =K3 -> Citric acid | X40: Glycine | Y40: Ascorbic acid | Z40: Acetic acid | AA40: Ammonia | AB40: Carbonic acid | AC40: HCl | AD40: Strong ACID | AE40: Strong BASE | AF40: Carbonic ac. | AG40: =K3 -> Citric acid | AH40: Glycine | AI40: Ascorbic acid | AJ40: Acetic acid | AK40: Ammonia | AL40: Carbonic acid | AM40: HCl | AN40: =R3 -> Strong ACID | AO40: =S3 -> Strong BASE | AP40: =T3 -> Carbonic ac. | AQ40: mol/L | AR40: mol/L | AS40: to update AT --> | AT40: applied mol/L | AU40: applied | AX40: with X
A41: 0 | B41: 2.929239508 | C41: 2.886163235 | D41: =IF(A41="","",10^-((((B41-P$12)/P$13)+7))/$AU41) -> 0.001309614959 | E41: =IF(A42="","0",(B42-B41)/(A42-A41)) -> 0.1082286252 | F41: =IF(A41="","",IF(C41="","0,00001",(IF(ABS(C41-B41)<0.00001,0.00001,C41-B41)))) -> -0.04307627293 | G41: =IF(A41="","",IF(AX41="X",0,IF(ABS(E41)<0.00001,(0.00001^K$20)*(ABS(H41)^I$20)*ABS(F41)^M$20,((ABS(E41))^K$20)*((ABS(H41))^I$20)*ABS(F41)^N$20))) -> 1.966739711e-06 | H41: =IF(A41="","",I41-J41) -> 0.001402404974 | I41: =IF(A41="","",L41*I$18+K41*E$19) -> 0.1100691141 | J41: =IF(A41="","",D41 -$AC$9/AU41^2/D41+L41*(W41*$B$11+X41*$C$11+Y41*$D$11+Z41*$E$11+AA41*$F$11+AB41*$G$11+AC41*$H$11)+K41*(AD41*$B$18+AE41*$C$18+AF41*$D$18)) -> 0.1086667091 | K41: =IF(A41="","",A41/(A41+$G$16)) -> 0 | L41: =IF(A41="","",$E$16/(A41+$G$16)) -> 1 | M41: =IF($A41="","",(1+(V$5*$AU41^(-2*V$4))*$D41+(V$6*$AU41^(-4*V$4-2))*$D41^2+(V$7*$AU41^(-6*V$4-6))*$D41^3+(V$8*$AU41^(-8*V$4-12))*$D41^4+(V$9*$AU41^(-10*V$4-20))*$D41^5+(V$10*$AU41^(-12*V$4-30))*$D41^6)) -> 206515.2549 | N41: 8204242.624 | O41: 7541124307 | P41: 61.44736272 | Q41: 2296909.141 | R41: 4.336815716e+10 | S41: 1 | T41: =IF($A41="","",(1+(AC$5*$AU41^(-2*AC$4))*$D41+(AC$6*$AU41^(-4*AC$4-2))*$D41^2)) -> 1 | U41: =IF($A41="","",(1+(AD$5*$AU41^(-2*AD$4))*$D41+(AD$6*$AU41^(-4*AD$4-2))*$D41^2)) -> 5.880000427e+12 | V41: =IF($A41="","",(1+(AE$5*$AU41^(-2*AE$4))*$D41+(AE$6*$AU41^(-4*AE$4-2))*$D41^2)) -> 4.336815716e+10 | W41: =IF($A41="","",((V$5*$AU41^(-2*V$4))*$D41+2*(V$6*$AU41^(-4*V$4-2))*$D41^2+3*(V$7*$AU41^(-6*V$4-6))*$D41^3+4*(V$8*$AU41^(-8*V$4-12))*$D41^4+5*(V$9*$AU41^(-10*V$4-20))*$D41^5+6*(V$10*$AU41^(-12*V$4-30))*$D41^6)/M41) -> 2.573618642 | X41: 1.226716045 | Y41: 1.93014862 | Z41: 0.9837259086 | AA41: 0.9999995646 | AB41: 1.999579815 | AC41: 1.057738952e-10 | AD41: =IF($A41="","",((AC$5*$AU41^(-2*AC$4))*$D41+2*(AC$6*$AU41^(-4*AC$4-2))*$D41^2)/T41) -> 1.057738945e-10 | AE41: =IF($A41="","",((AD$5*$AU41^(-2*AD$4))*$D41+2*(AD$6*$AU41^(-4*AD$4-2))*$D41^2)/U41) -> 1 | AF41: =IF($A41="","",((AE$5*$AU41^(-2*AE$4))*$D41+2*(AE$6*$AU41^(-4*AE$4-2))*$D41^2)/V41) -> 1.999579815 | AG41: =IF(B$11=0,"",IF($A41="","",0.5*B$11*$L41*(1*V$4^2+(V$5*$AU41^(-2*V$4))*$D41*(V$4+1)^2+(V$6*$AU41^(-4*V$4-2))*$D41^2*(V$4+2)^2+(V$7*$AU41^(-6*V$4-6))*$D41^3*(V$4+3)^2+(V$8*$AU41^(-8*V$4-12))*$D41^4*(V$4+4)^2+(V$9*$AU41^(-10*V$4-20))*$D41^5*(V$4+5)^2+(V$10*$AU41^(-12*V$4-30))*$D41^6*(V$4+6)^2)/M41)) -> 0.005535136302 | AH41: 0.003978168032 | AN41: =IF(B$18=0,"",IF($A41="","",0.5*B$18*$K41*(1*AC$4^2+(AC$5*$AU41^(-2*AC$4))*$D41*(AC$4+1)^2+(AC$6*$AU41^(-4*AC$4-2))*$D41^2*(AC$4+2)^2)/T41)) ->  | AO41: =IF(C$18=0,"",IF($A41="","",0.5*C$18*$K41*(1*AD$4^2+(AD$5*$AU41^(-2*AD$4))*$D41*(AD$4+1)^2+(AD$6*$AU41^(-4*AD$4-2))*$D41^2*(AD$4+2)^2)/U41)) -> 0 | AP41: =IF(D$18=0,"",IF($A41="","",0.5*D$18*$K41*(1*AE$4^2+(AE$5*$AU41^(-2*AE$4))*$D41*(AE$4+1)^2+(AE$6*$AU41^(-4*AE$4-2))*$D41^2*(AE$4+2)^2)/V41)) ->  | AQ41: =IF(A41="","",SUM(AG41:AP41)+0.5*(D41+ $AC$9/AU41^2/D41)+$L41*$S$16+$K41*$T$16) -> 0.01086213258 | AR41: =IF(A41="","",AQ41+$L41*S$14+$K41*$T$14) -> 0.01086213258 | AT41: 0.01086213258 | AU41: =IF(A41="","",10^(-$P$16*($AT41^0.5/(1+$AT41^0.5)-$P$17*$AT41))) -> 0.8987043944 | AW41: =IF(C41="","",C41-B41) -> -0.04307627293
A42: 0.8779536831 | B42: 3.024259228 | C42: 3.02553606 | D42: =IF(A42="","",10^-((((B42-P$12)/P$13)+7))/$AU42) -> 0.001059862129 | E42: =IF(A42="","",IF(A43="",(B42-B41)/(A42-A41),((B43-B42)/(A43-A42)+(B42-B41)/(A42-A41))/2)) -> 0.1159003909 | F42: =IF(A42="","",IF(C42="","0,00001",(IF(ABS(C42-B42)<0.00001,0.00001,C42-B42)))) -> 0.001276832607 | G42: =IF(A42="","",IF(AX42="X",0,IF(ABS(E42)<0.00001,(0.00001^M$20)*(ABS(H42)^I$20)*ABS(F42)^K$20,((ABS(E42))^M$20)*((ABS(H42))^I$20)*ABS(F42)^K$20))) -> 1.420636119e-09 | H42: =IF(A42="","",I42-J42) -> -3.769132684e-05 | I42: =IF(A42="","",L42*I$18+K42*E$19) -> 0.1054405195 | J42: =IF(A42="","",D42 -$AC$9/AU42^2/D42+L42*(W42*$B$11+X42*$C$11+Y42*$D$11+Z42*$E$11+AA42*$F$11+AB42*$G$11+AC42*$H$11)+K42*(AD42*$B$18+AE42*$C$18+AF42*$D$18)) -> 0.1054782108 | K42: =IF(A42="","",A42/(A42+$G$16)) -> 0.04205171141 | L42: =IF(A42="","",$E$16/(A42+$G$16)) -> 0.9579482886 | M42: =IF($A42="","",(1+(V$5*$AU42^(-2*V$4))*$D42+(V$6*$AU42^(-4*V$4-2))*$D42^2+(V$7*$AU42^(-6*V$4-6))*$D42^3+(V$8*$AU42^(-8*V$4-12))*$D42^4+(V$9*$AU42^(-10*V$4-20))*$D42^5+(V$10*$AU42^(-12*V$4-30))*$D42^6)) -> 111335.1249 | N42: =IF($A42="","",(1+(W$5*$AU42^(-2*W$4))*$D42+(W$6*$AU42^(-4*W$4-2))*$D42^2+(W$7*$AU42^(-6*W$4-6))*$D42^3+(W$8*$AU42^(-8*W$4-12))*$D42^4+(W$9*$AU42^(-10*W$4-20))*$D42^5+(W$10*$AU42^(-12*W$4-30))*$D42^6)) -> 6261782.481 | O42: =IF($A42="","",(1+(X$5*$AU42^(-2*X$4))*$D42+(X$6*$AU42^(-4*X$4-2))*$D42^2+(X$7*$AU42^(-6*X$4-6))*$D42^3+(X$8*$AU42^(-8*X$4-12))*$D42^4+(X$9*$AU42^(-10*X$4-20))*$D42^5+(X$10*$AU42^(-12*X$4-30))*$D42^6)) -> 4814148516 | P42: =IF($A42="","",(1+(Y$5*$AU42^(-2*Y$4))*$D42+(Y$6*$AU42^(-4*Y$4-2))*$D42^2+(Y$7*$AU42^(-6*Y$4-6))*$D42^3+(Y$8*$AU42^(-8*Y$4-12))*$D42^4+(Y$9*$AU42^(-10*Y$4-20))*$D42^5+(Y$10*$AU42^(-12*Y$4-30))*$D42^6)) -> 49.22055117 | Q42: =IF($A42="","",(1+(Z$5*$AU42^(-2*Z$4))*$D42+(Z$6*$AU42^(-4*Z$4-2))*$D42^2+(Z$7*$AU42^(-6*Z$4-6))*$D42^3+(Z$8*$AU42^(-8*Z$4-12))*$D42^4+(Z$9*$AU42^(-10*Z$4-20))*$D42^5+(Z$10*$AU42^(-12*Z$4-30))*$D42^6)) -> 1858872.523 | R42: =IF($A42="","",(1+(AA$5*$AU42^(-2*AA$4))*$D42+(AA$6*$AU42^(-4*AA$4-2))*$D42^2+(AA$7*$AU42^(-6*AA$4-6))*$D42^3+(AA$8*$AU42^(-8*AA$4-12))*$D42^4+(AA$9*$AU42^(-10*AA$4-20))*$D42^5+(AA$10*$AU42^(-12*AA$4-30))*$D42^6)) -> 2.720670368e+10 | S42: =IF($A42="","",(1+(AB$5*$AU42^(-2*AB$4))*$D42+(AB$6*$AU42^(-4*AB$4-2))*$D42^2+(AB$7*$AU42^(-6*AB$4-6))*$D42^3+(AB$8*$AU42^(-8*AB$4-12))*$D42^4+(AB$9*$AU42^(-10*AB$4-20))*$D42^5+(AB$10*$AU42^(-12*AB$4-30))*$D42^6)) -> 1 | T42: =IF($A42="","",(1+(AC$5*$AU42^(-2*AC$4))*$D42+(AC$6*$AU42^(-4*AC$4-2))*$D42^2)) -> 1 | U42: =IF($A42="","",(1+(AD$5*$AU42^(-2*AD$4))*$D42+(AD$6*$AU42^(-4*AD$4-2))*$D42^2)) -> 4.690640728e+12 | V42: =IF($A42="","",(1+(AE$5*$AU42^(-2*AE$4))*$D42+(AE$6*$AU42^(-4*AE$4-2))*$D42^2)) -> 2.720670368e+10 | W42: =IF($A42="","",((V$5*$AU42^(-2*V$4))*$D42+2*(V$6*$AU42^(-4*V$4-2))*$D42^2+3*(V$7*$AU42^(-6*V$4-6))*$D42^3+4*(V$8*$AU42^(-8*V$4-12))*$D42^4+5*(V$9*$AU42^(-10*V$4-20))*$D42^5+6*(V$10*$AU42^(-12*V$4-30))*$D42^6)/M42) -> 2.512849401 | X42: =IF($A42="","",((W$5*$AU42^(-2*W$4))*$D42+2*(W$6*$AU42^(-4*W$4-2))*$D42^2+3*(W$7*$AU42^(-6*W$4-6))*$D42^3+4*(W$8*$AU42^(-8*W$4-12))*$D42^4+5*(W$9*$AU42^(-10*W$4-20))*$D42^5+6*(W$10*$AU42^(-12*W$4-30))*$D42^6)/N42) -> 1.19177112 | Y42: =IF($A42="","",((X$5*$AU42^(-2*X$4))*$D42+2*(X$6*$AU42^(-4*X$4-2))*$D42^2+3*(X$7*$AU42^(-6*X$4-6))*$D42^3+4*(X$8*$AU42^(-8*X$4-12))*$D42^4+5*(X$9*$AU42^(-10*X$4-20))*$D42^5+6*(X$10*$AU42^(-12*X$4-30))*$D42^6)/O42) -> 1.913960974 | Z42: =IF($A42="","",((Y$5*$AU42^(-2*Y$4))*$D42+2*(Y$6*$AU42^(-4*Y$4-2))*$D42^2+3*(Y$7*$AU42^(-6*Y$4-6))*$D42^3+4*(Y$8*$AU42^(-8*Y$4-12))*$D42^4+5*(Y$9*$AU42^(-10*Y$4-20))*$D42^5+6*(Y$10*$AU42^(-12*Y$4-30))*$D42^6)/P42) -> 0.9796832832 | AA42: =IF($A42="","",((Z$5*$AU42^(-2*Z$4))*$D42+2*(Z$6*$AU42^(-4*Z$4-2))*$D42^2+3*(Z$7*$AU42^(-6*Z$4-6))*$D42^3+4*(Z$8*$AU42^(-8*Z$4-12))*$D42^4+5*(Z$9*$AU42^(-10*Z$4-20))*$D42^5+6*(Z$10*$AU42^(-12*Z$4-30))*$D42^6)/Q42) -> 0.999999462 | AB42: =IF($A42="","",((AA$5*$AU42^(-2*AA$4))*$D42+2*(AA$6*$AU42^(-4*AA$4-2))*$D42^2+3*(AA$7*$AU42^(-6*AA$4-6))*$D42^3+4*(AA$8*$AU42^(-8*AA$4-12))*$D42^4+5*(AA$9*$AU42^(-10*AA$4-20))*$D42^5+6*(AA$10*$AU42^(-12*AA$4-30))*$D42^6)/R42) -> 1.999473329 | AC42: =IF($A42="","",((AB$5*$AU42^(-2*AB$4))*$D42+2*(AB$6*$AU42^(-4*AB$4-2))*$D42^2+3*(AB$7*$AU42^(-6*AB$4-6))*$D42^3+4*(AB$8*$AU42^(-8*AB$4-12))*$D42^4+5*(AB$9*$AU42^(-10*AB$4-20))*$D42^5+6*(AB$10*$AU42^(-12*AB$4-30))*$D42^6)/S42) -> 8.437875101e-11 | AD42: =IF($A42="","",((AC$5*$AU42^(-2*AC$4))*$D42+2*(AC$6*$AU42^(-4*AC$4-2))*$D42^2)/T42) -> 8.437875065e-11 | AE42: =IF($A42="","",((AD$5*$AU42^(-2*AD$4))*$D42+2*(AD$6*$AU42^(-4*AD$4-2))*$D42^2)/U42) -> 1 | AF42: =IF($A42="","",((AE$5*$AU42^(-2*AE$4))*$D42+2*(AE$6*$AU42^(-4*AE$4-2))*$D42^2)/V42) -> 1.999473329 | AG42: =IF(B$11=0,"",IF($A42="","",0.5*B$11*$L42*(1*V$4^2+(V$5*$AU42^(-2*V$4))*$D42*(V$4+1)^2+(V$6*$AU42^(-4*V$4-2))*$D42^2*(V$4+2)^2+(V$7*$AU42^(-6*V$4-6))*$D42^3*(V$4+3)^2+(V$8*$AU42^(-8*V$4-12))*$D42^4*(V$4+4)^2+(V$9*$AU42^(-10*V$4-20))*$D42^5*(V$4+5)^2+(V$10*$AU42^(-12*V$4-30))*$D42^6*(V$4+6)^2)/M42)) -> 0.006117089619 | AH42: =IF(C$11=0,"",IF($A42="","",0.5*C$11*$L42*(1*W$4^2+(W$5*$AU42^(-2*W$4))*$D42*(W$4+1)^2+(W$6*$AU42^(-4*W$4-2))*$D42^2*(W$4+2)^2+(W$7*$AU42^(-6*W$4-6))*$D42^3*(W$4+3)^2+(W$8*$AU42^(-8*W$4-12))*$D42^4*(W$4+4)^2+(W$9*$AU42^(-10*W$4-20))*$D42^5*(W$4+5)^2+(W$10*$AU42^(-12*W$4-30))*$D42^6*(W$4+6)^2)/N42)) -> 0.003223490503 | AI42: =IF(D$11=0,"",IF($A42="","",0.5*D$11*$L42*(1*X$4^2+(X$5*$AU42^(-2*X$4))*$D42*(X$4+1)^2+(X$6*$AU42^(-4*X$4-2))*$D42^2*(X$4+2)^2+(X$7*$AU42^(-6*X$4-6))*$D42^3*(X$4+3)^2+(X$8*$AU42^(-8*X$4-12))*$D42^4*(X$4+4)^2+(X$9*$AU42^(-10*X$4-20))*$D42^5*(X$4+5)^2+(X$10*$AU42^(-12*X$4-30))*$D42^6*(X$4+6)^2)/O42)) ->  | AJ42: =IF(E$11=0,"",IF($A42="","",0.5*E$11*$L42*(1*Y$4^2+(Y$5*$AU42^(-2*Y$4))*$D42*(Y$4+1)^2+(Y$6*$AU42^(-4*Y$4-2))*$D42^2*(Y$4+2)^2+(Y$7*$AU42^(-6*Y$4-6))*$D42^3*(Y$4+3)^2+(Y$8*$AU42^(-8*Y$4-12))*$D42^4*(Y$4+4)^2+(Y$9*$AU42^(-10*Y$4-20))*$D42^5*(Y$4+5)^2+(Y$10*$AU42^(-12*Y$4-30))*$D42^6*(Y$4+6)^2)/P42)) ->  | AK42: =IF(F$11=0,"",IF($A42="","",0.5*F$11*$L42*(1*Z$4^2+(Z$5*$AU42^(-2*Z$4))*$D42*(Z$4+1)^2+(Z$6*$AU42^(-4*Z$4-2))*$D42^2*(Z$4+2)^2+(Z$7*$AU42^(-6*Z$4-6))*$D42^3*(Z$4+3)^2+(Z$8*$AU42^(-8*Z$4-12))*$D42^4*(Z$4+4)^2+(Z$9*$AU42^(-10*Z$4-20))*$D42^5*(Z$4+5)^2+(Z$10*$AU42^(-12*Z$4-30))*$D42^6*(Z$4+6)^2)/Q42)) ->  | AL42: =IF(G$11=0,"",IF($A42="","",0.5*G$11*$L42*(1*AA$4^2+(AA$5*$AU42^(-2*AA$4))*$D42*(AA$4+1)^2+(AA$6*$AU42^(-4*AA$4-2))*$D42^2*(AA$4+2)^2+(AA$7*$AU42^(-6*AA$4-6))*$D42^3*(AA$4+3)^2+(AA$8*$AU42^(-8*AA$4-12))*$D42^4*(AA$4+4)^2+(AA$9*$AU42^(-10*AA$4-20))*$D42^5*(AA$4+5)^2+(AA$10*$AU42^(-12*AA$4-30))*$D42^6*(AA$4+6)^2)/R42)) ->  | AM42: =IF(H$11=0,"",IF($A42="","",0.5*H$11*$L42*(1*AB$4^2+(AB$5*$AU42^(-2*AB$4))*$D42*(AB$4+1)^2+(AB$6*$AU42^(-4*AB$4-2))*$D42^2*(AB$4+2)^2+(AB$7*$AU42^(-6*AB$4-6))*$D42^3*(AB$4+3)^2+(AB$8*$AU42^(-8*AB$4-12))*$D42^4*(AB$4+4)^2+(AB$9*$AU42^(-10*AB$4-20))*$D42^5*(AB$4+5)^2+(AB$10*$AU42^(-12*AB$4-30))*$D42^6*(AB$4+6)^2)/S42)) ->  | AN42: =IF(B$18=0,"",IF($A42="","",0.5*B$18*$K42*(1*AC$4^2+(AC$5*$AU42^(-2*AC$4))*$D42*(AC$4+1)^2+(AC$6*$AU42^(-4*AC$4-2))*$D42^2*(AC$4+2)^2)/T42)) ->  | AO42: =IF(C$18=0,"",IF($A42="","",0.5*C$18*$K42*(1*AD$4^2+(AD$5*$AU42^(-2*AD$4))*$D42*(AD$4+1)^2+(AD$6*$AU42^(-4*AD$4-2))*$D42^2*(AD$4+2)^2)/U42)) -> 4.482512501e-16 | AP42: =IF(D$18=0,"",IF($A42="","",0.5*D$18*$K42*(1*AE$4^2+(AE$5*$AU42^(-2*AE$4))*$D42*(AE$4+1)^2+(AE$6*$AU42^(-4*AE$4-2))*$D42^2*(AE$4+2)^2)/V42)) ->  | AQ42: =IF(A42="","",SUM(AG42:AP42)+0.5*(D42+ $AC$9/AU42^2/D42)+$L42*$S$16+$K42*$T$16) -> 0.01263793255 | AR42: =IF(A42="","",AQ42+$L42*S$14+$K42*$T$14) -> 0.01263793255 | AT42: 0.01263793255 | AU42: =IF(A42="","",10^(-$P$16*($AT42^0.5/(1+$AT42^0.5)-$P$17*$AT42))) -> 0.8922599464 | AW42: =IF(C42="","",C42-B42) -> 0.001276832607
A43: 1.697972517 | B43: 3.125590724 | C43: 3.164815426 | D43: 0.0008445619137 | E43: =IF(A43="","",IF(A44="",(B43-B42)/(A43-A42),((B44-B43)/(A44-A43)+(B43-B42)/(A43-A42))/2)) -> 0.1731504419 | F43: 0.03922470234 | G43: 1.080012854e-06 | H43: -0.001039236669 | I43: 0.1014556674 | J43: 0.102494904 | K43: 0.07825489298 | L43: 0.921745107 | M43: 59216.63169 | N43: 4735828.691 | O43: 3013015133 | P43: 38.94783996 | Q43: 1481261.673 | R43: 1.664257002e+10 | S43: 1 | T43: 1 | U43: 3.691365597e+12 | V43: 1.664257002e+10 | W43: 2.445930302 | X43: 1.159009105 | Y43: 1.89315817 | Z43: 0.9743246352 | AA43: 0.9999993249 | AB43: 1.999330852 | AC43: 6.640301443e-11 | AD43: 6.640301425e-11 | AE43: 1 | AF43: 1.999330852 | AG43: 0.006779086364 | AH43: 0.002571783386 | AN43: =IF(B$18=0,"",IF($A43="","",0.5*B$18*$K43*(1*AC$4^2+(AC$5*$AU43^(-2*AC$4))*$D43*(AC$4+1)^2+(AC$6*$AU43^(-4*AC$4-2))*$D43^2*(AC$4+2)^2)/T43)) ->  | AO43: 1.059972129e-15 | AQ43: 0.0143256052 | AR43: 0.0143256052 | AT43: 0.0143256052 | AU43: 0.8867021956 | AW43: 0.03922470234
A44: 2.45112643 | B44: 3.293339736 | C44: 3.303849697 | D44: 0.0005777164861 | E44: 0.2271306935 | F44: 0.01050996113 | G44: 5.867176007e-08 | H44: -0.0002422225424 | I44: 0.09805219748 | J44: 0.09829442002 | K44: 0.1091761003 | L44: 0.8908238997 | M44: 22277.84352 | N44: 3036886.411 | O44: 1425418317 | P44: 26.6215717 | Q44: 1013246.681 | R44: 7490883284 | S44: 1 | T44: 1 | U44: 2.492331274e+12 | V44: 7490883284 | W44: 2.334176998 | X44: 1.114522477 | Y44: 1.849493782 | Z44: 0.9624364778 | AA44: 0.9999990131 | AB44: 1.999009251 | AC44: 4.483387425e-11 | AD44: 4.483387419e-11 | AE44: 1 | AF44: 1.999009251 | AG44: 0.00808473555 | AH44: 0.001790133784 | AO44: 2.190240547e-15 | AQ44: 0.01624078232 | AR44: 0.01624078232 | AT44: 0.01624078232 | AU44: 0.8809383224 | AW44: 0.01050996113
A45: 3.134945036 | B45: 3.451666077 | C45: 3.442634106 | D45: 0.0004037269235 | E45: 0.2257242787 | F45: -0.009031970948 | G45: 3.272514983e-08 | H45: 0.0001809009393 | I45: 0.095153988 | J45: 0.09497308706 | K45: 0.1355069153 | L45: 0.8644930847 | M45: 9214.37156 | N45: 2023762.296 | O45: 715950637.9 | P45: 18.68398486 | Q45: 708089.7792 | R45: 3525950989 | S45: 1 | T45: 1 | U45: 1.720204718e+12 | V45: 3525950989 | W45: 2.22977587 | X45: 1.08289069 | Y45: 1.795737105 | Z45: 0.9464782268 | AA45: 0.9999985877 | AB45: 1.998565183 | AC45: 3.094428735e-11 | AD45: 3.094428733e-11 | AE45: 1 | AF45: 1.998565183 | AG45: 0.0093865234 | AH45: 0.001257398271 | AO45: 3.938685723e-15 | AQ45: 0.01822110636 | AR45: 0.01822110636 | AT45: 0.01822110636 | AU45: 0.8754799633 | AW45: -0.009031970948
A46: 3.754739316 | B46: 3.587968692 | C46: 3.581368923 | D46: 0.0002966105603 | E46: 0.1973774959 | F46: -0.006599768907 | G46: 1.362748121e-08 | H46: 0.0001167368032 | I46: 0.09267128774 | J46: 0.09255455094 | K46: 0.1580627456 | L46: 0.8419372544 | M46: 4437.848224 | N46: 1438128.188 | O46: 402559764 | P46: 13.84919756 | Q46: 520220.4784 | R46: 1842041433 | S46: 1 | T46: 1 | U46: 1.249902125e+12 | V46: 1842041433 | W46: 2.142134232 | X46: 1.062267319 | Y46: 1.738943178 | Z46: 0.9277936504 | AA46: 0.9999980777 | AB46: 1.998026368 | AC46: 2.248413914e-11 | AD46: 2.248413914e-11 | AE46: 1 | AF46: 1.998026368 | AG46: 0.01056220427 | AH46: 0.0009199198578 | AO46: 6.323004912e-15 | AQ46: 0.02011788782 | AR46: 0.02011788782 | AT46: 0.02011788782 | AU46: 0.8706521937 | AW46: -0.006599768907
A47: 4.323122297 | B47: 3.687344257 | C47: 3.720573902 | D47: 0.0002369900163 | E47: 0.247021015 | F47: 0.03322964467 | G47: 2.858077619e-07 | H47: -0.0005346099156 | I47: 0.0905057441 | J47: 0.09104035402 | K47: 0.1777371443 | L47: 0.8222628557 | M47: 2643.5428 | N47: 1124690.594 | O47: 267428917.7 | P47: 11.1761016 | Q47: 415653.1687 | R47: 1145769703 | S47: 1 | T47: 1 | U47: 9.898774578e+11 | V47: 1145769703 | W47: 2.079225688 | X47: 1.050381461 | Y47: 1.691521812 | Z47: 0.9105233617 | AA47: 0.9999975941 | AB47: 1.997509218 | AC47: 1.780662613e-11 | AD47: 1.780662612e-11 | AE47: 1 | AF47: 1.997509218 | AG47: 0.01142693477 | AH47: 0.0007269376433 | AO47: 8.977734712e-15 | AQ47: 0.02172989123 | AR47: 0.02172989123 | AT47: 0.02172989123 | AU47: 0.8668135503 | AW47: 0.03322964467
A48: 4.857731458 | B48: 3.857993071 | C48: 3.858847141 | D48: 0.0001609959944 | E48: 0.2986377031 | F48: 0.0008540700885 | G48: 1.601121755e-10 | H48: -1.265354399e-05 | I48: 0.08855925916 | J48: 0.08857191271 | K48: 0.1954213507 | L48: 0.8045786493 | M48: 1135.526827 | N48: 742295.707 | O48: 136831904.1 | P48: 7.826510883 | Q48: 282368.7354 | R48: 509794125 | S48: 1 | T48: 1 | U48: 6.640469509e+11 | V48: 509794125 | W48: 1.972285579 | X48: 1.034787249 | Y48: 1.600611874 | Z48: 0.8722291434 | AA48: 0.9999964585 | AB48: 1.996291587 | AC48: 1.194535131e-11 | AD48: 1.194535131e-11 | AE48: 1 | AF48: 1.996291587 | AG48: 0.01328138056 | AH48: 0.0004911595923 | AO48: 1.471442271e-14 | AQ48: 0.02418249899 | AR48: 0.02418249899 | AT48: 0.02418249899 | AU48: 0.8613741971 | AW48: 0.0008540700885
A49: 5.377657428 | B49: 4.00257017 | C49: 3.997507572 | D49: 0.0001160784403 | E49: 0.2576760924 | F49: -0.005062597838 | G49: 5.201406982e-09 | H49: 7.212078051e-05 | I49: 0.08674489711 | J49: 0.08667277632 | K49: 0.2119051943 | L49: 0.7880948057 | M49: 572.3760379 | N49: 523902.7365 | O49: 79764479.58 | P49: 5.865282877 | Q49: 203588.7131 | R49: 256350988.7 | S49: 1 | T49: 1 | U49: 4.732690411e+11 | V49: 256350988.7 | W49: 1.879355262 | X49: 1.025326563 | Y49: 1.517324656 | Z49: 0.8295052394 | AA49: 0.9999950881 | AB49: 1.994804465 | AC49: 8.513501108e-12 | AD49: 8.513501108e-12 | AE49: 1 | AF49: 1.994804465 | AG49: 0.01505846083 | AH49: 0.0003502842299 | AO49: 2.238739236e-14 | AQ49: 0.02660899711 | AR49: 0.02660899711 | AT49: 0.02660899711 | AU49: 0.8564031698 | AW49: -0.005062597838
A50: 5.899231743 | B50: 4.126329175 | C50: 4.136920452 | D50: 8.775509935e-05 | E50: 0.2726110284 | F50: 0.01059127752 | G50: 2.215994746e-08 | H50: -0.0001488621761 | I50: 0.08499797616 | J50: 0.08514683834 | K50: 0.2277763218 | L50: 0.7722236782 | M50: 326.1346703 | N50: 389511.0558 | O50: 51353996.39 | P50: 4.639731008 | Q50: 153912.9577 | R50: 142218755.3 | S50: 1 | T50: 1 | U50: 3.540538233e+11 | V50: 142218755.3 | W50: 1.796223726 | X50: 1.019264777 | Y50: 1.445001257 | Z50: 0.7844702638 | AA50: 0.9999935028 | AB50: 1.993067175 | AC50: 6.368972369e-12 | AD50: 6.368972369e-12 | AE50: 1 | AF50: 1.993067175 | AG50: 0.01673120625 | AH50: 0.0002611098411 | AO50: 3.21669061e-14 | AQ50: 0.02896094789 | AR50: 0.02896094789 | AT50: 0.02896094789 | AU50: 0.8519193117 | AW50: 0.01059127752
A51: 6.43206539 | B51: 4.290411216 | C51: 4.2750144 | D51: 6.05522878e-05 | E51: 0.2630355361 | F51: -0.01539681532 | G51: 4.688709878e-08 | H51: 0.0002165342901 | I51: 0.08328453528 | J51: 0.08306800099 | K51: 0.2433432762 | L51: 0.7566567238 | M51: 161.1333939 | N51: 263570.2541 | O51: 29588404.35 | P51: 3.477690251 | Q51: 106202.4769 | R51: 65229142.7 | S51: 1 | T51: 1 | U51: 2.410166313e+11 | V51: 65229142.7 | W51: 1.680056982 | X51: 1.013370817 | Y51: 1.353092825 | Z51: 0.7124528271 | AA51: 0.999990584 | AB51: 1.989848666 | AC51: 4.335578606e-12 | AD51: 4.335578606e-12 | AE51: 1 | AF51: 1.989848666 | AG51: 0.01932073418 | AH51: 0.0001776248198 | AO51: 5.048267311e-14 | AQ51: 0.03222093327 | AR51: 0.03222093327 | AT51: 0.03222093327 | AU51: 0.8461711767 | AW51: -0.01539681532
A52: 6.976712153 | B52: 4.409214323 | C52: 4.414874554 | D52: 4.629469834e-05 | E52: 0.2201572044 | F52: 0.005660230994 | G52: 6.240771383e-09 | H52: -7.899855305e-05 | I52: 0.08160306081 | J52: 0.08168205937 | K52: 0.2586198093 | L52: 0.7413801907 | M52: 99.48141597 | N52: 198847.522 | O52: 20263638.89 | P52: 2.875167624 | Q52: 81196.36877 | R52: 37105175.9 | S52: 1 | T52: 1 | U52: 1.8240641e+11 | V52: 37105175.9 | W52: 1.59187121 | X52: 1.010252699 | Y52: 1.292328743 | Z52: 0.6521941915 | AA52: 0.9999876842 | AB52: 1.986630468 | AC52: 3.281256161e-12 | AD52: 3.281256161e-12 | AE52: 1 | AF52: 1.986630468 | AG52: 0.02124093329 | AH52: 0.0001335074237 | AO52: 7.089109677e-14 | AQ52: 0.03484311057 | AR52: 0.03484311057 | AT52: 0.03484311057 | AU52: 0.8418881928 | AW52: 0.005660230994
A53: 7.525393723 | B53: 4.53112351 | C53: 4.554616451 | D53: 3.513900548e-05 | E53: 0.2363133319 | F53: 0.02349294144 | G53: 1.028387658e-07 | H53: -0.0003206848387 | I53: 0.07997641394 | J53: 0.08029709878 | K53: 0.2733982227 | L53: 0.7266017773 | M53: 62.38108105 | N53: 149062.8774 | O53: 13981423.2 | P53: 2.409170408 | Q53: 61630.61656 | R53: 20838305.34 | S53: 1 | T53: 1 | U53: 1.370766602e+11 | V53: 20838305.34 | W53: 1.499486952 | X53: 1.007798481 | Y53: 1.236891548 | Z53: 0.5849193579 | AA53: 0.9999837743 | AB53: 1.982287596 | AC53: 2.465832346e-12 | AD53: 2.465832346e-12 | AE53: 1 | AF53: 1.982287596 | AG53: 0.02329014836 | AH53: 9.959865026e-05 | AO53: 9.972457099e-14 | AQ53: 0.03758150315 | AR53: 0.03758150315 | AT53: 0.03758150314 | AU53: 0.8376971242 | AW53: 0.02349294144
A54: 8.06603277 | B54: 4.666521685 | C54: 4.693604946 | D54: 2.586049674e-05 | E54: 0.3091914788 | F54: 0.02708326095 | G54: 1.257258544e-07 | H54: -0.0003545784179 | I54: 0.07843581957 | J54: 0.07879039799 | K54: 0.2873948319 | L54: 0.7126051681 | M54: 38.44867581 | N54: 108350.4822 | O54: 9430444.226 | P54: 2.026407382 | Q54: 45357.221 | R54: 11013945.96 | S54: 1 | T54: 1 | U54: 9.984349313e+10 | V54: 11013945.96 | W54: 1.396917842 | X54: 1.005746837 | Y54: 1.184412365 | Z54: 0.5065158127 | AA54: 0.9999779528 | AB54: 1.975841888 | AC54: 1.796055651e-12 | AD54: 1.796055651e-12 | AE54: 1 | AF54: 1.975841888 | AG54: 0.02564687931 | AH54: 7.20893221e-05 | AO54: 1.439226648e-13 | AQ54: 0.04059620203 | AR54: 0.04059620203 | AT54: 0.04059620203 | AU54: 0.833376888 | AW54: 0.02708326095
A55: 8.587876627 | B55: 4.858529943 | C55: 4.829830647 | D55: 1.673039754e-05 | E55: 0.2743684603 | F55: -0.02869929689 | G55: 1.236077863e-07 | H55: 0.0003515789901 | I55: 0.07700405004 | J55: 0.07665247105 | K55: 0.3004027455 | L55: 0.6995972545 | M55: 20.57570224 | N55: 69034.11181 | O55: 5545268.113 | P55: 1.655290471 | Q55: 29344.11804 | R55: 4490734.895 | S55: 1 | T55: 1 | U55: 6.374319862e+10 | V55: 4490734.895 | W55: 1.255815093 | X55: 1.003716954 | Y55: 1.126145606 | Z55: 0.3958764231 | AA55: 0.9999659216 | AB55: 1.962670755 | AC55: 1.146657899e-12 | AD55: 1.146657899e-12 | AE55: 1 | AF55: 1.962670755 | AG55: 0.02918293388 | AH55: 4.598408533e-05 | AO55: 2.35635136e-13 | AQ55: 0.04474295432 | AR55: 0.04474295432 | AT55: 0.04474295432 | AU55: 0.8278731468 | AW55: -0.02869929689
A56: 9.086030618 | B56: 4.948593668 | C56: 4.970512867 | D56: 1.363715179e-05 | E56: 0.3130034869 | F56: 0.02191919869 | G56: 6.448411904e-08 | H56: -0.0002539372345 | I56: 0.07568520818 | J56: 0.07593914541 | K56: 0.3123846886 | L56: 0.6876153114 | M56: 15.70423073 | N56: 55901.13549 | O56: 4360109.838 | P56: 1.530993236 | Q56: 23918.93463 | R56: 2956949.341 | S56: 1 | T56: 1 | U56: 5.165221961e+10 | V56: 2956949.341 | W56: 1.192158571 | X56: 1.003025743 | Y56: 1.104723684 | Z56: 0.3468292501 | AA56: 0.9999581921 | AB56: 1.954331489 | AC56: 9.29156781e-13 | AD56: 9.29156781e-13 | AE56: 1 | AF56: 1.954331489 | AG56: 0.03055809603 | AH56: 3.693882149e-05 | AO56: 3.023923182e-13 | AQ56: 0.04669830607 | AR56: 0.04669830607 | AT56: 0.04669830607 | AU56: 0.8254345768 | AW56: 0.02191919869
A57: 9.563111739 | B57: 5.160995921 | C57: 5.105365276 | D57: 8.416116065e-06 | E57: 0.2990215533 | F57: -0.05563064439 | G57: 3.682613126e-07 | H57: 0.0006068453778 | I57: 0.07446382173 | J57: 0.07385697635 | K57: 0.3234812297 | L57: 0.6765187703 | M57: 8.785494018 | N57: 34019.40454 | O57: 2515240.968 | P57: 1.323516505 | Q57: 14761.86187 | R57: 1115360.292 | S57: 1 | T57: 1 | U57: 3.146997823e+10 | V57: 1115360.292 | W57: 1.047959322 | X57: 1.00185114 | Y57: 1.066526614 | Z57: 0.2444370765 | AA57: 0.9999322579 | AB57: 1.927175639 | AC57: 5.661042948e-13 | AD57: 5.661042948e-13 | AE57: 1 | AF57: 1.927175639 | AG57: 0.03453683508 | AH57: 2.267241218e-05 | AO57: 5.139521028e-13 | AQ57: 0.0512072943 | AR57: 0.0512072943 | AT57: 0.0512072943 | AU57: 0.8201482511 | AW57: -0.05563064439
A58: 10.02788582 | B58: 5.232027846 | C58: 5.246867657 | D58: 7.160964091e-06 | E58: 0.258983286 | F58: 0.01483981058 | G58: 2.480691575e-08 | H58: -0.0001575021135 | I58: 0.07331126458 | J58: 0.07346876669 | K58: 0.3339524428 | L58: 0.6660475572 | M58: 7.357060568 | N58: 28819.3087 | O58: 2101069.416 | P58: 1.274140255 | Q58: 12560.47529 | R58: 808060.6572 | S58: 1 | T58: 1 | U58: 2.666691716e+10 | V58: 808060.6572 | W58: 1.000787427 | X58: 1.00156582 | Y58: 1.056951204 | Z58: 0.215157047 | AA58: 0.9999203852 | AB58: 1.915171295 | AC58: 4.797034236e-13 | AD58: 4.797034236e-13 | AE58: 1 | AF58: 1.915171295 | AG58: 0.03554196587 | AH58: 1.911090284e-05 | AO58: 6.261549485e-13 | AQ58: 0.05272452953 | AR58: 0.05272452953 | AT58: 0.05272452953 | AU58: 0.818466028 | AW58: 0.01483981058
A59: 10.49177162 | B59: 5.401409013 | C59: 5.383450985 | D59: 4.872153808e-06 | E59: 0.3086438422 | F59: -0.0179580283 | G59: 3.583100867e-08 | H59: 0.0001892908045 | I59: 0.07219594552 | J59: 0.07200665471 | K59: 0.3440853404 | L59: 0.6559146596 | M59: 4.97905676 | N59: 19406.92852 | O59: 1375693.325 | P59: 1.184697486 | Q59: 8546.175566 | R59: 378131.6999 | S59: 1 | T59: 1 | U59: 1.796639665e+10 | V59: 378131.6999 | W59: 0.8878228921 | X59: 1.001037967 | Y59: 1.039095994 | Z59: 0.155902657 | AA59: 0.9998829886 | AB59: 1.879058073 | AC59: 3.23192287e-13 | AD59: 3.23192287e-13 | AE59: 0.9999999999 | AF59: 1.879058073 | AG59: 0.03883432424 | AH59: 1.313233828e-05 | AO59: 9.575802736e-13 | AQ59: 0.05650937783 | AR59: 0.05650937783 | AT59: 0.05650937782 | AU59: 0.814460444 | AW59: -0.0179580283
A60: 10.96431422 | B60: 5.520561667 | C60: 5.522713184 | D60: 3.715748798e-06 | E60: 0.2651806505 | F60: 0.002151517434 | G60: 5.197411303e-10 | H60: -2.27978317e-05 | I60: 0.07109417204 | J60: 0.07111696988 | K60: 0.3540951736 | L60: 0.6459048264 | M60: 3.891685765 | N60: 14696.7393 | O60: 1025173.768 | P60: 1.139904061 | Q60: 6517.979366 | R60: 223833.6165 | S60: 1 | T60: 1 | U60: 1.360912867e+10 | V60: 223833.6165 | W60: 0.8066805592 | X60: 1.000763062 | Y60: 1.029897368 | Z60: 0.1227331892 | AA60: 0.9998465782 | AB60: 1.846285715 | AC60: 2.448106593e-13 | AD60: 2.448106593e-13 | AE60: 0.9999999999 | AF60: 1.846285715 | AG60: 0.04110891714 | AH60: 1.019059574e-05 | AO60: 1.300947262e-12 | AQ60: 0.05927399586 | AR60: 0.05927399586 | AT60: 0.05927399585 | AU60: 0.8116933485 | AW60: 0.002151517434
A61: 11.44883358 | B61: 5.655359366 | C61: 5.661134243 | D61: 2.734711016e-06 | E61: 0.2678304246 | F61: 0.005774876798 | G61: 3.788762567e-09 | H61: -6.155292493e-05 | I61: 0.06999885311 | J61: 0.07006040604 | K61: 0.364046366 | L61: 0.635953634 | M61: 3.030908182 | N61: 10731.88726 | O61: 737048.7997 | P61: 1.102180924 | Q61: 4797.35633 | R61: 125213.3221 | S61: 1 | T61: 1 | U61: 9939621058 | V61: 125213.3221 | W61: 0.7125887434 | X61: 1.000518614 | Y61: 1.022012787 | Z61: 0.09270794129 | AA61: 0.9997915519 | AB61: 1.800835235 | AC61: 1.788009532e-13 | AD61: 1.788009532e-13 | AE61: 0.9999999999 | AF61: 1.800835235 | AG61: 0.0438762694 | AH61: 7.866817403e-06 | AO61: 1.831288959e-12 | AQ61: 0.06252918781 | AR61: 0.06252918781 | AT61: 0.06252918779 | AU61: 0.8085915409 | AW61: 0.005774876798
A62: 11.93979333 | B62: 5.781757808 | C62: 5.800012112 | D62: 2.051244413e-06 | E62: 0.2632611523 | F62: 0.01825430405 | G62: 3.698713634e-08 | H62: -0.0001923204002 | I62: 0.06892287185 | J62: 0.06911519225 | K62: 0.3738218718 | L62: 0.6261781282 | M62: 2.467378626 | N62: 7993.200362 | O62: 542174.3543 | P62: 1.076114425 | Q62: 3598.63758 | R62: 73704.12614 | S62: 1 | T62: 1 | U62: 7404009608 | V62: 73704.12614 | W62: 0.6230644721 | X62: 1.000333842 | Y62: 1.016489062 | Z62: 0.07073079189 | AA62: 0.9997221171 | AB62: 1.749693678 | AC62: 1.331885759e-13 | AD62: 1.331885759e-13 | AE62: 0.9999999999 | AF62: 1.749693678 | AG62: 0.04648113212 | AH62: 6.417290594e-06 | AO62: 2.52445561e-12 | AQ62: 0.06561425107 | AR62: 0.06561425107 | AT62: 0.06561425105 | AU62: 0.8057953952 | AW62: 0.01825430405
A63: 12.42338391 | B63: 5.911877799 | C63: 5.938513279 | D63: 1.525305665e-06 | E63: 0.2937350437 | F63: 0.02663548008 | G63: 7.260923705e-08 | H63: -0.0002694610121 | I63: 0.06789489611 | J63: 0.06816435713 | K63: 0.3831612378 | L63: 0.6168387622 | M63: 2.055791171 | N63: 5903.497256 | O63: 396063.5261 | P63: 1.05621957 | Q63: 2676.203865 | R63: 43478.46473 | S63: 1 | T63: 1 | U63: 5468743060 | V63: 43478.46473 | W63: 0.5317467554 | X63: 1.000171908 | Y63: 1.012230696 | Z63: 0.0532271618 | AA63: 0.9996263364 | AB63: 1.688679206 | AC63: 9.83756286e-14 | AD63: 9.83756286e-14 | AE63: 0.9999999998 | AF63: 1.688679206 | AG63: 0.0491493156 | AH63: 5.527509851e-06 | AO63: 3.503192905e-12 | AQ63: 0.06874176967 | AR63: 0.06874176967 | AT63: 0.06874176966 | AU63: 0.8030920338 | AW63: 0.02663548008
A64: 12.88149539 | B64: 6.057740276 | C64: 6.075964451 | D64: 1.093916526e-06 | E64: 0.3027481225 | F64: 0.01822417472 | G64: 2.885487497e-08 | H64: -0.0001698672275 | I64: 0.06694897103 | J64: 0.06711883826 | K64: 0.3917551571 | L64: 0.6082448429 | M64: 1.734086742 | N64: 4204.795771 | O64: 279191.4842 | P64: 1.040043798 | Q64: 1919.598866 | R64: 24662.49428 | S64: 1 | T64: 1 | U64: 3895249356 | V64: 24662.49428 | W64: 0.4340296891 | X64: 1.000006956 | Y64: 1.008740605 | Z64: 0.03850203068 | AA64: 0.9994790578 | AB64: 1.611724432 | AC64: 7.007050788e-14 | AD64: 7.007050788e-14 | AE64: 0.9999999997 | AF64: 1.611724432 | AG64: 0.05206354389 | AH64: 5.150729696e-06 | AO64: 5.028627454e-12 | AQ64: 0.07207913912 | AR64: 0.07207913912 | AT64: 0.07207913911 | AU64: 0.8003418752 | AW64: 0.01822417472
A65: 13.29720976 | B65: 6.177090507 | C65: 6.214524746 | D65: 8.330537892e-07 | E65: 0.472190897 | F65: 0.03743423897 | G65: 9.717209971e-08 | H65: -0.000311724397 | I65: 0.06611311574 | J65: 0.06642484013 | K65: 0.3993490702 | L65: 0.6006509298 | M65: 1.547641159 | N65: 3186.861775 | O65: 210142.9379 | P65: 1.030349109 | Q65: 1462.076798 | R65: 15847.47016 | S65: 1 | T65: 1 | U65: 2952201129 | V65: 15847.47016 | W65: 0.3606420947 | X65: 0.9998726159 | Y65: 1.006636494 | Z65: 0.02945517058 | AA65: 0.9993160414 | AB65: 1.54419492 | AC65: 5.310628754e-14 | AD65: 5.310628754e-14 | AE65: 0.9999999997 | AF65: 1.54419492 | AG65: 0.05410827615 | AH65: 5.271810254e-06 | AO65: 6.763581692e-12 | AQ65: 0.07449828961 | AR65: 0.07449828961 | AT65: 0.0744982896 | AU65: 0.7984292687 | AW65: 0.03743423897
A66: 13.65909675 | B66: 6.414953424 | C66: 6.348522663 | D66: 4.836706181e-07 | E66: 0.4306565504 | F66: -0.06643076062 | G66: 1.973937271e-07 | H66: 0.0004442901384 | I66: 0.06540229819 | J66: 0.06495800806 | K66: 0.4058069903 | L66: 0.5941930097 | M66: 1.307858661 | N66: 1835.807344 | O66: 119731.9224 | P66: 1.017480081 | Q66: 849.3004664 | R66: 6965.521651 | S66: 1 | T66: 1 | U66: 1700370051 | V66: 6965.521651 | W66: 0.2379907296 | X66: 0.9995634902 | Y66: 1.003827578 | Z66: 0.01717977734 | AA66: 0.9988225604 | AB66: 1.407355849 | AC66: 3.058746231e-14 | AD66: 3.058746231e-14 | AE66: 0.9999999994 | AF66: 1.407355849 | AG66: 0.05801684292 | AH66: 6.807599299e-06 | AO66: 1.19329022e-11 | AQ66: 0.0787266385 | AR66: 0.0787266385 | AT66: 0.0787266385 | AU66: 0.7952375351 | AW66: -0.06643076062
A67: 13.9627698 | B67: 6.476911238 | C67: 6.488694668 | D67: 4.196320123e-07 | E67: 0.4062051213 | F67: 0.0117834297 | G67: 4.641985131e-09 | H67: -6.813211527e-05 | I67: 0.06481751327 | J67: 0.06488564539 | K67: 0.4111198787 | L67: 0.5888801213 | M67: 1.26568312 | N67: 1590.826419 | O67: 103561.916 | P67: 1.015146382 | Q67: 736.9844044 | R67: 5700.08976 | S67: 1 | T67: 1 | U67: 1473360127 | V67: 5700.08976 | W67: 0.2119215608 | X67: 0.9994652719 | Y67: 1.003315852 | Z67: 0.01492039226 | AA67: 0.9986431192 | AB67: 1.373226384 | AC67: 2.65038468e-14 | AD67: 2.65038468e-14 | AE67: 0.9999999993 | AF67: 1.373226384 | AG67: 0.05844837473 | AH67: 7.465402024e-06 | AO67: 1.395177836e-11 | AQ67: 0.07942075577 | AR67: 0.07942075577 | AT67: 0.07942075577 | AU67: 0.7947309934 | AW67: 0.0117834297
A68: 14.21000218 | B68: 6.627323023 | C68: 6.625999928 | D68: 2.97265545e-07 | E68: 0.6817770644 | F68: -0.001323095392 | G68: 3.691606571e-11 | H68: 6.075859257e-06 | I68: 0.06434908336 | J68: 0.0643430075 | K68: 0.4153756585 | L68: 0.5846243415 | M68: 1.185900838 | N68: 1123.634232 | O68: 72828.64378 | P68: 1.010695704 | Q68: 522.3682432 | R68: 3572.467647 | S68: 1 | T68: 1 | U68: 1040421648 | V68: 3572.467647 | W68: 0.1578179008 | X68: 0.9991765165 | Y68: 1.002336883 | Z68: 0.01058251664 | AA68: 0.9980856417 | AB68: 1.295872484 | AC68: 1.871584242e-14 | AD68: 1.871584242e-14 | AE68: 0.999999999 | AF68: 1.295872484 | AG68: 0.05998795516 | AH68: 9.811646652e-06 | AO68: 1.996189041e-11 | AQ68: 0.08117246455 | AR68: 0.08117246455 | AT68: 0.08117246455 | AU68: 0.7934734553 | AW68: -0.001323095392
A69: 14.40666384 | B69: 6.775836385 | C69: 6.763561726 | D69: 2.114172249e-07 | E69: 0.8586552994 | F69: -0.01227465984 | G69: 1.927649847e-09 | H69: 4.390500936e-05 | I69: 0.06398127678 | J69: 0.06393737177 | K69: 0.4187172552 | L69: 0.5812827448 | M69: 1.131028144 | N69: 797.5396813 | O69: 51518.97758 | P69: 1.00758904 | Q69: 371.8005486 | R69: 2311.633535 | S69: 1 | T69: 1 | U69: 738221792.8 | V69: 2311.633535 | W69: 0.1164035778 | X69: 0.9987934127 | Y69: 1.001649577 | Z69: 0.00753188059 | AA69: 0.9973103859 | AB69: 1.229447427 | AC69: 1.327965711e-14 | AD69: 1.327965711e-14 | AE69: 0.9999999986 | AF69: 1.229447427 | AG69: 0.06114156141 | AH69: 1.327109734e-05 | AO69: 2.835985467e-11 | AQ69: 0.08249425901 | AR69: 0.08249425901 | AT69: 0.08249425901 | AU69: 0.792543752 | AW69: -0.01227465984
A70: 14.56061795 | B70: 6.923961586 | C70: 6.901382923 | D70: 1.504495382e-07 | E70: 1.072736157 | F70: -0.02257866329 | G70: 3.858049176e-09 | H70: 6.211319647e-05 | I70: 0.06369626508 | J70: 0.06363415188 | K70: 0.4213066436 | L70: 0.5786933564 | M70: 1.092630833 | N70: 566.8490558 | O70: 36518.12332 | P70: 1.005391207 | Q70: 264.8705115 | R70: 1530.484068 | S70: 1 | T70: 1 | U70: 524428118 | V70: 1530.484068 | W70: 0.08506612777 | X70: 0.9982694828 | Y70: 1.001158818 | Z70: 0.005362297263 | AA70: 0.9962245703 | AB70: 1.174266114 | AC70: 9.43378487e-15 | AD70: 9.43378487e-15 | AE70: 0.9999999981 | AF70: 1.174266114 | AG70: 0.06199817776 | AH70: 1.825493801e-05 | AO70: 4.016819743e-11 | AQ70: 0.08348351651 | AR70: 0.08348351651 | AT70: 0.08348351651 | AU70: 0.7918584483 | AW70: -0.02257866329
A71: 14.68015528 | B71: 7.065414133 | C71: 7.039567471 | D71: 1.086928178e-07 | E71: 1.157197172 | F71: -0.02584666241 | G71: 3.007587375e-09 | H71: 5.484147495e-05 | I71: 0.06347671354 | J71: 0.06342187206 | K71: 0.4233013135 | L71: 0.5766986865 | M71: 1.06661586 | N71: 409.30195 | O71: 26310.52138 | P71: 1.003890191 | Q71: 191.6342138 | R71: 1049.593897 | S71: 1 | T71: 1 | U71: 378417217.1 | V71: 1049.593897 | W71: 0.06260856608 | X71: 0.9975810892 | Y71: 1.000818206 | Z71: 0.003875115717 | AA71: 0.9947817251 | AB71: 1.131692138 | AC71: 6.807237239e-15 | AD71: 6.807237239e-15 | AE71: 0.9999999974 | AF71: 1.131692138 | AG71: 0.06259156346 | AH71: 2.4968877e-05 | AO71: 5.5930504e-11 | AQ71: 0.08418196502 | AR71: 0.08418196502 | AT71: 0.08418196502 | AU71: 0.7913799069 | AW71: -0.02584666241
A72: 14.77307411 | B72: 7.170510968 | C72: 7.178285122 | D72: 8.535822869e-08 | E72: 1.689833605 | F72: 0.007774153661 | G72: 1.753377634e-10 | H72: -1.324151666e-05 | I72: 0.06330709431 | J72: 0.06332033583 | K72: 0.4248423382 | L72: 0.5751576618 | M72: 1.052184798 | N72: 321.4357539 | O72: 20631.60368 | P72: 1.003053041 | Q72: 150.708133 | R72: 799.9085727 | S72: 1 | T72: 1 | U72: 296983739 | V72: 799.9085727 | W72: 0.04969208605 | X72: 0.9969080079 | Y72: 1.000623609 | Z72: 0.00304374854 | AA72: 0.993364658 | AB72: 1.105880143 | AC72: 5.342354087e-15 | AD72: 5.342354087e-15 | AE72: 0.9999999966 | AF72: 1.105880143 | AG72: 0.06288755102 | AH72: 3.158961175e-05 | AO72: 7.152619527e-11 | AQ72: 0.08456056367 | AR72: 0.08456056367 | AT72: 0.08456056367 | AU72: 0.79112232 | AW72: 0.007774153661
A73: 14.84628181 | B73: 7.33512627 | C73: 7.316792965 | D73: =IF(A73="","",10^-((((B73-P$12)/P$13)+7))/$AU73) -> 5.845359974e-08 | E73: 2.080550712 | F73: -0.01833330536 | G73: 5.945408745e-10 | H73: 2.438320886e-05 | I73: 0.063174094 | J73: 0.06314971079 | K73: 0.4260506728 | L73: 0.5739493272 | M73: 1.035625282 | N73: 220.2511506 | O73: 14102.35825 | P73: 1.002088989 | Q73: 103.5206288 | R73: 528.6835487 | S73: 1 | T73: 1 | U73: 203205847 | V73: 528.6835487 | W73: 0.03444507926 | X73: 0.9954727551 | Y73: 1.000389035 | Z73: 0.002084634437 | AA73: 0.9903400896 | AB73: 1.073931609 | AC73: 3.655410862e-15 | AD73: 3.655410862e-15 | AE73: 0.9999999951 | AF73: 1.073931609 | AG73: 0.06330136575 | AH73: 4.585640672e-05 | AO73: 1.048322868e-10 | AQ73: 0.08504825338 | AR73: 0.08504825338 | AT73: 0.08504825338 | AU73: 0.7907923663 | AW73: -0.01833330536
A74: 14.9057412 | B74: 7.448842059 | C74: 7.455489635 | D74: 4.499674719e-08 | E74: 2.891492196 | F74: 0.006647576917 | G74: 5.605926434e-11 | H74: -7.487273492e-06 | I74: 0.06306648152 | J74: 0.06307396879 | K74: 0.4270283537 | L74: 0.5729716463 | M74: 1.027383078 | N74: 169.7093445 | O74: 10846.31488 | P74: 1.00160744 | Q74: 79.91891755 | R74: 399.7752665 | S74: 1 | T74: 1 | U74: 156363277.8 | V74: 399.7752665 | W74: 0.02668023499 | X74: 0.9941175866 | Y74: 1.000261752 | Z74: 0.001604860253 | AA74: 0.987487318 | AB74: 1.056846753 | AC74: 2.812773508e-15 | AD74: 2.812773508e-15 | AE74: 0.9999999936 | AF74: 1.056846753 | AG74: 0.06347119448 | AH74: 5.934241598e-05 | AO74: 1.365500774e-10 | AQ74: 0.0852798082 | AR74: 0.0852798082 | AT74: 0.0852798082 | AU74: 0.7906364304 | AW74: 0.006647576917
A75: 14.9566142 | B75: 7.645745461 | C75: 7.593366146 | D75: 2.860207539e-08 | E75: 3.198804136 | F75: -0.05237931513 | G75: 2.678105347e-09 | H75: 5.175041398e-05 | I75: 0.06297469972 | J75: 0.0629229493 | K75: 0.4278622098 | L75: 0.5721377902 | M75: 1.01737077 | N75: 108.1801379 | O75: 6886.305319 | P75: 1.001021202 | Q75: 51.16462234 | R75: 248.7068052 | S75: 1 | T75: 1 | U75: 99337113.17 | V75: 248.7068052 | W75: 0.01708516571 | X75: 0.9907625029 | Y75: 1.000079664 | Z75: 0.001020159914 | AA75: 0.9804552452 | AB75: 1.034460469 | AC75: 1.786946419e-15 | AD75: 1.786946419e-15 | AE75: 0.9999999899 | AF75: 1.034460469 | AG75: 0.06372152243 | AH75: 9.286486987e-05 | AO75: 2.153586893e-10 | AQ75: 0.08560486732 | AR75: 0.08560486732 | AT75: 0.08560486732 | AU75: 0.7904183093 | AW75: -0.05237931513
A76: 15.00350494 | B76: 7.764243943 | C76: 7.730317593 | D76: 2.177434377e-08 | E76: 2.473561472 | F76: -0.03392634999 | G76: 1.092055753e-09 | H76: 3.304626685e-05 | I76: 0.06289033872 | J76: 0.06285729246 | K76: 0.4286286464 | L76: 0.5713713536 | M76: 1.013213678 | N76: 82.57726796 | O76: 5240.180484 | P76: 1.000777261 | Q76: 39.18959697 | R76: 187.7559981 | S76: 1 | T76: 1 | U76: 75607877.3 | V76: 187.7559981 | W76: 0.01304774106 | X76: 0.9878949454 | Y76: 0.9999803298 | Z76: 0.0007766576251 | AA76: 0.9744830241 | AB76: 1.024197057 | AC76: 1.360088096e-15 | AD76: 1.360088096e-15 | AE76: 0.9999999868 | AF76: 1.024197057 | AG76: 0.06378019954 | AH76: 0.0001214593688 | AO76: 2.834550193e-10 | AQ76: 0.08573001391 | AR76: 0.08573001391 | AT76: 0.08573001391 | AU76: 0.7903345762 | AW76: -0.03392634999
A77: 15.05074735 | B77: 7.878570753 | C77: 7.865945339 | D77: 1.673605182e-08 | E77: 2.678950666 | F77: -0.01262541361 | G77: 1.713129741e-10 | H77: 1.308865822e-05 | I77: 0.06280557332 | J77: 0.06279248466 | K77: 0.4293987571 | L77: 0.5706012429 | M77: 1.010150184 | N77: 63.69127602 | O77: 4026.456108 | P77: 1.000597318 | Q77: 30.35303497 | R77: 143.5111879 | S77: 1 | T77: 1 | U77: 58103927.58 | V77: 143.5111879 | W77: 0.0100519745 | X77: 0.9843029505 | Y77: 0.9998831774 | Z77: 0.0005969612595 | AA77: 0.9670543654 | AB77: 1.015839402 | AC77: 1.045214636e-15 | AD77: 1.045214636e-15 | AE77: 0.9999999828 | AF77: 1.015839402 | AG77: 0.06380097874 | AH77: 0.0001572371494 | AO77: 3.695092354e-10 | AQ77: 0.08582465103 | AR77: 0.08582465103 | AT77: 0.08582465103 | AU77: 0.7902713457 | AW77: -0.01262541361
A78: 15.10270984 | B78: 8.03123121 | C78: 8.000582218 | D78: 1.177702389e-08 | E78: 2.318036706 | F78: -0.03064899154 | G78: 1.369412054e-09 | H78: 3.700556788e-05 | I78: 0.06271260232 | J78: 0.06267559675 | K78: 0.4302434173 | L78: 0.5697565827 | M78: 1.007137563 | N78: 45.10655821 | O78: 2832.448695 | P78: 1.000420244 | Q78: 21.65549257 | R78: 100.5617269 | S78: 1 | T78: 1 | U78: 40879166.78 | V78: 100.5617269 | W78: 0.007088855751 | X78: 0.9778328529 | Y78: 0.9997394841 | Z78: 0.0004200679555 | AA78: 0.9538223388 | AB78: 1.006163717 | AC78: 7.353634235e-16 | AD78: 7.353634235e-16 | AE78: 0.9999999755 | AF78: 1.006163717 | AG78: 0.06381196821 | AH78: 0.0002216667542 | AO78: 5.262379975e-10 | AQ78: 0.08594191753 | AR78: 0.08594191753 | AT78: 0.08594191753 | AU78: 0.7901931021 | AW78: -0.03064899154
A79: 15.16410351 | B79: 8.135488483 | C79: 8.134885311 | D79: 9.263952958e-09 | E79: 1.831160868 | F79: -0.0006031719578 | G79: 7.512852928e-13 | H79: 8.667671503e-07 | I79: 0.0626031112 | J79: 0.06260224444 | K79: 0.4312381661 | L79: 0.5687618339 | M79: 1.005612778 | N79: 35.69186067 | O79: 2227.838221 | P79: 1.000330542 | Q79: 17.24786646 | R79: 79.03153085 | S79: 1 | T79: 1 | U79: 32153385.41 | V79: 79.03153085 | W79: 0.005582612597 | X79: 0.9719844235 | Y79: 0.9996239124 | Z79: 0.0003304328102 | AA79: 0.9420218146 | AB79: 1.000025774 | AC79: 5.783978804e-16 | AD79: 5.783978804e-16 | AE79: 0.9999999689 | AF79: 1.000025774 | AG79: 0.06375406301 | AH79: 0.0002796358852 | AO79: 6.705952741e-10 | AQ79: 0.08599121322 | AR79: 0.08599121322 | AT79: 0.08599121322 | AU79: 0.7901602458 | AW79: -0.0006031719578
A80: 15.24028038 | B80: 8.28511094 | C80: 8.269243717 | D80: 6.564580252e-09 | E80: 1.656936779 | F80: -0.01586722233 | G80: 8.439311669e-10 | H80: 2.90504934e-05 | I80: 0.06246778569 | J80: 0.0624387352 | K80: 0.4324676255 | L80: 0.5675323745 | M80: 1.003975243 | N80: 25.57942943 | O80: 1578.45784 | P80: 1.000234192 | Q80: 12.51348931 | R80: 56.07059201 | S80: 1 | T80: 1 | U80: 22780915.76 | V80: 56.07059201 | W80: 0.00396008667 | X80: 0.9609074987 | Y80: 0.9994180256 | Z80: 0.0002341366837 | AA80: 0.9200862385 | AB80: 0.9911349038 | AC80: 4.097992498e-16 | AD80: 4.097992498e-16 | AE80: 0.9999999561 | AF80: 0.9911349038 | AG80: 0.06367376364 | AH80: 0.0003893282121 | AO80: 9.491884131e-10 | AQ80: 0.08608158291 | AR80: 0.08608158291 | AT80: 0.08608158291 | AU80: 0.7901000668 | AW80: -0.01586722233
A81: 15.33749606 | B81: 8.416325672 | C81: 8.403919697 | D81: 4.853073744e-09 | E81: 1.072806131 | F81: -0.01240597472 | G81: 8.404490748e-10 | H81: 2.899049973e-05 | I81: 0.06229593287 | J81: 0.06226694237 | K81: 0.4340289429 | L81: 0.5659710571 | M81: 1.00293771 | N81: 19.16905076 | O81: 1166.905105 | P81: 1.000173114 | Q81: 9.511711414 | R81: 41.60648633 | S81: 1 | T81: 1 | U81: 16839600.81 | V81: 41.60648633 | W81: 0.002929424243 | X81: 0.9478336057 | Y81: 0.9991811339 | Z81: 0.0001730838674 | AA81: 0.8948664487 | AB81: 0.9825694427 | AC81: 3.029226632e-16 | AD81: 3.029226632e-16 | AE81: 0.9999999406 | AF81: 0.9825694427 | AG81: 0.06353502819 | AH81: 0.0005180868728 | AO81: 1.288715059e-09 | AQ81: 0.08614902134 | AR81: 0.08614902134 | AT81: 0.08614902134 | AU81: 0.7900552036 | AW81: -0.01240597472
A82: 15.4630845 | B82: 8.516279531 | C82: 8.53897047 | D82: 3.855403251e-09 | E82: 0.9981634234 | F82: 0.02269093968 | G82: 4.355583318e-09 | H82: -6.599684324e-05 | I82: 0.06207531898 | J82: 0.06214131582 | K82: 0.4360332644 | L82: 0.5639667356 | M82: 1.002333519 | N82: 15.43349494 | O82: 927.1591169 | P82: 1.000137522 | Q82: 7.761916588 | R82: 33.21191806 | S82: 1 | T82: 1 | U82: 13377383.02 | V82: 33.21191806 | W82: 0.002328288301 | X82: 0.9352066692 | Y82: 0.9989516979 | Z82: 0.0001375027578 | AA82: 0.8711658405 | AB82: 0.9751112778 | AC82: 2.406418343e-16 | AD82: 2.406418343e-16 | AE82: 0.9999999252 | AF82: 0.9751112778 | AG82: 0.06333120228 | AH82: 0.0006412022173 | AO82: 1.629740525e-09 | AQ82: 0.0861675658 | AR82: 0.0861675658 | AT82: 0.0861675658 | AU82: 0.7900428737 | AW82: 0.02269093968
A83: 15.62545155 | B83: 8.711191853 | C83: 8.674278736 | D83: 2.461657527e-09 | E83: 0.8316789029 | F83: -0.03691311685 | G83: 2.111853133e-08 | H83: 0.0001453221639 | I83: 0.06179240365 | J83: 0.06164708149 | K83: 0.4386036069 | L83: 0.5613963931 | M83: 1.001488452 | N83: 10.21274183 | O83: 591.9600034 | P83: 1.000087779 | Q83: 5.317453139 | R83: 21.51386001 | S83: 1 | T83: 1 | U83: 8538640.175 | V83: 21.51386001 | W83: 0.001486321586 | X83: 0.9020835991 | Y83: 0.9983300006 | Z83: 8.777089795e-05 | AA83: 0.8119400446 | AB83: 0.9568009521 | AC83: 1.535990967e-16 | AD83: 1.535990967e-16 | AE83: 0.9999998829 | AF83: 0.9568009521 | AG83: 0.06307208839 | AH83: 0.0009645613812 | AO83: 2.568345767e-09 | AQ83: 0.08635973016 | AR83: 0.08635973016 | AT83: 0.08635973016 | AU83: 0.7899152795 | AW83: -0.03691311685
A84: 15.83374494 | B84: 8.807614025 | C84: 8.809925556 | D84: 1.971555514e-09 | E84: 0.4743353867 | F84: 0.002311530708 | G84: 1.234330336e-10 | H84: -1.111004202e-05 | I84: 0.0614332185 | J84: 0.06144432854 | K84: 0.4418668762 | L84: 0.5581331238 | M84: 1.001192038 | N84: 8.378415885 | O84: 474.2859298 | P84: 1.000070301 | Q84: 4.457872773 | R84: 17.41786853 | S84: 1 | T84: 1 | U84: 6838533.873 | V84: 17.41786853 | W84: 0.001190671233 | X84: 0.8806460843 | Y84: 0.9979070212 | Z84: 7.029629057e-05 | AA84: 0.7756777614 | AB84: 0.9451883612 | AC84: 1.230163789e-16 | AD84: 1.230163789e-16 | AE84: 0.9999998538 | AF84: 0.9451883612 | AG84: 0.0627157722 | AH84: 0.001168900914 | AO84: 3.230713515e-09 | AQ84: 0.08636946748 | AR84: 0.08636946748 | AT84: 0.08636946748 | AU84: 0.7899088224 | AW84: 0.002311530708
A85: 16.09702337 | B85: 8.935502998 | C85: 8.945750713 | D85: 1.46875805e-09 | E85: 0.4556543226 | F85: 0.01024771489 | G85: 3.69605399e-09 | H85: -6.079518064e-05 | I85: 0.06098514715 | J85: 0.06104594234 | K85: 0.4459376943 | L85: 0.5540623057 | M85: 1.000887657 | N85: 6.495964086 | O85: 353.4862957 | P85: 1.000052365 | Q85: 3.576026105 | R85: 13.21887765 | S85: 1 | T85: 1 | U85: 5093822.748 | V85: 13.21887765 | W85: 0.0008868986927 | X85: 0.8460585404 | Y85: 0.9971825389 | Z85: 5.236257579e-05 | AA85: 0.7203599832 | AB85: 0.926251631 | AC85: 9.16312779e-17 | AD85: 9.16312779e-17 | AE85: 0.9999998037 | AF85: 0.926251631 | AG85: 0.06226885989 | AH85: 0.001496635956 | AO85: 4.377240005e-09 | AQ85: 0.08645240856 | AR85: 0.08645240856 | AT85: 0.08645240856 | AU85: 0.7898538544 | AW85: 0.01024771489
A86: 16.42277604 | B86: 9.074128041 | C86: 9.0817132 | D86: 1.067511987e-09 | E86: 0.3939582318 | F86: 0.007585158222 | G86: 2.981690795e-09 | H86: -5.460486054e-05 | I86: 0.06043971716 | J86: 0.06049432202 | K86: 0.4508930353 | L86: 0.5491069647 | M86: 1.000644731 | N86: 4.993661582 | O86: 257.0785449 | P86: 1.000038051 | Q86: 2.87228846 | R86: 9.871957013 | S86: 1 | T86: 1 | U86: 3701444.774 | V86: 9.871957013 | W86: 0.0006443307256 | X86: 0.7997463326 | Y86: 0.996118488 | Z86: 3.80499974e-05 | AA86: 0.6518455531 | AB86: 0.9000467712 | AC86: 6.658419549e-17 | AD86: 6.658419549e-17 | AE86: 0.9999997298 | AF86: 0.9000467712 | AG86: 0.06172026903 | AH86: 0.001929472796 | AO86: 6.090770805e-09 | AQ86: 0.08658305083 | AR86: 0.08658305083 | AT86: 0.08658305083 | AU86: 0.7897673911 | AW86: 0.007585158222
A87: 16.81480853 | B87: 9.216186271 | C87: 9.217772007 | D87: 7.697958783e-10 | E87: 0.3550392573 | F87: 0.001585736254 | G87: 1.804171323e-10 | H87: -1.343194447e-05 | I87: 0.05979610842 | J87: 0.05980954036 | K87: 0.4567403499 | L87: 0.5432596501 | M87: 1.000464528 | N87: 3.879068195 | O87: 185.557117 | P87: 1.000027432 | Q87: 2.350129981 | R87: 7.391411392 | S87: 1 | T87: 1 | U87: 2668406.807 | V87: 7.391411392 | W87: 0.0004643204033 | X87: 0.7422062584 | Y87: 0.9946168342 | Z87: 2.743089412e-05 | AA87: 0.5744916205 | AB87: 0.8656403499 | AC87: 4.800117596e-17 | AD87: 4.800117596e-17 | AE87: 0.9999996252 | AF87: 0.8656403499 | AG87: 0.06106913272 | AH87: 0.002457427141 | AO87: 8.558296822e-09 | AQ87: 0.086751106 | AR87: 0.086751106 | AT87: 0.086751106 | AU87: 0.7896563787 | AW87: 0.001585736254
A88: 17.27086106 | B88: 9.374762621 | C88: 9.353863239 | D88: 5.344391327e-10 | E88: 0.2752583871 | F88: -0.02089938208 | G88: 4.058345557e-08 | H88: 0.0002014533583 | I88: 0.05906443318 | J88: 0.05886297982 | K88: 0.4633877664 | L88: 0.5366122336 | M88: 1.000322061 | N88: 2.997912935 | O88: 129.0137395 | P88: 1.000019036 | Q88: 1.937342374 | R88: 5.431798424 | S88: 1 | T88: 1 | U88: 1851726.072 | V88: 5.431798424 | W88: 0.0003219612265 | X88: 0.6664346889 | Y88: 0.9922530485 | Z88: 1.903567317e-05 | AA88: 0.4838289745 | AB88: 0.8165096959 | AC88: 3.331014374e-17 | AD88: 3.331014374e-17 | AE88: 0.99999946 | AF88: 0.8165096959 | AG88: 0.06032665248 | AH88: 0.003140812838 | AO88: 1.251231955e-08 | AQ88: 0.08702439851 | AR88: 0.08702439851 | AT88: 0.08702439851 | AU88: 0.7894763565 | AW88: -0.02089938208
A89: 17.78078171 | B89: 9.478175382 | C89: 9.490080357 | D89: 4.212029379e-10 | E89: 0.2261984371 | F89: 0.01190497454 | G89: 1.500584123e-08 | H89: -0.0001224983316 | I89: 0.05826725077 | J89: 0.05838974911 | K89: 0.4706303286 | L89: 0.5293696714 | M89: 1.000253802 | N89: 2.57455518 | O89: 101.8847987 | P89: 1.000015002 | Q89: 1.73873962 | R89: 4.492051462 | S89: 1 | T89: 1 | U89: 1459345.562 | V89: 4.492051462 | W89: 0.0002537398828 | X89: 0.6115834459 | Y89: 0.9901882656 | Z89: 1.500207488e-05 | AA89: 0.4248707578 | AB89: 0.777843272 | AC89: 2.625172488e-17 | AD89: 2.625172488e-17 | AE89: 0.9999993148 | AF89: 0.777843272 | AG89: 0.05951469007 | AH89: 0.003607923465 | AO89: 1.612470483e-08 | AQ89: 0.08704071576 | AR89: 0.08704071576 | AT89: 0.08704071576 | AU89: 0.7894656278 | AW89: 0.01190497454
A90: 18.32634234 | B90: 9.614344698 | C90: 9.626235485 | D90: 3.07884871e-10 | E90: 0.2372672219 | F90: 0.01189078723 | G90: 1.59701132e-08 | H90: -0.0001263729132 | I90: 0.05743783904 | J90: 0.05756421196 | K90: 0.4781657007 | L90: 0.5218342993 | M90: 1.00018535 | N90: 2.150594478 | O90: 74.69825604 | P90: 1.000010963 | Q90: 1.539993272 | R90: 3.550606691 | S90: 1 | T90: 1 | U90: 1066406.203 | V90: 3.550606691 | W90: 0.0001853171308 | X90: 0.5350123276 | Y90: 0.9866151893 | Z90: 1.096269911e-05 | AA90: 0.3506465137 | AB90: 0.7186677875 | AC90: 1.918325304e-17 | AD90: 1.918325304e-17 | AE90: 0.9999990623 | AF90: 0.7186677875 | AG90: 0.05866975193 | AH90: 0.004257694823 | AO90: 2.241949171e-08 | AQ90: 0.08722416076 | AR90: 0.08722416076 | AT90: 0.08722416076 | AU90: 0.7893451654 | AW90: 0.01189078723
A91: 18.883451 | B91: 9.739660297 | C91: 9.76237154 | D91: 2.307377892e-10 | E91: 0.2838629789 | F91: =IF(A91="","",IF(C91="","0,00001",(IF(ABS(C91-B91)<0.00001,0.00001,C91-B91)))) -> 0.02271124298 | G91: 5.666485279e-08 | H91: -0.0002380438043 | I91: 0.05661488952 | J91: 0.05685293332 | K91: 0.4856423624 | L91: 0.5143576376 | M91: 1.000138818 | N91: 1.862106066 | O91: 56.20817819 | P91: 1.000008214 | Q91: 1.404686509 | R91: 2.910482221 | S91: 1 | T91: 1 | U91: 799026.572 | V91: 2.910482221 | W91: 0.0001387997819 | X91: 0.4629736869 | Y91: 0.9822107719 | Z91: 8.214045636e-06 | AA91: 0.2880973845 | AB91: 0.6566264526 | AC91: 1.437343862e-17 | AD91: 1.437343862e-17 | AE91: 0.9999987485 | AF91: 0.6566264526 | AG91: 0.0578306466 | AH91: 0.004846868059 | AO91: 3.038962529e-08 | AQ91: 0.08735166313 | AR91: 0.08735166313 | AT91: 0.08735166313 | AU91: 0.7892616041 | AW91: 0.02271124298
A92: 19.42648436 | B92: 9.925804919 | C92: 9.898323536 | D92: =IF(A92="","",10^-((((B92-P$12)/P$13)+7))/$AU92) -> 1.503583562e-10 | E92: 0.2761474134 | F92: -0.02748138354 | G92: 7.199360333e-08 | H92: 0.0002683162375 | I92: =IF(A92="","",L92*I$18+K92*E$19) -> 0.05583511485 | J92: =IF(A92="","",D92 -$AC$9/AU92^2/D92+L92*(W92*$B$11+X92*$C$11+Y92*$D$11+Z92*$E$11+AA92*$F$11+AB92*$G$11+AC92*$H$11)+K92*(AD92*$B$18+AE92*$C$18+AF92*$D$18)) -> 0.05556679861 | K92: =IF(A92="","",A92/(A92+$G$16)) -> 0.4927267717 | L92: =IF(A92="","",$E$16/(A92+$G$16)) -> 0.5072732283 | M92: =IF($A92="","",(1+(V$5*$AU92^(-2*V$4))*$D92+(V$6*$AU92^(-4*V$4-2))*$D92^2+(V$7*$AU92^(-6*V$4-6))*$D92^3+(V$8*$AU92^(-8*V$4-12))*$D92^4+(V$9*$AU92^(-10*V$4-20))*$D92^5+(V$10*$AU92^(-12*V$4-30))*$D92^6)) -> 1.000090268 | N92: =IF($A92="","",(1+(W$5*$AU92^(-2*W$4))*$D92+(W$6*$AU92^(-4*W$4-2))*$D92^2+(W$7*$AU92^(-6*W$4-6))*$D92^3+(W$8*$AU92^(-8*W$4-12))*$D92^4+(W$9*$AU92^(-10*W$4-20))*$D92^5+(W$10*$AU92^(-12*W$4-30))*$D92^6)) -> 1.56138733 | O92: =IF($A92="","",(1+(X$5*$AU92^(-2*X$4))*$D92+(X$6*$AU92^(-4*X$4-2))*$D92^2+(X$7*$AU92^(-6*X$4-6))*$D92^3+(X$8*$AU92^(-8*X$4-12))*$D92^4+(X$9*$AU92^(-10*X$4-20))*$D92^5+(X$10*$AU92^(-12*X$4-30))*$D92^6)) -> 36.92511162 | P92: =IF($A92="","",(1+(Y$5*$AU92^(-2*Y$4))*$D92+(Y$6*$AU92^(-4*Y$4-2))*$D92^2+(Y$7*$AU92^(-6*Y$4-6))*$D92^3+(Y$8*$AU92^(-8*Y$4-12))*$D92^4+(Y$9*$AU92^(-10*Y$4-20))*$D92^5+(Y$10*$AU92^(-12*Y$4-30))*$D92^6)) -> 1.000005349 | Q92: =IF($A92="","",(1+(Z$5*$AU92^(-2*Z$4))*$D92+(Z$6*$AU92^(-4*Z$4-2))*$D92^2+(Z$7*$AU92^(-6*Z$4-6))*$D92^3+(Z$8*$AU92^(-8*Z$4-12))*$D92^4+(Z$9*$AU92^(-10*Z$4-20))*$D92^5+(Z$10*$AU92^(-12*Z$4-30))*$D92^6)) -> 1.263710589 | R92: =IF($A92="","",(1+(AA$5*$AU92^(-2*AA$4))*$D92+(AA$6*$AU92^(-4*AA$4-2))*$D92^2+(AA$7*$AU92^(-6*AA$4-6))*$D92^3+(AA$8*$AU92^(-8*AA$4-12))*$D92^4+(AA$9*$AU92^(-10*AA$4-20))*$D92^5+(AA$10*$AU92^(-12*AA$4-30))*$D92^6)) -> 2.243051225 | S92: =IF($A92="","",(1+(AB$5*$AU92^(-2*AB$4))*$D92+(AB$6*$AU92^(-4*AB$4-2))*$D92^2+(AB$7*$AU92^(-6*AB$4-6))*$D92^3+(AB$8*$AU92^(-8*AB$4-12))*$D92^4+(AB$9*$AU92^(-10*AB$4-20))*$D92^5+(AB$10*$AU92^(-12*AB$4-30))*$D92^6)) -> 1 | T92: =IF($A92="","",(1+(AC$5*$AU92^(-2*AC$4))*$D92+(AC$6*$AU92^(-4*AC$4-2))*$D92^2)) -> 1 | U92: =IF($A92="","",(1+(AD$5*$AU92^(-2*AD$4))*$D92+(AD$6*$AU92^(-4*AD$4-2))*$D92^2)) -> 520311.502 | V92: =IF($A92="","",(1+(AE$5*$AU92^(-2*AE$4))*$D92+(AE$6*$AU92^(-4*AE$4-2))*$D92^2)) -> 2.243051225 | W92: =IF($A92="","",((V$5*$AU92^(-2*V$4))*$D92+2*(V$6*$AU92^(-4*V$4-2))*$D92^2+3*(V$7*$AU92^(-6*V$4-6))*$D92^3+4*(V$8*$AU92^(-8*V$4-12))*$D92^4+5*(V$9*$AU92^(-10*V$4-20))*$D92^5+6*(V$10*$AU92^(-12*V$4-30))*$D92^6)/M92) -> 9.026021313e-05 | X92: =IF($A92="","",((W$5*$AU92^(-2*W$4))*$D92+2*(W$6*$AU92^(-4*W$4-2))*$D92^2+3*(W$7*$AU92^(-6*W$4-6))*$D92^3+4*(W$8*$AU92^(-8*W$4-12))*$D92^4+5*(W$9*$AU92^(-10*W$4-20))*$D92^5+6*(W$10*$AU92^(-12*W$4-30))*$D92^6)/N92) -> 0.3595439375 | Y92: =IF($A92="","",((X$5*$AU92^(-2*X$4))*$D92+2*(X$6*$AU92^(-4*X$4-2))*$D92^2+3*(X$7*$AU92^(-6*X$4-6))*$D92^3+4*(X$8*$AU92^(-8*X$4-12))*$D92^4+5*(X$9*$AU92^(-10*X$4-20))*$D92^5+6*(X$10*$AU92^(-12*X$4-30))*$D92^6)/O92) -> 0.9729193055 | Z92: =IF($A92="","",((Y$5*$AU92^(-2*Y$4))*$D92+2*(Y$6*$AU92^(-4*Y$4-2))*$D92^2+3*(Y$7*$AU92^(-6*Y$4-6))*$D92^3+4*(Y$8*$AU92^(-8*Y$4-12))*$D92^4+5*(Y$9*$AU92^(-10*Y$4-20))*$D92^5+6*(Y$10*$AU92^(-12*Y$4-30))*$D92^6)/P92) -> 5.348848151e-06 | AA92: =IF($A92="","",((Z$5*$AU92^(-2*Z$4))*$D92+2*(Z$6*$AU92^(-4*Z$4-2))*$D92^2+3*(Z$7*$AU92^(-6*Z$4-6))*$D92^3+4*(Z$8*$AU92^(-8*Z$4-12))*$D92^4+5*(Z$9*$AU92^(-10*Z$4-20))*$D92^5+6*(Z$10*$AU92^(-12*Z$4-30))*$D92^6)/Q92) -> 0.2086795755 | AB92: =IF($A92="","",((AA$5*$AU92^(-2*AA$4))*$D92+2*(AA$6*$AU92^(-4*AA$4-2))*$D92^2+3*(AA$7*$AU92^(-6*AA$4-6))*$D92^3+4*(AA$8*$AU92^(-8*AA$4-12))*$D92^4+5*(AA$9*$AU92^(-10*AA$4-20))*$D92^5+6*(AA$10*$AU92^(-12*AA$4-30))*$D92^6)/R92) -> 0.5542953388 | AC92: =IF($A92="","",((AB$5*$AU92^(-2*AB$4))*$D92+2*(AB$6*$AU92^(-4*AB$4-2))*$D92^2+3*(AB$7*$AU92^(-6*AB$4-6))*$D92^3+4*(AB$8*$AU92^(-8*AB$4-12))*$D92^4+5*(AB$9*$AU92^(-10*AB$4-20))*$D92^5+6*(AB$10*$AU92^(-12*AB$4-30))*$D92^6)/S92) -> 9.359714289e-18 | AD92: =IF($A92="","",((AC$5*$AU92^(-2*AC$4))*$D92+2*(AC$6*$AU92^(-4*AC$4-2))*$D92^2)/T92) -> 9.359714289e-18 | AE92: =IF($A92="","",((AD$5*$AU92^(-2*AD$4))*$D92+2*(AD$6*$AU92^(-4*AD$4-2))*$D92^2)/U92) -> 0.9999980781 | AF92: =IF($A92="","",((AE$5*$AU92^(-2*AE$4))*$D92+2*(AE$6*$AU92^(-4*AE$4-2))*$D92^2)/V92) -> 0.5542953388 | AG92: =IF(B$11=0,"",IF($A92="","",0.5*B$11*$L92*(1*V$4^2+(V$5*$AU92^(-2*V$4))*$D92*(V$4+1)^2+(V$6*$AU92^(-4*V$4-2))*$D92^2*(V$4+2)^2+(V$7*$AU92^(-6*V$4-6))*$D92^3*(V$4+3)^2+(V$8*$AU92^(-8*V$4-12))*$D92^4*(V$4+4)^2+(V$9*$AU92^(-10*V$4-20))*$D92^5*(V$4+5)^2+(V$10*$AU92^(-12*V$4-30))*$D92^6*(V$4+6)^2)/M92)) -> 0.05703566505 | AH92: =IF(C$11=0,"",IF($A92="","",0.5*C$11*$L92*(1*W$4^2+(W$5*$AU92^(-2*W$4))*$D92*(W$4+1)^2+(W$6*$AU92^(-4*W$4-2))*$D92^2*(W$4+2)^2+(W$7*$AU92^(-6*W$4-6))*$D92^3*(W$4+3)^2+(W$8*$AU92^(-8*W$4-12))*$D92^4*(W$4+4)^2+(W$9*$AU92^(-10*W$4-20))*$D92^5*(W$4+5)^2+(W$10*$AU92^(-12*W$4-30))*$D92^6*(W$4+6)^2)/N92)) -> 0.005700746119 | AI92: =IF(D$11=0,"",IF($A92="","",0.5*D$11*$L92*(1*X$4^2+(X$5*$AU92^(-2*X$4))*$D92*(X$4+1)^2+(X$6*$AU92^(-4*X$4-2))*$D92^2*(X$4+2)^2+(X$7*$AU92^(-6*X$4-6))*$D92^3*(X$4+3)^2+(X$8*$AU92^(-8*X$4-12))*$D92^4*(X$4+4)^2+(X$9*$AU92^(-10*X$4-20))*$D92^5*(X$4+5)^2+(X$10*$AU92^(-12*X$4-30))*$D92^6*(X$4+6)^2)/O92)) ->  | AJ92: =IF(E$11=0,"",IF($A92="","",0.5*E$11*$L92*(1*Y$4^2+(Y$5*$AU92^(-2*Y$4))*$D92*(Y$4+1)^2+(Y$6*$AU92^(-4*Y$4-2))*$D92^2*(Y$4+2)^2+(Y$7*$AU92^(-6*Y$4-6))*$D92^3*(Y$4+3)^2+(Y$8*$AU92^(-8*Y$4-12))*$D92^4*(Y$4+4)^2+(Y$9*$AU92^(-10*Y$4-20))*$D92^5*(Y$4+5)^2+(Y$10*$AU92^(-12*Y$4-30))*$D92^6*(Y$4+6)^2)/P92)) ->  | AK92: =IF(F$11=0,"",IF($A92="","",0.5*F$11*$L92*(1*Z$4^2+(Z$5*$AU92^(-2*Z$4))*$D92*(Z$4+1)^2+(Z$6*$AU92^(-4*Z$4-2))*$D92^2*(Z$4+2)^2+(Z$7*$AU92^(-6*Z$4-6))*$D92^3*(Z$4+3)^2+(Z$8*$AU92^(-8*Z$4-12))*$D92^4*(Z$4+4)^2+(Z$9*$AU92^(-10*Z$4-20))*$D92^5*(Z$4+5)^2+(Z$10*$AU92^(-12*Z$4-30))*$D92^6*(Z$4+6)^2)/Q92)) ->  | AL92: =IF(G$11=0,"",IF($A92="","",0.5*G$11*$L92*(1*AA$4^2+(AA$5*$AU92^(-2*AA$4))*$D92*(AA$4+1)^2+(AA$6*$AU92^(-4*AA$4-2))*$D92^2*(AA$4+2)^2+(AA$7*$AU92^(-6*AA$4-6))*$D92^3*(AA$4+3)^2+(AA$8*$AU92^(-8*AA$4-12))*$D92^4*(AA$4+4)^2+(AA$9*$AU92^(-10*AA$4-20))*$D92^5*(AA$4+5)^2+(AA$10*$AU92^(-12*AA$4-30))*$D92^6*(AA$4+6)^2)/R92)) ->  | AM92: =IF(H$11=0,"",IF($A92="","",0.5*H$11*$L92*(1*AB$4^2+(AB$5*$AU92^(-2*AB$4))*$D92*(AB$4+1)^2+(AB$6*$AU92^(-4*AB$4-2))*$D92^2*(AB$4+2)^2+(AB$7*$AU92^(-6*AB$4-6))*$D92^3*(AB$4+3)^2+(AB$8*$AU92^(-8*AB$4-12))*$D92^4*(AB$4+4)^2+(AB$9*$AU92^(-10*AB$4-20))*$D92^5*(AB$4+5)^2+(AB$10*$AU92^(-12*AB$4-30))*$D92^6*(AB$4+6)^2)/S92)) ->  | AN92: =IF(B$18=0,"",IF($A92="","",0.5*B$18*$K92*(1*AC$4^2+(AC$5*$AU92^(-2*AC$4))*$D92*(AC$4+1)^2+(AC$6*$AU92^(-4*AC$4-2))*$D92^2*(AC$4+2)^2)/T92)) ->  | AO92: =IF(C$18=0,"",IF($A92="","",0.5*C$18*$K92*(1*AD$4^2+(AD$5*$AU92^(-2*AD$4))*$D92*(AD$4+1)^2+(AD$6*$AU92^(-4*AD$4-2))*$D92^2*(AD$4+2)^2)/U92)) -> 4.734921002e-08 | AP92: =IF(D$18=0,"",IF($A92="","",0.5*D$18*$K92*(1*AE$4^2+(AE$5*$AU92^(-2*AE$4))*$D92*(AE$4+1)^2+(AE$6*$AU92^(-4*AE$4-2))*$D92^2*(AE$4+2)^2)/V92)) ->  | AQ92: 0.08777864348 | AR92: 0.08777864348 | AT92: 0.08777864348 | AU92: 0.7889827558 | AW92: -0.02748138354
A93: 19.93330097 | B93: 10.03198711 | C93: 10.03430986 | D93: 1.177470328e-10 | E93: 0.2922265441 | F93: 0.002322754488 | G93: 4.269235064e-10 | H93: -2.066212734e-05 | I93: 0.05512647913 | J93: 0.05514714125 | K93: 0.4991648696 | L93: 0.5008351304 | M93: 1.000070685 | N93: 1.439618359 | O93: 29.13209315 | P93: 1.000004189 | Q93: 1.206514225 | R93: 1.973359409 | S93: 1 | T93: 1 | U93: 407452.3949 | V93: 1.973359409 | W93: 7.068041188e-05 | X93: 0.3053714671 | Y93: 0.965674487 | Z93: 4.188649202e-06 | AA93: 0.1711660093 | AB93: 0.4933312359 | AC93: 7.329524637e-18 | AD93: 7.329524637e-18 | AE93: 0.9999975457 | AF93: 0.4933312359 | AG93: 0.05631240502 | AH93: 0.006104467883 | AO93: 6.125437914e-08 | AQ93: 0.08779145517 | AR93: 0.08779145517 | AT93: 0.08779145517 | AU93: 0.7889744122 | AW93: 0.002322754488
A94: 20.38910155 | B94: 10.20288725 | C94: 10.17005587 | D94: 7.94598938e-11 | E94: 0.2974556392 | F94: -0.03283138141 | G94: 6.318881023e-08 | H94: 0.0002513738456 | I94: 0.05450436375 | J94: 0.05425298991 | K94: 0.5048169126 | L94: 0.4951830874 | M94: 1.000047636 | N94: 1.296536073 | O94: 19.96737973 | P94: 1.000002825 | Q94: 1.139363158 | R94: 1.656228906 | S94: 1 | T94: 1 | U94: 274839.4714 | V94: 1.656228906 | W94: 4.76340454e-05 | X94: 0.228714098 | Y94: 0.9499189073 | Z94: 2.825376297e-06 | AA94: 0.1223167147 | AB94: 0.3962627771 | AC94: 4.943989326e-18 | AD94: 4.943989326e-18 | AE94: 0.9999963615 | AF94: 0.3962627771 | AG94: 0.05567761908 | AH94: 0.006701647817 | AO94: 9.183850304e-08 | AQ94: 0.08806570303 | AR94: 0.08806570303 | AT94: 0.08806570303 | AU94: 0.7887961316 | AW94: -0.03283138141
A95: 20.78801335 | B95: 10.2906344 | C95: 10.30575418 | D95: 6.492021113e-11 | E95: 0.294695404 | F95: 0.01511978327 | G95: 1.038661798e-08 | H95: -0.0001019147584 | I95: 0.05397130434 | J95: 0.0540732191 | K95: 0.5096598644 | L95: 0.4903401356 | M95: 1.000038931 | N95: 1.242298809 | O95: 16.49968401 | P95: 1.000002309 | Q95: 1.113862292 | R95: 1.536243548 | S95: 1 | T95: 1 | U95: 224570.7593 | V95: 1.536243548 | W95: 3.892945517e-05 | X95: 0.1950406866 | Y95: 0.9393932565 | Z95: 2.308608397e-06 | AA95: 0.1022229527 | AB95: 0.3490932573 | AC95: 4.039720085e-18 | AD95: 4.039720085e-18 | AE95: 0.9999955471 | AF95: 0.3490932573 | AG95: 0.05513335171 | AH95: 0.006925829176 | AO95: 1.134742265e-07 | AQ95: 0.08800722007 | AR95: 0.08800722007 | AT95: 0.08800722007 | AU95: 0.7888340979 | AW95: 0.01511978327
A96: 21.13249839 | B96: 10.41789562 | C96: 10.441257 | D96: 4.843380305e-11 | E96: 0.4128506638 | F96: 0.02336138344 | G96: 1.830417013e-08 | H96: -0.000135292905 | I96: 0.0535192942 | J96: 0.0536545871 | K96: 0.5137664673 | L96: 0.4862335327 | M96: 1.000029032 | N96: 1.180742465 | O96: 12.56037665 | P96: 1.000001722 | Q96: 1.084947103 | R96: 1.399945903 | S96: 1 | T96: 1 | U96: 167518.5048 | V96: 1.399945903 | W96: 2.903165367e-05 | X96: 0.1530752658 | Y96: 0.9203849023 | Z96: 1.722104286e-06 | AA96: 0.07829607783 | AB96: 0.2857060448 | AC96: 3.013423671e-18 | AD96: 3.013423671e-18 | AE96: 0.9999940305 | AF96: 0.2857060448 | AG96: 0.05467191004 | AH96: 0.007225869679 | AO96: 1.533461834e-07 | AQ96: 0.0880907843 | AR96: 0.0880907843 | AT96: 0.0880907843 | AU96: 0.7887798579 | AW96: 0.02336138344
A97: 21.43153996 | B97: 10.55434135 | C97: 10.57670641 | D97: 3.537834518e-11 | E97: 0.5651745376 | F97: 0.02236505806 | G97: 1.26167144e-08 | H97: -0.0001123241488 | I97: 0.05313300651 | J97: 0.05324533066 | K97: 0.5172759685 | L97: 0.4827240315 | M97: 1.000021197 | N97: 1.132001779 | O97: 9.441549467 | P97: 1.000001258 | Q97: 1.06204939 | R97: 1.292040811 | S97: 1 | T97: 1 | U97: 122344.1849 | V97: 1.292040811 | W97: 2.119609206e-05 | X97: 0.1166091634 | Y97: 0.894085429 | Z97: 1.257706299e-06 | AA97: 0.05842420362 | AB97: 0.2260418268 | AC97: 2.20079597e-18 | AD97: 2.20079597e-18 | AE97: 0.9999918263 | AF97: 0.2260418268 | AG97: 0.05427753937 | AH97: 0.00748259451 | AO97: 2.114019431e-07 | AQ97: 0.08818792685 | AR97: 0.08818792685 | AT97: 0.08818792685 | AU97: 0.7887168763 | AW97: 0.02236505806
A98: 21.69869425 | B98: 10.73442265 | C98: 10.7122817 | D98: 2.337334154e-11 | E98: 0.6023452643 | F98: -0.0221409443 | G98: 9.828457144e-09 | H98: 9.913857546e-05 | I98: 0.05279259511 | J98: 0.05269345654 | K98: 0.5203686744 | L98: 0.4796313256 | M98: 1.000013991 | N98: 1.08718342 | O98: 6.573744679 | P98: 1.000000831 | Q98: 1.040994048 | R98: 1.192824045 | S98: 1 | T98: 1 | U98: 80805.19318 | V98: 1.192824045 | W98: 1.399118376e-05 | X98: 0.08019200688 | Y98: 0.8478798571 | Z98: 8.306795854e-07 | AA98: 0.03937971411 | AB98: 0.1616586697 | AC98: 1.453563129e-18 | AD98: 1.453563129e-18 | AE98: 0.9999876246 | AF98: 0.1616586697 | AG98: 0.05393001107 | AH98: 0.007741143528 | AO98: 3.219896234e-07 | AQ98: 0.08836914837 | AR98: 0.08836914837 | AT98: 0.08836914837 | AU98: 0.7885995892 | AW98: -0.0221409443
A99: 21.95074941 | B99: 10.86816772 | C99: 10.84832239 | D99: 1.717902259e-11 | E99: 0.4864445766 | F99: -0.01984533252 | G99: 7.446209601e-09 | H99: 8.629142252e-05 | I99: 0.05247539825 | J99: 0.05238910683 | K99: 0.5232504716 | L99: 0.4767495284 | M99: 1.00001028 | N99: 1.064071679 | O99: 5.095753487 | P99: 1.00000061 | Q99: 1.030129953 | R99: 1.141691626 | S99: 1 | T99: 1 | U99: 59384.54242 | V99: 1.141691626 | W99: 1.028009835e-05 | X99: 0.06021368693 | Y99: 0.803758276 | Z99: 6.104721218e-07 | AA99: 0.02924869109 | AB99: 0.124109722 | AC99: 1.068233273e-18 | AD99: 1.068233273e-18 | AE99: 0.9999831606 | AF99: 0.124109722 | AG99: 0.05360609072 | AH99: 0.007861760117 | AO99: 4.405611716e-07 | AQ99: 0.08843299334 | AR99: 0.08843299334 | AT99: 0.08843299334 | AU99: 0.7885583324 | AW99: -0.01984533252
A100: 22.20732219 | B100: 10.98164239 | C100: 10.98498392 | D100: 1.322911705e-11 | E100: 0.4480521647 | F100: 0.003341527501 | G100: 2.30396561e-10 | H100: -1.517881949e-05 | I100: 0.05215640718 | J100: 0.052171586 | K100: 0.5261485695 | L100: 0.4738514305 | M100: 1.000007916 | N100: 1.04933832 | O100: 4.153827195 | P100: 1.00000047 | Q100: 1.02320229 | R100: 1.109105309 | S100: 1 | T100: 1 | U100: 45729.22604 | V100: 1.109105309 | W100: 7.915678778e-06 | X100: 0.04701850582 | Y100: 0.7592582391 | Z100: 4.700933955e-07 | AA100: 0.02267615179 | AB100: 0.09837418189 | AC100: 8.225917582e-19 | AD100: 8.225917582e-19 | AE100: 0.9999781321 | AF100: 0.09837418189 | AG100: 0.05328029631 | AH100: 0.007923682471 | AO100: 5.752869828e-07 | AQ100: 0.08845289076 | AR100: 0.08845289076 | AT100: 0.08845289076 | AU100: 0.7885454814 | AW100: 0.003341527501
A101: 22.49148126 | B101: 11.11060328 | C101: 11.12218332 | D101: 9.830815919e-12 | E101: 0.4652459398 | F101: 0.01158004134 | G101: 3.528570978e-09 | H101: -5.940177588e-05 | I101: 0.05180761454 | J101: 0.05186701632 | K101: 0.5293174206 | L101: 0.4706825794 | M101: 1.000005881 | N101: 1.036660963 | O101: 3.343247784 | P101: 1.000000349 | Q101: 1.017242076 | R101: 1.081063276 | S101: 1 | T101: 1 | U101: 33979.47418 | V101: 1.081063276 | W101: 5.880714921e-06 | X101: 0.03536446804 | Y101: 0.7008897083 | Z101: 3.493041304e-07 | AA101: 0.01694982616 | AB101: 0.0749857962 | AC101: 6.112288895e-19 | AD101: 6.112288895e-19 | AE101: 0.9999705705 | AF101: 0.0749857962 | AG101: 0.05292404757 | AH101: 0.007966944283 | AO101: 7.788781807e-07 | AQ101: 0.08850799691 | AR101: 0.08850799691 | AT101: 0.08850799691 | AU101: 0.7885099072 | AW101: 0.01158004134
A102: 22.83146178 | B102: 11.27265786 | C102: 11.25964689 | D102: 6.770060122e-12 | E102: 0.4073195376 | F102: -0.01301097142 | G102: 6.830632489e-09 | H102: 8.264764055e-05 | I102: 0.05139638459 | J102: 0.05131373695 | K102: 0.5330535273 | L102: 0.4669464727 | M102: 1.000004047 | N102: 1.025240139 | O102: 2.612838904 | P102: 1.00000024 | Q102: 1.011873876 | R102: 1.055794974 | S102: 1 | T102: 1 | U102: 23394.3138 | V102: 1.055794974 | W102: 4.046584022e-06 | X102: 0.02461875843 | Y102: 0.6172745617 | Z102: 2.404870207e-07 | AA102: 0.01173454194 | AB102: 0.0528469099 | AC102: 4.208155181e-19 | AD102: 4.208155181e-19 | AE102: 0.9999572546 | AF102: 0.0528469099 | AG102: 0.05250400928 | AH102: 0.007991750159 | AO102: 1.139280108e-06 | AQ102: 0.08867004795 | AR102: 0.08867004795 | AT102: 0.08867004795 | AU102: 0.7884054369 | AW102: -0.01301097142
A103: 23.26370097 | B103: 11.41874634 | C103: 11.39715815 | D103: 4.836832378e-12 | E103: 0.2786025783 | F103: -0.02158819906 | G103: 3.132371591e-08 | H103: 0.0001769850726 | I103: 0.05088289334 | J103: 0.05070590827 | K103: 0.5377186984 | L103: 0.4622813016 | M103: 1.000002889 | N103: 1.018027947 | O103: 2.151679206 | P103: 1.000000172 | Q103: 1.008483226 | R103: 1.039841387 | S103: 1 | T103: 1 | U103: 16709.83895 | V103: 1.039841387 | W103: 2.88878742e-06 | X103: 0.01770869563 | Y103: 0.5352467256 | Z103: 1.717695581e-07 | AA103: 0.008411866235 | AB103: 0.03831512811 | AC103: 3.005704441e-19 | AD103: 3.005704441e-19 | AE103: 0.999940155 | AF103: 0.03831512811 | AG103: 0.0519794854 | AH103: 0.007967957834 | AO103: 1.608988273e-06 | AQ103: 0.08883085156 | AR103: 0.08883085156 | AT103: 0.08883085156 | AU103: 0.7883019812 | AW103: -0.02158819906
A104: 23.83778871 | B104: 11.54460045 | C104: 11.53458357 | D104: 3.620318138e-12 | E104: 0.2187713144 | F104: -0.01001688105 | G104: 1.146425227e-08 | H104: 0.0001070712486 | I104: 0.05021654483 | J104: 0.05010947359 | K104: 0.5437726084 | L104: 0.4562273916 | M104: 1.000002161 | N104: 1.013491255 | O104: 1.861703794 | P104: 1.000000129 | Q104: 1.006349605 | R104: 1.029809877 | S104: 1 | T104: 1 | U104: 12505.09788 | V104: 1.029809877 | W104: 2.161039737e-06 | X104: 0.01331166438 | Y104: 0.4628576368 | Z104: 1.285441476e-07 | AA104: 0.00630954229 | AB104: 0.02894711816 | AC104: 2.249325799e-19 | AD104: 2.249325799e-19 | AE104: 0.9999200326 | AF104: 0.02894711816 | AG104: 0.05129879696 | AH104: 0.007898811519 | AO104: 2.174203727e-06 | AQ104: 0.08894333817 | AR104: 0.08894333817 | AT104: 0.08894333817 | AU104: 0.7882297352 | AW104: -0.01001688105
A105: 24.6246259 | B105: 11.71638126 | C105: 11.67173719 | D105: 2.438560195e-12 | E105: 0.1659488274 | F105: -0.04464406869 | G105: 4.429637815e-07 | H105: 0.000665555243 | I105: 0.04933110895 | J105: 0.04866555371 | K105: 0.5518169711 | L105: 0.4481830289 | M105: 1.000001452 | N105: 1.009080379 | O105: 1.579528123 | P105: 1.000000087 | Q105: 1.004276943 | R105: 1.020048228 | S105: 1 | T105: 1 | U105: 8416.96642 | V105: 1.020048228 | W105: 1.452260206e-06 | X105: 0.008998668074 | Y105: 0.366899535 | Z105: 8.651749896e-08 | AA105: 0.004258728838 | AB105: 0.01965426282 | AC105: 1.513923722e-19 | AD105: 1.513923722e-19 | AE105: 0.9998811924 | AF105: 0.01965426282 | AG105: 0.05039429827 | AH105: 0.007793455243 | AO105: 3.278003877e-06 | AQ105: 0.08941849488 | AR105: 0.08941849488 | AT105: 0.08941849488 | AU105: 0.7879256828 | AW105: -0.04464406869
A106: 25.73051748 | B106: 11.84198792 | C106: 11.80884218 | D106: 1.826496347e-12 | E106: 0.08391135098 | F106: =IF(A106="","",IF(C106="","0,00001",(IF(ABS(C106-B106)<0.00001,0.00001,C106-B106)))) -> -0.0331457362 | G106: =IF(A106="","",IF(AX106="X",0,IF(ABS(E106)<0.00001,(0.00001^M$20)*(ABS(H106)^I$20)*ABS(F106)^K$20,((ABS(E106))^M$20)*((ABS(H106))^I$20)*ABS(F106)^K$20))) -> 4.377286437e-07 | H106: =IF(A106="","",I106-J106) -> 0.0006616106436 | I106: 0.04813814502 | J106: 0.04747653437 | K106: 0.562655288 | L106: 0.437344712 | M106: 1.000001086 | N106: 1.006798379 | O106: 1.433702483 | P106: 1.000000065 | Q106: 1.003203456 | R106: 1.015003515 | S106: 1 | T106: 1 | U106: 6301.940162 | V106: 1.015003515 | W106: 1.086370623e-06 | X106: 0.006752472872 | Y106: 0.302505223 | Z106: 6.47746876e-08 | AA106: 0.003193226967 | AB106: 0.01478177443 | AC106: 1.133457799e-19 | AD106: 1.133457799e-19 | AE106: 0.9998413187 | AF106: 0.01478177443 | AG106: 0.04917563345 | AH106: 0.007622225139 | AO106: 4.464143371e-06 | AQ106: =IF(A106="","",SUM(AG106:AP106)+0.5*(D106+ $AC$9/AU106^2/D106)+$L106*$S$16+$K106*$T$16) -> 0.08968046827 | AR106: =IF(A106="","",AQ106+$L106*S$14+$K106*$T$14) -> 0.08968046827 | AT106: 0.08968046827 | AU106: =IF(A106="","",10^(-$P$16*($AT106^0.5/(1+$AT106^0.5)-$P$17*$AT106))) -> 0.7877588186 | AW106: =IF(C106="","",C106-B106) -> -0.0331457362
A107: 27.32318146 | B107: 11.92837905 | C107: 11.94602919 | D107: 1.496779543e-12 | E107: =IF(A107="","",IF(A108="",(B107-B106)/(A107-A106),((B108-B107)/(A108-A107)+(B107-B106)/(A107-A106))/2)) -> 0.05241987139 | F107: 0.01765013593 | G107: 2.054086753e-07 | H107: -0.0004532203386 | I107: 0.04651805341 | J107: 0.04697127374 | K107: 0.5773741455 | L107: 0.4226258545 | M107: 1.000000891 | N107: 1.005572936 | O107: 1.355639743 | P107: 1.000000053 | Q107: 1.002625172 | R107: 1.012303005 | S107: 1 | T107: 1 | U107: 5166.163347 | V107: 1.012303005 | W107: 8.911199073e-07 | X107: 0.005542050573 | Y107: 0.2623408975 | Z107: 5.309871821e-08 | AA107: 0.002618298969 | AB107: 0.01215350577 | AC107: 9.291462117e-20 | AD107: 9.291462117e-20 | AE107: 0.9998064328 | AF107: 0.01215350577 | AG107: 0.04752063027 | AH107: 0.007374674999 | AO107: 5.588036099e-06 | AQ107: 0.08948149434 | AR107: 0.08948149434 | AT107: 0.08948149434 | AU107: 0.7878855053 | AW107: 0.01765013593
A108: 29.68385213 | B108: 12.04782091 | C108: 12.08308554 | D108: 1.136983899e-12 | E108: 0.04992232527 | F108: 0.03526462549 | G108: 1.471141886e-06 | H108: -0.00121290638 | I108: 0.04430780199 | J108: 0.04552070837 | K108: 0.5974547233 | L108: 0.4025452767 | M108: 1.000000677 | N108: 1.004232567 | O108: 1.270055741 | P108: 1.00000004 | Q108: 1.001994134 | R108: 1.009342306 | S108: 1 | T108: 1 | U108: 3923.869515 | V108: 1.009342306 | W108: 6.765543436e-07 | X108: 0.004214728087 | Y108: 0.2126329851 | Z108: 4.032773634e-08 | AA108: 0.001990165235 | AB108: 0.009255850091 | AC108: 7.056735873e-20 | AD108: 7.056735873e-20 | AE108: 0.9997451495 | AF108: 0.009255850091 | AG108: 0.04526274797 | AH108: 0.007033651299 | AO108: 7.613080929e-06 | AQ108: 0.08959066288 | AR108: 0.08959066288 | AT108: 0.08959066288 | AU108: 0.7878159587 | AW108: 0.03526462549
A109: 33.32294729 | B109: 12.22703933 | C109: 12.21971273 | D109: 7.534297049e-13 | E109: 0.03417352393 | F109: -0.00732659439 | G109: 1.311102602e-07 | H109: 0.0003620915081 | I109: 0.04128395736 | J109: 0.04092186586 | K109: 0.6249269589 | L109: 0.3750730411 | M109: 1.000000445 | N109: 1.002798199 | O109: 1.178120732 | P109: 1.000000027 | Q109: 1.001321426 | R109: 1.006161904 | S109: 1 | T109: 1 | U109: 2594.454326 | V109: 1.006161904 | W109: 4.451948742e-07 | X109: 0.002790390976 | Y109: 0.15119056 | Z109: 2.666113245e-08 | AA109: 0.001319681808 | AB109: 0.00612417385 | AC109: 4.665289557e-20 | AD109: 4.665289557e-20 | AE109: 0.9996145625 | AF109: 0.00612417385 | AG109: 0.04217373721 | AH109: 0.006563004539 | AO109: 1.204351436e-05 | AQ109: 0.0910471766 | AR109: 0.0910471766 | AT109: 0.0910471766 | AU109: 0.7868970779 | AW109: -0.00732659439
A110: 39.27407459 | B110: 12.34069977 | C110: 12.35688257 | D110: 5.800321964e-13 | E110: 0.01717623779 | F110: 0.01618280146 | G110: 1.138294081e-06 | H110: -0.001066908656 | I110: 0.03713904093 | J110: 0.03820594959 | K110: 0.6625843568 | L110: 0.3374156432 | M110: 1.000000342 | N110: 1.002153517 | O110: 1.137039137 | P110: 1.000000021 | Q110: 1.001017307 | R110: 1.004740727 | S110: 1 | T110: 1 | U110: 1996.944025 | V110: 1.004740727 | W110: 3.424055008e-07 | X110: 0.002148889593 | Y110: 0.1205227977 | Z110: 2.051862945e-08 | AA110: 0.001016273298 | AB110: 0.004718362556 | AC110: 3.590445654e-20 | AD110: 3.590445654e-20 | AE110: 0.9994992348 | AF110: 0.004718362556 | AG110: 0.0379394889 | AH110: 0.005907875825 | AO110: 1.658995817e-05 | AQ110: 0.09124971976 | AR110: 0.09124971976 | AT110: 0.09124971976 | AU110: 0.7867706098 | AW110: 0.01618280146
A111: 50 | B111: 12.50430766 | C111: 12.49352503 | D111: 3.986795948e-13 | E111: 0.0152534988 | F111: -0.01078263279 | G111: 1.011671891e-06 | H111: 0.001005819015 | I111: 0.03144831832 | J111: 0.03044249931 | K111: 0.7142857143 | L111: 0.2857142857 | M111: 1.000000233 | N111: 1.001474894 | O111: 1.093518457 | P111: 1.000000014 | Q111: 1.000699236 | R111: 1.003235173 | S111: 1 | T111: 1 | U111: 1367.975308 | V111: 1.003235173 | W111: 2.328272986e-07 | X111: 0.00147272142 | Y111: 0.08552069395 | Z111: 1.405272876e-08 | AA111: 0.000698747778 | AB111: 0.003224742649 | AC111: 2.459012122e-20 | AD111: 2.459012122e-20 | AE111: 0.9992689927 | AF111: 0.003224742649 | AG111: 0.0321261176 | AH111: 0.005006016649 | AO111: 2.610740524e-05 | AQ111: 0.0935451281 | AR111: 0.0935451281 | AT111: 0.0935451281 | AU111: 0.7853591912 | AW111: -0.01078263279
D112: =IF(A112="","",10^-((((B112-P$12)/P$13)+7))/$AU112) ->  | E112: =IF(A112="","",IF(A113="",(B112-B111)/(A112-A111),((B113-B112)/(A113-A112)+(B112-B111)/(A112-A111))/2)) ->  | F112: =IF(A112="","",IF(C112="","0,00001",(IF(ABS(C112-B112)<0.00001,0.00001,C112-B112)))) ->  | G112: =IF(A112="","",IF(AX112="X",0,IF(ABS(E112)<0.00001,(0.00001^M$20)*(ABS(H112)^I$20)*ABS(F112)^K$20,((ABS(E112))^M$20)*((ABS(H112))^I$20)*ABS(F112)^K$20))) ->  | I112: =IF(A112="","",L112*I$18+K112*E$19) ->  | J112: =IF(A112="","",D112 -$AC$9/AU112^2/D112+L112*(W112*$B$11+X112*$C$11+Y112*$D$11+Z112*$E$11+AA112*$F$11+AB112*$G$11+AC112*$H$11)+K112*(AD112*$B$18+AE112*$C$18+AF112*$D$18)) ->  | K112: =IF(A112="","",A112/(A112+$G$16)) ->  | L112: =IF(A112="","",$E$16/(A112+$G$16)) ->  | M112: =IF($A112="","",(1+(V$5*$AU112^(-2*V$4))*$D112+(V$6*$AU112^(-4*V$4-2))*$D112^2+(V$7*$AU112^(-6*V$4-6))*$D112^3+(V$8*$AU112^(-8*V$4-12))*$D112^4+(V$9*$AU112^(-10*V$4-20))*$D112^5+(V$10*$AU112^(-12*V$4-30))*$D112^6)) ->  | N112: =IF($A112="","",(1+(W$5*$AU112^(-2*W$4))*$D112+(W$6*$AU112^(-4*W$4-2))*$D112^2+(W$7*$AU112^(-6*W$4-6))*$D112^3+(W$8*$AU112^(-8*W$4-12))*$D112^4+(W$9*$AU112^(-10*W$4-20))*$D112^5+(W$10*$AU112^(-12*W$4-30))*$D112^6)) ->  | O112: =IF($A112="","",(1+(X$5*$AU112^(-2*X$4))*$D112+(X$6*$AU112^(-4*X$4-2))*$D112^2+(X$7*$AU112^(-6*X$4-6))*$D112^3+(X$8*$AU112^(-8*X$4-12))*$D112^4+(X$9*$AU112^(-10*X$4-20))*$D112^5+(X$10*$AU112^(-12*X$4-30))*$D112^6)) ->  | P112: =IF($A112="","",(1+(Y$5*$AU112^(-2*Y$4))*$D112+(Y$6*$AU112^(-4*Y$4-2))*$D112^2+(Y$7*$AU112^(-6*Y$4-6))*$D112^3+(Y$8*$AU112^(-8*Y$4-12))*$D112^4+(Y$9*$AU112^(-10*Y$4-20))*$D112^5+(Y$10*$AU112^(-12*Y$4-30))*$D112^6)) ->  | Q112: =IF($A112="","",(1+(Z$5*$AU112^(-2*Z$4))*$D112+(Z$6*$AU112^(-4*Z$4-2))*$D112^2+(Z$7*$AU112^(-6*Z$4-6))*$D112^3+(Z$8*$AU112^(-8*Z$4-12))*$D112^4+(Z$9*$AU112^(-10*Z$4-20))*$D112^5+(Z$10*$AU112^(-12*Z$4-30))*$D112^6)) ->  | R112: =IF($A112="","",(1+(AA$5*$AU112^(-2*AA$4))*$D112+(AA$6*$AU112^(-4*AA$4-2))*$D112^2+(AA$7*$AU112^(-6*AA$4-6))*$D112^3+(AA$8*$AU112^(-8*AA$4-12))*$D112^4+(AA$9*$AU112^(-10*AA$4-20))*$D112^5+(AA$10*$AU112^(-12*AA$4-30))*$D112^6)) ->  | S112: =IF($A112="","",(1+(AB$5*$AU112^(-2*AB$4))*$D112+(AB$6*$AU112^(-4*AB$4-2))*$D112^2+(AB$7*$AU112^(-6*AB$4-6))*$D112^3+(AB$8*$AU112^(-8*AB$4-12))*$D112^4+(AB$9*$AU112^(-10*AB$4-20))*$D112^5+(AB$10*$AU112^(-12*AB$4-30))*$D112^6)) ->  | T112: =IF($A112="","",(1+(AC$5*$AU112^(-2*AC$4))*$D112+(AC$6*$AU112^(-4*AC$4-2))*$D112^2)) ->  | U112: =IF($A112="","",(1+(AD$5*$AU112^(-2*AD$4))*$D112+(AD$6*$AU112^(-4*AD$4-2))*$D112^2)) ->  | V112: =IF($A112="","",(1+(AE$5*$AU112^(-2*AE$4))*$D112+(AE$6*$AU112^(-4*AE$4-2))*$D112^2)) ->  | W112: =IF($A112="","",((V$5*$AU112^(-2*V$4))*$D112+2*(V$6*$AU112^(-4*V$4-2))*$D112^2+3*(V$7*$AU112^(-6*V$4-6))*$D112^3+4*(V$8*$AU112^(-8*V$4-12))*$D112^4+5*(V$9*$AU112^(-10*V$4-20))*$D112^5+6*(V$10*$AU112^(-12*V$4-30))*$D112^6)/M112) ->  | X112: =IF($A112="","",((W$5*$AU112^(-2*W$4))*$D112+2*(W$6*$AU112^(-4*W$4-2))*$D112^2+3*(W$7*$AU112^(-6*W$4-6))*$D112^3+4*(W$8*$AU112^(-8*W$4-12))*$D112^4+5*(W$9*$AU112^(-10*W$4-20))*$D112^5+6*(W$10*$AU112^(-12*W$4-30))*$D112^6)/N112) ->  | Y112: =IF($A112="","",((X$5*$AU112^(-2*X$4))*$D112+2*(X$6*$AU112^(-4*X$4-2))*$D112^2+3*(X$7*$AU112^(-6*X$4-6))*$D112^3+4*(X$8*$AU112^(-8*X$4-12))*$D112^4+5*(X$9*$AU112^(-10*X$4-20))*$D112^5+6*(X$10*$AU112^(-12*X$4-30))*$D112^6)/O112) ->  | Z112: =IF($A112="","",((Y$5*$AU112^(-2*Y$4))*$D112+2*(Y$6*$AU112^(-4*Y$4-2))*$D112^2+3*(Y$7*$AU112^(-6*Y$4-6))*$D112^3+4*(Y$8*$AU112^(-8*Y$4-12))*$D112^4+5*(Y$9*$AU112^(-10*Y$4-20))*$D112^5+6*(Y$10*$AU112^(-12*Y$4-30))*$D112^6)/P112) ->  | AA112: =IF($A112="","",((Z$5*$AU112^(-2*Z$4))*$D112+2*(Z$6*$AU112^(-4*Z$4-2))*$D112^2+3*(Z$7*$AU112^(-6*Z$4-6))*$D112^3+4*(Z$8*$AU112^(-8*Z$4-12))*$D112^4+5*(Z$9*$AU112^(-10*Z$4-20))*$D112^5+6*(Z$10*$AU112^(-12*Z$4-30))*$D112^6)/Q112) ->  | AB112: =IF($A112="","",((AA$5*$AU112^(-2*AA$4))*$D112+2*(AA$6*$AU112^(-4*AA$4-2))*$D112^2+3*(AA$7*$AU112^(-6*AA$4-6))*$D112^3+4*(AA$8*$AU112^(-8*AA$4-12))*$D112^4+5*(AA$9*$AU112^(-10*AA$4-20))*$D112^5+6*(AA$10*$AU112^(-12*AA$4-30))*$D112^6)/R112) ->  | AC112: =IF($A112="","",((AB$5*$AU112^(-2*AB$4))*$D112+2*(AB$6*$AU112^(-4*AB$4-2))*$D112^2+3*(AB$7*$AU112^(-6*AB$4-6))*$D112^3+4*(AB$8*$AU112^(-8*AB$4-12))*$D112^4+5*(AB$9*$AU112^(-10*AB$4-20))*$D112^5+6*(AB$10*$AU112^(-12*AB$4-30))*$D112^6)/S112) ->  | AD112: =IF($A112="","",((AC$5*$AU112^(-2*AC$4))*$D112+2*(AC$6*$AU112^(-4*AC$4-2))*$D112^2)/T112) ->  | AE112: =IF($A112="","",((AD$5*$AU112^(-2*AD$4))*$D112+2*(AD$6*$AU112^(-4*AD$4-2))*$D112^2)/U112) ->  | AF112: =IF($A112="","",((AE$5*$AU112^(-2*AE$4))*$D112+2*(AE$6*$AU112^(-4*AE$4-2))*$D112^2)/V112) ->  | AG112: =IF(B$11=0,"",IF($A112="","",0.5*B$11*$L112*(1*V$4^2+(V$5*$AU112^(-2*V$4))*$D112*(V$4+1)^2+(V$6*$AU112^(-4*V$4-2))*$D112^2*(V$4+2)^2+(V$7*$AU112^(-6*V$4-6))*$D112^3*(V$4+3)^2+(V$8*$AU112^(-8*V$4-12))*$D112^4*(V$4+4)^2+(V$9*$AU112^(-10*V$4-20))*$D112^5*(V$4+5)^2+(V$10*$AU112^(-12*V$4-30))*$D112^6*(V$4+6)^2)/M112)) ->  | AH112: =IF(C$11=0,"",IF($A112="","",0.5*C$11*$L112*(1*W$4^2+(W$5*$AU112^(-2*W$4))*$D112*(W$4+1)^2+(W$6*$AU112^(-4*W$4-2))*$D112^2*(W$4+2)^2+(W$7*$AU112^(-6*W$4-6))*$D112^3*(W$4+3)^2+(W$8*$AU112^(-8*W$4-12))*$D112^4*(W$4+4)^2+(W$9*$AU112^(-10*W$4-20))*$D112^5*(W$4+5)^2+(W$10*$AU112^(-12*W$4-30))*$D112^6*(W$4+6)^2)/N112)) ->  | AI112: =IF(D$11=0,"",IF($A112="","",0.5*D$11*$L112*(1*X$4^2+(X$5*$AU112^(-2*X$4))*$D112*(X$4+1)^2+(X$6*$AU112^(-4*X$4-2))*$D112^2*(X$4+2)^2+(X$7*$AU112^(-6*X$4-6))*$D112^3*(X$4+3)^2+(X$8*$AU112^(-8*X$4-12))*$D112^4*(X$4+4)^2+(X$9*$AU112^(-10*X$4-20))*$D112^5*(X$4+5)^2+(X$10*$AU112^(-12*X$4-30))*$D112^6*(X$4+6)^2)/O112)) ->  | AJ112: =IF(E$11=0,"",IF($A112="","",0.5*E$11*$L112*(1*Y$4^2+(Y$5*$AU112^(-2*Y$4))*$D112*(Y$4+1)^2+(Y$6*$AU112^(-4*Y$4-2))*$D112^2*(Y$4+2)^2+(Y$7*$AU112^(-6*Y$4-6))*$D112^3*(Y$4+3)^2+(Y$8*$AU112^(-8*Y$4-12))*$D112^4*(Y$4+4)^2+(Y$9*$AU112^(-10*Y$4-20))*$D112^5*(Y$4+5)^2+(Y$10*$AU112^(-12*Y$4-30))*$D112^6*(Y$4+6)^2)/P112)) ->  | AK112: =IF(F$11=0,"",IF($A112="","",0.5*F$11*$L112*(1*Z$4^2+(Z$5*$AU112^(-2*Z$4))*$D112*(Z$4+1)^2+(Z$6*$AU112^(-4*Z$4-2))*$D112^2*(Z$4+2)^2+(Z$7*$AU112^(-6*Z$4-6))*$D112^3*(Z$4+3)^2+(Z$8*$AU112^(-8*Z$4-12))*$D112^4*(Z$4+4)^2+(Z$9*$AU112^(-10*Z$4-20))*$D112^5*(Z$4+5)^2+(Z$10*$AU112^(-12*Z$4-30))*$D112^6*(Z$4+6)^2)/Q112)) ->  | AL112: =IF(G$11=0,"",IF($A112="","",0.5*G$11*$L112*(1*AA$4^2+(AA$5*$AU112^(-2*AA$4))*$D112*(AA$4+1)^2+(AA$6*$AU112^(-4*AA$4-2))*$D112^2*(AA$4+2)^2+(AA$7*$AU112^(-6*AA$4-6))*$D112^3*(AA$4+3)^2+(AA$8*$AU112^(-8*AA$4-12))*$D112^4*(AA$4+4)^2+(AA$9*$AU112^(-10*AA$4-20))*$D112^5*(AA$4+5)^2+(AA$10*$AU112^(-12*AA$4-30))*$D112^6*(AA$4+6)^2)/R112)) ->  | AM112: =IF(H$11=0,"",IF($A112="","",0.5*H$11*$L112*(1*AB$4^2+(AB$5*$AU112^(-2*AB$4))*$D112*(AB$4+1)^2+(AB$6*$AU112^(-4*AB$4-2))*$D112^2*(AB$4+2)^2+(AB$7*$AU112^(-6*AB$4-6))*$D112^3*(AB$4+3)^2+(AB$8*$AU112^(-8*AB$4-12))*$D112^4*(AB$4+4)^2+(AB$9*$AU112^(-10*AB$4-20))*$D112^5*(AB$4+5)^2+(AB$10*$AU112^(-12*AB$4-30))*$D112^6*(AB$4+6)^2)/S112)) ->  | AN112: =IF(B$18=0,"",IF($A112="","",0.5*B$18*$K112*(1*AC$4^2+(AC$5*$AU112^(-2*AC$4))*$D112*(AC$4+1)^2+(AC$6*$AU112^(-4*AC$4-2))*$D112^2*(AC$4+2)^2)/T112)) ->  | AO112: =IF(C$18=0,"",IF($A112="","",0.5*C$18*$K112*(1*AD$4^2+(AD$5*$AU112^(-2*AD$4))*$D112*(AD$4+1)^2+(AD$6*$AU112^(-4*AD$4-2))*$D112^2*(AD$4+2)^2)/U112)) ->  | AP112: =IF(D$18=0,"",IF($A112="","",0.5*D$18*$K112*(1*AE$4^2+(AE$5*$AU112^(-2*AE$4))*$D112*(AE$4+1)^2+(AE$6*$AU112^(-4*AE$4-2))*$D112^2*(AE$4+2)^2)/V112)) ->  | AQ112: =IF(A112="","",SUM(AG112:AP112)+0.5*(D112+ $AC$9/AU112^2/D112)+$L112*$S$16+$K112*$T$16) ->  | AR112: =IF(A112="","",AQ112+$L112*S$14+$K112*$T$14) ->  | AU112: =IF(A112="","",10^(-$P$16*($AT112^0.5/(1+$AT112^0.5)-$P$17*$AT112))) ->  | AW112: =IF(C112="","",C112-B112) -> 
H170: =IF(A170="","",I170-J170) -> 
D176: =IF(A176="","",10^-((((B176-P$12)/P$13)+7))/$AU176) ->  | E176: =IF(A176="","",IF(A177="",(B176-B175)/(A176-A175),((B177-B176)/(A177-A176)+(B176-B175)/(A176-A175))/2)) ->  | F176: =IF(A176="","",IF(C176="","0,00001",(IF(ABS(C176-B176)<0.00001,0.00001,C176-B176)))) ->  | G176: =IF(A176="","",IF(AX176="X",0,IF(ABS(E176)<0.00001,(0.00001^M$20)*(ABS(H176)^I$20)*ABS(F176)^K$20,((ABS(E176))^M$20)*((ABS(H176))^I$20)*ABS(F176)^K$20))) ->  | I176: =IF(A176="","",L176*I$18+K176*E$19) ->  | J176: =IF(A176="","",D176 -$AC$9/AU176^2/D176+L176*(W176*$B$11+X176*$C$11+Y176*$D$11+Z176*$E$11+AA176*$F$11+AB176*$G$11+AC176*$H$11)+K176*(AD176*$B$18+AE176*$C$18+AF176*$D$18)) ->  | K176: =IF(A176="","",A176/(A176+$G$16)) ->  | L176: =IF(A176="","",$E$16/(A176+$G$16)) ->  | M176: =IF($A176="","",(1+(V$5*$AU176^(-2*V$4))*$D176+(V$6*$AU176^(-4*V$4-2))*$D176^2+(V$7*$AU176^(-6*V$4-6))*$D176^3+(V$8*$AU176^(-8*V$4-12))*$D176^4+(V$9*$AU176^(-10*V$4-20))*$D176^5+(V$10*$AU176^(-12*V$4-30))*$D176^6)) ->  | N176: =IF($A176="","",(1+(W$5*$AU176^(-2*W$4))*$D176+(W$6*$AU176^(-4*W$4-2))*$D176^2+(W$7*$AU176^(-6*W$4-6))*$D176^3+(W$8*$AU176^(-8*W$4-12))*$D176^4+(W$9*$AU176^(-10*W$4-20))*$D176^5+(W$10*$AU176^(-12*W$4-30))*$D176^6)) ->  | O176: =IF($A176="","",(1+(X$5*$AU176^(-2*X$4))*$D176+(X$6*$AU176^(-4*X$4-2))*$D176^2+(X$7*$AU176^(-6*X$4-6))*$D176^3+(X$8*$AU176^(-8*X$4-12))*$D176^4+(X$9*$AU176^(-10*X$4-20))*$D176^5+(X$10*$AU176^(-12*X$4-30))*$D176^6)) ->  | P176: =IF($A176="","",(1+(Y$5*$AU176^(-2*Y$4))*$D176+(Y$6*$AU176^(-4*Y$4-2))*$D176^2+(Y$7*$AU176^(-6*Y$4-6))*$D176^3+(Y$8*$AU176^(-8*Y$4-12))*$D176^4+(Y$9*$AU176^(-10*Y$4-20))*$D176^5+(Y$10*$AU176^(-12*Y$4-30))*$D176^6)) ->  | Q176: =IF($A176="","",(1+(Z$5*$AU176^(-2*Z$4))*$D176+(Z$6*$AU176^(-4*Z$4-2))*$D176^2+(Z$7*$AU176^(-6*Z$4-6))*$D176^3+(Z$8*$AU176^(-8*Z$4-12))*$D176^4+(Z$9*$AU176^(-10*Z$4-20))*$D176^5+(Z$10*$AU176^(-12*Z$4-30))*$D176^6)) ->  | R176: =IF($A176="","",(1+(AA$5*$AU176^(-2*AA$4))*$D176+(AA$6*$AU176^(-4*AA$4-2))*$D176^2+(AA$7*$AU176^(-6*AA$4-6))*$D176^3+(AA$8*$AU176^(-8*AA$4-12))*$D176^4+(AA$9*$AU176^(-10*AA$4-20))*$D176^5+(AA$10*$AU176^(-12*AA$4-30))*$D176^6)) ->  | S176: =IF($A176="","",(1+(AB$5*$AU176^(-2*AB$4))*$D176+(AB$6*$AU176^(-4*AB$4-2))*$D176^2+(AB$7*$AU176^(-6*AB$4-6))*$D176^3+(AB$8*$AU176^(-8*AB$4-12))*$D176^4+(AB$9*$AU176^(-10*AB$4-20))*$D176^5+(AB$10*$AU176^(-12*AB$4-30))*$D176^6)) ->  | T176: =IF($A176="","",(1+(AC$5*$AU176^(-2*AC$4))*$D176+(AC$6*$AU176^(-4*AC$4-2))*$D176^2)) ->  | U176: =IF($A176="","",(1+(AD$5*$AU176^(-2*AD$4))*$D176+(AD$6*$AU176^(-4*AD$4-2))*$D176^2)) ->  | V176: =IF($A176="","",(1+(AE$5*$AU176^(-2*AE$4))*$D176+(AE$6*$AU176^(-4*AE$4-2))*$D176^2)) ->  | W176: =IF($A176="","",((V$5*$AU176^(-2*V$4))*$D176+2*(V$6*$AU176^(-4*V$4-2))*$D176^2+3*(V$7*$AU176^(-6*V$4-6))*$D176^3+4*(V$8*$AU176^(-8*V$4-12))*$D176^4+5*(V$9*$AU176^(-10*V$4-20))*$D176^5+6*(V$10*$AU176^(-12*V$4-30))*$D176^6)/M176) ->  | X176: =IF($A176="","",((W$5*$AU176^(-2*W$4))*$D176+2*(W$6*$AU176^(-4*W$4-2))*$D176^2+3*(W$7*$AU176^(-6*W$4-6))*$D176^3+4*(W$8*$AU176^(-8*W$4-12))*$D176^4+5*(W$9*$AU176^(-10*W$4-20))*$D176^5+6*(W$10*$AU176^(-12*W$4-30))*$D176^6)/N176) ->  | Y176: =IF($A176="","",((X$5*$AU176^(-2*X$4))*$D176+2*(X$6*$AU176^(-4*X$4-2))*$D176^2+3*(X$7*$AU176^(-6*X$4-6))*$D176^3+4*(X$8*$AU176^(-8*X$4-12))*$D176^4+5*(X$9*$AU176^(-10*X$4-20))*$D176^5+6*(X$10*$AU176^(-12*X$4-30))*$D176^6)/O176) ->  | Z176: =IF($A176="","",((Y$5*$AU176^(-2*Y$4))*$D176+2*(Y$6*$AU176^(-4*Y$4-2))*$D176^2+3*(Y$7*$AU176^(-6*Y$4-6))*$D176^3+4*(Y$8*$AU176^(-8*Y$4-12))*$D176^4+5*(Y$9*$AU176^(-10*Y$4-20))*$D176^5+6*(Y$10*$AU176^(-12*Y$4-30))*$D176^6)/P176) ->  | AA176: =IF($A176="","",((Z$5*$AU176^(-2*Z$4))*$D176+2*(Z$6*$AU176^(-4*Z$4-2))*$D176^2+3*(Z$7*$AU176^(-6*Z$4-6))*$D176^3+4*(Z$8*$AU176^(-8*Z$4-12))*$D176^4+5*(Z$9*$AU176^(-10*Z$4-20))*$D176^5+6*(Z$10*$AU176^(-12*Z$4-30))*$D176^6)/Q176) ->  | AB176: =IF($A176="","",((AA$5*$AU176^(-2*AA$4))*$D176+2*(AA$6*$AU176^(-4*AA$4-2))*$D176^2+3*(AA$7*$AU176^(-6*AA$4-6))*$D176^3+4*(AA$8*$AU176^(-8*AA$4-12))*$D176^4+5*(AA$9*$AU176^(-10*AA$4-20))*$D176^5+6*(AA$10*$AU176^(-12*AA$4-30))*$D176^6)/R176) ->  | AC176: =IF($A176="","",((AB$5*$AU176^(-2*AB$4))*$D176+2*(AB$6*$AU176^(-4*AB$4-2))*$D176^2+3*(AB$7*$AU176^(-6*AB$4-6))*$D176^3+4*(AB$8*$AU176^(-8*AB$4-12))*$D176^4+5*(AB$9*$AU176^(-10*AB$4-20))*$D176^5+6*(AB$10*$AU176^(-12*AB$4-30))*$D176^6)/S176) ->  | AD176: =IF($A176="","",((AC$5*$AU176^(-2*AC$4))*$D176+2*(AC$6*$AU176^(-4*AC$4-2))*$D176^2)/T176) ->  | AE176: =IF($A176="","",((AD$5*$AU176^(-2*AD$4))*$D176+2*(AD$6*$AU176^(-4*AD$4-2))*$D176^2)/U176) ->  | AF176: =IF($A176="","",((AE$5*$AU176^(-2*AE$4))*$D176+2*(AE$6*$AU176^(-4*AE$4-2))*$D176^2)/V176) ->  | AG176: =IF(B$11=0,"",IF($A176="","",0.5*B$11*$L176*(1*V$4^2+(V$5*$AU176^(-2*V$4))*$D176*(V$4+1)^2+(V$6*$AU176^(-4*V$4-2))*$D176^2*(V$4+2)^2+(V$7*$AU176^(-6*V$4-6))*$D176^3*(V$4+3)^2+(V$8*$AU176^(-8*V$4-12))*$D176^4*(V$4+4)^2+(V$9*$AU176^(-10*V$4-20))*$D176^5*(V$4+5)^2+(V$10*$AU176^(-12*V$4-30))*$D176^6*(V$4+6)^2)/M176)) ->  | AH176: =IF(C$11=0,"",IF($A176="","",0.5*C$11*$L176*(1*W$4^2+(W$5*$AU176^(-2*W$4))*$D176*(W$4+1)^2+(W$6*$AU176^(-4*W$4-2))*$D176^2*(W$4+2)^2+(W$7*$AU176^(-6*W$4-6))*$D176^3*(W$4+3)^2+(W$8*$AU176^(-8*W$4-12))*$D176^4*(W$4+4)^2+(W$9*$AU176^(-10*W$4-20))*$D176^5*(W$4+5)^2+(W$10*$AU176^(-12*W$4-30))*$D176^6*(W$4+6)^2)/N176)) ->  | AI176: =IF(D$11=0,"",IF($A176="","",0.5*D$11*$L176*(1*X$4^2+(X$5*$AU176^(-2*X$4))*$D176*(X$4+1)^2+(X$6*$AU176^(-4*X$4-2))*$D176^2*(X$4+2)^2+(X$7*$AU176^(-6*X$4-6))*$D176^3*(X$4+3)^2+(X$8*$AU176^(-8*X$4-12))*$D176^4*(X$4+4)^2+(X$9*$AU176^(-10*X$4-20))*$D176^5*(X$4+5)^2+(X$10*$AU176^(-12*X$4-30))*$D176^6*(X$4+6)^2)/O176)) ->  | AJ176: =IF(E$11=0,"",IF($A176="","",0.5*E$11*$L176*(1*Y$4^2+(Y$5*$AU176^(-2*Y$4))*$D176*(Y$4+1)^2+(Y$6*$AU176^(-4*Y$4-2))*$D176^2*(Y$4+2)^2+(Y$7*$AU176^(-6*Y$4-6))*$D176^3*(Y$4+3)^2+(Y$8*$AU176^(-8*Y$4-12))*$D176^4*(Y$4+4)^2+(Y$9*$AU176^(-10*Y$4-20))*$D176^5*(Y$4+5)^2+(Y$10*$AU176^(-12*Y$4-30))*$D176^6*(Y$4+6)^2)/P176)) ->  | AK176: =IF(F$11=0,"",IF($A176="","",0.5*F$11*$L176*(1*Z$4^2+(Z$5*$AU176^(-2*Z$4))*$D176*(Z$4+1)^2+(Z$6*$AU176^(-4*Z$4-2))*$D176^2*(Z$4+2)^2+(Z$7*$AU176^(-6*Z$4-6))*$D176^3*(Z$4+3)^2+(Z$8*$AU176^(-8*Z$4-12))*$D176^4*(Z$4+4)^2+(Z$9*$AU176^(-10*Z$4-20))*$D176^5*(Z$4+5)^2+(Z$10*$AU176^(-12*Z$4-30))*$D176^6*(Z$4+6)^2)/Q176)) ->  | AL176: =IF(G$11=0,"",IF($A176="","",0.5*G$11*$L176*(1*AA$4^2+(AA$5*$AU176^(-2*AA$4))*$D176*(AA$4+1)^2+(AA$6*$AU176^(-4*AA$4-2))*$D176^2*(AA$4+2)^2+(AA$7*$AU176^(-6*AA$4-6))*$D176^3*(AA$4+3)^2+(AA$8*$AU176^(-8*AA$4-12))*$D176^4*(AA$4+4)^2+(AA$9*$AU176^(-10*AA$4-20))*$D176^5*(AA$4+5)^2+(AA$10*$AU176^(-12*AA$4-30))*$D176^6*(AA$4+6)^2)/R176)) ->  | AM176: =IF(H$11=0,"",IF($A176="","",0.5*H$11*$L176*(1*AB$4^2+(AB$5*$AU176^(-2*AB$4))*$D176*(AB$4+1)^2+(AB$6*$AU176^(-4*AB$4-2))*$D176^2*(AB$4+2)^2+(AB$7*$AU176^(-6*AB$4-6))*$D176^3*(AB$4+3)^2+(AB$8*$AU176^(-8*AB$4-12))*$D176^4*(AB$4+4)^2+(AB$9*$AU176^(-10*AB$4-20))*$D176^5*(AB$4+5)^2+(AB$10*$AU176^(-12*AB$4-30))*$D176^6*(AB$4+6)^2)/S176)) ->  | AN176: =IF(B$18=0,"",IF($A176="","",0.5*B$18*$K176*(1*AC$4^2+(AC$5*$AU176^(-2*AC$4))*$D176*(AC$4+1)^2+(AC$6*$AU176^(-4*AC$4-2))*$D176^2*(AC$4+2)^2)/T176)) ->  | AO176: =IF(C$18=0,"",IF($A176="","",0.5*C$18*$K176*(1*AD$4^2+(AD$5*$AU176^(-2*AD$4))*$D176*(AD$4+1)^2+(AD$6*$AU176^(-4*AD$4-2))*$D176^2*(AD$4+2)^2)/U176)) ->  | AP176: =IF(D$18=0,"",IF($A176="","",0.5*D$18*$K176*(1*AE$4^2+(AE$5*$AU176^(-2*AE$4))*$D176*(AE$4+1)^2+(AE$6*$AU176^(-4*AE$4-2))*$D176^2*(AE$4+2)^2)/V176)) ->  | AQ176: =IF(A176="","",SUM(AG176:AP176)+0.5*(D176+ $AC$9/AU176^2/D176)+$L176*$S$16+$K176*$T$16) ->  | AR176: =IF(A176="","",AQ176+$L176*S$14+$K176*$T$14) ->  | AU176: =IF(A176="","",10^(-$P$16*($AT176^0.5/(1+$AT176^0.5)-$P$17*$AT176))) ->  | AW176: =IF(C176="","",C176-B176) -> 

Sheet +Reg
C1: Compilation of essential data and results obtained with the Regression analysis module
B4: Identify the results and add observations (use any gray cell)

Sheet Graphs
C1: Titration curves and first derivatives overlay
A2: Source of data to plot/overlay
A3: TRUE | B3: FALSE | C3: =IF(Simulation!B41="","No Data","") ->  | D3: FALSE | F3: FALSE | G3: =IF(Simulation!D41="","No Data","") -> No Data | I3: Update curve(s) after any change in Simulation, Evaluation or Regression
A4: TRUE | B4: FALSE | C4: =IF(Evaluation!B41="","No Data","") ->  | D4: FALSE | F4: TRUE | G4: =IF(Evaluation!C41="","No Data","") ->  | I4: How to change the axis of a curve | N4: Data ID on curves
A5: TRUE | B5: FALSE | C5: =IF(Regression!B41="","No Data","") ->  | D5: FALSE | F5: FALSE | G5: =IF(Regression!C41="","No Data","") ->  | I5: How to copy/paste a curve
S9: Simulation | V9: Simulation with dispersion (random errors) | AA9: Evaluation | AD9: Evaluation with smoothing/interpolation | AI9: Regression raw data | AM9: Regression fitted curve
R10: Vol | S10: pH | T10: Vol | U10: dpH/dVol | V10: Vol | W10: pH | X10: Vol | Y10: dpH/dVol | Z10: Vol | AA10: pH | AB10: Vol | AC10: dpH/dVol | AD10: Vol | AE10: pH | AF10: Vol | AG10: dpH/dVol | AH10: Vol | AI10: pH | AJ10: Vol | AK10: dpH/dVol | AL10: Vol | AM10: pH | AN10: Vol | AO10: dpH/dVol
R11: 0 | S11: 1.805932709 | Z11: 0 | AA11: 2.265347788 | AH11: 0 | AI11: 2.280828266
R12: 2.157091709 | S12: 2.020435322 | Z12: 2.498869969 | AA12: 2.386136932 | AF12: 0.08333333333 | AG12: 0.01752098642 | AH12: 0.8968889408 | AI12: 2.471416604
R13: 4.096038429 | S13: 2.234937934 | Z13: 4.617606643 | AA13: 2.664111848 | AF13: 0.25 | AG13: 0.01836283553 | AH13: 1.864139493 | AI13: 2.662466106
R14: 5.753962365 | S14: 2.449440546 | Z14: 6.27832077 | AA14: 2.784189851 | AF14: 0.4166666666 | AG14: 0.02004653375 | AH14: 2.960579823 | AI14: 2.860585269
R15: 7.077085039 | S15: 2.663943159 | Z15: 7.499213844 | AA15: 3.058509229 | AF15: 0.5833333333 | AG15: 0.02257208109 | AH15: 4.198095335 | AI15: 3.094987973
R16: 8.060804101 | S16: 2.878445771 | Z16: 8.354543532 | AA16: 3.302484567 | AF16: 0.7499999999 | AG16: 0.02593947754 | AH16: 5.548356443 | AI16: 3.273530873
R17: 8.74924755 | S17: 3.092948383 | Z17: 8.93383808 | AA17: 3.437478491 | AF17: 0.9166666666 | AG17: 0.0301487231 | AH17: 6.970387358 | AI17: 3.48312634
R18: 9.209543352 | S18: 3.307450996 | Z18: 9.317705491 | AA18: 3.552244313 | AF18: 1.083333333 | AG18: 0.03519981777 | AH18: 8.440223346 | AI18: 3.674415939
R19: 9.507817678 | S19: 3.521953608 | Z19: 9.569224015 | AA19: 3.823462932 | AF19: 1.25 | AG19: 0.04109276156 | AH19: 9.957522729 | AI19: 3.877844612
R20: 9.697492323 | S20: 3.73645622 | Z20: 9.734132989 | AA20: 3.890552101 | AF20: 1.416666667 | AG20: 0.04782755445 | AH20: 11.52782908 | AI20: 4.087831509
R21: 9.817288881 | S21: 3.950958833 | Z21: 9.844379556 | AA21: 4.301452426 | AF21: 1.583333333 | AG21: 0.05540419646 | AH21: 13.14204026 | AI21: 4.259504498
R22: 9.893679463 | S22: 4.165461445 | Z22: 9.922195006 | AA22: 4.118029908 | AF22: 1.75 | AG22: 0.06382268758 | AH22: 14.76872213 | AI22: 4.483821406
R23: 9.94438498 | S23: 4.379964057 | Z23: 9.983671769 | AA23: 4.422237527 | AF23: 1.916666666 | AG23: 0.07308302782 | AH23: 16.35673224 | AI23: 4.682407754
R24: 9.981525144 | S24: 4.59446667 | Z24: 10.04170013 | AA24: 4.84088184 | AF24: 2.083333333 | AG24: 0.08318521716 | AH24: 17.84478189 | AI24: 4.889359112
R25: 10.01412927 | S25: 4.808969282 | Z25: 10.10847528 | AA25: 5.186426034 | AF25: 2.25 | AG25: 0.09412925562 | AH25: 19.18178251 | AI25: 5.096008105
R26: 10.05016139 | S26: 5.023471894 | Z26: 10.19789359 | AA26: 5.192309473 | AF26: 2.416666666 | AG26: 0.105915143 | AH26: 20.35166759 | AI26: 5.295324571
R27: 10.09834473 | S27: 5.237974507 | Z27: 10.32816437 | AA27: 5.379642426 | AF27: 2.583333333 | AG27: 0.1180033645 | AH27: 21.38416074 | AI27: 5.501157879
R28: 10.17008068 | S28: 5.452477119 | Z28: 10.52489159 | AA28: 5.567468463 | AF28: 2.75 | AG28: 0.1282793109 | AH28: 22.34268564 | AI28: 5.68758888
R29: 10.28169442 | S29: 5.666979731 | Z29: 10.82464167 | AA29: 5.768165195 | AF29: 2.916666666 | AG29: 0.1362249748 | AH29: 23.29700056 | AI29: 5.878136282
R30: 10.45702535 | S30: 5.881482344 | Z30: 11.27838639 | AA30: 6.083274782 | AF30: 3.083333333 | AG30: 0.141840356 | AH30: 24.29234983 | AI30: 6.093405653
R31: 10.72979394 | S31: 6.095984956 | Z31: 11.9528484 | AA31: 6.221641944 | AF31: 3.25 | AG31: 0.1451254546 | AH31: 25.32645341 | AI31: 6.30686813
R32: 11.14387525 | S32: 6.310487568 | Z32: 12.92550991 | AA32: 6.444165719 | AF32: 3.416666666 | AG32: 0.1460802705 | AH32: 26.34764129 | AI32: 6.490152638
R33: 11.74754026 | S33: 6.524990181 | Z33: 14.26695811 | AA33: 6.617015243 | AF33: 3.583333333 | AG33: 0.1447048039 | AH33: 27.28032907 | AI33: 6.698478665
R34: 12.57654482 | S34: 6.739492793 | Z34: 16.00653643 | AA34: 6.827692766 | AF34: 3.75 | AG34: 0.1409990547 | AH34: 28.06266316 | AI34: 6.892121522
R35: 13.62577297 | S35: 6.953995405 | Z35: 18.09035054 | AA35: 6.995160621 | AF35: 3.916666666 | AG35: 0.1349630228 | AH35: 28.66974633 | AI35: 7.086581212
R36: 14.82449173 | S36: 7.168498018 | Z36: 20.36169307 | AA36: 7.224291505 | AF36: 4.083333333 | AG36: 0.1265967084 | AH36: 29.11192482 | AI36: 7.302716183
R37: 16.04375501 | S37: 7.38300063 | Z37: 22.59629315 | AA37: 7.536992695 | AF37: 4.25 | AG37: 0.1159001113 | AH37: 29.4190841 | AI37: 7.518335162
R38: 17.14578693 | S38: 7.597503242 | Z38: 24.58374964 | AA38: 7.631283509 | AF38: 4.416666666 | AG38: 0.1028732316 | AH38: 29.62547963 | AI38: 7.703871614
R39: 18.04053507 | S39: 7.812005855 | Z39: 26.19894609 | AA39: 7.783174753 | AF39: 4.583333333 | AG39: 0.08754548137 | AH39: 29.76118141 | AI39: 7.908323363
R40: 18.70589916 | S40: 8.026508467 | Z40: 27.41820278 | AA40: 7.982534103 | AF40: 4.75 | AG40: 0.07229986912 | AH40: 29.84931106 | AI40: 8.114990925
R41: 19.1692104 | S41: 8.241011079 | Z41: 28.28845808 | AA41: 8.284776761 | AF41: 4.916666666 | AG41: 0.06123774979 | AH41: 29.90638508 | AI41: 8.250635592
R42: 19.47751251 | S42: 8.455513692 | Z42: 28.88541472 | AA42: 8.406075494 | AF42: 5.083333333 | AG42: 0.05476429407 | AH42: 29.94375132 | AI42: 8.572292406
R43: 19.67695819 | S43: 8.670016304 | Z43: 29.28436695 | AA43: 8.629469608 | AF43: 5.25 | AG43: 0.05287950198 | AH43: 29.9691216 | AI43: 8.673532361
R44: 19.80437389 | S44: 8.884518916 | Z44: 29.54724814 | AA44: 8.797675061 | AF44: 5.416666666 | AG44: 0.0555833735 | AH44: 29.98785839 | AI44: 8.949234132
R45: 19.88633449 | S45: 9.099021529 | Z45: 29.72026474 | AA45: 9.096011711 | AF45: 5.583333333 | AG45: 0.06287590864 | AH45: 30.00398196 | AI45: 9.184584567
R46: 19.94123643 | S46: 9.313524141 | Z46: 29.83625627 | AA46: 9.084790752 | AF46: 5.749999999 | AG46: 0.0747571074 | AH46: 30.02097933 | AI46: 9.201918642
R47: 19.98197612 | S47: 9.528026753 | Z47: 29.91833706 | AA47: 9.400064428 | AF47: 5.916666666 | AG47: 0.09122696978 | AH47: 30.04253083 | AI47: 9.554593925
R48: 20.01839771 | S48: 9.742529366 | Z48: 29.98338512 | AA48: 9.450654773 | AF48: 6.083333333 | AG48: 0.1122854958 | AH48: 30.07328099 | AI48: 9.73971454
R49: 20.05944114 | S49: 9.957031978 | Z49: 30.04504039 | AA49: 9.811774595 | AF49: 6.249999999 | AG49: 0.1378895615 | AH49: 30.11979206 | AI49: 9.921328281
R50: 20.11523663 | S50: 10.17153459 | Z50: 30.11636002 | AA50: 10.28451778 | AF50: 6.416666666 | AG50: 0.165389989 | AH50: 30.19183496 | AI50: 10.1180939
R51: 20.19953623 | S51: 10.3860372 | Z51: 30.21247405 | AA51: 10.2945364 | AF51: 6.583333333 | AG51: 0.1906446476 | AH51: 30.30418158 | AI51: 10.34027488
R52: 20.33299864 | S52: 10.60053982 | Z52: 30.35368706 | AA52: 10.52178175 | AF52: 6.749999999 | AG52: 0.2132929956 | AH52: 30.4790272 | AI52: 10.52651412
R53: 20.54801592 | S53: 10.81504243 | Z53: 30.56957083 | AA53: 10.62772623 | AF53: 6.916666666 | AG53: 0.2333350328 | AH53: 30.74902797 | AI53: 10.71671407
R54: 20.89602407 | S54: 11.02954504 | Z54: 30.90471747 | AA54: 10.91523511 | AF54: 7.083333333 | AG54: 0.2507707593 | AH54: 31.16063285 | AI54: 10.92176638
R55: 21.45862215 | S55: 11.24404765 | Z55: 31.4269608 | AA55: 11.08491446 | AF55: 7.249999999 | AG55: 0.2656001751 | AH55: 31.77710976 | AI55: 11.12364183
R56: 22.36465259 | S56: 11.45855026 | Z56: 32.23900151 | AA56: 11.22637246 | AF56: 7.416666666 | AG56: 0.2778232801 | AH56: 32.6814223 | AI56: 11.33513084
R57: 23.81828448 | S57: 11.67305288 | Z57: 33.49463551 | AA57: 11.38501655 | AF57: 7.583333333 | AG57: 0.2863626838 | AH57: 33.98339205 | AI57: 11.51566154
R58: 26.15466627 | S58: 11.88755549 | Z58: 35.42225562 | AA58: 11.6766707 | AF58: 7.749999999 | AG58: 0.2869693764 | AH58: 35.84640703 | AI58: 11.74212336
R59: 29.98321673 | S59: 12.1020581 | Z59: 38.36541795 | AA59: 11.80534913 | AF59: 7.916666666 | AG59: 0.2785960319 | AH59: 38.56744421 | AI59: 11.91912719
R60: 36.64380689 | S60: 12.31656071 | Z60: 42.87750342 | AA60: 12.00734264 | AF60: 8.083333333 | AG60: 0.26124265 | AH60: 42.78070786 | AI60: 12.13457903
R61: 50 | S61: 12.53106333 | Z61: 50 | AA61: 12.22353936 | AF61: 8.249999999 | AG61: 0.234909231 | AH61: 49.99999998 | AI61: 12.32998402
AF62: 8.416666666 | AG62: 0.2033027146
AF63: 8.583333333 | AG63: 0.1882217493
AF64: 8.749999999 | AG64: 0.1976083301
AF65: 8.916666666 | AG65: 0.2323696762
AF66: 9.083333333 | AG66: 0.3279583662
AF67: 9.249999999 | AG67: 0.5307958606
AF68: 9.416666666 | AG68: 0.8420478352
AF69: 9.583333332 | AG69: 1.259383024
AF70: 9.749999999 | AG70: 1.826495889
AF71: 9.916666666 | AG71: 2.396461907
AF72: 10.08333333 | AG72: 2.46754174
AF73: 10.25 | AG73: 1.884272245
AF74: 10.41666667 | AG74: 1.308785529
AF75: 10.58333333 | AG75: 0.9215725689
AF76: 10.75 | AG76: 0.701496902
AF77: 10.91666667 | AG77: 0.6013006834
AF78: 11.08333333 | AG78: 0.5113257393
AF79: 11.25 | AG79: 0.4084106069
AF80: 11.41666667 | AG80: 0.3091759878
AF81: 11.58333333 | AG81: 0.2396365981
AF82: 11.75 | AG82: 0.2020600516
AF83: 11.91666667 | AG83: 0.1963004493
AF84: 12.08333333 | AG84: 0.2093363975
AF85: 12.25 | AG85: 0.2180511561
AF86: 12.41666667 | AG86: 0.2200688055
AF87: 12.58333333 | AG87: 0.2153893455
AF88: 12.75 | AG88: 0.2040127763
AF89: 12.91666667 | AG89: 0.1860873988
AF90: 13.08333333 | AG90: 0.1660520839
AF91: 13.25 | AG91: 0.1490052407
AF92: 13.41666667 | AG92: 0.1352278721
AF93: 13.58333333 | AG93: 0.1247199779
AF94: 13.75 | AG94: 0.1174815583
AF95: 13.91666667 | AG95: 0.1135126132
AF96: 14.08333333 | AG96: 0.1128131426
AF97: 14.25 | AG97: 0.1153373972
AF98: 14.41666667 | AG98: 0.119288358
AF99: 14.58333333 | AG99: 0.1223208664
AF100: 14.75 | AG100: 0.1242771038
AF101: 14.91666667 | AG101: 0.1251570701
AF102: 15.08333333 | AG102: 0.1249607655
AF103: 15.25 | AG103: 0.1236881899
AF104: 15.41666667 | AG104: 0.1213393432
AF105: 15.58333333 | AG105: 0.1179142255
AF106: 15.75 | AG106: 0.1134128368
AF107: 15.91666667 | AG107: 0.1078351771
AF108: 16.08333333 | AG108: 0.1014433853
AF109: 16.25 | AG109: 0.09541705956
AF110: 16.41666667 | AG110: 0.0900878537
AF111: 16.58333333 | AG111: 0.08545578552
AF112: 16.75 | AG112: 0.08152085504
AF113: 16.91666667 | AG113: 0.07828306224
AF114: 17.08333333 | AG114: 0.07574240714
AF115: 17.25 | AG115: 0.07389888972
AF116: 17.41666667 | AG116: 0.07275251
AF117: 17.58333333 | AG117: 0.07230326796
AF118: 17.75 | AG118: 0.07255116362
AF119: 17.91666667 | AG119: 0.07349619696
AF120: 18.08333333 | AG120: 0.07513352033
AF121: 18.25 | AG121: 0.07732606193
AF122: 18.41666667 | AG122: 0.07992082823
AF123: 18.58333333 | AG123: 0.08290977517
AF124: 18.75 | AG124: 0.08629290273
AF125: 18.91666667 | AG125: 0.09007021094
AF126: 19.08333333 | AG126: 0.09424169977
AF127: 19.25 | AG127: 0.09880736924
AF128: 19.41666666 | AG128: 0.1037672193
AF129: 19.58333333 | AG129: 0.1091212501
AF130: 19.75 | AG130: 0.1148694615
AF131: 19.91666666 | AG131: 0.1210118535
AF132: 20.08333333 | AG132: 0.1275484261
AF133: 20.25 | AG133: 0.1344791794
AF134: 20.41666666 | AG134: 0.1416079782
AF135: 20.58333333 | AG135: 0.1476165034
AF136: 20.75 | AG136: 0.1519615936
AF137: 20.91666666 | AG137: 0.1546415577
AF138: 21.08333333 | AG138: 0.1556563957
AF139: 21.25 | AG139: 0.1550061077
AF140: 21.41666666 | AG140: 0.1526906937
AF141: 21.58333333 | AG141: 0.1487101535
AF142: 21.75 | AG142: 0.1430644873
AF143: 21.91666666 | AG143: 0.1357536951
AF144: 22.08333333 | AG144: 0.1267777768
AF145: 22.25 | AG145: 0.1161367324
AF146: 22.41666666 | AG146: 0.103830562
AF147: 22.58333333 | AG147: 0.08990605211
AF148: 22.75 | AG148: 0.07596402325
AF149: 22.91666666 | AG149: 0.06396599533
AF150: 23.08333333 | AG150: 0.05403182987
AF151: 23.25 | AG151: 0.04616152687
AF152: 23.41666666 | AG152: 0.04035508634
AF153: 23.58333333 | AG153: 0.03661250827
AF154: 23.75 | AG154: 0.03493379266
AF155: 23.91666666 | AG155: 0.03531893951
AF156: 24.08333333 | AG156: 0.03776794883
AF157: 24.25 | AG157: 0.0422808206
AF158: 24.41666666 | AG158: 0.04885755484
AF159: 24.58333333 | AG159: 0.05743951294
AF160: 24.75 | AG160: 0.06666205545
AF161: 24.91666666 | AG161: 0.07515162161
AF162: 25.08333333 | AG162: 0.08284778854
AF163: 25.25 | AG163: 0.08975055624
AF164: 25.41666666 | AG164: 0.0958599247
AF165: 25.58333333 | AG165: 0.1011758939
AF166: 25.75 | AG166: 0.1056984639
AF167: 25.91666666 | AG167: 0.1094276347
AF168: 26.08333333 | AG168: 0.1123634063
AF169: 26.25 | AG169: 0.1150820539
AF170: 26.41666666 | AG170: 0.1217571888
AF171: 26.58333333 | AG171: 0.1342265248
AF172: 26.75 | AG172: 0.1524980479
AF173: 26.91666666 | AG173: 0.1765717581
AF174: 27.08333333 | AG174: 0.2064476554
AF175: 27.25 | AG175: 0.2421257398
AF176: 27.41666666 | AG176: 0.2831092296
AF177: 27.58333333 | AG177: 0.3174620294
AF178: 27.75 | AG178: 0.3329575733
AF179: 27.91666666 | AG179: 0.3290409747
AF180: 28.08333333 | AG180: 0.3057122337
AF181: 28.25 | AG181: 0.2631675792
AF182: 28.41666666 | AG182: 0.221177759
AF183: 28.58333333 | AG183: 0.216170025
AF184: 28.75 | AG184: 0.2520671414
AF185: 28.91666666 | AG185: 0.3291585491
AF186: 29.08333333 | AG186: 0.4505666449
AF187: 29.25 | AG187: 0.6186778601
AF188: 29.41666666 | AG188: 0.8727041389
AF189: 29.58333333 | AG189: 1.276482897
AF190: 29.75 | AG190: 1.804852198
AF191: 29.91666666 | AG191: 2.39310214
AF192: 30.08333333 | AG192: 2.497335706
AF193: 30.25 | AG193: 1.922548638
AF194: 30.41666666 | AG194: 1.300608883
AF195: 30.58333333 | AG195: 0.8962541953
AF196: 30.75 | AG196: 0.6510752162
AF197: 30.91666666 | AG197: 0.4778017078
AF198: 31.08333333 | AG198: 0.3557186872
AF199: 31.25 | AG199: 0.2696838514
AF200: 31.41666666 | AG200: 0.2188126967
AF201: 31.58333333 | AG201: 0.1897248092
AF202: 31.75 | AG202: 0.1666976541
AF203: 31.91666666 | AG203: 0.148832152
... 108 more rows

Sheet Database
C1: Database of dissociation constants of acids / protonation constants of bases
B2: Most constants in this compilation of ~250 systems – but not all – were obtained at 25o C and are thermodynamic ones (I=0), as required by the pH_calc, Simulation and Regression modules.
B3: No guarantee is given that the compiled pKas or the calculations made with CurTiPot are correct or accurate. CurTiPot takes in account only protonation equilibria but other chemical reactions will occur for many combinations of two or more of the listed systems.
B4: More systems, e.g., from the sources given next, can be added: a) at the end of the list; b) in alphabetic order by inserting line(s) and updating the sequential numbering (column B).
B5: Larger compilations of equilibrium constants and examples of on-line literature on acid-base equilibrium
B6: Mini-SCDatabase - Stability (equilibrium) constants with temperature and ionic stregth effect correction | I6: http://www.acadsoft.co.uk/scdbase/scdbase.htm | M6: Tutorial on acids and bases (and other) equilibria | S6: http://www.asdlib.org/onlineArticles/ecourseware/Text_Files_files/Chapter6.pdf
B7: Dissociation constants of inorganic and organic compounds (compilation with 33 pages) | H7: https://www.chem.wisc.edu/areas/reich/pkatable/pKa_compilation-1-Williams.pdf | M7: Tutorial on titrations of acids and bases | S7: http://www.asdlib.org/onlineArticles/ecourseware/Text_Files_files/Chapter9.pdf
B8: Dissociation constants of organic compounds (~600 compounds) | H8: http://www.zirchrom.com/organic.htm | M8: Measurement of pH. Definitions, Standards and Procedures (IUPAC - 2002) | S8: http://www.iupac.org/publications/pac/2002/pdf/7411x2169.pdf
B9: Computer calculated pKa values of any compound (by chemical name, CAS #, etc.) | H9: http://www.chemicalize.org/ | M9: Temperature dependence of potassium hydrogen phtalate 0.05 mol/kg buffer | S9: http://nvl.nist.gov/pub/nistpubs/jres/081/1/V81.N01.A03.pdf
B10: Martell, A. E., Smith, R. M., Critical Stability Constants, Vol. 1–4. Plenum Press: New York, 1976. | M10: Primary standard buffer solutions pH at various temperatures | S10: http://nvl.nist.gov/pub/nistpubs/jres/066/2/V66.N02.A06.pdf
B11: Perrin, D. D., Dissociation Constants of Organic Bases in Aqueous Solution, Butterworths, London, 1965; Supplement, 1972. | M11: Water, hydrogen ion, hydroxide ion structures, properties, Kw, pH | S11: http://www1.lsbu.ac.uk/water/hydrogen_ions.html
B12: Serjeant, E. P., and Dempsey, B., Ionization Constants of Organic Acids in Aqueous Solution, Pergamon, Oxford, 1979. | M12: Buffer Reference Center | P12: https://www.sigmaaldrich.com/life-science/core-bioreagents/biological-buffers/learning-center/buffer-reference-center.html
B13: Albert, A., "Ionization Constants of Heterocyclic Substances", in Physical Methods in Heterocyclic Chemistry, Katritzky, A. R., Ed., Academic Press, New York, 1963. | M13: Online Buffer Calculator | P13: http://www.sigmaaldrich.com/life-science/core-bioreagents/biological-buffers/learning-center/buffer-calculator.html
B14: Perrin, D. D., Dempsey, B., and Serjeant, E. P., pKa Prediction for Organic Acids and Bases, Chapman & Hall, London, 1981. | M14: Biological Buffers (with temperature dependence calculator) | S14: http://www.reachdevices.com/Protein/BiologicalBuffers.html
B15: Dawson, R. M. C., Elliot, D. C., Elliot, W. H., and Jones, K. M., Data for Biochemical Research, Oxford Science Publications, Oxford, 1986. | M15: Conversion of dissociation constants of acids into protonation constants of their conjugated bases
B16: Acid base indicators - pKas, color transitions, etc. | M16: pKa1 = logKpn | N16: pKa4 = logKpn-3 | P16: Overall (global) protonation constants
B17: Estimation of activity coefficients, gi, within CurTiPot - Davies equation: | J17: Ionic strength = | M17: pKa2 = logKpn-1 | N17: pKa5 = logKpn-4 | P17: logbp,i = logSKp and bp,i = PKp
M18: pKa3 = logKpn-2 | N18: pKa6 = logKpn-5
C19: Acid or Base | D19: Charge, fully | K19: Temperat. | L19: Ionic | N19: Molar mass
D20: deprotonated | E20: pKa1 | F20: pKa2 | G20: pKa3 | H20: pKa4 | I20: pKa5 | J20: pKa6 | K20: ºC | L20: strength | M20: Formula | N20: g/mol
C21: F R E Q U E N T L Y U S E D
B22: 1 | C22: Acetic acid | D22: -1 | E22: 4.757 | K22: 25 | L22: 0 | M22: CH3COOH | N22: 60.052
B23: 2 | C23: Ammonia | D23: 0 | E23: 9.244 | K23: 25 | L23: 0 | M23: NH3 | N23: 17.026
B24: 3 | C24: Carbonic acid | D24: -2 | E24: 6.352 | F24: 10.329 | K24: 25 | L24: 0 | M24: H2CO3
B25: 4 | C25: Citric acid | D25: -3 | E25: 3.128 | F25: 4.761 | G25: 6.396 | K25: 25 | L25: 0 | M25: H3C6H5O7 | N25: 192.027
B26: 5 | C26: EDTA | D26: -4 | E26: -0.21 | F26: 1.5 | G26: 2.21 | H26: 3.11 | I26: 6.75 | J26: 11.03 | K26: 25 | L26: 0 | M26: C10H16N2O8 | N26: 292.09
B27: 6 | C27: HCl | D27: -1 | E27: -7 | K27: 25 | L27: 0 | M27: HCl
B28: 7 | C28: Hydroxide ion | D28: -1 | E28: 13.997 | K28: 25 | L28: 0 | M28: NaOH
B29: 8 | C29: Phosphoric acid | D29: -3 | E29: 2.148 | F29: 7.199 | G29: 12.35 | K29: 25 | L29: 0 | M29: H3PO4 | N29: 97.976
B30: 9 | D30: 0 | E30: 0
B31: 10 | D31: 0 | E31: 0
B32: 11 | C32: A L P H A B E T I C O R D E R | E32: Insert new lines anywere to add more systems; renumber column B | K32: Find more values in the references and links
B33: 12 | C33: Acetamide | D33: 0 | E33: 0.63 | K33: 25 | L33: 0 | M33: C2H5NO | N33: 59.067
B34: 13 | C34: Acetic acid | D34: -1 | E34: 4.757 | K34: 25 | L34: 0 | M34: CH3COOH | N34: 60.052
B35: 14 | C35: Acetoacetic acid | D35: -1 | E35: 3.58 | K35: 18 | L35: 0 | M35: C4H6O3 | N35: 102.089
